Workbook

Sheet INDICE
F1: REINO UNIDO
F2: Trocas comerciais com Portugal (PT) 2019-2023 Setores agrícola e agroalimentar, do mar e das florestas
C3: Fonte
D4: Estatísticas do Comércio Internacional | F4: Reino Unido - Síntese
D5: dados: 2022 definitivos | F5: 1. Evolução da balança comercial
F6: 2. Ranking dos parceiros comerciais de Portugal por país
C7: Data | D7: 2024-05-14T17:02:43.520 | F7: 2A Parceiros comerciais de Portugal - UE vs. Países Terceiros
F8: 3. Principais produtos transacionados (NC a 2 e 4 dígitos)
F9: 3A Principais produtos transacionados (sem mar nem florestas)
F10: 4A Evolução da balança comercial por produto
F11: 5.2. Trocas comerciais por produto (NC 2 dígitos)

Sheet Sintese
A1: Reino Unido - Síntese (2019-2023)
A3: • As trocas comerciais de bens transacionáveis (excluindo serviços) entre Portugal e Reino Unido representam um total de 3,5 mil milhões de € (M€) em exportações e 1,5 mil M€ em importações, na média do período 2019-2023, correspondendo a um saldo positivo da balança comercial de cerca de 2,03 mil M€.
A4: • No que respeita aos produtos dos setores agrícola e agroalimentar, mar e florestas, Portugal exportou para Reino Unido 720,4 M€ em média anual, no mesmo período (este país ocupa assim a 4ª posição em relação ao total dos países), enquanto as importações totalizaram 197,7 M€ (12ª posição), com um saldo positivo de 522,7 M€. Estes setores representam perto de 20,6% do total de exportações de bens transacionáveis e 13,5% das correspondentes importações.
A5: • Se nos referirmos apenas ao setor agrícola e agroalimentar, as exportações representam, em média, 379,6 M€ (5ª posição) e as importações 157,7 milhões (11ª posição), ou seja, Portugal tem um saldo positivo de 221,9 M€. Estes valores representam, respetivamente, cerca de 52,7% das exportações do setor agroflorestal e mar e 79,8% das importações.
A6: • As principais exportações agrícolas e agroalimentares (NC 4 dígitos) neste período são Vinhos de uvas frescas (23%), Tomates preparados (16%) e Produtos de padaria, pastelaria, etc. (9%). As importações agrícolas e agroalimentares mais relevantes referem-se a Álcool etílico <80%; aguardentes, etc. (23%), Cevada (19%) e Trigo e mistura trigo/centeio (12%). Se considerarmos também os produtos do mar e da floresta, merecem particular destaque, em termos de exportações, Papel e cartão p/ escrita, etc. (16%), Vinhos de uvas frescas (12%) e Tomates preparados (8%). Nas importações destes setores, destacam-se Álcool etílico <80%; aguardentes, etc. (19%), Cevada (15%) e Trigo e mistura trigo/centeio (10%).
A9: Saldo da Balança Comercial | B9: 2019 | C9: 2020 | D9: 2021 | E9: 2022 | F9: 2023 | G9: média 2019-2023 | J9: Posição entre os parceiros comerciais de Portugal (milhares de euros)
A10: Total de Bens Transacionáveis* | B10: 1526538.999 | C10: 5000-01-08T01:16:19.200 | D10: 2312702.019 | E10: 2676730.513 | F10: 8727-06-30T01:09:07.200 | G10: 2028384.926 | J10: AA + M + F | K10: Posição | L10: média 2019-2023 | M10: % do total | N10: TVMA* 2019-2023 | O10: TVT* 2019-2023
A11: Agrícola e Agroalimentar (AA) | B11: 110882.843 | C11: 2444-01-13T04:10:33.600 | D11: 259235.612 | E11: 251766.714 | F11: 2690-10-14T23:25:26.400 | G11: 221884.4638 | J11: Exportações | K11: 4ª | L11: 720383.6546 | M11: 0.05190626677 | N11: 0.05252983501 | O11: 0.2272630555
A12: Mar (M) | B12: 2059.585 | C12: 8985.44 | D12: 14475.284 | E12: 3732.141 | F12: 6939.93 | G12: 7238.476 | J12: Importações | K12: 12ª | L12: 197657.4046 | M12: 0.01222411885 | N12: -0.1196762936 | O12: -0.3994217657
A13: Florestas (F) | B13: 259175.298 | C13: 2543-04-24T19:16:19.200 | D13: 261832.414 | E13: 379923.487 | F13: 2809-04-21T13:10:33.600 | G13: 293603.3102 | J13: AA
A14: AA + M + F | B14: 372117.726 | C14: 3111-12-15T10:00:28.800 | D14: 535543.31 | E14: 635422.342 | F14: 3619-02-05T10:55:12 | G14: 522726.25 | J14: Exportações | K14: 5ª | L14: 379612.82 | M14: 0.04898662846 | N14: 0.0659780532 | O14: 0.2911986205
J15: Importações | K15: 11ª | L15: 157728.3562 | M15: 0.01406833297 | N15: -0.08948100697 | O15: -0.3741863276
A16: milhares de euros *exclui serviços | K16: *TVMA - Taxa de variação média anual; TVT - Taxa de variação total
A18: Evolução das trocas comerciais Portugal-Reino Unido em milhares de euros (2019-2023)
E27: Exportações | G27: Importações | I27: Saldo
A28: Principais produtos agrícolas e agroalimentares, do mar e da floresta transacionados (NC 4 dígitos)
A47: Principais produtos agrícolas e agroalimentares transacionados (NC 4 dígitos)
A81: Fonte: GPP a partir de dados INE/Comércio Internacional (2022 definitivos) | N81: 2024-05-14T17:02:43.520

Sheet 1
A1: Evolução da balança comercial Portugal-Reino Unido 2019-2023 em milhões de euros
A3: Total de Bens Transacionáveis (BT)(1) | B3: 2019 | C3: 2020 | D3: 2021 | E3: 2022 | F3: 2023 | G3: média quinquénio | H3: var. 19/20 | I3: var. 20/21 | J3: var. 21/22 | K3: var. 22/23 | L3: TVMA* 2019-2023 | M3: TVT* 2019-2023
A4: Exportações | B4: 3628.796073 | C4: 3062.165199 | D4: 3306.292658 | E4: 3840.658638 | F4: 3644.944891 | G4: 3496.571492 | H4: -0.1561484477 | I4: 0.07972380428 | J4: 0.1616208954 | K4: -0.05095838122 | L4: 0.001110694701 | M4: 0.004450186143
A5: Importações | B5: 2102.257074 | C5: 1929.904146 | D5: 993.590639 | E5: 1163.928125 | F5: 1151.252843 | G5: 1468.186565 | H5: -0.08198470593 | I5: -0.4851606278 | J5: 0.171436283 | K5: -0.01089008997 | L5: -0.1397568496 | M5: -0.4523729485
A6: Saldo (exp-imp) | B6: 1526.538999 | C6: 1132.261053 | D6: 2312.702019 | E6: 2676.730513 | F6: 2493.692048 | G6: 2028.384926
A7: Cobertura (exp/imp) | B7: 1.726142877 | C7: 1.586692896 | D7: 3.32762058 | E7: 3.299738666 | F7: 3.166068091 | G7: 2.381558021
A8: Exp BT Reino Unido / Exp BT Mundo | B8: 0.06057806097 | C8: 0.05696268091 | D8: 0.05197059572 | E8: 0.04902667333 | F8: 0.04701379715 | G8: 0.05247804419 | L8: Exportações
A9: Imp BT Reino Unido / Imp BT Mundo | B9: 0.0262857284 | C9: 0.02832031786 | D9: 0.01194999215 | E9: 0.01063085907 | F9: 0.0109721514 | G9: 0.0164713382 | L9: Importações
A10: Exp BT Reino Unido / Exp TE Mundo | B10: 0.0389059357 | C10: 0.04122142424 | D10: 0.03696257675 | E10: 0.0319526225 | F10: 0.02891872858 | G10: 0.03474017897
A11: Imp BT Reino Unido / Imp TE Mundo | B11: 0.0227759129 | C11: 0.02455824548 | D11: 0.01039888688 | E11: 0.009235164704 | F11: 0.009303128829 | G11: 0.01422067423
A12: (1) Todos os produtos transacionados entre PT e Reino Unido (exclui serviços) | D12: TE - Total da Economia (bens e serviços) Fonte: INE/Contas Nacionais | H12: *TVMA - Taxa de variação média anual; TVT - Taxa de variação total
A24: Agro(1) + Mar + Florestas (AMF) | B24: 2019 | C24: 2020 | D24: 2021 | E24: 2022 | F24: 2023 | G24: média quinquénio | H24: var. 19/20 | I24: var. 20/21 | J24: var. 21/22 | K24: var. 22/23 | L24: TVMA* 2019-2023 | M24: TVT* 2019-2023
A25: Exportações | B25: 645.306276 | C25: 664.085871 | D25: 685.789862 | E25: 814.775712 | F25: 791.960552 | G25: 720.3836546 | H25: 0.02910183226 | I25: 0.03268250681 | J25: 0.1880836349 | K25: -0.02800176744 | L25: 0.05252983501 | M25: 0.2272630555
A26: Importações | B26: 273.18855 | C26: 221.427454 | D26: 150.246552 | E26: 179.35337 | F26: 164.071097 | G26: 197.6574046 | H26: -0.1894702249 | I26: -0.3214637603 | J26: 0.1937270281 | K26: -0.08520761556 | L26: -0.1196762936 | M26: -0.3994217657
A27: Saldo (exp-imp) | B27: 372.117726 | C27: 442.658417 | D27: 535.54331 | E27: 635.422342 | F27: 627.889455 | G27: 522.72625
A28: Cobertura (exp/imp) | B28: 2.362127827 | C28: 2.999112617 | D28: 4.564429951 | E28: 4.542851422 | F28: 4.826935191 | G28: 3.644607477
A29: Exp AMF / Exp BT | B29: 0.1778293029 | C29: 0.2168680747 | D29: 0.2074195883 | E29: 0.2121447879 | F29: 0.2172764131 | G29: 0.2060257187 | L29: Exportações
A30: Imp AMF / Imp BT | B30: 0.1299501157 | C30: 0.1147349491 | D30: 0.1512157483 | E30: 0.1540931662 | F30: 0.1425152589 | G30: 0.1346268991 | L30: Importações
A31: Exp AMF Reino Unido / Exp AMF Mundo | B31: 0.05455831942 | C31: 0.05756918903 | D31: 0.0511914531 | E31: 0.04971671786 | F31: 0.04875239988 | G31: 0.05190626677
A32: Imp AMF Reino Unido / Imp AMF Mundo | B32: 0.01974852388 | C32: 0.01697361988 | D32: 0.01005356051 | E32: 0.00928650751 | F32: 0.008323999531 | G32: 0.01222411885
A33: (1) Produtos agrícolas e agroalimentares | B33: BT - Total de Bens Transacionáveis (exclui serviços) | H33: *TVMA - Taxa de variação média anual; TVT - Taxa de variação total
A45: Agroalimentar (AA)(1) | B45: 2019 | C45: 2020 | D45: 2021 | E45: 2022 | F45: 2023 | G45: média quinquénio | H45: var. 19/20 | I45: var. 20/21 | J45: var. 21/22 | K45: var. 22/23 | L45: TVMA* 2019-2023 | M45: TVT* 2019-2023
A46: Exportações | B46: 329.792517 | C46: 371.115789 | D46: 376.40588 | E46: 394.922271 | F46: 425.827643 | G46: 379.61282 | H46: 0.1253008175 | I46: 0.01425455655 | J46: 0.04919261888 | K46: 0.07825684766 | L46: 0.0659780532 | M46: 0.2911986205
A47: Importações | B47: 218.909674 | C47: 172.409615 | D47: 117.170268 | E47: 143.155557 | F47: 136.996667 | G47: 157.7283562 | H47: -0.2124166472 | I47: -0.3203959768 | J47: 0.2217737438 | K47: -0.04302236063 | L47: -0.1105710488 | M47: -0.3741863276
A48: Saldo (exp-imp) | B48: 110.882843 | C48: 198.706174 | D48: 259.235612 | E48: 251.766714 | F48: 288.830976 | G48: 221.8844638
A49: Cobertura (exp/imp) | B49: 1.506523266 | C49: 2.152523738 | D49: 3.212469225 | E49: 2.758693265 | F49: 3.108306591 | G49: 2.406750626
A50: Exp AA / Exp AMF | B50: 0.5110635512 | C50: 0.5588370499 | D50: 0.5488647483 | E50: 0.4847005933 | F50: 0.5376879466 | G50: 0.5269592356 | L50: Exportações
A51: Imp AA / Imp AMF | B51: 0.8013135031 | C51: 0.7786279971 | D51: 0.7798532907 | E51: 0.7981760086 | F51: 0.8349835498 | G51: 0.7979886032 | L51: Importações
A52: Exp AA / Exp BT | B52: 0.09088207504 | C52: 0.1211939151 | D52: 0.1138453001 | E52: 0.1028267045 | F52: 0.1168269084 | G52: 0.1085671553
A53: Imp AA / Imp BT | B53: 0.1041307824 | C53: 0.08933584363 | D53: 0.1179260989 | E53: 0.1229934683 | F53: 0.1189978968 | G53: 0.1074307312
A54: Exp AA Reino Unido / Exp AA Mundo | B54: 0.05241741394 | C54: 0.0560845112 | D54: 0.05051205591 | E54: 0.0444862749 | F54: 0.04478325286 | G54: 0.04898662846
A55: Imp AA Reino Unido / Imp AA Mundo | B55: 0.02349554099 | C55: 0.01897853943 | D55: 0.01140804726 | E55: 0.01081463965 | F55: 0.00968285699 | G55: 0.01406833297
A56: (1) Produtos agrícolas e agroalimentares | B56: AMF - Agroalimentar, Mar e Florestas; BT - Total de Bens Transacionáveis (exclui serviços) | H56: *TVMA - Taxa de variação média anual; TVT - Taxa de variação total
A67: Mar (M) | B67: 2019 | C67: 2020 | D67: 2021 | E67: 2022 | F67: 2023 | G67: média quinquénio | H67: var. 19/20 | I67: var. 20/21 | J67: var. 21/22 | K67: var. 22/23 | L67: TVMA* 2019-2023 | M67: TVT* 2019-2023
A68: Exportações | B68: 27.095558 | C68: 33.528443 | D68: 25.438384 | E68: 17.557055 | F68: 19.267527 | G68: 24.5773934 | H68: 0.2374147453 | I68: -0.241289433 | J68: -0.3098203487 | K68: 0.09742362828 | L68: -0.08170552943 | M68: -0.2889045872
A69: Importações | B69: 25.035973 | C69: 24.543003 | D69: 10.9631 | E69: 13.824914 | F69: 12.327597 | G69: 17.3389174 | H69: -0.01969046699 | I69: -0.5533105708 | J69: 0.2610405816 | K69: -0.1083057009 | L69: -0.1623193405
A70: Saldo (exp-imp) | B70: 2.059585 | C70: 8.98544 | D70: 14.475284 | E70: 3.732141 | F70: 6.93993 | G70: 7.238476
A71: Cobertura (exp/imp) | B71: 1.082265027 | C71: 1.366110048 | D71: 2.320364131 | E71: 1.269957629 | F71: 1.562958864 | G71: 1.417469893
A72: Exp M / Exp AMF | B72: 0.04198867888 | C72: 0.05048811376 | D72: 0.03709355505 | E72: 0.02154832887 | F72: 0.02432889738 | G72: 0.0341170892 | L72: Exportações
A73: Imp M / Imp AMF | B73: 0.09164356632 | C73: 0.1108399277 | D73: 0.07296739828 | E73: 0.07708198625 | F73: 0.07513570169 | G73: 0.08772207363 | L73: Importações
A74: Exp M / Exp BT | B74: 0.007466817494 | C74: 0.01094926002 | D74: 0.007693929918 | E74: 0.004571365658 | F74: 0.005286095559 | G74: 0.007028997822
A75: Imp M / Imp BT | B75: 0.01190909205 | C75: 0.01271721347 | D75: 0.01103381973 | E75: 0.01187780732 | F75: 0.01070798398 | G75: 0.01180975076
A76: Exp M Reino Unido / Exp M Mundo | B76: 0.02536118431 | C76: 0.0372675031 | D76: 0.02322236504 | E76: 0.01372586715 | F76: 0.01444226738 | G76: 0.02164756357
A77: Imp M Reino Unido / Imp M Mundo | B77: 0.01148785745 | C77: 0.01275049353 | D77: 0.005240350814 | E77: 0.005316391054 | F77: 0.004865332218 | G77: 0.007651463273
A78: AMF - Agroalimentar, Mar e Florestas; BT - Total de Bens Transacionáveis (exclui serviços) | H78: *TVMA - Taxa de variação média anual; TVT - Taxa de variação total
A90: Florestas (F) | B90: 2019 | C90: 2020 | D90: 2021 | E90: 2022 | F90: 2023 | G90: média quinquénio | H90: var. 19/20 | I90: var. 20/21 | J90: var. 21/22 | K90: var. 22/23 | L90: TVMA* 2019-2023 | M90: TVT* 2019-2023
A91: Exportações | B91: 288.418201 | C91: 259.441639 | D91: 283.945598 | E91: 402.296386 | F91: 346.865382 | G91: 316.1934412 | H91: -0.1004671754 | I91: 0.09444882901 | J91: 0.416807969 | K91: -0.1377864826 | L91: 0.04721191208 | M91: 0.2026473392
A92: Importações | B92: 29.242903 | C92: 24.474836 | D92: 22.113184 | E92: 22.372899 | F92: 14.746833 | G92: 22.590131 | H92: -0.1630503989 | I92: -0.09649306741 | J92: 0.01174480346 | K92: -0.3408617721 | L92: -0.1573066445 | M92: -0.4957124127
A93: Saldo (exp-imp) | B93: 259.175298 | C93: 234.966803 | D93: 261.832414 | E93: 379.923487 | F93: 332.118549 | G93: 293.6033102
A94: Cobertura (exp/imp) | B94: 9.862844363 | C94: 10.60034229 | D94: 12.84055693 | E94: 17.98141519 | F94: 23.5213474 | G94: 13.99697245
A95: Exp F / Exp AMF | B95: 0.44694777 | C95: 0.3906748364 | D95: 0.4140416966 | E95: 0.4937510778 | F95: 0.437983156 | G95: 0.4389236752 | L95: Exportações
A96: Imp F / Imp AMF | B96: 0.1070429306 | C96: 0.1105320752 | D96: 0.147179311 | E96: 0.1247420051 | F96: 0.08988074847 | G96: 0.1142893232 | L96: Importações
A97: Exp F / Exp BT | B97: 0.07948041036 | C97: 0.08472489959 | D97: 0.08588035827 | E97: 0.1047467177 | F97: 0.09516340915 | G97: 0.09042956563
A98: Imp F / Imp BT | B98: 0.01391024122 | C98: 0.01268189203 | D98: 0.02225582965 | E98: 0.01922189053 | F98: 0.01280937814 | G98: 0.01538641718
A99: Exp F Reino Unido / Exp F Mundo | B99: 0.06455516251 | C99: 0.06455879554 | D99: 0.058553444 | E99: 0.06455491708 | F99: 0.0642128979 | G99: 0.06331604254
A100: Imp F Reino Unido / Imp F Mundo | B100: 0.01251327624 | C100: 0.01202062758 | D100: 0.008565314553 | E100: 0.006436955916 | F100: 0.004869394682 | G100: 0.00839226372
A101: AMF - Agroalimentar, Mar e Florestas; BT - Total de Bens Transacionáveis (exclui serviços) | H101: *TVMA - Taxa de variação média anual; TVT - Taxa de variação total
A111: Fonte: GPP a partir de dados INE/Comércio Internacional (2022 definitivos) | H111: 2024-05-14T17:02:43.520

Sheet 2
A1: Ranking dos parceiros comerciais de Portugal por país (média 2019-2023 em milhares de euros) produtos agrícolas e agroalimentares, do mar e da floresta
A2: Exportações | F2: Importações | K2: Trocas comerciais (total e saldo)
A3: P | B3: País | C3: média quinquénio | D3: % do Total | F3: P | G3: País | H3: média quinquénio | I3: % do Total | K3: P | L3: País | M3: Total (exp+imp) | N3: % do Total | O3: Saldo (exp-imp)
A4: 1 | B4: Espanha | C4: 4593112.103 | D4: 0.3309504603 | F4: 1 | G4: Espanha | H4: 7533806.993 | I4: 0.4659281661 | K4: 1 | L4: Espanha | M4: 12126919.1 | N4: 0.4035847787 | O4: -2940694.891
A5: 2 | B5: França | C5: 1475585.43 | D5: 0.106321306 | F5: 2 | G5: França | H5: 1064727.851 | I5: 0.06584807596 | K5: 2 | L5: França | M5: 2540313.281 | N5: 0.08454181685 | O5: 410857.5784
A6: 3 | B6: Itália | C6: 914508.2784 | D6: 0.06589365314 | F6: 3 | G6: Países Baixos | H6: 945771.6 | I6: 0.05849122861 | K6: 3 | L6: Países Baixos | M6: 1579163.121 | N6: 0.05255466731 | O6: -312380.0792
A7: 4 | B7: Alemanha | C7: 650647.8008 | D7: 0.04688154445 | F7: 4 | G7: Alemanha | H7: 908159.0842 | I7: 0.05616508321 | K7: 4 | L7: Alemanha | M7: 1558806.885 | N7: 0.05187721026 | O7: -257511.2834
A8: 5 | B8: Países Baixos | C8: 633391.5208 | D8: 0.04563816661 | F8: 5 | G8: Brasil | H8: 813481.1398 | I8: 0.05030972734 | K8: 5 | L8: Itália | M8: 1407796.955 | N8: 0.04685158845 | O8: 421219.6016
A9: 6 | B9: Estados Unidos | C9: 565282.6436 | D9: 0.04073067387 | F9: 6 | G9: Itália | H9: 493288.6768 | I9: 0.03050742988 | K9: 6 | L9: Brasil | M9: 1307207.747 | N9: 0.04350397204 | O9: -319754.5326 | P9: Nota: Nesta listagem, o Reino Unido passa a ser constituído por três componentes: Reino Unido [até 2020] ; Reino Unido (sem Irlanda do Norte) pós-2020 e Reino Unido (Irlanda do Norte) pós-2020. Estas componentes são calculadas igualmente como média do quinquénio, embora a primeira corresponda apenas a 2019-2020 e as duas últimas a 2021-2023.
A10: 7 | B10: Brasil | C10: 493726.6072 | D10: 0.03557480076 | F10: 7 | G10: Suécia | H10: 339005.3954 | I10: 0.02096578295 | K10: 7 | L10: Estados Unidos | M10: 831258.0686 | N10: 0.02766433098 | O10: 299307.2186
A11: 8 | B11: Reino Unido (sem Irlanda do Norte) pós 2020 | C11: 454907.9418 | D11: 0.0327777745 | F11: 8 | G11: Bélgica | H11: 312235.7102 | I11: 0.01931021222 | K11: 8 | L11: Bélgica | M11: 566869.0996 | N11: 0.01886544623 | O11: -57602.3208
A12: 9 | B12: Angola | C12: 292707.0878 | D12: 0.02109061205 | F12: 9 | G12: Estados Unidos | H12: 265975.425 | I12: 0.01644924566 | K12: 9 | L12: Reino Unido (sem Irlanda do Norte) pós 2020 | M12: 544526.1836 | N12: 0.0181218723 | O12: 365289.7
A13: 10 | B13: Reino Unido | C13: 261878.4294 | D13: 0.0188692949 | F13: 10 | G13: Polónia | H13: 241338.734 | I13: 0.01492558992 | K13: 10 | L13: Polónia | M13: 500775.9404 | N13: 0.01666586092 | O13: 18098.4724
A14: 11 | B14: Polónia | C14: 259437.2064 | D14: 0.01869339589 | F14: 11 | G14: Ucrânia | H14: 222824.0602 | I14: 0.01378055024 | K14: 11 | L14: Suécia | M14: 438295.9144 | N14: 0.01458652096 | O14: -239714.8764
A15: 12 | B15: Bélgica | C15: 254633.3894 | D15: 0.01834726337 | F15: 12 | G15: China, República Popular da | H15: 185793.117 | I15: 0.01149037218 | K15: 12 | L15: China, República Popular da | M15: 398803.9546 | N15: 0.01327222557 | O15: 27217.7206
A16: 13 | B16: Israel | C16: 229312.128 | D16: 0.01652277424 | F16: 13 | G16: Dinamarca | H16: 157388.8544 | I16: 0.009733711039 | K16: 13 | L16: Reino Unido | M16: 360801.6302 | N16: 0.01200750536 | O16: 162955.2286
A17: 14 | B17: China, República Popular da | C17: 213010.8376 | D17: 0.01534820688 | F17: 14 | G17: África do Sul | H17: 152632.7646 | I17: 0.009439570746 | K17: 14 | L17: Angola | M17: 311605.5448 | N17: 0.01037025594 | O17: 273808.6308
A18: 15 | B18: Turquia | C18: 183340.2302 | D18: 0.01321033152 | F18: 15 | G18: Roménia | H18: 151274.4294 | I18: 0.009355564529 | K18: 15 | L18: Turquia | M18: 242682.4712 | N18: 0.008076490876 | O18: 123997.9892
A19: 16 | B19: Suíça | C19: 154487.3398 | D19: 0.01113137565 | F19: 16 | G19: Irlanda | H19: 122155.5706 | I19: 0.007554709198 | K19: 16 | L19: Dinamarca | M19: 241866.6906 | N19: 0.008049341636 | O19: -72911.0182
A20: 17 | B20: Marrocos | C20: 118641.6206 | D20: 0.008548560992 | F20: 17 | G20: Canadá | H20: 119672.9708 | I20: 0.007401172856 | K20: 17 | L20: Ucrânia | M20: 239492.5 | N20: 0.007970328395 | O20: -206155.6204
A21: 18 | B21: Cabo Verde | C21: 109793.973 | D21: 0.007911055749 | F21: 18 | G21: Argentina | H21: 105868.1334 | I21: 0.00654741292 | K21: 18 | L21: Israel | M21: 237364.4856 | N21: 0.007899507915 | O21: 221259.7704
A22: 19 | B22: Suécia | C22: 99290.519 | D22: 0.007154243623 | F22: 19 | G22: Uruguai | H22: 104314.013 | I22: 0.00645129837 | K22: 19 | L22: Canadá | M22: 218508.6438 | N22: 0.007271984084 | O22: -20837.2978
A23: 20 | B23: Canadá | C23: 98835.673 | D23: 0.007121470312 | F23: 20 | G23: Rússia, Federação da | H23: 103735.9496 | I23: 0.006415548049 | K23: 20 | L23: Irlanda | M23: 195458.6172 | N23: 0.006504877466 | O23: -48852.524
A24: 21 | B24: Argélia | C24: 96652.6324 | D24: 0.006964174283 | F24: 21 | G24: Reino Unido | H24: 98923.2008 | I24: 0.006117903681 | K24: 21 | L24: África do Sul | M24: 189444.1922 | N24: 0.006304716951 | O24: -115821.337
A25: 22 | B25: Dinamarca | C25: 84477.8362 | D25: 0.006086935863 | F25: 22 | G25: Reino Unido (sem Irlanda do Norte) pós 2020 | H25: 89618.2418 | I25: 0.005542438649 | K25: 22 | L25: Roménia | M25: 177358.7408 | N25: 0.00590251222 | O25: -125190.118
A26: 23 | B26: Egito | C26: 82715.0134 | D26: 0.005959918058 | F26: 23 | G26: Finlândia | H26: 81448.7386 | I26: 0.005037195862 | K26: 23 | L26: Rússia, Federação da | M26: 176432.6266 | N26: 0.00587169107 | O26: -31039.2726
A27: 24 | B27: México | C27: 78972.8492 | D27: 0.005690281494 | F27: 24 | G27: Índia | H27: 79609.9066 | I27: 0.004923473328 | K27: 24 | L27: Marrocos | M27: 161461.9424 | N27: 0.005373465575 | O27: 75821.2988
A28: 25 | B28: Japão | C28: 73361.732 | D28: 0.005285980057 | F28: 25 | G28: Costa Rica | H28: 70759.3454 | I28: 0.00437611052 | K28: 25 | L28: Suíça | M28: 158551.543 | N28: 0.005276607264 | O28: 150423.1366
A29: 26 | B29: Irlanda | C29: 73303.0466 | D29: 0.005281751561 | F29: 26 | G29: Áustria | H29: 70715.1344 | I29: 0.004373376291 | K29: 26 | L29: Argentina | M29: 121955.0376 | N29: 0.004058672815 | O29: -89781.2292
A30: 27 | B30: Rússia, Federação da | C30: 72696.677 | D30: 0.005238060422 | F30: 27 | G30: Vietname | H30: 69724.8096 | I30: 0.004312129671 | K30: 27 | L30: Grécia | M30: 120764.9056 | N30: 0.004019065132 | O30: -5978.9236
A31: 28 | B31: Luxemburgo | C31: 58600.804 | D31: 0.004222401419 | F31: 28 | G31: Grécia | H31: 63371.9146 | I31: 0.003919234987 | K31: 28 | L31: Áustria | M31: 112876.9108 | N31: 0.003756552073 | O31: -28553.358
A32: 29 | B32: Grécia | C32: 57392.991 | D32: 0.004135374092 | F32: 29 | G32: Turquia | H32: 59342.241 | I32: 0.003670019891 | K32: 29 | L32: Finlândia | M32: 112241.3968 | N32: 0.003735402119 | O32: -50656.0804
A33: 30 | B33: Áustria | C33: 42161.7764 | D33: 0.003037909591 | F33: 30 | G33: Equador | H33: 58414.7256 | I33: 0.003612657717 | K33: 30 | L33: Índia | M33: 110946.8562 | N33: 0.00369231971 | O33: -48272.957
A34: 31 | B34: Moçambique | C34: 41355.922 | D34: 0.002979844845 | F34: 31 | G34: Chile | H34: 53583.805 | I34: 0.003313889514 | K34: 31 | L34: Cabo Verde | M34: 110212.875 | N34: 0.003667892761 | O34: 109375.071
A35: 32 | B35: África do Sul | C35: 36811.4276 | D35: 0.002652397468 | F35: 32 | G35: Bulgária | H35: 44062.536 | I35: 0.002725046794 | K35: 32 | L35: Uruguai | M35: 107585.2684 | N35: 0.003580445816 | O35: -101042.7576
A36: 33 | B36: Arábia Saudita | C36: 35880.8896 | D36: 0.002585348815 | F36: 33 | G36: Marrocos | H36: 42820.3218 | I36: 0.002648222078 | K36: 33 | L36: Argélia | M36: 103327.6826 | N36: 0.003438753041 | O36: 89977.5822
A37: 34 | B37: Austrália | C37: 35113.0132 | D37: 0.002530020523 | F37: 34 | G37: Checa, República | H37: 40061.6156 | I37: 0.002477609939 | K37: 34 | L37: Egito | M37: 96954.5744 | N37: 0.003226655521 | O37: 68475.4524
A38: 35 | B38: Guiné-Bissau | C38: 34934.7098 | D38: 0.002517173113 | F38: 35 | G38: Moçambique | H38: 38763.0688 | I38: 0.002397301335 | K38: 35 | L38: México | M38: 96736.9562 | N38: 0.003219413171 | O38: 61208.7422
A39: 36 | B39: Índia | C39: 31336.9496 | D39: 0.002257941383 | F39: 36 | G39: Cuba | H39: 37252.762 | I39: 0.002303896436 | K39: 36 | L39: Japão | M39: 88208.999 | N39: 0.002935602114 | O39: 58514.465
A40: 37 | B40: Emirados Árabes Unidos | C40: 31193.752 | D40: 0.002247623475 | F40: 37 | G40: Colômbia | H40: 31648.7828 | I40: 0.001957318437 | K40: 37 | L40: Chile | M40: 83999.5456 | N40: 0.002795511189 | O40: -23168.0644
A41: 38 | B41: Finlândia | C41: 30792.6582 | D41: 0.002218723205 | F41: 38 | G41: Guiana | H41: 31014.2578 | I41: 0.001918076249 | K41: 38 | L41: Moçambique | M41: 80118.9908 | N41: 0.002666366034 | O41: 2592.8532
A42: 39 | B42: Checa, República | C42: 30742.8852 | D42: 0.002215136879 | F42: 39 | G42: Indonésia | H42: 29000.573 | I42: 0.001793539947 | K42: 39 | L42: Vietname | M42: 76018.5502 | N42: 0.002529903062 | O42: -63431.069
A43: 40 | B43: Chile | C43: 30415.7406 | D43: 0.002191564919 | F43: 40 | G43: Hungria | H43: 27599.632 | I43: 0.001706898774 | K43: 40 | L43: Costa Rica | M43: 75105.2118 | N43: 0.002499507092 | O43: -66413.479
A44: 41 | B44: Jordânia | C44: 29568.7308 | D44: 0.002130534777 | F44: 41 | G44: Costa do Marfim | H44: 23657.68 | I44: 0.00146310882 | K44: 41 | L44: Checa, República | M44: 70804.5008 | N44: 0.002356379107 | O44: -9318.7304
A45: 42 | B45: São Tomé e Príncipe | C45: 26635.9748 | D45: 0.001919219023 | F45: 42 | G45: Uganda | H45: 22974.374 | I45: 0.001420849772 | K45: 42 | L45: Luxemburgo | M45: 67465.9948 | N45: 0.002245273376 | O45: 49735.6132
A46: 43 | B46: Roménia | C46: 26084.3114 | D46: 0.001879469665 | F46: 43 | G46: Namíbia | H46: 22899.6914 | I46: 0.001416231027 | K46: 43 | L46: Equador | M46: 61226.8336 | N46: 0.002037633623 | O46: -55602.6176
A47: 44 | B47: Tunísia | C47: 25934.5578 | D47: 0.001868679373 | F47: 44 | G47: Peru | H47: 21918.8742 | I47: 0.001355572404 | K47: 44 | L47: Bulgária | M47: 58340.3954 | N47: 0.001941572742 | O47: -29784.6766
A48: 45 | B48: Noruega | C48: 23600.8168 | D48: 0.001700524831 | F48: 45 | G48: Letónia | H48: 19655.4446 | I48: 0.001215590639 | K48: 45 | L48: Austrália | M48: 52768.539 | N48: 0.001756140943 | O48: 17457.4874
A49: 46 | B49: Coreia, República da | C49: 22131.0668 | D49: 0.001594623989 | F49: 46 | G49: Lituânia | H49: 19336.7592 | I49: 0.001195881546 | K49: 46 | L49: Hungria | M49: 47356.8316 | N49: 0.001576038914 | O49: -7842.4324
A50: 47 | B50: Hungria | C50: 19757.1996 | D50: 0.001423578209 | F50: 47 | G50: Angola | H50: 18898.457 | I50: 0.001168774754 | K50: 47 | L50: Cuba | M50: 44341.484 | N50: 0.001475687919 | O50: -30164.04
A51: 48 | B51: Nigéria | C51: 18837.3684 | D51: 0.00135730102 | F51: 48 | G51: Suazilândia | H51: 17908.5294 | I51: 0.001107552698 | K51: 48 | L51: Colômbia | M51: 40554.3906 | N51: 0.001349653166 | O51: -22743.175
A52: 49 | B52: Ucrânia | C52: 16668.4398 | D52: 0.001201021813 | F52: 49 | G52: México | H52: 17764.107 | I52: 0.001098620897 | K52: 49 | L52: Noruega | M52: 38853.5164 | N52: 0.001293047945 | O52: 8348.1172
A53: 50 | B53: Argentina | C53: 16086.9042 | D53: 0.001159120054 | F53: 50 | G53: Austrália | H53: 17655.5258 | I53: 0.001091905695 | K53: 50 | L53: Tunísia | M53: 37484.3298 | N53: 0.001247481312 | O53: 14384.7858
A54: 51 | B54: Lituânia | C54: 15776.044 | D54: 0.001136721444 | F54: 51 | G54: Senegal | H54: 16694.6988 | I54: 0.001032483365 | K54: 51 | L54: Arábia Saudita | M54: 35932.1724 | N54: 0.001195825397 | O54: 35829.6068
A55: 52 | B55: Macau | C55: 14584.6512 | D55: 0.001050877253 | F55: 52 | G55: Nova Zelânda | H55: 16509.396 | I55: 0.001021023316 | K55: 52 | L55: Costa do Marfim | M55: 35761.2586 | N55: 0.001190137373 | O55: -11554.1014
A56: 53 | B56: Bulgária | C56: 14277.8594 | D56: 0.001028771786 | F56: 53 | G56: Estónia | H56: 16249.3098 | I56: 0.00100493829 | K56: 53 | L56: Guiné-Bissau | M56: 35226.5092 | N56: 0.001172340873 | O56: 34642.9104
A57: 54 | B57: Líbia, Jamahira Árabe da | C57: 13798.5402 | D57: 0.0009942350914 | F57: 54 | G57: Eslovénia | H57: 16020.6952 | I57: 0.0009907996238 | K57: 54 | L57: Lituânia | M57: 35112.8032 | N57: 0.001168556729 | O57: -3560.7152
A58: 55 | B58: Iraque | C58: 13659.5246 | D58: 0.0009842185109 | F58: 55 | G58: Noruega | H58: 15252.6996 | I58: 0.0009433029489 | K58: 55 | L58: Coreia, República da | M58: 35092.7906 | N58: 0.001167890708 | O58: 9169.343
A59: 56 | B59: Senegal | C59: 13224.0438 | D59: 0.0009528405328 | F59: 56 | G59: Japão | H59: 14847.267 | I59: 0.0009182289766 | K59: 56 | L59: Indonésia | M59: 33328.2666 | N59: 0.001109167217 | O59: -24672.8794
A60: 57 | B60: Letónia | C60: 13141.4868 | D60: 0.0009468920002 | F60: 57 | G60: Egito | H60: 14239.561 | I60: 0.0008806454093 | K60: 57 | L60: Letónia | M60: 32796.9314 | N60: 0.001091484341 | O60: -6513.9578
A61: 58 | B61: Eslováquia | C61: 12789.7874 | D61: 0.0009215507771 | F61: 58 | G61: Mauritânia | H61: 13443.2356 | I61: 0.0008313966784 | K61: 58 | L61: Emirados Árabes Unidos | M61: 31952.3308 | N61: 0.00106337597 | O61: 30435.1732
A62: 59 | B62: Croácia | C62: 12333.1012 | D62: 0.0008886448726 | F62: 59 | G62: Tanzânia, República Unida da | H62: 13079.5878 | I62: 0.0008089068863 | K62: 59 | L62: Guiana | M62: 31130.901 | N62: 0.001036038724 | O62: -30897.6146
A63: 60 | B63: Costa do Marfim | C63: 12103.5786 | D63: 0.0008721069331 | F63: 60 | G63: Camarões | H63: 13022.8276 | I63: 0.0008053965527 | K63: 60 | L63: Senegal | M63: 29918.7426 | N63: 0.0009956980017 | O63: -3470.655
A64: 61 | B64: Síria, República Árabe da | C64: 11995.3212 | D64: 0.0008643065931 | F64: 61 | G64: Coreia, República da | H64: 12961.7238 | I64: 0.0008016175893 | K64: 61 | L64: Jordânia | M64: 29716.5252 | N64: 0.0009889681914 | O64: 29420.9364
A65: 62 | B65: Dominicana, República | C65: 11848.0206 | D65: 0.0008536930482 | F65: 62 | G65: Paquistão | H65: 12615.7756 | I65: 0.0007802224287 | K65: 62 | L65: São Tomé e Príncipe | M65: 27725.0646 | N65: 0.000922692233 | O65: 25546.885
A66: 63 | B66: Território Palestiniano Ocupado | C66: 11806.0928 | D66: 0.0008506719975 | F66: 63 | G66: Tailândia | H66: 12316.114 | I66: 0.0007616898621 | K66: 63 | L66: Peru | M66: 27430.0544 | N66: 0.0009128742714 | O66: -16407.694
A67: 64 | B67: HongKong | C67: 11528.0934 | D67: 0.0008306411279 | F67: 64 | G67: Moldava, República de | H67: 12178.8658 | I67: 0.0007532017495 | K67: 64 | L67: Nigéria | M67: 25016.4128 | N67: 0.0008325480976 | O67: 12658.324
A68: 65 | B68: Kuwait | C68: 10775.802 | D68: 0.0007764357918 | F68: 65 | G68: Sérvia | H68: 11730.1152 | I68: 0.0007254487762 | K68: 65 | L68: Estónia | M68: 24688.9592 | N68: 0.0008216504172 | O68: -7809.6604
A69: 66 | B69: Chipre | C69: 10743.4206 | D69: 0.000774102594 | F69: 66 | G69: Tunísia | H69: 11549.772 | I69: 0.0007142954541 | K69: 66 | L69: Uganda | M69: 24133.8048 | N69: 0.0008031748371 | O69: -21814.9432
A70: 67 | B70: Malta | C70: 10376.2344 | D70: 0.0007476454906 | F70: 67 | G70: Belize | H70: 10934.5394 | I70: 0.0006762464043 | K70: 67 | L70: Eslovénia | M70: 23940.0562 | N70: 0.0007967268691 | O70: -8101.3342
A71: 68 | B71: Tailândia | C71: 9256.6804 | D71: 0.0006669775462 | F71: 68 | G71: Paraguai | H71: 10263.5706 | I71: 0.0006347503502 | K71: 68 | L71: Namíbia | M71: 23765.809 | N71: 0.0007909279092 | O71: -22033.5738
A72: 69 | B72: Colômbia | C72: 8905.6078 | D72: 0.0006416814863 | F72: 69 | G72: Maurícias | H72: 9873.1322 | I72: 0.000610603694 | K72: 69 | L72: Camarões | M72: 21652.1438 | N72: 0.0007205849725 | O72: -4393.5114
A73: 70 | B73: Geórgia | C73: 8776.724 | D73: 0.000632394939 | F73: 70 | G73: Reino Unido (Irlanda do Norte) pós-2020 | H73: 9115.962 | I73: 0.0005637765158 | K73: 70 | L73: Tailândia | M73: 21572.7944 | N73: 0.0007179442185 | O73: -3059.4336
A74: 71 | B74: Líbano | C74: 8677.7716 | D74: 0.0006252650581 | F74: 71 | G74: Islândia | H74: 9112.164 | I74: 0.0005635416285 | K74: 71 | L74: Nova Zelânda | M74: 20810.7044 | N74: 0.0006925818061 | O74: -12208.0876
A75: 72 | B75: Camarões | C75: 8629.3162 | D75: 0.00062177367 | F75: 72 | G75: Luxemburgo | H75: 8865.1908 | I75: 0.0005482675751 | K75: 72 | L75: Croácia | M75: 20464.7652 | N75: 0.0006810689235 | O75: 4201.4372
A76: 73 | B76: Estónia | C76: 8439.6494 | D76: 0.0006081074861 | F76: 73 | G76: Croácia | H76: 8131.664 | I76: 0.0005029026226 | K76: 73 | L76: Eslováquia | M76: 20081.0336 | N76: 0.000668298307 | O76: 5498.5412
A77: 74 | B77: Gana | C77: 8178.0838 | D77: 0.0005892607317 | F77: 74 | G77: Israel | H77: 8052.3576 | I77: 0.0004979979196 | K77: 74 | L77: Suazilândia | M77: 19975.6478 | N77: 0.0006647910597 | O77: -15841.411
A78: 75 | B78: Eslovénia | C78: 7919.361 | D78: 0.0005706188114 | F78: 75 | G78: Bangladesh | H78: 7823.177 | I78: 0.0004838242493 | K78: 75 | L78: Sérvia | M78: 19112.5644 | N78: 0.0006360675793 | O78: -4347.666
A79: 76 | B79: Belarus | C79: 7872.655 | D79: 0.0005672534739 | F79: 76 | G79: Malásia | H79: 7805.5168 | I79: 0.0004827320545 | K79: 76 | L79: Paquistão | M79: 17209.3366 | N79: 0.0005727280151 | O79: -8022.2146
A80: 77 | B80: Sérvia | C80: 7382.4492 | D80: 0.0005319323601 | F80: 77 | G80: Quénia | H80: 7356.7132 | I80: 0.0004549758035 | K80: 77 | L80: Mauritânia | M80: 16816.7526 | N80: 0.0005596627901 | O80: -10069.7186
A81: 78 | B81: Gibraltar | C81: 7309.7404 | D81: 0.0005266934262 | F81: 78 | G81: Filipinas | H81: 7323.2812 | I81: 0.000452908202 | K81: 78 | L81: Maurícias | M81: 16663.174 | N81: 0.0005545516827 | O81: -3083.0904
A82: 79 | B82: Cuba | C82: 7088.722 | D82: 0.0005107682453 | F82: 79 | G82: Eslováquia | H82: 7291.2462 | I82: 0.000450926998 | K82: 79 | L82: Moldava, República de | M82: 15413.0416 | N82: 0.0005129471825 | O82: -8944.69
A83: 80 | B83: Maurícias | C83: 6790.0418 | D83: 0.0004892472487 | F83: 80 | G83: Gana | H83: 6780.4694 | I83: 0.0004193380154 | K83: 80 | L83: Chipre | M83: 14982.0224 | N83: 0.0004986028312 | O83: 6504.8188
A84: 81 | B84: Taiwan | C84: 6498.8018 | D84: 0.0004682623457 | F84: 81 | G84: Argélia | H84: 6675.0502 | I84: 0.0004128183668 | K84: 81 | L84: Gana | M84: 14958.5532 | N84: 0.0004978217744 | O84: 1397.6144
A85: 82 | B85: Vietname | C85: 6293.7406 | D85: 0.0004534869392 | F85: 82 | G85: Nigéria | H85: 6179.0444 | I85: 0.0003821428964 | K85: 82 | L85: Macau | M85: 14605.4142 | N85: 0.000486069282 | O85: 14563.8882
A86: 83 | B86: Andorra | C86: 6022.5714 | D86: 0.0004339482104 | F86: 83 | G86: Panamá | H86: 5638.1522 | I86: 0.0003486914275 | K86: 83 | L86: HongKong | M86: 14502.5018 | N86: 0.0004826443496 | O86: 8553.685
A87: 84 | B87: Guatemala | C87: 5731.0826 | D87: 0.0004129453804 | F87: 84 | G87: Congo | H87: 5587.8752 | I87: 0.0003455820473 | K87: 84 | L87: Dominicana, República | M87: 14480.0812 | N87: 0.0004818981903 | O87: 9215.96
A88: 85 | B88: Peru | C88: 5511.1802 | D88: 0.0003971006114 | F88: 85 | G88: Honduras | H88: 5352.3066 | I88: 0.0003310133112 | K88: 85 | L88: Líbia, Jamahira Árabe da | M88: 13839.6806 | N88: 0.0004605856102 | O88: 13757.3998
A89: 86 | B89: Singapura | C89: 5118.6402 | D89: 0.0003688166743 | F89: 86 | G89: Camboja | H89: 5251.3418 | I89: 0.0003247691448 | K89: 86 | L89: Iraque | M89: 13672.6982 | N89: 0.0004550284234 | O89: 13646.351
A90: 87 | B90: Omã | C90: 4766.6966 | D90: 0.0003434578558 | F90: 87 | G90: Zimbabwe | H90: 5173.412 | I90: 0.0003199495777 | K90: 87 | L90: Tanzânia, República Unida da | M90: 13489.132 | N90: 0.0004489193265 | O90: -12670.0436
A91: 88 | B91: Panamá | C91: 4742.5904 | D91: 0.0003417209162 | F91: 88 | G91: Etiópia | H91: 4865.2444 | I91: 0.0003008909577 | K91: 88 | L91: Malta | M91: 12866.7846 | N91: 0.0004282075582 | O91: 7885.6842
A92: 89 | B92: Paquistão | C92: 4593.561 | D92: 0.000330982805 | F92: 89 | G92: Sri Lanca | H92: 4526.3514 | I92: 0.0002799321258 | K92: 89 | L92: Reino Unido (Irlanda do Norte) pós-2020 | M92: 12713.2454 | N92: 0.0004230977621 | O92: -5518.6786
A93: 90 | B93: Mali | C93: 4507.5844 | D93: 0.0003247878778 | F93: 90 | G93: Suriname | H93: 4461.0484 | I93: 0.0002758934629 | K93: 90 | L93: Kuwait | M93: 12319.6144 | N93: 0.0004099976929 | O93: 9231.9896
A94: 91 | B94: Costa Rica | C94: 4345.8664 | D94: 0.0003131355067 | F94: 91 | G94: Macedónia, Antiga República jugoslava da | H94: 4419.1744 | I94: 0.000273303766 | K94: 91 | L94: Síria, República Árabe da | M94: 12141.732 | N94: 0.0004040777532 | O94: 11848.9104
A95: 92 | B95: Indonésia | C95: 4327.6936 | D95: 0.0003118260903 | F95: 92 | G95: Myanmar | H95: 4417.7084 | I95: 0.0002732131013 | K95: 92 | L95: Território Palestiniano Ocupado | M95: 11817.7626 | N95: 0.0003932960273 | O95: 11794.423
A96: 93 | B96: Nova Zelânda | C96: 4301.3084 | D96: 0.0003099249405 | F96: 93 | G96: Papuásia-Nova Guiné | H96: 4268.11 | I96: 0.0002639611908 | K96: 93 | L96: Paraguai | M96: 11233.3798 | N96: 0.0003738477238 | O96: -9293.7614
A97: 94 | B97: Burquina Faso | C97: 4086.0794 | D97: 0.0002944169069 | F97: 94 | G97: Chipre | H97: 4238.6018 | I97: 0.0002621362567 | K97: 94 | L97: Islândia | M97: 10997.3204 | N97: 0.0003659916492 | O97: -7227.0076
A98: 95 | B98: Venezuela | C98: 3914.122 | D98: 0.0002820267498 | F98: 95 | G98: Suíça | H98: 4064.2032 | I98: 0.0002513505782 | K98: 95 | L98: Belize | M98: 10954.0486 | N98: 0.0003645515605 | O98: -10915.0302
A99: 96 | B99: Reino Unido (Irlanda do Norte) pós-2020 | C99: 3597.2834 | D99: 0.0002591973744 | F99: 96 | G99: Guatemala | H99: 3891.5604 | I99: 0.0002406734871 | K99: 96 | L99: Filipinas | M99: 10864.8014 | N99: 0.0003615814069 | O99: -3781.761
A100: 97 | B100: Filipinas | C100: 3541.5202 | D100: 0.0002551794327 | F100: 97 | G100: Malavi | H100: 3761.9744 | I100: 0.0002326592432 | K100: 97 | L100: Malásia | M100: 10802.9 | N100: 0.0003595213237 | O100: -4808.1336
A101: 98 | B101: Catar | C101: 3509.4766 | D101: 0.0002528705745 | F101: 98 | G101: Congo, República Democrática do | H101: 3658.6746 | I101: 0.0002262706688 | K101: 98 | L101: Panamá | M101: 10380.7426 | N101: 0.0003454718937 | O101: -895.5618
A102: 99 | B102: Mauritânia | C102: 3373.517 | D102: 0.00024307419 | F102: 99 | G102: Madagáscar | H102: 3530.0814 | I102: 0.0002183178245 | K102: 99 | L102: Bangladesh | M102: 9992.5026 | N102: 0.0003325512373 | O102: -5653.8514
A103: 100 | B103: Uruguai | C103: 3271.2554 | D103: 0.0002357058692 | F103: 100 | G103: Taiwan | H103: 3371.8952 | I103: 0.0002085348016 | K103: 100 | L103: Taiwan | M103: 9870.697 | N103: 0.0003284975378 | O103: 3126.9066
A104: 101 | B104: Moldava, República de | C104: 3234.1758 | D104: 0.0002330341489 | F104: 101 | G104: Nicarágua | H104: 3348.1498 | I104: 0.0002070662678 | K104: 101 | L104: Geórgia | M104: 9763.0358 | N104: 0.000324914565 | O104: 7790.4122
A105: 102 | B105: Guiné | C105: 3199.9078 | D105: 0.0002305650147 | F105: 102 | G105: Gâmbia | H105: 3121.0524 | I105: 0.0001930214329 | K105: 102 | L105: Quénia | M105: 9728.6568 | N105: 0.0003237704293 | O105: -4984.7696
A106: 103 | B106: Malásia | C106: 2997.3832 | D106: 0.0002159723794 | F106: 103 | G106: HongKong | H106: 2974.4084 | I106: 0.0001839522372 | K106: 103 | L106: Guatemala | M106: 9622.643 | N106: 0.000320242282 | O106: 1839.5222
A107: 104 | B107: Gabão | C107: 2969.7446 | D107: 0.0002139809176 | F107: 104 | G107: Gabão | H107: 2833.2392 | I107: 0.0001752216304 | K107: 104 | L107: Líbano | M107: 9030.5168 | N107: 0.0003005362776 | O107: 8325.0264
A108: 105 | B108: Equador | C108: 2812.108 | D108: 0.0002026226263 | F108: 105 | G108: Dominicana, República | H108: 2632.0606 | I108: 0.0001627797433 | K108: 105 | L108: Belarus | M108: 8568.8254 | N108: 0.0002851711531 | O108: 7176.4846
A109: 106 | B109: Arménia | C109: 2727.7232 | D109: 0.000196542394 | F109: 106 | G109: Malta | H109: 2490.5502 | I109: 0.000154028035 | K109: 106 | L109: Congo | M109: 8278.2768 | N109: 0.0002755016739 | O109: -2897.4736
A110: 107 | B110: Guiné Equatorial | C110: 2712.0278 | D110: 0.0001954114833 | F110: 107 | G110: Mali | H110: 2475.2544 | I110: 0.0001530820665 | K110: 107 | L110: Gibraltar | M110: 7352.4128 | N110: 0.0002446888504 | O110: 7267.068
A111: 108 | B111: Congo | C111: 2690.4016 | D111: 0.0001938532368 | F111: 108 | G111: Centro-Africana, República | H111: 2466.2132 | I111: 0.0001525229137 | K111: 108 | L111: Mali | M111: 6982.8388 | N111: 0.0002323893999 | O111: 2032.33
A112: 109 | B112: Timor-Leste | C112: 2668.7438 | D112: 0.0001922927134 | F112: 109 | G112: Benim | H112: 1927.4492 | I112: 0.0001192030632 | K112: 109 | L112: Singapura | M112: 6659.3268 | N112: 0.0002216228963 | O112: 3577.9536
A113: 110 | B113: Benim | C113: 2476.0626 | D113: 0.000178409331 | F113: 110 | G113: Serra Leoa | H113: 1903.7664 | I113: 0.0001177384008 | K113: 110 | L113: Honduras | M113: 6528.2066 | N113: 0.0002172592062 | O113: -4176.4066
A114: 111 | B114: Quénia | C114: 2371.9436 | D114: 0.0001709071777 | F114: 111 | G114: Laos, República Democrática Popular do | H114: 1764.877 | I114: 0.0001091487882 | K114: 111 | L114: Etiópia | M114: 6273.7972 | N114: 0.0002087924422 | O114: -3456.6916
A115: 112 | B115: Seychelles | C115: 2348.937 | D115: 0.0001692494683 | F115: 112 | G115: Burquina Faso | H115: 1596.8146 | I115: 9.875497194e-05 | K115: 112 | L115: Camboja | M115: 6129.6458 | N115: 0.0002039950728 | O115: -4373.0378
A116: 113 | B116: Congo, República Democrática do | C116: 2232.4506 | D116: 0.0001608561989 | F116: 113 | G116: Kuwait | H116: 1543.8124 | I116: 9.547705178e-05 | K116: 113 | L116: Andorra | M116: 6085.3588 | N116: 0.0002025211981 | O116: 5959.784
A117: 114 | B117: Bangladesh | C117: 2169.3256 | D117: 0.0001563078126 | F117: 114 | G117: Singapura | H117: 1540.6866 | I117: 9.528373673e-05 | K117: 114 | L117: Sri Lanca | M117: 6081.5442 | N117: 0.0002023942479 | O117: -2971.1586
A118: 115 | B118: Suazilândia | C118: 2067.1184 | D118: 0.0001489434115 | F118: 115 | G118: Seychelles | H118: 1430.66 | I118: 8.847914351e-05 | K118: 115 | L118: Congo, República Democrática do | M118: 5891.1252 | N118: 0.0001960570893 | O118: -1426.224
A119: 116 | B119: Irão, República Islâmica do | C119: 2015.5486 | D119: 0.0001452276195 | F119: 116 | G119: Bolívia | H119: 1415.5294 | I119: 8.754339181e-05 | K119: 116 | L119: Gabão | M119: 5802.9838 | N119: 0.0001931237369 | O119: 136.5054
A120: 117 | B120: Islândia | C120: 1885.1564 | D120: 0.0001358323865 | F120: 117 | G120: São Tomé e Príncipe | H120: 1089.0898 | I120: 6.735474027e-05 | K120: 117 | L120: Burquina Faso | M120: 5682.894 | N120: 0.0001891271393 | O120: 2489.2648
A121: 118 | B121: Togo | C121: 1879.1826 | D121: 0.0001354019524 | F121: 118 | G121: Venezuela | H121: 1080.4086 | I121: 6.68178516e-05 | K121: 118 | L121: Omã | M121: 5590.2944 | N121: 0.0001860454177 | O121: 3943.0988
A122: 119 | B122: Sudão | C122: 1868.0632 | D122: 0.0001346007592 | F122: 119 | G122: Bósnia-Herzegovina | H122: 1034.9794 | I122: 6.400828349e-05 | K122: 119 | L122: Macedónia, Antiga República jugoslava da | M122: 5497.1524 | N122: 0.0001829456449 | O122: -3341.1964
A123: 120 | B123: Nicarágua | C123: 1709.2518 | D123: 0.0001231578192 | F123: 120 | G123: Geórgia | H123: 986.3118 | I123: 6.099843659e-05 | K123: 120 | L123: Zimbabwe | M123: 5240.2714 | N123: 0.0001743966259 | O123: -5106.5526
A124: 121 | B124: Jamaica | C124: 1645.8018 | D124: 0.0001185860156 | F124: 121 | G124: Cazaquistão | H124: 977.1902 | I124: 6.04343114e-05 | K124: 121 | L124: Suriname | M124: 5124.6412 | N124: 0.0001705484442 | O124: -3797.4556
A125: 122 | B125: El Salvador | C125: 1616.0178 | D125: 0.0001164399699 | F125: 122 | G125: El Salvador | H125: 921.9616 | I125: 5.701869956e-05 | K125: 122 | L125: Nicarágua | M125: 5057.4016 | N125: 0.0001683107052 | O125: -1638.898
A126: 123 | B126: Cazaquistão | C126: 1586.0954 | D126: 0.0001142839519 | F126: 123 | G126: Omã | H126: 823.5978 | I126: 5.093539202e-05 | K126: 123 | L126: Venezuela | M126: 4994.5306 | N126: 0.0001662183536 | O126: 2833.7134
A127: 124 | B127: Sri Lanca | C127: 1555.1928 | D127: 0.000112057307 | F127: 124 | G127: Timor-Leste | H127: 773.0574 | I127: 4.780972183e-05 | K127: 124 | L127: Myanmar | M127: 4788.3204 | N127: 0.0001593556627 | O127: -4047.0964
A128: 125 | B128: Ruanda | C128: 1542.3664 | D128: 0.0001111331182 | F128: 125 | G128: Emirados Árabes Unidos | H128: 758.5788 | I128: 4.691429306e-05 | K128: 125 | L128: Benim | M128: 4403.5118 | N128: 0.0001465492036 | O128: 548.6134
A129: 126 | B129: Azerbaijão | C129: 1447.7444 | D129: 0.0001043152584 | F129: 126 | G129: Belarus | H129: 696.1704 | I129: 4.305464662e-05 | K129: 126 | L129: Papuásia-Nova Guiné | M129: 4270.9956 | N129: 0.0001421390545 | O129: -4265.2244
A130: 127 | B130: Etiópia | C130: 1408.5528 | D130: 0.0001014913608 | F130: 127 | G130: Turquemenistão | H130: 693.7048 | I130: 4.290216163e-05 | K130: 127 | L130: Madagáscar | M130: 3916.3472 | N130: 0.0001303363291 | O130: -3143.8156
A131: 128 | B131: Albânia | C131: 1395.6804 | D131: 0.0001005638575 | F131: 128 | G131: Iémen | H131: 684.2014 | I131: 4.231442401e-05 | K131: 128 | L131: Seychelles | M131: 3779.597 | N131: 0.0001257852721 | O131: 918.277
A132: 129 | B132: Bolívia | C132: 1235.6182 | D132: 8.903079284e-05 | F132: 129 | G132: Gronelândia | H132: 628.3832 | I132: 3.886234838e-05 | K132: 129 | L132: Malavi | M132: 3770.4898 | N132: 0.0001254821838 | O132: -3753.459
A133: 130 | B133: Montenegro | C133: 1193.9358 | D133: 8.602742406e-05 | F133: 130 | G133: Faroé, Ilhas | H133: 595.1746 | I133: 3.680856307e-05 | K133: 130 | L133: Gâmbia | M133: 3599.2092 | N133: 0.0001197819526 | O133: -2642.8956
A134: 131 | B134: São Bartolomeu | C134: 1183.3114 | D134: 8.526189734e-05 | F134: 131 | G134: Cabo Verde | H134: 418.902 | I134: 2.590698711e-05 | K134: 131 | L134: Catar | M134: 3530.8284 | N134: 0.0001175062344 | O134: 3488.1248
A135: 132 | B135: Honduras | C135: 1175.9 | D135: 8.472787896e-05 | F135: 132 | G135: Usbequistão | H135: 380.4082 | I135: 2.35263387e-05 | K135: 132 | L135: Guiné | M135: 3486.7122 | N135: 0.000116038044 | O135: 2913.1034
A136: 133 | B136: Uganda | C136: 1159.4308 | D136: 8.354121311e-05 | F136: 133 | G136: Líbano | H136: 352.7452 | I136: 2.181552093e-05 | K136: 133 | L136: Timor-Leste | M136: 3441.8012 | N136: 0.0001145434025 | O136: 1895.6864
A137: 134 | B137: Macedónia, Antiga República jugoslava da | C137: 1077.978 | D137: 7.767224212e-05 | F137: 134 | G137: Chade | H137: 303.1764 | I137: 1.874993933e-05 | K137: 134 | L137: Arménia | M137: 2777.2048 | N137: 9.242558441e-05 | O137: 2678.2416
A138: 135 | B138: Paraguai | C138: 969.8092 | D138: 6.987828601e-05 | F138: 135 | G138: Guiné-Bissau | H138: 291.7994 | I138: 1.804632896e-05 | K138: 135 | L138: Guiné Equatorial | M138: 2721.8116 | N138: 9.058209455e-05 | O138: 2702.244
A139: 136 | B139: Bermudas | C139: 957.27 | D139: 6.897479097e-05 | F139: 136 | G139: Guiné | H139: 286.8044 | I139: 1.773741327e-05 | K139: 136 | L139: Bolívia | M139: 2651.1476 | N139: 8.823039132e-05 | O139: -179.9112
A140: 137 | B140: Aruba | C140: 940.2512 | D140: 6.774852442e-05 | F140: 137 | G140: Togo | H140: 238.6312 | I140: 1.475814253e-05 | K140: 137 | L140: Centro-Africana, República | M140: 2569.5112 | N140: 8.55135258e-05 | O140: -2362.9152
A141: 138 | B141: Barbados | C141: 924.8742 | D141: 6.664055555e-05 | F141: 138 | G141: Irão, República Islâmica do | H141: 211.8398 | I141: 1.310122885e-05 | K141: 138 | L141: Cazaquistão | M141: 2563.2856 | N141: 8.530633736e-05 | O141: 608.9052
A142: 139 | B142: Camboja | C142: 878.304 | D142: 6.328500298e-05 | F142: 139 | G142: Zâmbia | H142: 183.9494 | I142: 1.137634753e-05 | K142: 139 | L142: El Salvador | M142: 2537.9794 | N142: 8.446414513e-05 | O142: 694.0562
A143: 140 | B143: Trindade e Tobago | C143: 878.2468 | D143: 6.328088151e-05 | F143: 140 | G143: Jordânia | H143: 147.7944 | I143: 9.140342169e-06 | K143: 140 | L143: Serra Leoa | M143: 2340.2336 | N143: 7.788315004e-05 | O143: -1467.2992
A144: 141 | B144: Kosovo | C144: 870.5922 | D144: 6.27293397e-05 | F144: 141 | G144: Síria, República Árabe da | H144: 146.4108 | I144: 9.054773451e-06 | K144: 141 | L144: Irão, República Islâmica do | M144: 2227.3884 | N144: 7.412765331e-05 | O144: 1803.7088
A145: 142 | B145: Namíbia | C145: 866.1176 | D145: 6.240692846e-05 | F145: 142 | G145: Maldivas | H145: 127.2588 | I145: 7.870318334e-06 | K145: 142 | L145: Togo | M145: 2117.8138 | N145: 7.048100239e-05 | O145: 1640.5514
A146: 143 | B146: Turquemenistão | C146: 749.1004 | D146: 5.39754129e-05 | F146: 143 | G146: Albânia | H146: 125.4572 | I146: 7.758898413e-06 | K146: 143 | L146: Laos, República Democrática Popular do | M146: 1935.8146 | N146: 6.442405534e-05 | O146: -1593.9394
A147: 144 | B147: Barém | C147: 728.9324 | D147: 5.252223502e-05 | F147: 144 | G147: Azerbaijão | H147: 124.9342 | I147: 7.726553487e-06 | K147: 144 | L147: Sudão | M147: 1883.1514 | N147: 6.267142008e-05 | O147: 1852.975
A148: 145 | B148: Iémen | C148: 704.0114 | D148: 5.072658618e-05 | F148: 145 | G148: Kosovo | H148: 80.0466 | I148: 4.950480624e-06 | K148: 145 | L148: Jamaica | M148: 1660.4886 | N148: 5.526118537e-05 | O148: 1631.115
A149: 146 | B149: Suriname | C149: 663.5928 | D149: 4.78142788e-05 | F149: 146 | G149: Tajiquistão | H149: 74.7168 | I149: 4.620859233e-06 | K149: 146 | L149: Azerbaijão | M149: 1572.6786 | N149: 5.233886197e-05 | O149: 1322.8102
A150: 147 | B150: Niger | C150: 619.0434 | D150: 4.460433223e-05 | F150: 147 | G150: Andorra | H150: 62.7874 | I150: 3.883085691e-06 | K150: 147 | L150: Bósnia-Herzegovina | M150: 1571.857 | N150: 5.231151906e-05 | O150: -498.1018
A151: 148 | B151: São Martinho (parte holandesa) | C151: 606.1984 | D151: 4.367880318e-05 | F151: 148 | G151: Libéria | H151: 54.4472 | I151: 3.367286163e-06 | K151: 148 | L151: Ruanda | M151: 1569.669 | N151: 5.223870226e-05 | O151: 1515.0638
A152: 149 | B152: Bósnia-Herzegovina | C152: 536.8776 | D152: 3.8683987e-05 | F152: 149 | G152: Arábia Saudita | H152: 51.2828 | I152: 3.171583899e-06 | K152: 149 | L152: Albânia | M152: 1521.1376 | N152: 5.062357362e-05 | O152: 1270.2232
A153: 150 | B153: Curaçau | C153: 534.0534 | D153: 3.84804931e-05 | F153: 150 | G153: Fiji, Ilhas | H153: 50.1218 | I153: 3.099781874e-06 | K153: 150 | L153: Turquemenistão | M153: 1442.8052 | N153: 4.801666546e-05 | O153: 55.3956
A154: 151 | B154: Burundi | C154: 485.0592 | D154: 3.49502825e-05 | F154: 151 | G154: Arménia | H154: 49.4816 | I154: 3.060188715e-06 | K154: 151 | L154: Iémen | M154: 1388.2128 | N154: 4.619982629e-05 | O154: 19.81
A155: 152 | B155: Gâmbia | C155: 478.1568 | D155: 3.445293943e-05 | F155: 152 | G155: Falkland Ilhas (Malvinas) | H155: 46.09 | I155: 2.850435271e-06 | K155: 152 | L155: Montenegro | M155: 1194.2042 | N155: 3.97432055e-05 | O155: 1193.6674
A156: 153 | B156: Antígua e Barbuda | C156: 468.1724 | D156: 3.373352704e-05 | F156: 153 | G156: Aruba | H156: 45.6344 | I156: 2.822258696e-06 | K156: 153 | L156: São Bartolomeu | M156: 1185.2626 | N156: 3.944562838e-05 | O156: 1181.3602
A157: 154 | B157: Serra Leoa | C157: 436.4672 | D157: 3.144905187e-05 | F157: 154 | G157: Gibraltar | H157: 42.6724 | I157: 2.639073856e-06 | K157: 154 | L157: Aruba | M157: 985.8856 | N157: 3.281034684e-05 | O157: 894.6168
A158: 155 | B158: Tanzânia, República Unida da | C158: 409.5442 | D158: 2.950915164e-05 | F158: 155 | G158: Líbia, Jamahira Árabe da | H158: 41.1404 | I158: 2.544327342e-06 | K158: 155 | L158: Bermudas | M158: 958.1048 | N158: 3.188579973e-05 | O158: 956.4352
A159: 156 | B159: Nova Caledónia | C159: 388.6078 | D159: 2.800060774e-05 | F159: 156 | G159: Curaçau | H159: 39.2148 | I159: 2.425238643e-06 | K159: 156 | L159: Kosovo | M159: 950.6388 | N159: 3.163733069e-05 | O159: 790.5456
A160: 157 | B160: Madagáscar | C160: 386.2658 | D160: 2.783185811e-05 | F160: 157 | G160: Botswana | H160: 30.037 | I160: 1.857637757e-06 | K160: 157 | L160: Barbados | M160: 935.22 | N160: 3.112419187e-05 | O160: 914.5284
A161: 158 | B161: Myanmar | C161: 370.612 | D161: 2.670394479e-05 | F161: 158 | G161: São Pedro e Miquelon | H161: 28.9156 | I161: 1.788284793e-06 | K161: 158 | L161: Trindade e Tobago | M161: 878.6292 | N161: 2.924084579e-05 | O161: 877.8644
A162: 159 | B162: Comores | C162: 333.8038 | D162: 2.405177988e-05 | F162: 159 | G162: Ruanda | H162: 27.3026 | I162: 1.688528835e-06 | K162: 159 | L162: Barém | M162: 733.5568 | N162: 2.441282542e-05 | O162: 724.308
A163: 160 | B163: Haiti | C163: 328.0528 | D163: 2.363739938e-05 | F163: 160 | G163: São Marino | H163: 25.3104 | I163: 1.56532126e-06 | K163: 160 | L163: Usbequistão | M163: 665.2294 | N163: 2.213888441e-05 | O163: -95.587
A164: 161 | B164: Polinésia Francesa | C164: 317.6242 | D164: 2.288598076e-05 | F164: 161 | G164: Catar | H164: 21.3518 | I164: 1.32050171e-06 | K164: 161 | L164: Gronelândia | M164: 629.1046 | N164: 2.093664836e-05 | O164: -627.6618
A165: 162 | B165: Bahamas | C165: 305.389 | D165: 2.200439002e-05 | F165: 162 | G165: Macau | H165: 20.763 | I165: 1.284087384e-06 | K165: 162 | L165: Niger | M165: 622.3102 | N165: 2.071053021e-05 | O165: 615.7766
A166: 163 | B166: Libéria | C166: 303.6128 | D166: 2.187640834e-05 | F166: 163 | G166: Marshall, Ilhas | H166: 18.3784 | I166: 1.136611837e-06 | K166: 163 | L166: São Martinho (parte holandesa) | M166: 606.2012 | N166: 2.017442148e-05 | O166: 606.1956
A167: 164 | B167: Somália | C167: 293.0252 | D167: 2.111353319e-05 | F167: 164 | G167: Quirguizistão | H167: 17.5046 | I167: 1.082571691e-06 | K167: 164 | L167: Faroé, Ilhas | M167: 600.7416 | N167: 1.999272559e-05 | O167: -589.6076
A168: 165 | B168: Usbequistão | C168: 284.8212 | D168: 2.05224051e-05 | F168: 165 | G168: Salomão, Ilhas | H168: 16.0532 | I168: 9.928098826e-07 | K168: 165 | L168: Curaçau | M168: 573.2682 | N168: 1.907840877e-05 | O168: 494.8386
A169: 166 | B169: São Marino | C169: 251.4926 | D169: 1.812095805e-05 | F169: 166 | G169: Sudão | H169: 15.0882 | I169: 9.331294739e-07 | K169: 166 | L169: Burundi | M169: 485.2096 | N169: 1.614781194e-05 | O169: 484.9088
A170: 167 | B170: Bonaire, Santo Eustáquio e Saba | C170: 241.8602 | D170: 1.742690854e-05 | F170: 167 | G170: Jamaica | H170: 14.6868 | I170: 9.083048977e-07 | K170: 167 | L170: Antígua e Barbuda | M170: 477.853 | N170: 1.590298374e-05 | O170: 458.4918
A171: 168 | B171: Laos, República Democrática Popular do | C171: 170.9376 | D171: 1.231667683e-05 | F171: 168 | G171: Iraque | H171: 13.1736 | I171: 8.147210693e-07 | K171: 168 | L171: Nova Caledónia | M171: 390.0338 | N171: 1.298035417e-05 | O171: 387.1818
A172: 169 | B172: Zâmbia | C172: 164.8696 | D172: 1.187945532e-05 | F172: 169 | G172: São Cristovão e Nevis | H172: 12.4064 | I172: 7.672735982e-07 | K172: 169 | L172: Libéria | M172: 358.06 | N172: 1.19162637e-05 | O172: 249.1656
A173: 170 | B173: Santa Lúcia | C173: 158.8492 | D173: 1.144566357e-05 | F173: 170 | G173: Nepal | H173: 12.0278 | I173: 7.438590876e-07 | K173: 170 | L173: Zâmbia | M173: 348.819 | N173: 1.160872253e-05 | O173: -19.0798
A174: 171 | B174: Liechtenstein | C174: 144.4366 | D174: 1.040718323e-05 | F174: 171 | G174: Território Palestiniano Ocupado | H174: 11.6698 | I174: 7.217185837e-07 | K174: 171 | L174: Comores | M174: 333.8038 | N174: 1.110901554e-05 | O174: 333.8038
A175: 172 | B175: Maldivas | C175: 139.5096 | D175: 1.005217493e-05 | F175: 172 | G175: Barbados | H175: 10.3458 | I175: 6.398358261e-07 | K175: 172 | L175: Haiti | M175: 328.3394 | N175: 1.09271599e-05 | O175: 327.7662
A176: 173 | B176: Ceuta e Melilha | C176: 132.796 | D176: 9.568435594e-06 | F176: 173 | G176: Jibuti | H176: 9.885 | I176: 6.113376579e-07 | K176: 173 | L176: Polinésia Francesa | M176: 318.4566 | N176: 1.059825958e-05 | O176: 316.7918
A177: 174 | B177: Quirguizistão | C177: 130.9018 | D177: 9.431951583e-06 | F177: 174 | G177: Guiné Equatorial | H177: 9.7838 | I177: 6.050789456e-07 | K177: 174 | L177: Bahamas | M177: 305.389 | N177: 1.016336887e-05 | O177: 305.389
A178: 175 | B178: Botswana | C178: 118.8382 | D178: 8.562725254e-06 | F178: 175 | G178: Antígua e Barbuda | H178: 9.6806 | I178: 5.986965433e-07 | K178: 175 | L178: Chade | M178: 303.2232 | N178: 1.009129088e-05 | O178: -303.1296
A179: 176 | B179: Guiana | C179: 116.6432 | D179: 8.404567507e-06 | F179: 176 | G179: Santa Helena | H179: 5.0476 | I179: 3.121687367e-07 | K179: 176 | L179: Somália | M179: 293.0252 | N179: 9.751900673e-06 | O179: 293.0252
A180: 177 | B180: Nepal | C180: 114.3036 | D180: 8.235990804e-06 | F180: 177 | G180: Barém | H180: 4.6244 | I180: 2.859959398e-07 | K180: 177 | L180: São Marino | M180: 276.803 | N180: 9.212024638e-06 | O180: 226.1822
A181: 178 | B181: Afeganistão | C181: 109.4574 | D181: 7.886804438e-06 | F181: 178 | G181: Niger | H181: 3.2668 | I181: 2.020351908e-07 | K181: 178 | L181: Maldivas | M181: 266.7684 | N181: 8.878072396e-06 | O181: 12.2508
A182: 179 | B182: Virgens Britânicas, Ilhas | C182: 106.6708 | D182: 7.686019756e-06 | F182: 179 | G182: São Bartolomeu | H182: 1.9512 | I182: 1.20671931e-07 | K182: 179 | L182: Bonaire, Santo Eustáquio e Saba | M182: 241.8602 | N182: 8.049125628e-06 | O182: 241.8602
A183: 180 | B183: Centro-Africana, República | C183: 103.298 | D183: 7.442997229e-06 | F183: 180 | G183: Liechtenstein | H183: 1.8568 | I183: 1.148337646e-07 | K183: 180 | L183: Santa Lúcia | M183: 158.8768 | N183: 5.287431841e-06 | O183: 158.8216
A184: 181 | B184: Jibuti | C184: 90.5704 | D184: 6.52592728e-06 | F184: 181 | G184: Lesoto | H184: 1.7136 | I184: 1.05977563e-07 | K184: 181 | L184: Botswana | M184: 148.8752 | N184: 4.954577842e-06 | O184: 88.8012
A185: 182 | B185: Caimão, Ilhas | C185: 73.8006 | D185: 5.317602096e-06 | F185: 182 | G185: Nova Caledónia | H185: 1.426 | I185: 8.819094589e-08 | K185: 182 | L185: Quirguizistão | M185: 148.4064 | N185: 4.938976143e-06 | O185: 113.3972
A186: 183 | B186: Zimbabwe | C186: 66.8594 | D186: 4.817463348e-06 | F186: 183 | G186: Bermudas | H186: 0.8348 | I186: 5.162819189e-08 | K186: 183 | L186: Liechtenstein | M186: 146.2934 | N186: 4.868655344e-06 | O186: 142.5798
A187: 184 | B187: Turcas e Caicos, Ilhas | C187: 48.519 | D187: 3.495970711e-06 | F187: 184 | G187: Polinésia Francesa | H187: 0.8324 | I187: 5.147976393e-08 | K187: 184 | L187: Ceuta e Melilha | M187: 132.796 | N187: 4.419460858e-06 | O187: 132.796
A188: 185 | B188: Virgens dos Estados Unidos, Ilhas | C188: 27.4406 | D188: 1.9771952e-06 | F188: 185 | G188: Micronésia, Estados Federados da | H188: 0.6592 | I188: 4.076821285e-08 | K188: 185 | L188: Nepal | M188: 126.3314 | N188: 4.204318484e-06 | O188: 102.2758
A189: 186 | B189: Mongólia | C189: 26.1112 | D189: 1.881407087e-06 | F189: 186 | G189: Afeganistão | H189: 0.6156 | I189: 3.807177159e-08 | K189: 186 | L189: Afeganistão | M189: 110.073 | N189: 3.66323771e-06 | O189: 108.8418
A190: 187 | B190: Belize | C190: 19.5092 | D190: 1.405708935e-06 | F190: 187 | G190: Trindade e Tobago | H190: 0.3824 | I190: 2.364952153e-08 | K190: 187 | L190: Virgens Britânicas, Ilhas | M190: 106.6778 | N190: 3.550245199e-06 | O190: 106.6638
A191: 188 | B191: Anguila | C191: 15.482 | D191: 1.115534503e-06 | F191: 188 | G191: Haiti | H191: 0.2866 | I191: 1.772477215e-08 | K191: 188 | L191: Jibuti | M191: 100.4554 | N191: 3.34316326e-06 | O191: 80.6854
A192: 189 | B192: Brunei Darussalam | C192: 13.5634 | D192: 9.772923833e-07 | F192: 189 | G192: Montenegro | H192: 0.2684 | I192: 1.659919346e-08 | K192: 189 | L192: Tajiquistão | M192: 74.7168 | N192: 2.486580718e-06 | O192: -74.7168
A193: 190 | B193: Fiji, Ilhas | C193: 11.4598 | D193: 8.257203396e-07 | F193: 190 | G193: Burundi | H193: 0.1504 | I193: 9.301485457e-09 | K193: 190 | L193: Caimão, Ilhas | M193: 73.8014 | N193: 2.456116137e-06 | O193: 73.7998
A194: 191 | B194: Malavi | C194: 8.5154 | D194: 6.135655928e-07 | F194: 191 | G194: Oceano Indico, Território Britânico do | H194: 0.1384 | I194: 8.55934566e-09 | K194: 191 | L194: Fiji, Ilhas | M194: 61.5816 | N194: 2.049440275e-06 | O194: -38.662
A195: 192 | B195: São Vicente e Granadinas | C195: 7.5006 | D195: 5.404455557e-07 | F195: 192 | G195: Vanuatu | H195: 0.0874 | I195: 5.405251522e-09 | K195: 192 | L195: Turcas e Caicos, Ilhas | M195: 48.519 | N195: 1.614715966e-06 | O195: 48.519
A196: 193 | B196: Guam | C196: 6.4026 | D196: 4.613306555e-07 | F196: 193 | G196: Nauru | H196: 0.0694 | I196: 4.292041827e-09 | K196: 193 | L196: Falkland Ilhas (Malvinas) | M196: 46.09 | N196: 1.533878663e-06 | O196: -46.09
A197: 194 | B197: Territórios Franceses do Sul | C197: 6.3292 | D197: 4.560419181e-07 | F197: 194 | G197: Palau | H197: 0.0478 | I197: 2.956190192e-09 | K197: 194 | L197: São Pedro e Miquelon | M197: 28.9156 | N197: 9.623133406e-07 | O197: -28.9156
A198: 195 | B198: Faroé, Ilhas | C198: 5.567 | D198: 4.011226313e-07 | F198: 195 | G198: Santa Lúcia | H198: 0.0276 | I198: 1.706921533e-09 | K198: 195 | L198: Virgens dos Estados Unidos, Ilhas | M198: 27.4406 | N198: 9.132252298e-07 | O198: 27.4406
A199: 196 | B199: Sudão do Sul | C199: 3.771 | D199: 2.717142883e-07 | F199: 196 | G199: Coreia, República Popular Democrática da | H199: 0.0196 | I199: 1.212161669e-09 | K199: 196 | L199: Mongólia | M199: 26.1254 | N199: 8.69455275e-07 | O199: 26.097
A200: 197 | B200: Marianas do Norte, Ilhas | C200: 2.9244 | D200: 2.10713674e-07 | F200: 197 | G200: São Vicente e Granadinas | H200: 0.0144 | I200: 8.905677565e-10 | K200: 197 | L200: Marshall, Ilhas | M200: 18.3784 | N200: 6.116345329e-07 | O200: -18.3784
... 59 more rows

Sheet 2AA
A1: Ranking dos parceiros comerciais de Portugal por país (média 2019-2023 em milhares de euros) produtos agrícolas e agroalimentares
A2: Exportações | F2: Importações | K2: Trocas comerciais (total e saldo)
A3: P | B3: País | C3: média quinquénio | D3: % do Total | F3: P | G3: País | H3: média quinquénio | I3: % do Total | K3: P | L3: País | M3: Total (exp+imp) | N3: % do Total | O3: Saldo (exp-imp)
A4: 1 | B4: Espanha | C4: 2759419.439 | D4: 0.3560855896 | F4: 1 | G4: Espanha | H4: 5216892.326 | I4: 0.4653125163 | K4: 1 | L4: Espanha | M4: 7976311.764 | N4: 0.4206715062 | O4: -2457472.887
A5: 2 | B5: França | C5: 750404.6944 | D5: 0.09683496981 | F5: 2 | G5: França | H5: 878500.976 | I5: 0.0783565146 | K5: 2 | L5: França | M5: 1628905.67 | N5: 0.08590865328 | O5: -128096.2816
A6: 3 | B6: Itália | C6: 479973.025 | D6: 0.06193747684 | F6: 3 | G6: Alemanha | H6: 716514.4174 | I6: 0.06390837795 | K6: 3 | L6: Países Baixos | M6: 1047407.835 | N6: 0.05524039738 | O6: -310220.2488
A7: 4 | B7: Brasil | C7: 405387.6024 | D7: 0.05231270077 | F7: 4 | G7: Países Baixos | H7: 678814.0418 | I7: 0.06054575217 | K7: 4 | L7: Brasil | M7: 1040823.994 | N7: 0.05489316491 | O7: -230048.7888
A8: 5 | B8: Países Baixos | C8: 368593.793 | D8: 0.04756469287 | F8: 5 | G8: Brasil | H8: 635436.3912 | I8: 0.05667675076 | K8: 5 | L8: Alemanha | M8: 998293.5766 | N8: 0.05265010633 | O8: -434735.2582
A9: 6 | B9: Alemanha | C9: 281779.1592 | D9: 0.0363618146 | F9: 6 | G9: Itália | H9: 370141.5684 | I9: 0.03301419577 | K9: 6 | L9: Itália | M9: 850114.5934 | N9: 0.04483513145 | O9: 109831.4566 | P9: Nota: Nesta listagem, o Reino Unido passa a ser constituído por três componentes: Reino Unido [até 2020] ; Reino Unido (sem Irlanda do Norte) pós-2020 e Reino Unido (Irlanda do Norte) pós-2020. Estas componentes são calculadas igualmente como média do quinquénio, embora a primeira corresponda apenas a 2019-2020 e as duas últimas a 2021-2023.
A10: 7 | B10: Angola | C10: 239257.4432 | D10: 0.03087465665 | F10: 7 | G10: Bélgica | H10: 281935.2606 | I10: 0.0251467727 | K10: 7 | L10: Bélgica | M10: 456382.3416 | N10: 0.02406965183 | O10: -107488.1796
A11: 8 | B11: Reino Unido (sem Irlanda do Norte) pós 2020 | C11: 237665.5644 | D11: 0.03066923478 | F11: 8 | G11: Ucrânia | H11: 218361.6698 | I11: 0.01947642613 | K11: 8 | L11: Estados Unidos | M11: 399330.4322 | N11: 0.02106072824 | O11: -4827.0378
A12: 9 | B12: Estados Unidos | C12: 197251.6972 | D12: 0.02545408136 | F12: 9 | G12: Polónia | H12: 216470.8282 | I12: 0.01930777549 | K12: 9 | L12: Polónia | M12: 361890.0362 | N12: 0.01908611788 | O12: -71051.6202
A13: 10 | B13: Israel | C13: 180621.8384 | D13: 0.02330810348 | F13: 10 | G13: Estados Unidos | H13: 202078.735 | I13: 0.01802409534 | K13: 10 | L13: Reino Unido (sem Irlanda do Norte) pós 2020 | M13: 312259.9708 | N13: 0.01646862311 | O13: 163071.158
A14: 11 | B14: Bélgica | C14: 174447.081 | D14: 0.02251129017 | F14: 11 | G14: Roménia | H14: 147860.1336 | I14: 0.01318815236 | K14: 11 | L14: Angola | M14: 248843.4486 | N14: 0.01312402918 | O14: 229671.4378
A15: 12 | B15: Polónia | C15: 145419.208 | D15: 0.01876542714 | F15: 12 | G15: África do Sul | H15: 122030.5704 | I15: 0.01088432504 | K15: 12 | L15: Ucrânia | M15: 226323.7844 | N15: 0.01193633976 | O15: -210399.5552
A16: 13 | B16: Reino Unido | C16: 140181.6612 | D16: 0.01808955492 | F16: 13 | G16: Canadá | H16: 114587.6202 | I16: 0.01022046279 | K16: 13 | L16: Reino Unido | M16: 218445.519 | N16: 0.01152083923 | O16: 61917.8034
A17: 14 | B17: Suíça | C17: 101113.552 | D17: 0.01304806304 | F17: 14 | G17: Irlanda | H17: 113697.2068 | I17: 0.01014104376 | K17: 14 | L17: Canadá | M17: 187938.0432 | N17: 0.009911871808 | O17: -41237.1972
A18: 15 | B18: Cabo Verde | C18: 93274.137 | D18: 0.01203643622 | F18: 15 | G18: Argentina | H18: 81740.7412 | I18: 0.007290737012 | K18: 15 | L18: Israel | M18: 185954.1124 | N18: 0.009807239092 | O18: 175289.5644
A19: 16 | B19: Canadá | C19: 73350.423 | D19: 0.009465407199 | F19: 16 | G19: Reino Unido | H19: 78263.8578 | I19: 0.006980621859 | K19: 16 | L19: Roménia | M19: 164595.1916 | N19: 0.008680767404 | O19: -131125.0756
A20: 17 | B20: China, República Popular da | C20: 65002.3268 | D20: 0.008388138294 | F20: 17 | G20: Dinamarca | H20: 77997.9928 | I20: 0.006956908448 | K20: 17 | L20: Irlanda | M20: 144257.8138 | N20: 0.007608171998 | O20: -83136.5998
A21: 18 | B21: Japão | C21: 61056.1688 | D21: 0.007878911614 | F21: 18 | G21: Reino Unido (sem Irlanda do Norte) pós 2020 | H21: 74594.4064 | I21: 0.006653330905 | K21: 18 | L21: África do Sul | M21: 144191.7208 | N21: 0.007604686246 | O21: -99869.42
A22: 19 | B22: Suécia | C22: 55333.2024 | D22: 0.007140399072 | F22: 19 | G22: Costa Rica | H22: 70756.5738 | I22: 0.006311021455 | K22: 19 | L22: Dinamarca | M22: 126445.284 | N22: 0.006668737337 | O22: -29550.7016
A23: 20 | B23: Marrocos | C23: 49767.4468 | D23: 0.006422173587 | F23: 20 | G23: China, República Popular da | H23: 48106.3882 | I23: 0.00429077373 | K23: 20 | L23: China, República Popular da | M23: 113108.715 | N23: 0.00596536531 | O23: 16895.9386
A24: 21 | B24: Dinamarca | C24: 48447.2912 | D24: 0.006251815874 | F24: 21 | G24: Bulgária | H24: 41822.2734 | I24: 0.003730271981 | K24: 21 | L24: Suíça | M24: 103785.579 | N24: 0.005473662155 | O24: 98441.525
A25: 22 | B25: Luxemburgo | C25: 48401.4964 | D25: 0.006245906345 | F25: 22 | G25: Grécia | H25: 35196.1588 | I25: 0.003139266098 | K25: 22 | L25: Cabo Verde | M25: 93419.3156 | N25: 0.004926944353 | O25: 93128.9584
A26: 23 | B26: Rússia, Federação da | C26: 47519.044 | D26: 0.006132031456 | F26: 23 | G26: Colômbia | H26: 31210.9096 | I26: 0.002783808055 | K26: 23 | L26: Argentina | M26: 82057.1494 | N26: 0.004327702534 | O26: -81424.333
A27: 24 | B27: Guiné-Bissau | C27: 33196.0112 | D27: 0.004283734852 | F27: 24 | G27: Guiana | H27: 31014.2578 | I27: 0.002766268007 | K27: 24 | L27: Japão | M27: 72872.0242 | N27: 0.003843278082 | O27: 49240.3134
A28: 25 | B28: Irlanda | C28: 30560.607 | D28: 0.003943652643 | F28: 25 | G28: Vietname | H28: 30892.5166 | I28: 0.002755409492 | K28: 25 | L28: Costa Rica | M28: 72068.7862 | N28: 0.003800915227 | O28: -69444.3614
A29: 26 | B29: Arábia Saudita | C29: 29146.6976 | D29: 0.003761196596 | F29: 26 | G29: Cuba | H29: 28789.5394 | I29: 0.002567837744 | K29: 26 | L29: Suécia | M29: 68874.6508 | N29: 0.003632456196 | O29: 41791.754
A30: 27 | B30: Moçambique | C30: 28593.946 | D30: 0.003689867505 | F30: 27 | G30: Áustria | H30: 27561.0196 | I30: 0.00245826185 | K30: 27 | L30: Marrocos | M30: 61090.9854 | N30: 0.003221944879 | O30: 38443.9082
A31: 28 | B31: São Tomé e Príncipe | C31: 25047.189 | D31: 0.003232180993 | F31: 28 | G31: Chile | H31: 26079.5266 | I31: 0.002326122409 | K31: 28 | L31: Grécia | M31: 60091.7544 | N31: 0.003169245333 | O31: -10300.5632
A32: 29 | B32: Grécia | C32: 24895.5956 | D32: 0.003212618826 | F32: 29 | G32: Checa, República | H32: 24316.1468 | I32: 0.002168840518 | K32: 29 | L32: Rússia, Federação da | M32: 59387.4766 | N32: 0.003132101649 | O32: 35650.6114
A33: 30 | B33: Finlândia | C33: 22503.8536 | D33: 0.002903979679 | F33: 30 | G33: Índia | H33: 24071.1366 | I33: 0.002146987218 | K33: 30 | L33: Luxemburgo | M33: 56659.809 | N33: 0.002988244178 | O33: 40143.1838
A34: 31 | B34: África do Sul | C34: 22161.1504 | D34: 0.002859756003 | F34: 31 | G34: Uruguai | H34: 22728.6906 | I34: 0.002027249856 | K34: 31 | L34: Bulgária | M34: 50843.4548 | N34: 0.002681489057 | O34: -32801.092
A35: 32 | B35: Jordânia | C35: 21893.2362 | D35: 0.002825183374 | F35: 32 | G35: Costa do Marfim | H35: 22619.1534 | I35: 0.002017479857 | K35: 32 | L35: Checa, República | M35: 43760.0144 | N35: 0.002307907679 | O35: -4872.2792
A36: 33 | B36: Argélia | C36: 20568.7852 | D36: 0.002654271367 | F36: 33 | G36: Turquia | H36: 19669.1464 | I36: 0.001754358617 | K36: 33 | L36: Áustria | M36: 42114.7706 | N36: 0.002221137351 | O36: -13007.2686
A37: 34 | B37: Checa, República | C37: 19443.8676 | D37: 0.00250910788 | F37: 34 | G37: Hungria | H37: 19114.634 | I37: 0.001704899754 | K37: 34 | L37: Moçambique | M37: 38413.508 | N37: 0.002025932379 | O37: 18774.384
A38: 35 | B38: Noruega | C38: 18383.7692 | D38: 0.0023723089 | F38: 35 | G38: Suazilândia | H38: 17908.3876 | I38: 0.001597310501 | K38: 35 | L38: Colômbia | M38: 37783.0652 | N38: 0.001992682761 | O38: -24638.754
A39: 36 | B39: Coreia, República da | C39: 16791.4172 | D39: 0.002166825967 | F39: 36 | G39: Letónia | H39: 17565.2096 | I39: 0.001566701279 | K39: 36 | L39: Guiné-Bissau | M39: 33466.8492 | N39: 0.001765045083 | O39: 32925.1732
A40: 37 | B40: Roménia | C40: 16735.058 | D40: 0.002159553169 | F40: 37 | G40: Uganda | H40: 17520.2176 | I40: 0.001562688288 | K40: 37 | L40: Austrália | M40: 33457.6176 | N40: 0.001764558208 | O40: -224.8624
A41: 38 | B41: Austrália | C41: 16616.3776 | D41: 0.002144238216 | F41: 38 | G41: Austrália | H41: 16841.24 | I41: 0.001502127947 | K41: 38 | L41: Cuba | M41: 33227.7552 | N41: 0.001752435241 | O41: -24351.3236
A42: 39 | B42: Áustria | C42: 14553.751 | D42: 0.001878069326 | F42: 39 | G42: Lituânia | H42: 14648.1574 | I42: 0.00130651939 | K42: 39 | L42: Vietname | M42: 32990.675 | N42: 0.001739931607 | O42: -28794.3582
A43: 40 | B43: Emirados Árabes Unidos | C43: 13772.665 | D43: 0.001777275128 | F43: 40 | G43: México | H43: 13942.9954 | I43: 0.001243623573 | K43: 40 | L43: Hungria | M43: 31183.1208 | N43: 0.001644601011 | O43: -7046.1472
A44: 41 | B44: Iraque | C44: 13213.736 | D44: 0.001705148883 | F44: 41 | G44: Peru | H44: 13551.1124 | I44: 0.001208670184 | K44: 41 | L44: Chile | M44: 31046.9382 | N44: 0.001637418727 | O44: -21112.115
A45: 42 | B45: Nigéria | C45: 12563.3872 | D45: 0.001621225492 | F45: 42 | G45: Suécia | H45: 13541.4484 | I45: 0.001207808219 | K45: 42 | L45: Guiana | M45: 31034.393 | N45: 0.001636757092 | O45: -30994.1226
A46: 43 | B46: Hungria | C46: 12068.4868 | D46: 0.001557361732 | F46: 43 | G46: Egito | H46: 13444.2972 | I46: 0.00119914297 | K46: 43 | L46: Finlândia | M46: 30610.4384 | N46: 0.001614397683 | O46: 14397.2688
A47: 44 | B47: Macau | C47: 11451.795 | D47: 0.001477781564 | F47: 44 | G47: Indonésia | H47: 13373.0146 | I47: 0.001192785031 | K47: 44 | L47: Costa do Marfim | M47: 30195.695 | N47: 0.001592524073 | O47: -15042.6118
A48: 45 | B48: Território Palestiniano Ocupado | C48: 11126.9966 | D48: 0.001435868389 | F48: 45 | G48: Paquistão | H48: 12392.2934 | I48: 0.001105311144 | K48: 45 | L48: Turquia | M48: 29730.2176 | N48: 0.001567974747 | O48: -9608.0752
A49: 46 | B49: Líbia, Jamahira Árabe da | C49: 10747.1924 | D49: 0.001386857064 | F49: 46 | G49: Moldava, República de | H49: 12169.9448 | I49: 0.00108547911 | K49: 46 | L49: Arábia Saudita | M49: 29183.7518 | N49: 0.001539154084 | O49: 29109.6434
A50: 47 | B50: Senegal | C50: 10277.8906 | D50: 0.001326296641 | F50: 47 | G50: Rússia, Federação da | H50: 11868.4326 | I50: 0.001058586203 | K50: 47 | L50: Índia | M50: 27213.734 | N50: 0.001435255142 | O50: -20928.5392
A51: 48 | B51: Turquia | C51: 10061.0712 | D51: 0.001298317472 | F51: 48 | G51: Japão | H51: 11815.8554 | I51: 0.001053896662 | K51: 48 | L51: São Tomé e Príncipe | M51: 26136.022 | N51: 0.001378416499 | O51: 23958.356
A52: 49 | B52: Kuwait | C52: 9238.6512 | D52: 0.001192189384 | F52: 49 | G52: Marrocos | H52: 11323.5386 | I52: 0.001009985238 | K52: 49 | L52: Uruguai | M52: 24804.8014 | N52: 0.001308207788 | O52: -20652.5798
A53: 50 | B53: Bulgária | C53: 9021.1814 | D53: 0.001164126284 | F53: 50 | G53: Tailândia | H53: 10221.1584 | I53: 0.000911660168 | K53: 50 | L53: Letónia | M53: 24565.731 | N53: 0.00129559919 | O53: -10564.6882
A54: 51 | B54: Eslováquia | C54: 8977.9412 | D54: 0.00115854641 | F54: 51 | G54: Paraguai | H54: 9863.0808 | I54: 0.0008797219989 | K54: 51 | L54: Argélia | M54: 22398.8544 | N54: 0.001181317894 | O54: 18738.716
A55: 52 | B55: Ucrânia | C55: 7962.1146 | D55: 0.001027460426 | F55: 52 | G55: Moçambique | H55: 9819.562 | I55: 0.0008758404079 | K55: 52 | L55: Jordânia | M55: 22013.8634 | N55: 0.001161013429 | O55: 21772.609
A56: 53 | B56: Costa do Marfim | C56: 7576.5416 | D56: 0.0009777046739 | F56: 53 | G56: Angola | H56: 9586.0054 | I56: 0.0008550086939 | K56: 53 | L56: México | M56: 20411.1484 | N56: 0.001076486075 | O56: -7474.8424
A57: 54 | B57: Letónia | C57: 7000.5214 | D57: 0.0009033729179 | F57: 54 | G57: Equador | H57: 9434.7056 | I57: 0.0008415137459 | K57: 54 | L57: Lituânia | M57: 20298.5022 | N57: 0.001070545102 | O57: -8997.8126
A58: 55 | B58: Gibraltar | C58: 6867.0166 | D58: 0.0008861449696 | F58: 55 | G58: Sérvia | H58: 8961.3684 | I58: 0.0007992951778 | K58: 55 | L58: Suazilândia | M58: 19974.7344 | N58: 0.001053469555 | O58: -15842.0408
A59: 56 | B59: Maurícias | C59: 6601.9064 | D59: 0.0008519341785 | F59: 56 | G59: Belize | H59: 8481.6488 | I59: 0.0007565073417 | K59: 56 | L59: Noruega | M59: 19562.9914 | N59: 0.001031754187 | O59: 17204.547
A60: 57 | B60: Colômbia | C60: 6572.1556 | D60: 0.0008480950264 | F60: 57 | G60: Luxemburgo | H60: 8258.3126 | I60: 0.0007365872201 | K60: 57 | L60: Uganda | M60: 18130.6166 | N60: 0.0009562105919 | O60: -16909.8186
A61: 58 | B61: México | C61: 6468.153 | D61: 0.00083467415 | F61: 58 | G61: Finlândia | H61: 8106.5848 | I61: 0.0007230540973 | K61: 58 | L61: Coreia, República da | M61: 18110.515 | N61: 0.0009551504315 | O61: 15472.3194
A62: 59 | B62: Andorra | C62: 5880.33 | D62: 0.0007588193174 | F62: 59 | G62: Estónia | H62: 8074.9354 | I62: 0.0007202311788 | K62: 59 | L62: Peru | M62: 15536.0606 | N62: 0.0008193734405 | O62: -11566.1642
A63: 60 | B63: Lituânia | C63: 5650.3448 | D63: 0.000729141185 | F63: 60 | G63: Nova Zelânda | H63: 7373.8184 | I63: 0.0006576961493 | K63: 60 | L63: Egito | M63: 15081.7762 | N63: 0.0007954144344 | O63: -11806.8182
A64: 61 | B64: Malta | C64: 5437.1088 | D64: 0.0007016244307 | F64: 61 | G64: Malásia | H64: 6878.308 | I64: 0.0006134998776 | K64: 61 | L64: Indonésia | M64: 14601.4892 | N64: 0.0007700840484 | O64: -12144.54
A65: 62 | B65: Estónia | C65: 5362.6332 | D65: 0.0006920138265 | F65: 62 | G65: Camarões | H65: 6873.6916 | I65: 0.000613088125 | K65: 62 | L65: Emirados Árabes Unidos | M65: 14301.0792 | N65: 0.000754240394 | O65: 13244.2508
A66: 63 | B66: HongKong | C66: 4973.9084 | D66: 0.0006418513548 | F66: 63 | G66: Eslovénia | H66: 5854.2478 | I66: 0.0005221604366 | K66: 63 | L66: Eslováquia | M66: 14074.6532 | N66: 0.0007422986633 | O66: 3881.2292
A67: 64 | B67: Chile | C67: 4967.4116 | D67: 0.0006410129839 | F67: 64 | G67: Israel | H67: 5332.274 | I67: 0.0004756038034 | K67: 64 | L67: Tailândia | M67: 13545.4648 | N67: 0.0007143892125 | O67: -6896.852
A68: 65 | B68: Chipre | C68: 4590.008 | D68: 0.0005923114413 | F68: 65 | G68: Honduras | H68: 5320.7232 | I68: 0.000474573548 | K68: 65 | L68: Estónia | M68: 13437.5686 | N68: 0.0007086987557 | O68: -2712.3022
A69: 66 | B69: Cuba | C69: 4438.2158 | D69: 0.0005727236199 | F69: 66 | G69: Camboja | H69: 5251.2876 | I69: 0.0004683803487 | K69: 66 | L69: Iraque | M69: 13226 | N69: 0.0006975406059 | O69: 13201.472
A70: 67 | B70: Mali | C70: 4408.7876 | D70: 0.0005689260972 | F70: 67 | G70: Zimbabwe | H70: 5172.692 | I70: 0.0004613701376 | K70: 67 | L70: Paquistão | M70: 12653.1142 | N70: 0.0006673265497 | O70: -12131.4726
A71: 68 | B71: Omã | C71: 4251.3822 | D71: 0.000548613928 | F71: 68 | G71: Eslováquia | H71: 5096.712 | I71: 0.0004545932209 | K71: 68 | L71: Nigéria | M71: 12613.3818 | N71: 0.0006652310588 | O71: 12513.3926
A72: 69 | B72: Sérvia | C72: 3643.2286 | D72: 0.0004701355603 | F72: 69 | G72: Reino Unido (Irlanda do Norte) pós-2020 | H72: 4870.092 | I72: 0.000434380206 | K72: 69 | L72: Sérvia | M72: 12604.597 | N72: 0.0006647677475 | O72: -5318.1398
A73: 70 | B73: Gana | C73: 3561.703 | D73: 0.0004596151984 | F73: 70 | G73: Etiópia | H73: 4865.161 | I73: 0.0004339403932 | K73: 70 | L73: Moldava, República de | M73: 12435.7646 | N73: 0.0006558635093 | O73: -11904.125
A74: 71 | B74: Síria, República Árabe da | C74: 3557.076 | D74: 0.0004590181133 | F74: 71 | G74: Tanzânia, República Unida da | H74: 4645.6104 | I74: 0.0004143579223 | K74: 71 | L74: Macau | M74: 11470.0196 | N74: 0.0006049300183 | O74: 11433.5704
A75: 72 | B75: Tailândia | C75: 3324.3064 | D75: 0.0004289806717 | F75: 72 | G75: Filipinas | H75: 4316.8954 | I75: 0.0003850387042 | K75: 72 | L75: Território Palestiniano Ocupado | M75: 11138.6664 | N75: 0.0005874544163 | O75: 11115.3268
A76: 73 | B76: Singapura | C76: 3292.5498 | D76: 0.0004248826838 | F76: 73 | G76: Macedónia, Antiga República jugoslava da | H76: 4269.76 | I76: 0.0003808345362 | K76: 73 | L76: Kuwait | M76: 10781.5982 | N76: 0.0005686226025 | O76: 7695.7042
A77: 74 | B77: Eslovénia | C77: 3209.5124 | D77: 0.0004141672336 | F77: 74 | G77: Myanmar | H77: 4258.6984 | I77: 0.0003798479142 | K77: 74 | L77: Senegal | M77: 10777.8706 | N77: 0.0005684260085 | O77: 9777.9106
A78: 75 | B78: Índia | C78: 3142.5974 | D78: 0.0004055322769 | F78: 75 | G78: Tunísia | H78: 4096.3914 | I78: 0.0003653711963 | K78: 75 | L78: Líbia, Jamahira Árabe da | M78: 10763.4438 | N78: 0.0005676651376 | O78: 10730.941
A79: 76 | B79: Taiwan | C79: 3027.0112 | D79: 0.0003906166104 | F79: 76 | G79: Quénia | H79: 3999.6272 | I79: 0.0003567404655 | K79: 76 | L79: Paraguai | M79: 10570.8508 | N79: 0.0005575077629 | O79: -9155.3108
A80: 77 | B80: Guiné | C80: 2745.3572 | D80: 0.0003542709468 | F80: 77 | G80: Chipre | H80: 3962.894 | I80: 0.0003534641054 | K80: 77 | L80: Equador | M80: 10263.4314 | N80: 0.000541294432 | O80: -8605.9798
A81: 78 | B81: Burquina Faso | C81: 2525.8832 | D81: 0.0003259492181 | F81: 78 | G81: Suriname | H81: 3877.4378 | I81: 0.0003458419739 | K81: 78 | L81: Nova Zelânda | M81: 9856.0686 | N81: 0.0005198100759 | O81: -4891.5682
A82: 79 | B82: Venezuela | C82: 2486.9168 | D82: 0.0003209208512 | F82: 79 | G82: Malavi | H82: 3756.8802 | I82: 0.0003350890281 | K82: 79 | L82: Maurícias | M82: 9426.6558 | N82: 0.0004971628004 | O82: 3777.157
A83: 80 | B83: Nova Zelânda | C83: 2482.2502 | D83: 0.000320318656 | F83: 80 | G83: Guatemala | H83: 3336.065 | I83: 0.0002975550774 | K83: 80 | L83: Eslovénia | M83: 9063.7602 | N83: 0.000478023649 | O83: -2644.7354
A84: 81 | B84: Timor-Leste | C84: 2425.5014 | D84: 0.000312995583 | F84: 81 | G84: Sri Lanca | H84: 3081.7828 | I84: 0.000274874776 | K84: 81 | L84: Camarões | M84: 8912.7596 | N84: 0.0004700598618 | O84: -4834.6236
A85: 82 | B85: Filipinas | C85: 2423.494 | D85: 0.0003127365408 | F85: 82 | G85: Nicarágua | H85: 3050.9764 | I85: 0.0002721270475 | K85: 82 | L85: Chipre | M85: 8552.902 | N85: 0.0004510809348 | O85: 627.114
A86: 83 | B86: Congo | C86: 2401.0914 | D86: 0.0003098456272 | F86: 83 | G86: Maurícias | H86: 2824.7494 | I86: 0.0002519490856 | K86: 83 | L86: Belize | M86: 8501.158 | N86: 0.0004483519509 | O86: -8462.1396
A87: 84 | B87: Dominicana, República | C87: 2366.1238 | D87: 0.0003053332801 | F87: 84 | G87: Suíça | H87: 2672.027 | I87: 0.000238327251 | K87: 84 | L87: Malásia | M87: 8478.9536 | N87: 0.0004471808885 | O87: -5277.6624
A88: 85 | B88: Seychelles | C88: 2266.2448 | D88: 0.0002924445282 | F88: 85 | G88: Taiwan | H88: 2620.89 | I88: 0.0002337661666 | K88: 85 | L88: Mali | M88: 6882.4546 | N88: 0.0003629813664 | O88: 1935.1206
A89: 86 | B89: Belarus | C89: 2265.0334 | D89: 0.0002922882047 | F89: 86 | G89: Dominicana, República | H89: 2590.705 | I89: 0.000231073863 | K89: 86 | L89: Gibraltar | M89: 6867.0382 | N89: 0.0003621683039 | O89: 6866.995
A90: 87 | B90: Benim | C90: 2254.9256 | D90: 0.0002909838571 | F90: 87 | G90: Mali | H90: 2473.667 | I90: 0.0002206348424 | K90: 87 | L90: Filipinas | M90: 6740.3894 | N90: 0.0003554888331 | O90: -1893.4014
A91: 88 | B91: Guiné Equatorial | C91: 2237.2378 | D91: 0.0002887013587 | F91: 88 | G91: Gana | H91: 2244.213 | I91: 0.0002001690533 | K91: 88 | L91: Reino Unido (Irlanda do Norte) pós-2020 | M91: 6635.6864 | N91: 0.000349966786 | O91: -3104.4976
A92: 89 | B92: Líbano | C92: 2221.1552 | D92: 0.0002866260011 | F92: 89 | G92: Croácia | H92: 2133.6498 | I92: 0.0001903075424 | K92: 89 | L92: HongKong | M92: 6486.7258 | N92: 0.0003421105886 | O92: 3461.091
A93: 90 | B93: Gabão | C93: 2209.6904 | D93: 0.0002851465413 | F93: 90 | G93: Congo, República Democrática do | H93: 1937.5966 | I93: 0.0001728208851 | K93: 90 | L93: Honduras | M93: 6000.5624 | N93: 0.0003164702807 | O93: -4640.884
A94: 91 | B94: Croácia | C94: 2104.1152 | D94: 0.0002715227308 | F94: 91 | G94: Benim | H94: 1901.2374 | I94: 0.0001695778834 | K94: 91 | L94: Malta | M94: 5958.7242 | N94: 0.0003142637297 | O94: 4915.4934
A95: 92 | B95: Vietname | C95: 2098.1584 | D95: 0.0002707540436 | F95: 92 | G95: Serra Leoa | H95: 1900.5094 | I95: 0.0001695129506 | K95: 92 | L95: Andorra | M95: 5897.0704 | N95: 0.0003110121019 | O95: 5863.5896
A96: 93 | B96: Uruguai | C96: 2076.1108 | D96: 0.0002679089405 | F96: 93 | G96: Argélia | H96: 1830.0692 | I96: 0.0001632301476 | K96: 93 | L96: Gana | M96: 5805.916 | N96: 0.0003062046094 | O96: 1317.49
A97: 94 | B97: Suazilândia | C97: 2066.3468 | D97: 0.0002666489582 | F97: 94 | G97: Laos, República Democrática Popular do | H97: 1764.7672 | I97: 0.0001574056383 | K97: 94 | L97: Camboja | M97: 5661.8046 | N97: 0.0002986041593 | O97: -4840.7706
A98: 95 | B98: Camarões | C98: 2039.068 | D98: 0.0002631288019 | F98: 95 | G98: Burquina Faso | H98: 1596.6714 | I98: 0.0001424125975 | K98: 95 | L98: Taiwan | M98: 5647.9012 | N98: 0.0002978708926 | O98: 406.1212
A99: 96 | B99: Peru | C99: 1984.9482 | D99: 0.0002561449848 | F99: 96 | G99: Kuwait | H99: 1542.947 | I99: 0.000137620734 | K99: 96 | L99: Etiópia | M99: 5274.7014 | N99: 0.0002781882966 | O99: -4455.6206
A100: 97 | B100: Catar | C100: 1923.0908 | D100: 0.0002481626793 | F100: 97 | G100: HongKong | H100: 1512.8174 | I100: 0.0001349333716 | K100: 97 | L100: Zimbabwe | M100: 5238.022 | N100: 0.0002762538212 | O100: -5107.362
A101: 98 | B101: Irão, República Islâmica do | C101: 1920.529 | D101: 0.0002478320953 | F101: 98 | G101: Panamá | H101: 1505.4946 | I101: 0.000134280226 | K101: 98 | L101: Tunísia | M101: 5011.6662 | N101: 0.000264315793 | O101: -3181.1166
A102: 99 | B102: Geórgia | C102: 1916.3824 | D102: 0.0002472970028 | F102: 99 | G102: Madagáscar | H102: 1471.794 | I102: 0.0001312743539 | K102: 99 | L102: Tanzânia, República Unida da | M102: 4986.1414 | N102: 0.0002629696124 | O102: -4305.0794
A103: 100 | B103: Reino Unido (Irlanda do Norte) pós-2020 | C103: 1765.5944 | D103: 0.0002278387671 | F103: 100 | G103: Coreia, República da | H103: 1319.0978 | I103: 0.0001176548562 | K103: 100 | L103: Dominicana, República | M103: 4956.8288 | N103: 0.0002614236628 | O103: -224.5812
A104: 101 | B104: Egito | C104: 1637.479 | D104: 0.0002113062867 | F104: 101 | G104: Singapura | H104: 1313.0876 | I104: 0.0001171187859 | K104: 101 | L104: Omã | M104: 4826.1814 | N104: 0.0002545333055 | O104: 3676.583
A105: 102 | B105: Malásia | C105: 1600.6456 | D105: 0.0002065531699 | F105: 102 | G105: Noruega | H105: 1179.2222 | I105: 0.0001051788718 | K105: 102 | L105: Singapura | M105: 4605.6374 | N105: 0.0002429017921 | O105: 1979.4622
A106: 103 | B106: Bangladesh | C106: 1592.1082 | D106: 0.0002054514726 | F106: 103 | G106: São Tomé e Príncipe | H106: 1088.833 | I106: 9.711674909e-05 | K106: 103 | L106: Myanmar | M106: 4593.3818 | N106: 0.0002422554305 | O106: -3924.015
A107: 104 | B107: Congo, República Democrática do | C107: 1487.5888 | D107: 0.0001919639064 | F107: 104 | G107: Timor-Leste | H107: 773.0574 | I107: 6.895164047e-05 | K107: 104 | L107: Macedónia, Antiga República jugoslava da | M107: 4569.63 | N107: 0.0002410027581 | O107: -3969.89
A108: 105 | B108: Costa Rica | C108: 1312.2124 | D108: 0.0001693326935 | F108: 105 | G108: El Salvador | H108: 699.8376 | I108: 6.242091542e-05 | K108: 105 | L108: Quénia | M108: 4449.3114 | N108: 0.0002346571427 | O108: -3549.943
A109: 106 | B109: Sudão | C109: 1307.024 | D109: 0.0001686631634 | F109: 106 | G109: Turquemenistão | H109: 693.7048 | I109: 6.187390996e-05 | K109: 106 | L109: Croácia | M109: 4237.765 | N109: 0.0002235001638 | O109: -29.5346
A110: 107 | B110: Togo | C110: 1248.9136 | D110: 0.0001611643846 | F110: 107 | G110: Cazaquistão | H110: 686.1514 | I110: 6.120019631e-05 | K110: 107 | L110: Benim | M110: 4156.163 | N110: 0.0002191964658 | O110: 353.6882
A111: 108 | B111: Indonésia | C111: 1228.4746 | D111: 0.0001585268612 | F111: 108 | G111: Omã | H111: 574.7992 | I111: 5.126831174e-05 | K111: 108 | L111: Burquina Faso | M111: 4122.5546 | N111: 0.0002174239554 | O111: 929.2118
A112: 109 | B112: Islândia | C112: 1198.9784 | D112: 0.0001547205635 | F112: 109 | G112: Geórgia | H112: 547.4606 | I112: 4.882988826e-05 | K112: 109 | L112: Suriname | M112: 4115.4388 | N112: 0.0002170486673 | O112: -3639.4368
A113: 110 | B113: Panamá | C113: 1014.5438 | D113: 0.0001309204473 | F113: 110 | G113: Emirados Árabes Unidos | H113: 528.4142 | I113: 4.713107453e-05 | K113: 110 | L113: Guatemala | M113: 3875.6304 | N113: 0.0002044011476 | O113: -2796.4996
A114: 111 | B114: Tunísia | C114: 915.2748 | D114: 0.000118110412 | F114: 111 | G114: Malta | H114: 521.6154 | I114: 4.652466624e-05 | K114: 111 | L114: Malavi | M114: 3763.5146 | N114: 0.0001984881487 | O114: -3750.2458
A115: 112 | B115: Equador | C115: 828.7258 | D115: 0.0001069418121 | F115: 112 | G115: Senegal | H115: 499.98 | I115: 4.459493073e-05 | K115: 112 | L115: Síria, República Árabe da | M115: 3703.4868 | N115: 0.0001953222763 | O115: 3410.6652
A116: 113 | B116: Bermudas | C116: 818.2718 | D116: 0.0001055927896 | F116: 113 | G116: Usbequistão | H116: 380.3558 | I116: 3.392523811e-05 | K116: 113 | L116: Sri Lanca | M116: 3487.054 | N116: 0.0001839075881 | O116: -2676.5116
A117: 114 | B117: Kosovo | C117: 799.843 | D117: 0.0001032146698 | F117: 114 | G117: Líbano | H117: 342.8862 | I117: 3.0583196e-05 | K117: 114 | L117: Nicarágua | M117: 3449.8386 | N117: 0.000181944844 | O117: -2652.1142
A118: 115 | B118: Paraguai | C118: 707.77 | D118: 9.133323271e-05 | F118: 115 | G118: Chade | H118: 303.1764 | I118: 2.704134277e-05 | K118: 115 | L118: Congo, República Democrática do | M118: 3425.1854 | N118: 0.0001806446317 | O118: -450.0078
A119: 116 | B119: Honduras | C119: 679.8392 | D119: 8.772893999e-05 | F119: 116 | G119: Bangladesh | H119: 298.8156 | I119: 2.665238806e-05 | K119: 116 | L119: Timor-Leste | M119: 3198.5588 | N119: 0.0001686923214 | O119: 1652.444
A120: 117 | B120: Aruba | C120: 651.3298 | D120: 8.404998261e-05 | F120: 117 | G120: Bolívia | H120: 296.509 | I120: 2.64466545e-05 | K120: 117 | L120: Guiné | M120: 3020.6542 | N120: 0.0001593096145 | O120: 2470.0602
A121: 118 | B121: Mauritânia | C121: 615.705 | D121: 7.945282796e-05 | F121: 118 | G121: Venezuela | H121: 285.0498 | I121: 2.542456915e-05 | K121: 118 | L121: Venezuela | M121: 2771.9666 | N121: 0.0001461938048 | O121: 2201.867
A122: 119 | B122: Uganda | C122: 610.399 | D122: 7.876812229e-05 | F122: 119 | G122: Guiné | H122: 275.297 | I122: 2.455468348e-05 | K122: 119 | L122: Congo | M122: 2655.1662 | N122: 0.0001400337396 | O122: 2147.0166
A123: 120 | B123: Namíbia | C123: 600.2532 | D123: 7.74588711e-05 | F123: 120 | G123: Guiné-Bissau | H123: 270.838 | I123: 2.415696998e-05 | K123: 120 | L123: Líbano | M123: 2564.0414 | N123: 0.0001352278082 | O123: 1878.269
A124: 121 | B124: Cazaquistão | C124: 584.6762 | D124: 7.544875798e-05 | F124: 121 | G124: Congo | H124: 254.0748 | I124: 2.266180268e-05 | K124: 121 | L124: Panamá | M124: 2520.0384 | N124: 0.0001329070855 | O124: -490.9508
A125: 122 | B125: Albânia | C125: 582.0574 | D125: 7.511081844e-05 | F125: 122 | G125: Belarus | H125: 241.8304 | I125: 2.156968266e-05 | K125: 122 | L125: Belarus | M125: 2506.8638 | N125: 0.0001322122557 | O125: 2023.203
A126: 123 | B126: Ruanda | C126: 580.43 | D126: 7.490081278e-05 | F126: 123 | G126: Togo | H126: 238.6312 | I126: 2.128433504e-05 | K126: 123 | L126: Geórgia | M126: 2463.843 | N126: 0.0001299433343 | O126: 1368.9218
A127: 124 | B127: Azerbaijão | C127: 564.159 | D127: 7.280114335e-05 | F127: 124 | G127: Irão, República Islâmica do | H127: 186.7426 | I127: 1.665621287e-05 | K127: 124 | L127: Serra Leoa | M127: 2326.8524 | N127: 0.0001227184359 | O127: -1474.1664
A128: 125 | B128: São Bartolomeu | C128: 548.5216 | D128: 7.078323599e-05 | F128: 125 | G128: Zâmbia | H128: 183.9494 | I128: 1.640707778e-05 | K128: 125 | L128: Seychelles | M128: 2267.3882 | N128: 0.0001195822878 | O128: 2265.1014
A129: 126 | B129: Guatemala | C129: 539.5654 | D129: 6.962749515e-05 | F129: 126 | G129: Islândia | H129: 183.9414 | I129: 1.640636424e-05 | K129: 126 | L129: Guiné Equatorial | M129: 2237.2378 | N129: 0.0001179921526 | O129: 2237.2378
A130: 127 | B130: Arménia | C130: 525.5354 | D130: 6.781701257e-05 | F130: 127 | G130: Síria, República Árabe da | H130: 146.4108 | I130: 1.305888132e-05 | K130: 127 | L130: Gabão | M130: 2210.0274 | N130: 0.0001165570733 | O130: 2209.3534
A131: 128 | B131: Barém | C131: 502.4658 | D131: 6.48400269e-05 | F131: 128 | G131: Cabo Verde | H131: 145.1786 | I131: 1.294897718e-05 | K131: 128 | L131: Irão, República Islâmica do | M131: 2107.2716 | N131: 0.0001111377218 | O131: 1733.7864
A132: 129 | B132: Bolívia | C132: 494.4554 | D132: 6.380633555e-05 | F132: 129 | G132: Azerbaijão | H132: 124.8964 | I132: 1.113993821e-05 | K132: 129 | L132: Catar | M132: 1939.3412 | N132: 0.0001022810552 | O132: 1906.8404
A133: 130 | B133: Burundi | C133: 484.978 | D133: 6.258333715e-05 | F133: 130 | G133: Jordânia | H133: 120.6272 | I133: 1.075915362e-05 | K133: 130 | L133: Bangladesh | M133: 1890.9238 | N133: 9.97275165e-05 | O133: 1293.2926
A134: 131 | B134: Quénia | C134: 449.6842 | D134: 5.802889595e-05 | F134: 131 | G134: Albânia | H134: 120.2784 | I134: 1.072804295e-05 | K134: 131 | L134: Laos, República Democrática Popular do | M134: 1777.8864 | N134: 9.376591235e-05 | O134: -1751.648
A135: 132 | B135: Gâmbia | C135: 434.028 | D135: 5.600856256e-05 | F135: 132 | G135: Iémen | H135: 84.6154 | I135: 7.547137688e-06 | K135: 132 | L135: Madagáscar | M135: 1602.4536 | N135: 8.451356836e-05 | O135: -1341.1344
A136: 133 | B136: Serra Leoa | C136: 426.343 | D136: 5.501686202e-05 | F136: 133 | G136: Kosovo | H136: 79.8322 | I136: 7.120507678e-06 | K136: 133 | L136: Togo | M136: 1487.5448 | N136: 7.845326638e-05 | O136: 1010.2824
A137: 134 | B137: Camboja | C137: 410.517 | D137: 5.297461703e-05 | F137: 134 | G137: Tajiquistão | H137: 74.7168 | I137: 6.66424761e-06 | K137: 134 | L137: Islândia | M137: 1382.9198 | N137: 7.293533307e-05 | O137: 1015.037
A138: 135 | B138: Etiópia | C138: 409.5404 | D138: 5.284859298e-05 | F138: 135 | G138: Namíbia | H138: 64.9894 | I138: 5.796627447e-06 | K138: 135 | L138: Sudão | M138: 1318.1622 | N138: 6.952001056e-05 | O138: 1295.8858
A139: 136 | B139: Sri Lanca | C139: 405.2712 | D139: 5.229767978e-05 | F139: 136 | G139: Libéria | H139: 54.4472 | I139: 4.856332478e-06 | K139: 136 | L139: Cazaquistão | M139: 1270.8276 | N139: 6.702357887e-05 | O139: -101.4752
A140: 137 | B140: Antígua e Barbuda | C140: 403.3246 | D140: 5.204648339e-05 | F140: 137 | G140: Nigéria | H140: 49.9946 | I140: 4.459189815e-06 | K140: 137 | L140: El Salvador | M140: 1081.0474 | N140: 5.701455152e-05 | O140: -318.6278
A141: 138 | B141: Nicarágua | C141: 398.8622 | D141: 5.147063895e-05 | F141: 138 | G141: Aruba | H141: 45.6144 | I141: 4.068504756e-06 | K141: 138 | L141: Kosovo | M141: 879.6752 | N141: 4.63941609e-05 | O141: 720.0108
A142: 139 | B142: El Salvador | C142: 381.2098 | D142: 4.919270861e-05 | F142: 139 | G142: Bósnia-Herzegovina | H142: 42.5574 | I142: 3.795840443e-06 | K142: 139 | L142: Bermudas | M142: 818.9736 | N142: 4.319275224e-05 | O142: 817.57
A143: 140 | B143: São Martinho (parte holandesa) | C143: 373.2376 | D143: 4.816394673e-05 | F143: 140 | G143: Curaçau | H143: 39.2148 | I143: 3.497702487e-06 | K143: 140 | L143: Bolívia | M143: 790.9644 | N143: 4.171554414e-05 | O143: 197.9464
A144: 141 | B144: Iémen | C144: 360.3172 | D144: 4.6496651e-05 | F144: 141 | G144: Arménia | H144: 37.5752 | I144: 3.351460941e-06 | K144: 141 | L144: Albânia | M144: 702.3358 | N144: 3.704126263e-05 | O144: 461.779
A145: 142 | B145: Tanzânia, República Unida da | C145: 340.531 | D145: 4.394336729e-05 | F145: 142 | G145: Arábia Saudita | H145: 37.0542 | I145: 3.304991164e-06 | K145: 142 | L145: Turquemenistão | M145: 700.9924 | N145: 3.697041157e-05 | O145: -686.4172
A146: 143 | B146: Myanmar | C146: 334.6834 | D146: 4.318877157e-05 | F146: 143 | G146: Botswana | H146: 30.037 | I146: 2.679103033e-06 | K146: 143 | L146: Aruba | M146: 696.9442 | N146: 3.675690909e-05 | O146: 605.7154
A147: 144 | B147: Comores | C147: 333.8038 | D147: 4.307526477e-05 | F147: 144 | G147: Ruanda | H147: 26.8278 | I147: 2.39286348e-06 | K147: 144 | L147: Azerbaijão | M147: 689.0554 | N147: 3.634085296e-05 | O147: 439.2626
A148: 145 | B148: Argentina | C148: 316.4082 | D148: 4.083047284e-05 | F148: 145 | G148: São Marino | H148: 25.2246 | I148: 2.249868574e-06 | K148: 145 | L148: Namíbia | M148: 665.2426 | N148: 3.508496343e-05 | O148: 535.2638
A149: 146 | B149: Jamaica | C149: 302.5728 | D149: 3.904510216e-05 | F149: 146 | G149: Macau | H149: 18.2246 | I149: 1.62551457e-06 | K149: 146 | L149: Mauritânia | M149: 617.715 | N149: 3.257835289e-05 | O149: 613.695
A150: 147 | B150: Libéria | C150: 301.9358 | D150: 3.896290134e-05 | F150: 147 | G150: Quirguizistão | H150: 17.5046 | I150: 1.561295301e-06 | K150: 147 | L150: Ruanda | M150: 607.2578 | N150: 3.202683909e-05 | O150: 553.6022
A151: 148 | B151: Macedónia, Antiga República jugoslava da | C151: 299.87 | D151: 3.869632295e-05 | F151: 148 | G151: Andorra | H151: 16.7404 | I151: 1.493133682e-06 | K151: 148 | L151: Arménia | M151: 563.1106 | N151: 2.96985112e-05 | O151: 487.9602
A152: 149 | B152: Somália | C152: 292.8384 | D152: 3.778893953e-05 | F152: 149 | G152: Líbia, Jamahira Árabe da | H152: 16.2514 | I152: 1.449518095e-06 | K152: 149 | L152: São Bartolomeu | M152: 548.8046 | N152: 2.894401128e-05 | O152: 548.2386
A153: 150 | B153: Moldava, República de | C153: 265.8198 | D153: 3.430236044e-05 | F153: 150 | G153: Catar | H153: 16.2504 | I153: 1.449428902e-06 | K153: 150 | L153: Barém | M153: 506.7884 | N153: 2.672807255e-05 | O153: 498.1432
A154: 151 | B154: Paquistão | C154: 260.8208 | D154: 3.365727118e-05 | F154: 151 | G154: Jamaica | H154: 14.6512 | I154: 1.30679077e-06 | K154: 151 | L154: Burundi | M154: 485.092 | N154: 2.558380218e-05 | O154: 484.864
A155: 152 | B155: Curaçau | C155: 251.4226 | D155: 3.244449303e-05 | F155: 152 | G155: São Cristovão e Nevis | H155: 12.4064 | I155: 1.10656936e-06 | K155: 152 | L155: Iémen | M155: 444.9326 | N155: 2.346579127e-05 | O155: 275.7018
A156: 153 | B156: Suriname | C156: 238.001 | D156: 3.071252062e-05 | F156: 153 | G156: Iraque | H156: 12.264 | I156: 1.093868216e-06 | K156: 153 | L156: Gâmbia | M156: 434.067 | N156: 2.289273841e-05 | O156: 433.989
A157: 154 | B157: Nova Caledónia | C157: 206.2626 | D157: 2.661688125e-05 | F157: 154 | G157: Território Palestiniano Ocupado | H157: 11.6698 | I157: 1.04086948e-06 | K157: 154 | L157: Usbequistão | M157: 421.6984 | N157: 2.224041717e-05 | O157: -339.0132
A158: 155 | B158: Trindade e Tobago | C158: 189.8074 | D158: 2.449344199e-05 | F158: 155 | G158: Sudão | H158: 11.1382 | I158: 9.93454253e-07 | K158: 155 | L158: Antígua e Barbuda | M158: 403.7924 | N158: 2.129605288e-05 | O158: 402.8568
A159: 156 | B159: Haiti | C159: 187.225 | D159: 2.416019963e-05 | F159: 156 | G159: Barém | H159: 4.3226 | I159: 3.85547517e-07 | K159: 156 | L159: São Martinho (parte holandesa) | M159: 373.2376 | N159: 1.968458957e-05 | O159: 373.2376
A160: 157 | B160: Zâmbia | C160: 152.2624 | D160: 1.964849769e-05 | F160: 157 | G160: Nepal | H160: 2.6584 | I160: 2.371118122e-07 | K160: 157 | L160: Libéria | M160: 356.383 | N160: 1.879567623e-05 | O160: 247.4886
A161: 158 | B161: Maldivas | C161: 137.7162 | D161: 1.777140278e-05 | F161: 158 | G161: Fiji, Ilhas | H161: 2.251 | I161: 2.007744091e-07 | K161: 158 | L161: Zâmbia | M161: 336.2118 | N161: 1.773184505e-05 | O161: -31.687
A162: 159 | B162: Liechtenstein | C162: 135.8048 | D162: 1.752474872e-05 | F162: 159 | G162: Mauritânia | H162: 2.01 | I162: 1.792787927e-07 | K162: 159 | L162: Comores | M162: 333.8038 | N162: 1.760484689e-05 | O162: 333.8038
A163: 160 | B163: Polinésia Francesa | C163: 133.9344 | D163: 1.728338545e-05 | F163: 160 | G163: Liechtenstein | H163: 1.7982 | I163: 1.603876244e-07 | K163: 160 | L163: Jamaica | M163: 317.224 | N163: 1.673042652e-05 | O163: 287.9216
A164: 161 | B164: Madagáscar | C164: 130.6596 | D164: 1.686079327e-05 | F164: 161 | G164: Lesoto | H164: 1.7136 | I164: 1.528418603e-07 | K164: 161 | L164: Chade | M164: 303.1804 | N164: 1.598976561e-05 | O164: -303.1724
A165: 162 | B165: Niger | C165: 126.732 | D165: 1.635396138e-05 | F165: 162 | G165: Seychelles | H165: 1.1434 | I165: 1.019837669e-07 | K165: 162 | L165: Somália | M165: 292.8384 | N165: 1.544432746e-05 | O165: 292.8384
A166: 163 | B166: Bósnia-Herzegovina | C166: 90.5322 | D166: 1.168260662e-05 | F166: 163 | G166: Bermudas | H166: 0.7018 | I166: 6.259594861e-08 | K166: 163 | L166: Curaçau | M166: 290.6374 | N166: 1.532824649e-05 | O166: 212.2078
A167: 164 | B167: Centro-Africana, República | C167: 89.9082 | D167: 1.160208338e-05 | F167: 164 | G167: Afeganistão | H167: 0.5848 | I167: 5.216031739e-08 | K167: 164 | L167: Nova Caledónia | M167: 206.2906 | N167: 1.087978755e-05 | O167: 206.2346
A168: 165 | B168: Nepal | C168: 87.8934 | D168: 1.134208621e-05 | F168: 165 | G168: Antígua e Barbuda | H168: 0.4678 | I168: 4.172468618e-08 | K168: 165 | L168: Trindade e Tobago | M168: 189.8764 | N168: 1.001410095e-05 | O168: 189.7384
A169: 166 | B169: Jibuti | C169: 70.7204 | D169: 9.1260194e-06 | F169: 166 | G169: Gabão | H169: 0.337 | I169: 3.005818564e-08 | K169: 166 | L169: Haiti | M169: 187.2274 | N169: 9.874392412e-06 | O169: 187.2226
A170: 167 | B170: Zimbabwe | C170: 65.33 | D170: 8.430422444e-06 | F170: 167 | G170: São Bartolomeu | H170: 0.283 | I170: 2.524174046e-08 | K170: 167 | L170: Maldivas | M170: 137.7198 | N170: 7.263356475e-06 | O170: 137.7126
A171: 168 | B171: Montenegro | C171: 54.6326 | D171: 7.049990773e-06 | F171: 168 | G171: Barbados | H171: 0.1636 | I171: 1.459204502e-08 | K171: 168 | L171: Liechtenstein | M171: 137.603 | N171: 7.257196431e-06 | O171: 134.0066
A172: 169 | B172: Caimão, Ilhas | C172: 53.1296 | D172: 6.856038149e-06 | F172: 169 | G172: Oceano Indico, Território Britânico do | H172: 0.1384 | I172: 1.23443706e-08 | K172: 169 | L172: Polinésia Francesa | M172: 133.9626 | N172: 7.065201359e-06 | O172: 133.9062
A173: 170 | B173: Ceuta e Melilha | C173: 51.6648 | D173: 6.667014993e-06 | F173: 170 | G173: Niger | H173: 0.1252 | I173: 1.116701733e-08 | K173: 170 | L173: Bósnia-Herzegovina | M173: 133.0896 | N173: 7.019159249e-06 | O173: 47.9748
A174: 171 | B174: Bahamas | C174: 43.9552 | D174: 5.672139975e-06 | F174: 171 | G174: Burundi | H174: 0.114 | I174: 1.016805093e-08 | K174: 171 | L174: Niger | M174: 126.8572 | N174: 6.690461829e-06 | O174: 126.6068
A175: 172 | B175: Usbequistão | C175: 41.3426 | D175: 5.335000504e-06 | F175: 172 | G175: Trindade e Tobago | H175: 0.069 | I175: 6.154346614e-09 | K175: 172 | L175: Nepal | M175: 90.5518 | N175: 4.775711284e-06 | O175: 85.235
A176: 173 | B176: Virgens dos Estados Unidos, Ilhas | C176: 26.0742 | D176: 3.364710254e-06 | F176: 173 | G176: Gâmbia | H176: 0.039 | I176: 3.478543738e-09 | K176: 173 | L176: Centro-Africana, República | M176: 89.9082 | N176: 4.741767753e-06 | O176: 89.9082
A177: 174 | B177: Turcas e Caicos, Ilhas | C177: 25.0024 | D177: 3.226401257e-06 | F177: 174 | G177: Polinésia Francesa | H177: 0.0282 | I177: 2.515254703e-09 | K177: 174 | L177: Tajiquistão | M177: 74.7168 | N177: 3.940571748e-06 | O177: -74.7168
A178: 175 | B178: Quirguizistão | C178: 23.7908 | D178: 3.070051956e-06 | F178: 175 | G178: Nova Caledónia | H178: 0.028 | I178: 2.497416017e-09 | K178: 175 | L178: Jibuti | M178: 70.7204 | N178: 3.7298012e-06 | O178: 70.7204
A179: 176 | B179: Guiana | C179: 20.1352 | D179: 2.598319945e-06 | F179: 176 | G179: Papuásia-Nova Guiné | H179: 0.0222 | I179: 1.980094128e-09 | K179: 176 | L179: Montenegro | M179: 54.634 | N179: 2.881402802e-06 | O179: 54.6312
A180: 177 | B180: Belize | C180: 19.5092 | D180: 2.517538612e-06 | F180: 177 | G180: Gibraltar | H180: 0.0216 | I180: 1.926578071e-09 | K180: 177 | L180: Caimão, Ilhas | M180: 53.1304 | N180: 2.802102783e-06 | O180: 53.1288
A181: 178 | B181: Mongólia | C181: 19.1206 | D181: 2.467392245e-06 | F181: 178 | G181: São Vicente e Granadinas | H181: 0.0144 | I181: 1.28438538e-09 | K181: 178 | L181: Ceuta e Melilha | M181: 51.6648 | N181: 2.724806888e-06 | O181: 51.6648
A182: 179 | B182: Afeganistão | C182: 18.9718 | D182: 2.448190548e-06 | F182: 179 | G182: Mongólia | H182: 0.0112 | I182: 9.989664069e-10 | K182: 179 | L182: Bahamas | M182: 43.9552 | N182: 2.318201787e-06 | O182: 43.9552
A183: 180 | B183: Barbados | C183: 15.4724 | D183: 1.996615157e-06 | F183: 180 | G183: Santa Lúcia | H183: 0.009 | I183: 8.027408627e-10 | K183: 180 | L183: Quirguizistão | M183: 41.2954 | N183: 2.177923661e-06 | O183: 6.2862
A184: 181 | B184: Virgens Britânicas, Ilhas | C184: 13.47 | D184: 1.738218128e-06 | F184: 181 | G184: Virgens Britânicas, Ilhas | H184: 0.007 | I184: 6.243540043e-10 | K184: 181 | L184: Botswana | M184: 30.0886 | N184: 1.586875871e-06 | O184: -29.9854
A185: 182 | B185: Laos, República Democrática Popular do | C185: 13.1192 | D185: 1.692949612e-06 | F185: 182 | G185: Maldivas | H185: 0.0036 | I185: 3.210963451e-10 | K185: 182 | L185: Virgens dos Estados Unidos, Ilhas | M185: 26.0742 | N185: 1.375156001e-06 | O185: 26.0742
A186: 183 | B186: Brunei Darussalam | C186: 12.819 | D186: 1.654210704e-06 | F186: 183 | G186: Faroé, Ilhas | H186: 0.0026 | I186: 2.319029159e-10 | K186: 183 | L186: São Marino | M186: 25.2486 | N186: 1.331613772e-06 | O186: -25.2006
A187: 184 | B187: Fiji, Ilhas | C187: 11.4226 | D187: 1.474014134e-06 | F187: 184 | G187: Haiti | H187: 0.0024 | I187: 2.140642301e-10 | K187: 184 | L187: Turcas e Caicos, Ilhas | M187: 25.0024 | N187: 1.318629158e-06 | O187: 25.0024
A188: 185 | B188: Turquemenistão | C188: 7.2876 | D188: 9.404185918e-07 | F188: 185 | G188: Montenegro | H188: 0.0014 | I188: 1.248708009e-10 | K188: 185 | L188: Afeganistão | M188: 19.5566 | N188: 1.031417104e-06 | O188: 18.387
A189: 186 | B189: Santa Lúcia | C189: 7.138 | D189: 9.211136599e-07 | F189: 186 | G189: Caimão, Ilhas | H189: 0.0008 | I189: 7.135474335e-11 | K189: 186 | L189: Mongólia | M189: 19.1318 | N189: 1.009013108e-06 | O189: 19.1094
A190: 187 | B190: Malavi | C190: 6.6344 | D190: 8.561272717e-07 | F190: 187 | G190: Anguila | H190: 0 | I190: 0 | K190: 187 | L190: Barbados | M190: 15.636 | N190: 8.246442548e-07 | O190: 15.3088
A191: 188 | B191: Bonaire, Santo Eustáquio e Saba | C191: 6.6316 | D191: 8.557659494e-07 | F191: 188 | G191: Antárctica | H191: 0 | I191: 0 | K191: 188 | L191: Fiji, Ilhas | M191: 13.6736 | N191: 7.211470761e-07 | O191: 9.1716
A192: 189 | B192: Guam | C192: 6.3336 | D192: 8.173109381e-07 | F192: 189 | G192: Antilhas Holandesas | H192: 0 | I192: 0 | K192: 189 | L192: Virgens Britânicas, Ilhas | M192: 13.477 | N192: 7.107783718e-07 | O192: 13.463
A193: 190 | B193: São Vicente e Granadinas | C193: 4.3128 | D193: 5.565395058e-07 | F193: 190 | G193: Bahamas | H193: 0 | I193: 0 | K193: 190 | L193: São Cristovão e Nevis | M193: 13.1558 | N193: 6.938382507e-07 | O193: -11.657
A194: 191 | B194: Sudão do Sul | C194: 3.771 | D194: 4.866236497e-07 | F194: 191 | G194: Bonaire, Santo Eustáquio e Saba | H194: 0 | I194: 0 | K194: 191 | L194: Brunei Darussalam | M194: 12.819 | N194: 6.760753839e-07 | O194: 12.819
A195: 192 | B195: Marianas do Norte, Ilhas | C195: 2.9244 | D195: 3.773752854e-07 | F195: 192 | G195: Bouvet, Ilha | H195: 0 | I195: 0 | K195: 192 | L195: Santa Lúcia | M195: 7.147 | N195: 3.769335181e-07 | O195: 7.129
A196: 193 | B196: Papuásia-Nova Guiné | C196: 2.8856 | D196: 3.723683913e-07 | F196: 193 | G196: Brunei Darussalam | H196: 0 | I196: 0 | K196: 193 | L196: Bonaire, Santo Eustáquio e Saba | M196: 6.6316 | N196: 3.497512689e-07 | O196: 6.6316
A197: 194 | B197: Anguila | C197: 2.7816 | D197: 3.589478504e-07 | F197: 194 | G197: Butão | H197: 0 | I197: 0 | K197: 194 | L197: Guam | M197: 6.3336 | N197: 3.340347181e-07 | O197: 6.3336
A198: 195 | B198: Domínica | C198: 1.4248 | D198: 1.838614097e-07 | F198: 195 | G198: Centro-Africana, República | H198: 0 | I198: 0 | K198: 195 | L198: São Vicente e Granadinas | M198: 4.3272 | N198: 2.282169749e-07 | O198: 4.2984
A199: 196 | B199: São Cristovão e Nevis | C199: 0.7494 | D199: 9.670532036e-08 | F199: 196 | G199: Ceuta | H199: 0 | I199: 0 | K199: 196 | L199: Sudão do Sul | M199: 3.771 | N199: 1.988829295e-07 | O199: 3.771
A200: 197 | B200: Granada | C200: 0.6942 | D200: 8.958211021e-08 | F200: 197 | G200: Ceuta e Melilha | H200: 0 | I200: 0 | K200: 197 | L200: Marianas do Norte, Ilhas | M200: 2.9244 | N200: 1.54233158e-07 | O200: 2.9244
... 59 more rows

Sheet 2A
A1: Parceiros comerciais de Portugal - União Europeia vs. Países Terceiros (média 2019-2023 em milhões de euros) produtos agrícolas e agroalimentares, do mar e da floresta
A2: Exportações | F2: Importações | K2: Trocas comerciais (total e saldo)
A3: P | B3: Grupo de Países | C3: média quinquénio | D3: % do Total | F3: P | G3: Grupo de Países | H3: média quinquénio | I3: % do Total | K3: P | L3: Grupo de Países | M3: média quinquénio | N3: % do Total | O3: Saldo (exp-imp)
A4: 1 | B4: União Europeia | C4: 9407.139979 | D4: 0.677818707 | F4: 1 | G4: União Europeia | H4: 12705.30685 | I4: 0.7857594876 | K4: 1 | L4: União Europeia | M4: 22112.44683 | N4: 0.735903892 | O4: -3298.166875
A5: 2 | B5: Países Terceiros | C5: 4469.1217 | D5: 0.3220165001 | F5: 2 | G5: Países Terceiros | H5: 3470.800262 | I5: 0.2146515835 | K5: 2 | L5: Países Terceiros | M5: 7939.921962 | N5: 0.2642411995 | O5: 998.3214384
B6: Outros | C6: 2.287086 | D6: 0.0001647928785 | G6: Outros | H6: -6.6467974 | I6: -0.0004110710728 | L6: Outros | M6: -4.3597114 | N6: -0.000145091523 | O6: 8.9338834
B7: Total | C7: 13878.54877 | D7: 1 | G7: Total | H7: 16169.46032 | I7: 1.000411071 | L7: Total | M7: 30048.00908 | N7: 1 | O7: -2290.911553
F27: valores em milhões de euros
A28: Nota: Outros = Países não determinados, abastecimentos de bordo, etc.
A29: Fonte: GPP a partir de dados INE/Comércio Internacional (2022 provisórios) | M29: 2024-03-04

Sheet 3
A1: Principais produtos agrícolas e agroalimentares, do mar e da floresta transacionados entre Portugal e Reino Unido em 2019-2023 (NC a 2 e 4 dígitos) em milhões de euros
AC4: P | AE4: Cód.NC | AF4: Descritivo | AG4: Média export quinquénio | AH4: % do total | AI4: % acumulada | AN4: P | AO4: NC | AP4: Exportações | AQ4: 2019 | AR4: 2020 | AS4: 2021 | AT4: 2022 | AU4: 2023 | AV4: média quinquénio
AC5: 1 | AD5: º | AE5: 48 | AF5: Papel e cartão | AG5: 162.476328 | AH5: 0.2255413861 | AN5: 1º | AO5: 48 | AP5: Papel e cartão | AQ5: 130.672138 | AR5: 124.294749 | AS5: 136.697391 | AT5: 229.548018 | AU5: 191.169344 | AV5: 162.476328
AC6: 2 | AD6: º | AE6: 22 | AF6: Bebidas, líquidos alcoólicos e vinagres | AG6: 98.509347 | AH6: 0.1367456721 | AN6: 2º | AO6: 22 | AP6: Bebidas, líquidos alcoólicos e vinagres | AQ6: 86.334089 | AR6: 103.839157 | AS6: 107.376355 | AT6: 95.376672 | AU6: 99.620462 | AV6: 98.509347
AC7: 3 | AD7: º | AE7: 44 | AF7: Madeira e suas obras | AG7: 89.3489762 | AH7: 0.1240297106 | AI7: 0.4863167688 | AN7: 3º | AO7: 44 | AP7: Madeira e suas obras | AQ7: 92.995569 | AR7: 79.065573 | AS7: 89.62579 | AT7: 99.484037 | AU7: 85.573912 | AV7: 89.3489762
AC8: 4 | AD8: º | AE8: 20 | AF8: Preparações de produtos vegetais | AG8: 78.7649288 | AH8: 0.1093374736 | AO8: - | AP8: Outros | AQ8: 335.30448 | AR8: 356.886392 | AS8: 352.090326 | AT8: 390.366985 | AU8: 415.596834 | AV8: 370.0490034
AC9: 5 | AD9: º | AE9: 45 | AF9: Cortiça e suas obras | AG9: 47.4459904 | AH9: 0.06586211402 | AP9: Total | AQ9: 645.306276 | AR9: 664.085871 | AS9: 685.789862 | AT9: 814.775712 | AU9: 791.960552 | AV9: 720.3836546
AC10: 6 | AD10: º | AE10: 21 | AF10: Preparações alimentícias diversas | AG10: 46.9469878 | AH10: 0.06516942396
AC11: 7 | AD11: º | AE11: 19a | AF11: Preparações à base de cereais (exc. NC 19022010) (a) | AG11: 41.6273674 | AH11: 0.05778499711
AC12: 8 | AD12: º | AE12: 08 | AF12: Frutas | AG12: 35.632222 | AH12: 0.04946284077
AC13: 9 | AD13: º | AE13: 07 | AF13: Produtos hortícolas | AG13: 22.4428876 | AH13: 0.03115407666
AC14: 10 | AD14: º | AE14: 16p | AF14: Preparações e conservas de peixes ou crustáceos (NC 1604-05) (p) | AG14: 17.5519104 | AH14: 0.02436467053 | AI14: 0.8894523654
AE15: - | AF15: Outros | AG15: 79.636709 | AH15: 0.1105476346
AE16: Total | AG16: 720.3836546 | AH16: 1
AC38: P | AE38: Cód.NC | AF38: Descritivo | AG38: Média import quinquénio | AH38: % do total | AI38: % acumulada | AN38: P | AO38: NC | AP38: Importações | AQ38: 2019 | AR38: 2020 | AS38: 2021 | AT38: 2022 | AU38: 2023 | AV38: média quinquénio
AC39: 1 | AD39: º | AE39: 10 | AF39: Cereais | AG39: 50.7177192 | AH39: 0.2565940765 | AN39: 1º | AO39: 10 | AP39: Cereais | AQ39: 59.172006 | AR39: 47.083173 | AS39: 36.047419 | AT39: 59.310949 | AU39: 51.975049 | AV39: 50.7177192
AC40: 2 | AD40: º | AE40: 22 | AF40: Bebidas, líquidos alcoólicos e vinagres | AG40: 40.2585056 | AH40: 0.2036782061 | AN40: 2º | AO40: 22 | AP40: Bebidas, líquidos alcoólicos e vinagres | AQ40: 46.899832 | AR40: 27.920351 | AS40: 38.282612 | AT40: 45.99445 | AU40: 42.195283 | AV40: 40.2585056
AC41: 3 | AD41: º | AE41: 21 | AF41: Preparações alimentícias diversas | AG41: 20.9561096 | AH41: 0.1060223858 | AI41: 0.5662946684 | AN41: 3º | AO41: 21 | AP41: Preparações alimentícias diversas | AQ41: 28.212176 | AR41: 28.483671 | AS41: 16.414385 | AT41: 14.866388 | AU41: 16.803928 | AV41: 20.9561096
AC42: 4 | AD42: º | AE42: 48 | AF42: Papel e cartão | AG42: 16.941094 | AH42: 0.08570938202 | AO42: - | AP42: Outros | AQ42: 138.904536 | AR42: 117.940259 | AS42: 59.502136 | AT42: 59.181583 | AU42: 53.096837 | AV42: 85.7250702
AC43: 5 | AD43: º | AE43: 03 | AF43: Peixes e crustáceos | AG43: 13.0417168 | AH43: 0.06598142289 | AP43: Total | AQ43: 273.18855 | AR43: 221.427454 | AS43: 150.246552 | AT43: 179.35337 | AU43: 164.071097 | AV43: 197.6574046
AC44: 6 | AD44: º | AE44: 02 | AF44: Carnes e miudezas | AG44: 9.7997376 | AH44: 0.04957941049
AC45: 7 | AD45: º | AE45: 19a | AF45: Preparações à base de cereais (exc. NC 19022010) (a) | AG45: 4.8814382 | AH45: 0.02469646007
AC46: 8 | AD46: º | AE46: 04 | AF46: Leite e laticínios; ovos; mel, etc. | AG46: 3.9002618 | AH46: 0.01973243455
AC47: 9 | AD47: º | AE47: 25 | AF47: Sal e cloreto de sódio puro; água do mar (NC 2501) | AG47: 3.7891022 | AH47: 0.01917004935
AC48: 10 | AD48: º | AE48: 16a | AF48: Preparações de carnes (exc. NC 1604-05) (a) | AG48: 3.5334932 | AH48: 0.01787685722 | AI48: 0.849040685
AE49: - | AF49: Outros | AG49: 29.8382264 | AH49: 0.150959315
AE50: Total | AG50: 197.6574046 | AH50: 1
AC62: DESAGREGAÇÃO A 4 DÍGITOS | AN62: DESAGREGAÇÃO A 4 DÍGITOS
AC64: P | AE64: Cód.NC | AF64: Descritivo | AG64: Média export quinquénio | AH64: % do total | AI64: % acumulada | AN64: P | AO64: NC | AP64: Exportações | AQ64: 2019 | AR64: 2020 | AS64: 2021 | AT64: 2022 | AU64: 2023 | AV64: média quinquénio
AC65: 1 | AD65: º | AE65: 4802 | AF65: Papel e cartão p/ escrita, etc. | AG65: 111.7671354 | AH65: 0.1551494605 | AN65: 1º | AO65: 4802 | AP65: Papel e cartão p/ escrita, etc. | AQ65: 95.863382 | AR65: 81.892898 | AS65: 80.334415 | AT65: 160.673469 | AU65: 140.071513 | AV65: 111.7671354
AC66: 2 | AD66: º | AE66: 2204 | AF66: Vinhos de uvas frescas | AG66: 88.832825 | AH66: 0.1233132157 | AN66: 2º | AO66: 2204 | AP66: Vinhos de uvas frescas | AQ66: 77.747794 | AR66: 95.3038 | AS66: 97.809935 | AT66: 84.753652 | AU66: 88.548944 | AV66: 88.832825
AC67: 3 | AD67: º | AE67: 2002 | AF67: Tomates preparados | AG67: 59.7053004 | AH67: 0.0828798655 | AI67: 0.3613425418 | AN67: 3º | AO67: 2002 | AP67: Tomates preparados | AQ67: 50.027017 | AR67: 63.282649 | AS67: 53.995606 | AT67: 63.954949 | AU67: 67.266281 | AV67: 59.7053004
AC68: 4 | AD68: º | AE68: 1905 | AF68: Produtos de padaria, pastelaria, etc. | AG68: 34.3404474 | AH68: 0.04766966488 | AN68: - | AO68: - | AP68: Outros | AQ68: 421.668083 | AR68: 423.606524 | AS68: 453.649906 | AT68: 505.393642 | AU68: 496.073814 | AV68: 460.0783938
AC69: 5 | AD69: º | AE69: 2103 | AF69: Preparações para molhos e molhos preparados | AG69: 30.796427 | AH69: 0.04275003577 | AP69: Total | AQ69: 645.306276 | AR69: 664.085871 | AS69: 685.789862 | AT69: 814.775712 | AU69: 791.960552 | AV69: 720.3836546
AC70: 6 | AD70: º | AE70: 4401 | AF70: Lenha, resíduos de madeira, etc. | AG70: 29.4693698 | AH70: 0.04090788236
AC71: 7 | AD71: º | AE71: 4418 | AF71: Obras de marcenaria ou carpintaria | AG71: 25.5143652 | AH71: 0.03541774586
AC72: 8 | AD72: º | AE72: 4803 | AF72: Papel para toalhas, guardanapos, etc. | AG72: 25.4778246 | AH72: 0.03536702205
AC73: 9 | AD73: º | AE73: 4503 | AF73: Obras de cortiça natural | AG73: 25.3472306 | AH73: 0.0351857381
AC74: 10 | AD74: º | AE74: 4504 | AF74: Cortiça aglomerada e suas obras | AG74: 21.445207 | AH74: 0.02976914712 | AI74: 0.6284097779
AE75: - | AF75: Outros | AG75: 267.6875222 | AH75: 0.3715902221
AE76: Total | AG76: 720.3836546 | AH76: 1
AC89: DESAGREGAÇÃO A 4 DÍGITOS | AN89: DESAGREGAÇÃO A 4 DÍGITOS
G91: média 2019-2023 em milhões de euros | I91: Cód. NC | J91: Descritivo | K91: Export | L91: Import | M91: Saldo | AC91: P | AE91: Cód.NC | AF91: Descritivo | AG91: Média import quinquénio | AH91: % do total | AI91: % acumulada | AN91: P | AO91: NC | AP91: Importações | AQ91: 2019 | AR91: 2020 | AS91: 2021 | AT91: 2022 | AU91: 2023 | AV91: média quinquénio
I92: 4802 | J92: Papel e cartão p/ escrita, etc. | K92: 111.7671354 | L92: 0.4428584 | M92: 111.324277 | AC92: 1 | AD92: º | AE92: 2208 | AF92: Álcool etílico <80%; aguardentes, etc. | AG92: 36.8683534 | AH92: 0.1865265482 | AN92: 1º | AO92: 2208 | AP92: Álcool etílico <80%; aguardentes, etc. | AQ92: 38.255393 | AR92: 25.281377 | AS92: 36.578563 | AT92: 44.327658 | AU92: 39.898776 | AV92: 36.8683534
I93: 2204 | J93: Vinhos de uvas frescas | K93: 88.832825 | L93: 0.69523 | M93: 88.137595 | AC93: 2 | AD93: º | AE93: 1003 | AF93: Cevada | AG93: 30.017346 | AH93: 0.1518655274 | AN93: 2º | AO93: 1003 | AP93: Cevada | AQ93: 25.802829 | AR93: 40.403968 | AS93: 28.030523 | AT93: 37.095675 | AU93: 18.753735 | AV93: 30.017346
I94: 2002 | J94: Tomates preparados | K94: 59.7053004 | L94: 0.0985054 | M94: 59.606795 | AC94: 3 | AD94: º | AE94: 1001 | AF94: Trigo e mistura trigo/centeio | AG94: 18.9116422 | AH94: 0.0956788957 | AI94: 0.4340709713 | AN94: 3º | AO94: 1001 | AP94: Trigo e mistura trigo/centeio | AQ94: 26.372329 | AR94: 5.209942 | AS94: 7.694093 | AT94: 22.063105 | AU94: 33.218742 | AV94: 18.9116422
I95: 1905 | J95: Produtos de padaria, pastelaria, etc. | K95: 34.3404474 | L95: 2.5444264 | M95: 31.796021 | AC95: 4 | AD95: º | AE95: 2106 | AF95: Outras preparações alimentícias | AG95: 10.070025 | AH95: 0.05094686445 | AN95: - | AO95: - | AP95: Outros | AQ95: 182.757999 | AR95: 150.532167 | AS95: 77.943373 | AT95: 75.866932 | AU95: 72.199844 | AV95: 111.860063
I96: 4401 | J96: Lenha, resíduos de madeira, etc. | K96: 29.4693698 | L96: 0.1978384 | M96: 29.2715314 | AC96: 5 | AD96: º | AE96: 0306 | AF96: Crustáceos | AG96: 9.4331738 | AH96: 0.0477248693 | AP96: Total | AQ96: 273.18855 | AR96: 221.427454 | AS96: 150.246552 | AT96: 179.35337 | AU96: 164.071097 | AV96: 197.6574046
I97: 4803 | J97: Papel para toalhas, guardanapos, etc. | K97: 25.4778246 | L97: 0.1205408 | M97: 25.3572838 | AC97: 6 | AD97: º | AE97: 4804 | AF97: Papel e cartão "kraft", não revestidos | AG97: 7.3233828 | AH97: 0.03705089023
I98: 4418 | J98: Obras de marcenaria ou carpintaria | K98: 25.5143652 | L98: 0.2528808 | M98: 25.2614844 | AC98: 7 | AD98: º | AE98: 2103 | AF98: Preparações para molhos e molhos preparados | AG98: 5.809323 | AH98: 0.02939086958
I99: 4503 | J99: Obras de cortiça natural | K99: 25.3472306 | L99: 0.1427818 | M99: 25.2044488 | AC99: 8 | AD99: º | AE99: 0201 | AF99: Carnes de bovino, frescas ou refrigeradas | AG99: 4.1257784 | AH99: 0.02087338144
I100: 2103 | J100: Preparações para molhos e molhos preparados | K100: 30.796427 | L100: 5.809323 | M100: 24.987104 | AC100: 9 | AD100: º | AE100: 2501 | AF100: Sal e cloreto de sódio puro; água do mar | AG100: 3.7891022 | AH100: 0.01917004935
I101: 4504 | J101: Cortiça aglomerada e suas obras | K101: 21.445207 | L101: 0.122641 | M101: 21.322566 | AC101: 10 | AD101: º | AE101: 2101 | AF101: Extratos e preparados de café, chá ou mate | AG101: 3.4308036 | AH101: 0.01735732394 | AI101: 0.6565852196
I102: - | J102: Outros | K102: 261.3765854 | L102: 64.8466322 | M102: 196.5299532 | AE102: - | AF102: Outros | AG102: 67.8784742 | AH102: 0.3434147804
I103: 0406 | J103: Queijos e requeijão | K103: 1.2750866 | L103: 3.122902 | M103: -1.8478154 | AE103: Total | AG103: 197.6574046 | AH103: 1
I104: 1602 | J104: Outras preparações e conservas de carnes, miudezas ou sangue | K104: 1.1720574 | L104: 3.4275394 | M104: -2.255482
I105: 2101 | J105: Extratos e preparados de café, chá ou mate | K105: 0.5778564 | L105: 3.4308036 | M105: -2.8529472
I106: 2309 | J106: Preparações p/ alimentação animal | K106: 0.2524764 | L106: 3.3128588 | M106: -3.0603824
I107: 2501 | J107: Sal e cloreto de sódio puro; água do mar | K107: 0.3740806 | L107: 3.7891022 | M107: -3.4150216
I108: 2106 | J108: Outras preparações alimentícias | K108: 1.7597518 | L108: 10.070025 | M108: -8.3102732
I109: 0306 | J109: Crustáceos | K109: 0.3092316 | L109: 9.4331738 | M109: -9.1239422
I110: 1001 | J110: Trigo e mistura trigo/centeio | K110: 0.000328 | L110: 18.9116422 | M110: -18.9113142
I111: 1003 | J111: Cevada | K111: 0.0007574 | L111: 30.017346 | M111: -30.0165886
I112: 2208 | J112: Álcool etílico <80%; aguardentes, etc. | K112: 0.5893106 | L112: 36.8683534 | M112: -36.2790428
I113: Total | K113: 720.3836546 | L113: 197.6574046 | M113: 522.72625
A116: Fonte: GPP a partir de dados INE/Comércio Internacional (2022 definitivos) | Y116: 2024-05-14T17:02:43.520

Sheet 3A
A1: Principais produtos agrícolas e agroalimentares transacionados entre Portugal e Reino Unido em 2019-2023 (NC a 2 e 4 dígitos) em milhões de euros
AC4: P | AE4: Cód.NC | AF4: Descritivo | AG4: Média export quinquénio | AH4: % do total | AI4: % acumulada | AN4: P | AO4: NC | AP4: Exportações | AQ4: 2019 | AR4: 2020 | AS4: 2021 | AT4: 2022 | AU4: 2023 | AV4: média quinquénio
AC5: 1 | AD5: º | AE5: 22 | AF5: Bebidas, líquidos alcoólicos e vinagres | AG5: 98.509347 | AH5: 0.2594995264 | AN5: 1º | AO5: 22 | AP5: Bebidas, líquidos alcoólicos e vinagres | AQ5: 86.334089 | AR5: 103.839157 | AS5: 107.376355 | AT5: 95.376672 | AU5: 99.620462 | AV5: 98.509347
AC6: 2 | AD6: º | AE6: 20 | AF6: Preparações de produtos vegetais | AG6: 78.7649288 | AH6: 0.2074875364 | AN6: 2º | AO6: 20 | AP6: Preparações de produtos vegetais | AQ6: 62.776998 | AR6: 74.939117 | AS6: 73.163016 | AT6: 87.430781 | AU6: 95.514732 | AV6: 78.7649288
AC7: 3 | AD7: º | AE7: 21 | AF7: Preparações alimentícias diversas | AG7: 46.9469878 | AH7: 0.1236707122 | AI7: 0.5906577749 | AN7: 3º | AO7: 21 | AP7: Preparações alimentícias diversas | AQ7: 28.0828 | AR7: 35.053372 | AS7: 45.810377 | AT7: 52.435527 | AU7: 73.352863 | AV7: 46.9469878
AC8: 4 | AD8: º | AE8: 19a | AF8: Preparações à base de cereais (exc. NC 19022010) (a) | AG8: 41.6273674 | AH8: 0.1096574331 | AO8: - | AP8: Outros | AQ8: 152.59863 | AR8: 157.284143 | AS8: 150.056132 | AT8: 159.679291 | AU8: 157.339586 | AV8: 155.3915564
AC9: 5 | AD9: º | AE9: 08 | AF9: Frutas | AG9: 35.632222 | AH9: 0.09386464345 | AP9: Total | AQ9: 329.792517 | AR9: 371.115789 | AS9: 376.40588 | AT9: 394.922271 | AU9: 425.827643 | AV9: 379.61282
AC10: 6 | AD10: º | AE10: 07 | AF10: Produtos hortícolas | AG10: 22.4428876 | AH10: 0.05912046806
AC11: 7 | AD11: º | AE11: 02 | AF11: Carnes e miudezas | AG11: 9.8557124 | AH11: 0.02596253836
AC12: 8 | AD12: º | AE12: 09 | AF12: Café, chá, mate e especiarias | AG12: 9.1134056 | AH12: 0.02400710703
AC13: 9 | AD13: º | AE13: 10 | AF13: Cereais | AG13: 7.7202548 | AH13: 0.02033718145
AC14: 10 | AD14: º | AE14: 06 | AF14: Plantas vivas e produtos de floricultura | AG14: 5.8464182 | AH14: 0.01540100305 | AI14: 0.9390081494
AE15: - | AF15: Outros | AG15: 23.1532884 | AH15: 0.06099185059
AE16: Total | AG16: 379.61282 | AH16: 1
AC38: P | AE38: Cód.NC | AF38: Descritivo | AG38: Média import quinquénio | AH38: % do total | AI38: % acumulada | AN38: P | AO38: NC | AP38: Importações | AQ38: 2019 | AR38: 2020 | AS38: 2021 | AT38: 2022 | AU38: 2023 | AV38: média quinquénio
AC39: 1 | AD39: º | AE39: 10 | AF39: Cereais | AG39: 50.7177192 | AH39: 0.3215510541 | AN39: 1º | AO39: 10 | AP39: Cereais | AQ39: 59.172006 | AR39: 47.083173 | AS39: 36.047419 | AT39: 59.310949 | AU39: 51.975049 | AV39: 50.7177192
AC40: 2 | AD40: º | AE40: 22 | AF40: Bebidas, líquidos alcoólicos e vinagres | AG40: 40.2585056 | AH40: 0.2552394926 | AN40: 2º | AO40: 22 | AP40: Bebidas, líquidos alcoólicos e vinagres | AQ40: 46.899832 | AR40: 27.920351 | AS40: 38.282612 | AT40: 45.99445 | AU40: 42.195283 | AV40: 40.2585056
AC41: 3 | AD41: º | AE41: 21 | AF41: Preparações alimentícias diversas | AG41: 20.9561096 | AH41: 0.13286203 | AI41: 0.7096525767 | AN41: 3º | AO41: 21 | AP41: Preparações alimentícias diversas | AQ41: 28.212176 | AR41: 28.483671 | AS41: 16.414385 | AT41: 14.866388 | AU41: 16.803928 | AV41: 20.9561096
AC42: 4 | AD42: º | AE42: 02 | AF42: Carnes e miudezas | AG42: 9.7997376 | AH42: 0.06213047442 | AO42: - | AP42: Outros | AQ42: 84.62566 | AR42: 68.92242 | AS42: 26.425852 | AT42: 22.98377 | AU42: 26.022407 | AV42: 45.7960218
AC43: 5 | AD43: º | AE43: 19a | AF43: Preparações à base de cereais (exc. NC 19022010) (a) | AG43: 4.8814382 | AH43: 0.03094838695 | AP43: Total | AQ43: 218.909674 | AR43: 172.409615 | AS43: 117.170268 | AT43: 143.155557 | AU43: 136.996667 | AV43: 157.7283562
AC44: 6 | AD44: º | AE44: 04 | AF44: Leite e laticínios; ovos; mel, etc. | AG44: 3.9002618 | AH44: 0.02472771475
AC45: 7 | AD45: º | AE45: 16a | AF45: Preparações de carnes (exc. NC 1604-05) (a) | AG45: 3.5334932 | AH45: 0.02240239666
AC46: 8 | AD46: º | AE46: 23a | AF46: Resíduos indústrias alimentares; alimentos p/ animais (exc. NC 230120) (a) | AG46: 3.3211092 | AH46: 0.02105587911
AC47: 9 | AD47: º | AE47: 07 | AF47: Produtos hortícolas | AG47: 2.698926 | AH47: 0.01711122886
AC48: 10 | AD48: º | AE48: 09 | AF48: Café, chá, mate e especiarias | AG48: 2.5435934 | AH48: 0.01612641798 | AI48: 0.9041550754
AE49: - | AF49: Outros | AG49: 15.1174624 | AH49: 0.09584492455
AE50: Total | AG50: 157.7283562 | AH50: 1
AC62: DESAGREGAÇÃO A 4 DÍGITOS | AN62: DESAGREGAÇÃO A 4 DÍGITOS
AC64: P | AE64: Cód.NC | AF64: Descritivo | AG64: Média export quinquénio | AH64: % do total | AI64: % acumulada | AN64: P | AO64: NC | AP64: Exportações | AQ64: 2019 | AR64: 2020 | AS64: 2021 | AT64: 2022 | AU64: 2023 | AV64: média quinquénio
AC65: 1 | AD65: º | AE65: 2204 | AF65: Vinhos de uvas frescas | AG65: 88.832825 | AH65: 0.2340090227 | AN65: 1º | AO65: 2204 | AP65: Vinhos de uvas frescas | AQ65: 77.747794 | AR65: 95.3038 | AS65: 97.809935 | AT65: 84.753652 | AU65: 88.548944 | AV65: 88.832825
AC66: 2 | AD66: º | AE66: 2002 | AF66: Tomates preparados | AG66: 59.7053004 | AH66: 0.1572794628 | AN66: 2º | AO66: 2002 | AP66: Tomates preparados | AQ66: 50.027017 | AR66: 63.282649 | AS66: 53.995606 | AT66: 63.954949 | AU66: 67.266281 | AV66: 59.7053004
AC67: 3 | AD67: º | AE67: 1905 | AF67: Produtos de padaria, pastelaria, etc. | AG67: 34.3404474 | AH67: 0.09046176944 | AI67: 0.4817502549 | AN67: 3º | AO67: 1905 | AP67: Produtos de padaria, pastelaria, etc. | AQ67: 28.209291 | AR67: 34.942748 | AS67: 31.209394 | AT67: 37.725185 | AU67: 39.615619 | AV67: 34.3404474
AC68: 4 | AD68: º | AE68: 2103 | AF68: Preparações para molhos e molhos preparados | AG68: 30.796427 | AH68: 0.08112588769 | AN68: - | AO68: - | AP68: Outros | AQ68: 173.808415 | AR68: 177.586592 | AS68: 193.390945 | AT68: 208.488485 | AU68: 230.396799 | AV68: 196.7342472
AC69: 5 | AD69: º | AE69: 0808 | AF69: Maçãs, peras e marmelos, frescos | AG69: 16.7280804 | AH69: 0.04406616299 | AP69: Total | AQ69: 329.792517 | AR69: 371.115789 | AS69: 376.40588 | AT69: 394.922271 | AU69: 425.827643 | AV69: 379.61282
AC70: 6 | AD70: º | AE70: 0810 | AF70: Outras frutas frescas | AG70: 14.0744548 | AH70: 0.0370758153
AC71: 7 | AD71: º | AE71: 0709 | AF71: Outros produtos hortícolas, frescos ou refrigerados | AG71: 9.2281564 | AH71: 0.02430939082
AC72: 8 | AD72: º | AE72: 0901 | AF72: Café | AG72: 8.9610698 | AH72: 0.02360581447
AC73: 9 | AD73: º | AE73: 2009 | AF73: Sumos de frutas | AG73: 8.2381708 | AH73: 0.02170150839
AC74: 10 | AD74: º | AE74: 2104 | AF74: Preparações para caldos e sopas | AG74: 7.8403732 | AH74: 0.0206536049 | AI74: 0.7342884395
AE75: - | AF75: Outros | AG75: 100.8675148 | AH75: 0.2657115605
AE76: Total | AG76: 379.61282 | AH76: 1
AC89: DESAGREGAÇÃO A 4 DÍGITOS | AN89: DESAGREGAÇÃO A 4 DÍGITOS
G91: média 2019-2023 em milhões de euros | I91: Cód. NC | J91: Descritivo | K91: Export | L91: Import | M91: Saldo | AC91: P | AE91: Cód.NC | AF91: Descritivo | AG91: Média import quinquénio | AH91: % do total | AI91: % acumulada | AN91: P | AO91: NC | AP91: Importações | AQ91: 2019 | AR91: 2020 | AS91: 2021 | AT91: 2022 | AU91: 2023 | AV91: média quinquénio
I92: 2204 | J92: Vinhos de uvas frescas | K92: 88.832825 | L92: 0.69523 | M92: 88.137595 | AC92: 1 | AD92: º | AE92: 2208 | AF92: Álcool etílico <80%; aguardentes, etc. | AG92: 36.8683534 | AH92: 0.2337458799 | AN92: 1º | AO92: 2208 | AP92: Álcool etílico <80%; aguardentes, etc. | AQ92: 38.255393 | AR92: 25.281377 | AS92: 36.578563 | AT92: 44.327658 | AU92: 39.898776 | AV92: 36.8683534
I93: 2002 | J93: Tomates preparados | K93: 59.7053004 | L93: 0.0985054 | M93: 59.606795 | AC93: 2 | AD93: º | AE93: 1003 | AF93: Cevada | AG93: 30.017346 | AH93: 0.1903103965 | AN93: 2º | AO93: 1003 | AP93: Cevada | AQ93: 25.802829 | AR93: 40.403968 | AS93: 28.030523 | AT93: 37.095675 | AU93: 18.753735 | AV93: 30.017346
I94: 1905 | J94: Produtos de padaria, pastelaria, etc. | K94: 34.3404474 | L94: 2.5444264 | M94: 31.796021 | AC94: 3 | AD94: º | AE94: 1001 | AF94: Trigo e mistura trigo/centeio | AG94: 18.9116422 | AH94: 0.1199000779 | AI94: 0.5439563542 | AN94: 3º | AO94: 1001 | AP94: Trigo e mistura trigo/centeio | AQ94: 26.372329 | AR94: 5.209942 | AS94: 7.694093 | AT94: 22.063105 | AU94: 33.218742 | AV94: 18.9116422
I95: 2103 | J95: Preparações para molhos e molhos preparados | K95: 30.796427 | L95: 5.809323 | M95: 24.987104 | AC95: 4 | AD95: º | AE95: 2106 | AF95: Outras preparações alimentícias | AG95: 10.070025 | AH95: 0.06384410034 | AN95: - | AO95: - | AP95: Outros | AQ95: 128.479123 | AR95: 101.514328 | AS95: 44.867089 | AT95: 39.669119 | AU95: 45.125414 | AV95: 71.9310146
I96: 0808 | J96: Maçãs, peras e marmelos, frescos | K96: 16.7280804 | L96: 0.0422466 | M96: 16.6858338 | AC96: 5 | AD96: º | AE96: 2103 | AF96: Preparações para molhos e molhos preparados | AG96: 5.809323 | AH96: 0.03683118965 | AP96: Total | AQ96: 218.909674 | AR96: 172.409615 | AS96: 117.170268 | AT96: 143.155557 | AU96: 136.996667 | AV96: 157.7283562
I97: 0810 | J97: Outras frutas frescas | K97: 14.0744548 | L97: 0.0097034 | M97: 14.0647514 | AC97: 6 | AD97: º | AE97: 0201 | AF97: Carnes de bovino, frescas ou refrigeradas | AG97: 4.1257784 | AH97: 0.02615749317
I98: 0709 | J98: Outros produtos hortícolas, frescos ou refrigerados | K98: 9.2281564 | L98: 0.0296392 | M98: 9.1985172 | AC98: 7 | AD98: º | AE98: 2101 | AF98: Extratos e preparados de café, chá ou mate | AG98: 3.4308036 | AH98: 0.02175134315
I99: 2009 | J99: Sumos de frutas | K99: 8.2381708 | L99: 0.2193126 | M99: 8.0188582 | AC99: 8 | AD99: º | AE99: 1602 | AF99: Outras preparações e conservas de carnes, miudezas ou sangue | AG99: 3.4275394 | AH99: 0.02173064807
I100: 2104 | J100: Preparações para caldos e sopas | K100: 7.8403732 | L100: 0.1663466 | M100: 7.6740266 | AC100: 9 | AD100: º | AE100: 2309 | AF100: Preparações p/ alimentação animal | AG100: 3.3128588 | AH100: 0.02100357146
I101: 0901 | J101: Café | K101: 8.9610698 | L101: 1.9623198 | M101: 6.99875 | AC101: 10 | AD101: º | AE101: 0406 | AF101: Queijos e requeijão | AG101: 3.122902 | AH101: 0.01979924267 | AI101: 0.7550739428
I102: - | J102: Outros | K102: 95.0960926 | L102: 33.90985 | M102: 61.1862426 | AE102: - | AF102: Outros | AG102: 38.6317844 | AH102: 0.2449260572
I103: 1104 | J103: Grãos de cereais processados | K103: 0.0684928 | L103: 1.346876 | M103: -1.2783832 | AE103: Total | AG103: 157.7283562 | AH103: 1
I104: 0204 | J104: Carnes de ovino ou caprino | K104: 0.0753048 | L104: 1.7331068 | M104: -1.657802
I105: 0406 | J105: Queijos e requeijão | K105: 1.2750866 | L105: 3.122902 | M105: -1.8478154
I106: 1602 | J106: Outras preparações e conservas de carnes, miudezas ou sangue | K106: 1.1720574 | L106: 3.4275394 | M106: -2.255482
I107: 2101 | J107: Extratos e preparados de café, chá ou mate | K107: 0.5778564 | L107: 3.4308036 | M107: -2.8529472
I108: 2309 | J108: Preparações p/ alimentação animal | K108: 0.2524764 | L108: 3.3128588 | M108: -3.0603824
I109: 2106 | J109: Outras preparações alimentícias | K109: 1.7597518 | L109: 10.070025 | M109: -8.3102732
I110: 1001 | J110: Trigo e mistura trigo/centeio | K110: 0.000328 | L110: 18.9116422 | M110: -18.9113142
I111: 1003 | J111: Cevada | K111: 0.0007574 | L111: 30.017346 | M111: -30.0165886
I112: 2208 | J112: Álcool etílico <80%; aguardentes, etc. | K112: 0.5893106 | L112: 36.8683534 | M112: -36.2790428
I113: Total | K113: 379.61282 | L113: 157.7283562 | M113: 221.8844638
A116: Fonte: GPP a partir de dados INE/Comércio Internacional (2022 definitivos) | Y116: 2024-05-14T17:02:43.520

Sheet 4A
A1: Evolução da balança comercial Portugal-Reino Unido 2019-2023 por produto em euros (NC 2 dígitos)
A3: =+aux!A31 -> Evolução da balança comercial Portugal-Reino Unido para Bebidas, líquidos alcoólicos e vinagres
A5: Selecione o produto:
Q7: Para obter uma maior desagregação deste produto, clique no botão respetivo:
A20: =+aux!A43 -> Evolução da balança comercial Portugal-Reino Unido para Cereais
A22: Selecione o produto:
A38: Fonte: GPP a partir de dados INE/Comércio Internacional (2022 definitivos) | N38: 2024-05-14T17:02:43.520

Sheet 5.2
A1: Trocas comerciais Portugal-Reino Unido 2019-2023 em milhares de euros (NC 2 dígitos) | C1: Produtos agrícolas e agroalimentares, do mar e da floresta
A2: Cód. NC | B2: Descritivo | C2: Importações | K2: Exportações | S2: Saldo quinquénio (exp-imp) | T2: Evolução das importações | U2: =+"Variação das Importações " & INDEX(K3:N3,1,aux!AL1) & "-"& '5.2'!O3 &"" -> Variação das Importações 2019-2023 | Z2: Evolução das exportações | AA2: ="Variação das Exportações " & INDEX(K3:N3,1,aux!AL1) & "-"& '5.2'!O3 &"" -> Variação das Exportações 2019-2023
C3: 2019 | D3: 2020 | E3: 2021 | F3: 2022 | G3: 2023 | H3: média quinquénio | I3: % Subtot | J3: % Total | K3: 2019 | L3: 2020 | M3: 2021 | N3: 2022 | O3: 2023 | P3: média quinquénio | Q3: % Subtot | R3: % Total | U3: variação total em valor | V3: % no subtotal de variação | W3: % no total de variação | X3: taxa de variação média anual | Y3: taxa de variação total | AA3: variação total em valor | AB3: % no subtotal de variação | AC3: % no total de variação | AD3: taxa de variação média anual | AE3: taxa de variação total
A4: 01 | B4: Animais vivos | C4: 289.608 | D4: 235.352 | E4: 154.95 | F4: 133.492 | G4: 177.944 | H4: 198.2692 | I4: 0.001257029521 | J4: 0.001003095231 | K4: 0 | L4: 57.399 | M4: 41.295 | N4: 82.859 | O4: 50.268 | P4: 46.3642 | Q4: 0.0001221354958 | R4: 6.436042754e-05 | S4: -151.905 | U4: =G4-INDEX($C4:$G4,1,aux!$AL$1) -> -111.664 | V4: =IF($U$37<>0,U4/$U$37, "n.d.") -> 0.001363202306 | W4: =IF($U$53<>0,U4/$U$53, "n.d.") -> 0.001023337669 | X4: =+IF(INDEX($C4:$G4,1,aux!$AL$1)>0,(G4/INDEX($C4:$G4,1,aux!$AL$1))^(1/($G$3-INDEX($C$3:$G$3,1,aux!$AL$1)))-1,"n.d.") -> -0.1146434623 | Y4: =IF(INDEX($C4:$G4,1,aux!$AL$1)>0,(G4-INDEX($C4:$G4,1,aux!$AL$1))/INDEX($C4:$G4,1,aux!$AL$1),"n.d.") -> -0.3855694594 | AA4: =O4-INDEX($K4:$O4,1,aux!$AL$1) -> 50.268 | AB4: =IF($AA$37<>0,AA4/$AA$37, "n.d.") -> 0.0005234334779 | AC4: =IF($AA$53<>0,AA4/$AA$53, "n.d.") -> 0.0003427653211 | AD4: =+IF(INDEX($K4:$O4,1,aux!$AL$1)>0,(O4/INDEX($K4:$O4,1,aux!$AL$1))^(1/($O$3-INDEX($K$3:$O$3,1,aux!$AL$1)))-1,"n.d.") -> n.d. | AE4: =IF(INDEX($K4:$O4,1,aux!$AL$1)>0,(O4-INDEX($K4:$O4,1,aux!$AL$1))/INDEX($K4:$O4,1,aux!$AL$1),"n.d.") -> n.d.
A5: 02 | B5: Carnes e miudezas | C5: 23111.983 | D5: 14228.522 | E5: 2610.874 | F5: 3220.978 | G5: 5826.331 | H5: 9799.7376 | I5: 0.06213047442 | J5: 0.04957941049 | K5: 9534.551 | L5: 6346.28 | M5: 12779.792 | N5: 11052.159 | O5: 9565.78 | P5: 9855.7124 | Q5: 0.02596253836 | R5: 0.01368119937 | S5: 55.9748 | U5: =G5-INDEX($C5:$G5,1,aux!$AL$1) -> -17285.652 | V5: 0.211024508 | W5: 0.158413265 | X5: =+IF(INDEX($C5:$G5,1,aux!$AL$1)>0,(G5/INDEX($C5:$G5,1,aux!$AL$1))^(1/($G$3-INDEX($C$3:$G$3,1,aux!$AL$1)))-1,"n.d.") -> -0.2914190275 | Y5: =IF(INDEX($C5:$G5,1,aux!$AL$1)>0,(G5-INDEX($C5:$G5,1,aux!$AL$1))/INDEX($C5:$G5,1,aux!$AL$1),"n.d.") -> -0.7479086498 | AA5: =O5-INDEX($K5:$O5,1,aux!$AL$1) -> 31.229 | AB5: 0.0003251831002 | AC5: 0.0002129429898 | AD5: =+IF(INDEX($K5:$O5,1,aux!$AL$1)>0,(O5/INDEX($K5:$O5,1,aux!$AL$1))^(1/($O$3-INDEX($K$3:$O$3,1,aux!$AL$1)))-1,"n.d.") -> 0.0008178338942 | AE5: =IF(INDEX($K5:$O5,1,aux!$AL$1)>0,(O5-INDEX($K5:$O5,1,aux!$AL$1))/INDEX($K5:$O5,1,aux!$AL$1),"n.d.") -> 0.003275350879
A6: 04 | B6: Leite e laticínios; ovos; mel, etc. | C6: 8485.492 | D6: 7273.787 | E6: 701.738 | F6: 1259.665 | G6: 1780.627 | H6: 3900.2618 | I6: 0.02472771475 | J6: 0.01973243455 | K6: 4708.642 | L6: 4039.579 | M6: 2794.27 | N6: 3369.596 | O6: 3721.907 | P6: 3726.7988 | Q6: 0.009817368128 | R6: 0.005173352805 | S6: -173.463 | U6: =G6-INDEX($C6:$G6,1,aux!$AL$1) -> -6704.865 | V6: 0.0818534839 | W6: 0.06144631143 | X6: =+IF(INDEX($C6:$G6,1,aux!$AL$1)>0,(G6/INDEX($C6:$G6,1,aux!$AL$1))^(1/($G$3-INDEX($C$3:$G$3,1,aux!$AL$1)))-1,"n.d.") -> -0.3231787565 | Y6: =IF(INDEX($C6:$G6,1,aux!$AL$1)>0,(G6-INDEX($C6:$G6,1,aux!$AL$1))/INDEX($C6:$G6,1,aux!$AL$1),"n.d.") -> -0.7901563044 | AA6: =O6-INDEX($K6:$O6,1,aux!$AL$1) -> -986.735 | AB6: -0.0102747301 | AC6: -0.006728307056 | AD6: =+IF(INDEX($K6:$O6,1,aux!$AL$1)>0,(O6/INDEX($K6:$O6,1,aux!$AL$1))^(1/($O$3-INDEX($K$3:$O$3,1,aux!$AL$1)))-1,"n.d.") -> -0.0570960366 | AE6: =IF(INDEX($K6:$O6,1,aux!$AL$1)>0,(O6-INDEX($K6:$O6,1,aux!$AL$1))/INDEX($K6:$O6,1,aux!$AL$1),"n.d.") -> -0.2095582973
A7: 05a | B7: Outros produtos de origem animal (exc. NC 0508, 051191) (a) | C7: 1143.387 | D7: 482.649 | E7: 363.031 | F7: 517.123 | G7: 1418.24 | H7: 784.886 | I7: 0.004976188296 | J7: 0.003970941547 | K7: 562.497 | L7: 225.097 | M7: 266.231 | N7: 206.18 | O7: 186.371 | P7: 289.2752 | Q7: 0.0007620269516 | R7: 0.0004015571399 | S7: -495.6108 | U7: =G7-INDEX($C7:$G7,1,aux!$AL$1) -> 274.853 | V7: -0.003355425592 | W7: -0.002518872943 | X7: =+IF(INDEX($C7:$G7,1,aux!$AL$1)>0,(G7/INDEX($C7:$G7,1,aux!$AL$1))^(1/($G$3-INDEX($C$3:$G$3,1,aux!$AL$1)))-1,"n.d.") -> 0.05533203129 | Y7: =IF(INDEX($C7:$G7,1,aux!$AL$1)>0,(G7-INDEX($C7:$G7,1,aux!$AL$1))/INDEX($C7:$G7,1,aux!$AL$1),"n.d.") -> 0.2403849265 | AA7: =O7-INDEX($K7:$O7,1,aux!$AL$1) -> -376.126 | AB7: -0.003916546119 | AC7: -0.002564712126 | AD7: =+IF(INDEX($K7:$O7,1,aux!$AL$1)>0,(O7/INDEX($K7:$O7,1,aux!$AL$1))^(1/($O$3-INDEX($K$3:$O$3,1,aux!$AL$1)))-1,"n.d.") -> -0.2413097006 | AE7: =IF(INDEX($K7:$O7,1,aux!$AL$1)>0,(O7-INDEX($K7:$O7,1,aux!$AL$1))/INDEX($K7:$O7,1,aux!$AL$1),"n.d.") -> -0.6686720107
A8: 06 | B8: Plantas vivas e produtos de floricultura | C8: 290.396 | D8: 1314.971 | E8: 2585.499 | F8: 1165.322 | G8: 402.858 | H8: 1151.8092 | I8: 0.007302486552 | J8: 0.005827301043 | K8: 5111.593 | L8: 5468.799 | M8: 6246.782 | N8: 6008.947 | O8: 6395.97 | P8: 5846.4182 | Q8: 0.01540100305 | R8: 0.008115700797 | S8: 4694.609 | U8: =G8-INDEX($C8:$G8,1,aux!$AL$1) -> 112.462 | V8: -0.001372944348 | W8: -0.00103065089 | X8: =+IF(INDEX($C8:$G8,1,aux!$AL$1)>0,(G8/INDEX($C8:$G8,1,aux!$AL$1))^(1/($G$3-INDEX($C$3:$G$3,1,aux!$AL$1)))-1,"n.d.") -> 0.08527635372 | Y8: =IF(INDEX($C8:$G8,1,aux!$AL$1)>0,(G8-INDEX($C8:$G8,1,aux!$AL$1))/INDEX($C8:$G8,1,aux!$AL$1),"n.d.") -> 0.3872711745 | AA8: =O8-INDEX($K8:$O8,1,aux!$AL$1) -> 1284.377 | AB8: 0.01337403358 | AC8: 0.008757855789 | AD8: =+IF(INDEX($K8:$O8,1,aux!$AL$1)>0,(O8/INDEX($K8:$O8,1,aux!$AL$1))^(1/($O$3-INDEX($K$3:$O$3,1,aux!$AL$1)))-1,"n.d.") -> 0.05763919717 | AE8: =IF(INDEX($K8:$O8,1,aux!$AL$1)>0,(O8-INDEX($K8:$O8,1,aux!$AL$1))/INDEX($K8:$O8,1,aux!$AL$1),"n.d.") -> 0.251267462
A9: 07 | B9: Produtos hortícolas | C9: 5361.484 | D9: 5085.085 | E9: 1809.891 | F9: 199.139 | G9: 1039.031 | H9: 2698.926 | I9: 0.01711122886 | J9: 0.01365456561 | K9: 20595.002 | L9: 18876.508 | M9: 23919.842 | N9: 24332.778 | O9: 24490.308 | P9: 22442.8876 | Q9: 0.05912046806 | R9: 0.03115407666 | S9: 19743.9616 | U9: =G9-INDEX($C9:$G9,1,aux!$AL$1) -> -4322.453 | V9: 0.05276882339 | W9: 0.03961284727 | X9: =+IF(INDEX($C9:$G9,1,aux!$AL$1)>0,(G9/INDEX($C9:$G9,1,aux!$AL$1))^(1/($G$3-INDEX($C$3:$G$3,1,aux!$AL$1)))-1,"n.d.") -> -0.336507722 | Y9: =IF(INDEX($C9:$G9,1,aux!$AL$1)>0,(G9-INDEX($C9:$G9,1,aux!$AL$1))/INDEX($C9:$G9,1,aux!$AL$1),"n.d.") -> -0.8062045881 | AA9: =O9-INDEX($K9:$O9,1,aux!$AL$1) -> 3895.306 | AB9: 0.04056126297 | AC9: 0.02656114848 | AD9: =+IF(INDEX($K9:$O9,1,aux!$AL$1)>0,(O9/INDEX($K9:$O9,1,aux!$AL$1))^(1/($O$3-INDEX($K$3:$O$3,1,aux!$AL$1)))-1,"n.d.") -> 0.04425869991 | AE9: =IF(INDEX($K9:$O9,1,aux!$AL$1)>0,(O9-INDEX($K9:$O9,1,aux!$AL$1))/INDEX($K9:$O9,1,aux!$AL$1),"n.d.") -> 0.1891384133
A10: 08 | B10: Frutas | C10: 1828.274 | D10: 2202.643 | E10: 356.999 | F10: 534.984 | G10: 273.899 | H10: 1039.3598 | I10: 0.006589555772 | J10: 0.005258390406 | K10: 54053.71 | L10: 54275.807 | M10: 23942.511 | N10: 25792.421 | O10: 20096.661 | P10: 35632.222 | Q10: 0.09386464345 | R10: 0.04946284077 | S10: 34592.8622 | U10: =G10-INDEX($C10:$G10,1,aux!$AL$1) -> -1554.375 | V10: 0.01897592406 | W10: 0.01424497143 | X10: =+IF(INDEX($C10:$G10,1,aux!$AL$1)>0,(G10/INDEX($C10:$G10,1,aux!$AL$1))^(1/($G$3-INDEX($C$3:$G$3,1,aux!$AL$1)))-1,"n.d.") -> -0.3778611947 | Y10: =IF(INDEX($C10:$G10,1,aux!$AL$1)>0,(G10-INDEX($C10:$G10,1,aux!$AL$1))/INDEX($C10:$G10,1,aux!$AL$1),"n.d.") -> -0.8501871164 | AA10: =O10-INDEX($K10:$O10,1,aux!$AL$1) -> -33957.049 | AB10: -0.3535898834 | AC10: -0.2315448954 | AD10: =+IF(INDEX($K10:$O10,1,aux!$AL$1)>0,(O10/INDEX($K10:$O10,1,aux!$AL$1))^(1/($O$3-INDEX($K$3:$O$3,1,aux!$AL$1)))-1,"n.d.") -> -0.2191374407 | AE10: =IF(INDEX($K10:$O10,1,aux!$AL$1)>0,(O10-INDEX($K10:$O10,1,aux!$AL$1))/INDEX($K10:$O10,1,aux!$AL$1),"n.d.") -> -0.6282094051
A11: 09 | B11: Café, chá, mate e especiarias | C11: 4121.523 | D11: 2764.062 | E11: 2602.386 | F11: 1839.002 | G11: 1390.994 | H11: 2543.5934 | I11: 0.01612641798 | J11: 0.01286869776 | K11: 4873.466 | L11: 7670.142 | M11: 9243.47 | N11: 10601.133 | O11: 13178.817 | P11: 9113.4056 | Q11: 0.02400710703 | R11: 0.01265076677 | S11: 6569.8122 | U11: =G11-INDEX($C11:$G11,1,aux!$AL$1) -> -2730.529 | V11: 0.03333449839 | W11: 0.02502376041 | X11: =+IF(INDEX($C11:$G11,1,aux!$AL$1)>0,(G11/INDEX($C11:$G11,1,aux!$AL$1))^(1/($G$3-INDEX($C$3:$G$3,1,aux!$AL$1)))-1,"n.d.") -> -0.2378036192 | Y11: =IF(INDEX($C11:$G11,1,aux!$AL$1)>0,(G11-INDEX($C11:$G11,1,aux!$AL$1))/INDEX($C11:$G11,1,aux!$AL$1),"n.d.") -> -0.6625048556 | AA11: =O11-INDEX($K11:$O11,1,aux!$AL$1) -> 8305.351 | AB11: 0.08648242936 | AC11: 0.05663217757 | AD11: =+IF(INDEX($K11:$O11,1,aux!$AL$1)>0,(O11/INDEX($K11:$O11,1,aux!$AL$1))^(1/($O$3-INDEX($K$3:$O$3,1,aux!$AL$1)))-1,"n.d.") -> 0.2823589928 | AE11: =IF(INDEX($K11:$O11,1,aux!$AL$1)>0,(O11-INDEX($K11:$O11,1,aux!$AL$1))/INDEX($K11:$O11,1,aux!$AL$1),"n.d.") -> 1.704197998
A12: 10 | B12: Cereais | C12: 59172.006 | D12: 47083.173 | E12: 36047.419 | F12: 59310.949 | G12: 51975.049 | H12: 50717.7192 | I12: 0.3215510541 | J12: 0.2565940765 | K12: 5875.438 | L12: 7690.361 | M12: 5575.63 | N12: 5063.09 | O12: 14396.755 | P12: 7720.2548 | Q12: 0.02033718145 | R12: 0.01071686559 | S12: -42997.4644 | U12: =G12-INDEX($C12:$G12,1,aux!$AL$1) -> -7196.957 | V12: 0.08786097915 | W12: 0.06595605746 | X12: =+IF(INDEX($C12:$G12,1,aux!$AL$1)>0,(G12/INDEX($C12:$G12,1,aux!$AL$1))^(1/($G$3-INDEX($C$3:$G$3,1,aux!$AL$1)))-1,"n.d.") -> -0.03190126262 | Y12: =IF(INDEX($C12:$G12,1,aux!$AL$1)>0,(G12-INDEX($C12:$G12,1,aux!$AL$1))/INDEX($C12:$G12,1,aux!$AL$1),"n.d.") -> -0.1216277339 | AA12: =O12-INDEX($K12:$O12,1,aux!$AL$1) -> 8521.317 | AB12: 0.08873125235 | AC12: 0.05810479744 | AD12: =+IF(INDEX($K12:$O12,1,aux!$AL$1)>0,(O12/INDEX($K12:$O12,1,aux!$AL$1))^(1/($O$3-INDEX($K$3:$O$3,1,aux!$AL$1)))-1,"n.d.") -> 0.2511405257 | AE12: =IF(INDEX($K12:$O12,1,aux!$AL$1)>0,(O12-INDEX($K12:$O12,1,aux!$AL$1))/INDEX($K12:$O12,1,aux!$AL$1),"n.d.") -> 1.45032881
A13: 11 | B13: Produtos da indústria de moagem e outros | C13: 2645.87 | D13: 1785.277 | E13: 1951.265 | F13: 1434.53 | G13: 2664.782 | H13: 2096.3448 | I13: 0.01329085556 | J13: 0.01060595126 | K13: 847.784 | L13: 927.644 | M13: 1011.383 | N13: 1219.23 | O13: 3138.162 | P13: 1428.8406 | Q13: 0.003763941903 | R13: 0.001983443948 | S13: -667.5042 | U13: =G13-INDEX($C13:$G13,1,aux!$AL$1) -> 18.912 | V13: -0.0002308790837 | W13: -0.0001733178285 | X13: =+IF(INDEX($C13:$G13,1,aux!$AL$1)>0,(G13/INDEX($C13:$G13,1,aux!$AL$1))^(1/($G$3-INDEX($C$3:$G$3,1,aux!$AL$1)))-1,"n.d.") -> 0.00178216603 | Y13: =IF(INDEX($C13:$G13,1,aux!$AL$1)>0,(G13-INDEX($C13:$G13,1,aux!$AL$1))/INDEX($C13:$G13,1,aux!$AL$1),"n.d.") -> 0.007147743464 | AA13: =O13-INDEX($K13:$O13,1,aux!$AL$1) -> 2290.378 | AB13: 0.02384937778 | AC13: 0.01561753303 | AD13: =+IF(INDEX($K13:$O13,1,aux!$AL$1)>0,(O13/INDEX($K13:$O13,1,aux!$AL$1))^(1/($O$3-INDEX($K$3:$O$3,1,aux!$AL$1)))-1,"n.d.") -> 0.3870673077 | AE13: =IF(INDEX($K13:$O13,1,aux!$AL$1)>0,(O13-INDEX($K13:$O13,1,aux!$AL$1))/INDEX($K13:$O13,1,aux!$AL$1),"n.d.") -> 2.701605598
A14: 12 | B14: Sementes e frutos oleaginosos | C14: 2436.226 | D14: 3620.567 | E14: 82.385 | F14: 69.432 | G14: 131.049 | H14: 1267.9318 | I14: 0.008038705472 | J14: 0.00641479535 | K14: 120.704 | L14: 317.349 | M14: 238.846 | N14: 883.01 | O14: 1561.696 | P14: 624.321 | Q14: 0.0016446257 | R14: 0.000866650702 | S14: -643.6108 | U14: =G14-INDEX($C14:$G14,1,aux!$AL$1) -> -2305.177 | V14: 0.02814176996 | W14: 0.02112564889 | X14: =+IF(INDEX($C14:$G14,1,aux!$AL$1)>0,(G14/INDEX($C14:$G14,1,aux!$AL$1))^(1/($G$3-INDEX($C$3:$G$3,1,aux!$AL$1)))-1,"n.d.") -> -0.5184082546 | Y14: =IF(INDEX($C14:$G14,1,aux!$AL$1)>0,(G14-INDEX($C14:$G14,1,aux!$AL$1))/INDEX($C14:$G14,1,aux!$AL$1),"n.d.") -> -0.9462081925 | AA14: =O14-INDEX($K14:$O14,1,aux!$AL$1) -> 1440.992 | AB14: 0.01500484312 | AC14: 0.009825775554 | AD14: =+IF(INDEX($K14:$O14,1,aux!$AL$1)>0,(O14/INDEX($K14:$O14,1,aux!$AL$1))^(1/($O$3-INDEX($K$3:$O$3,1,aux!$AL$1)))-1,"n.d.") -> 0.8965692676 | AE14: =IF(INDEX($K14:$O14,1,aux!$AL$1)>0,(O14-INDEX($K14:$O14,1,aux!$AL$1))/INDEX($K14:$O14,1,aux!$AL$1),"n.d.") -> 11.93822906
A15: 13a | B15: Sucos e extratos vegetais (exc. NC 1301) (a) | C15: 326.073 | D15: 60.804 | E15: 229.139 | F15: 31.032 | G15: 22.63 | H15: 133.9356 | I15: 0.0008491535906 | J15: 0.0006776148876 | K15: 24.268 | L15: 17.413 | M15: 534.09 | N15: 254.897 | O15: 279.61 | P15: 222.0556 | Q15: 0.0005849528475 | R15: 0.0003082463054 | S15: 88.12 | U15: =G15-INDEX($C15:$G15,1,aux!$AL$1) -> -303.443 | V15: 0.00370445441 | W15: 0.002780884191 | X15: =+IF(INDEX($C15:$G15,1,aux!$AL$1)>0,(G15/INDEX($C15:$G15,1,aux!$AL$1))^(1/($G$3-INDEX($C$3:$G$3,1,aux!$AL$1)))-1,"n.d.") -> -0.4867340801 | Y15: =IF(INDEX($C15:$G15,1,aux!$AL$1)>0,(G15-INDEX($C15:$G15,1,aux!$AL$1))/INDEX($C15:$G15,1,aux!$AL$1),"n.d.") -> -0.9305983629 | AA15: =O15-INDEX($K15:$O15,1,aux!$AL$1) -> 255.342 | AB15: 0.002658839642 | AC15: 0.001741115274 | AD15: =+IF(INDEX($K15:$O15,1,aux!$AL$1)>0,(O15/INDEX($K15:$O15,1,aux!$AL$1))^(1/($O$3-INDEX($K$3:$O$3,1,aux!$AL$1)))-1,"n.d.") -> 0.8423819846 | AE15: =IF(INDEX($K15:$O15,1,aux!$AL$1)>0,(O15-INDEX($K15:$O15,1,aux!$AL$1))/INDEX($K15:$O15,1,aux!$AL$1),"n.d.") -> 10.52175705
A16: 14 | B16: Matérias para entrançar e outros | C16: 89.577 | D16: 21.244 | E16: 16.225 | F16: 9.385 | G16: 1.879 | H16: 27.662 | I16: 0.0001753774696 | J16: 0.000139949222 | K16: 0.001 | L16: 0.008 | M16: 0.071 | N16: 28.984 | O16: 0.23 | P16: 5.8588 | Q16: 1.543361997e-05 | R16: 8.132888583e-06 | S16: -21.8032 | U16: =G16-INDEX($C16:$G16,1,aux!$AL$1) -> -87.698 | V16: 0.001070623619 | W16: 0.000803702777 | X16: =+IF(INDEX($C16:$G16,1,aux!$AL$1)>0,(G16/INDEX($C16:$G16,1,aux!$AL$1))^(1/($G$3-INDEX($C$3:$G$3,1,aux!$AL$1)))-1,"n.d.") -> -0.6194317382 | Y16: =IF(INDEX($C16:$G16,1,aux!$AL$1)>0,(G16-INDEX($C16:$G16,1,aux!$AL$1))/INDEX($C16:$G16,1,aux!$AL$1),"n.d.") -> -0.9790236333 | AA16: =O16-INDEX($K16:$O16,1,aux!$AL$1) -> 0.229 | AB16: 2.384544172e-06 | AC16: 1.561495554e-06 | AD16: =+IF(INDEX($K16:$O16,1,aux!$AL$1)>0,(O16/INDEX($K16:$O16,1,aux!$AL$1))^(1/($O$3-INDEX($K$3:$O$3,1,aux!$AL$1)))-1,"n.d.") -> 2.894322905 | AE16: =IF(INDEX($K16:$O16,1,aux!$AL$1)>0,(O16-INDEX($K16:$O16,1,aux!$AL$1))/INDEX($K16:$O16,1,aux!$AL$1),"n.d.") -> 229
A17: 15 | B17: Gorduras e óleos animais ou vegetais | C17: 634.996 | D17: 568.286 | E17: 627.984 | F17: 399.246 | G17: 427.226 | H17: 531.5476 | I17: 0.003370019271 | J17: 0.002689236971 | K17: 6326.354 | L17: 2120.03 | M17: 4084.197 | N17: 8647.19 | O17: 2368.836 | P17: 4709.3214 | Q17: 0.01240559104 | R17: 0.006537240774 | S17: 4177.7738 | U17: =G17-INDEX($C17:$G17,1,aux!$AL$1) -> -207.77 | V17: 0.002536471406 | W17: 0.001904095031 | X17: =+IF(INDEX($C17:$G17,1,aux!$AL$1)>0,(G17/INDEX($C17:$G17,1,aux!$AL$1))^(1/($G$3-INDEX($C$3:$G$3,1,aux!$AL$1)))-1,"n.d.") -> -0.09432647731 | Y17: =IF(INDEX($C17:$G17,1,aux!$AL$1)>0,(G17-INDEX($C17:$G17,1,aux!$AL$1))/INDEX($C17:$G17,1,aux!$AL$1),"n.d.") -> -0.3271989115 | AA17: =O17-INDEX($K17:$O17,1,aux!$AL$1) -> -3957.518 | AB17: -0.04120906761 | AC17: -0.02698535704 | AD17: =+IF(INDEX($K17:$O17,1,aux!$AL$1)>0,(O17/INDEX($K17:$O17,1,aux!$AL$1))^(1/($O$3-INDEX($K$3:$O$3,1,aux!$AL$1)))-1,"n.d.") -> -0.2177503524 | AE17: =IF(INDEX($K17:$O17,1,aux!$AL$1)>0,(O17-INDEX($K17:$O17,1,aux!$AL$1))/INDEX($K17:$O17,1,aux!$AL$1),"n.d.") -> -0.625560631
A18: 16a | B18: Preparações de carnes (exc. NC 1604-05) (a) | C18: 7006.814 | D18: 8513.123 | E18: 1911.371 | F18: 7.102 | G18: 229.056 | H18: 3533.4932 | I18: 0.02240239666 | J18: 0.01787685722 | K18: 1727.477 | L18: 2834.049 | M18: 3170.776 | N18: 3280.29 | O18: 3700.834 | P18: 2942.6852 | Q18: 0.007751806696 | R18: 0.004084886131 | S18: -590.808 | U18: =G18-INDEX($C18:$G18,1,aux!$AL$1) -> -6777.758 | V18: 0.082743367 | W18: 0.06211433473 | X18: =+IF(INDEX($C18:$G18,1,aux!$AL$1)>0,(G18/INDEX($C18:$G18,1,aux!$AL$1))^(1/($G$3-INDEX($C$3:$G$3,1,aux!$AL$1)))-1,"n.d.") -> -0.5747882365 | Y18: =IF(INDEX($C18:$G18,1,aux!$AL$1)>0,(G18-INDEX($C18:$G18,1,aux!$AL$1))/INDEX($C18:$G18,1,aux!$AL$1),"n.d.") -> -0.9673095361 | AA18: =O18-INDEX($K18:$O18,1,aux!$AL$1) -> 1973.357 | AB18: 0.02054828355 | AC18: 0.01345584359 | AD18: =+IF(INDEX($K18:$O18,1,aux!$AL$1)>0,(O18/INDEX($K18:$O18,1,aux!$AL$1))^(1/($O$3-INDEX($K$3:$O$3,1,aux!$AL$1)))-1,"n.d.") -> 0.2098229896 | AE18: =IF(INDEX($K18:$O18,1,aux!$AL$1)>0,(O18-INDEX($K18:$O18,1,aux!$AL$1))/INDEX($K18:$O18,1,aux!$AL$1),"n.d.") -> 1.142334746
A19: 17 | B19: Açúcares e produtos de confeitaria | C19: 1590.843 | D19: 1551.849 | E19: 532.323 | F19: 709.687 | G19: 982.978 | H19: 1073.536 | I19: 0.006806233361 | J19: 0.005431296653 | K19: 1558.594 | L19: 1983.523 | M19: 7492.143 | N19: 1266.636 | O19: 1783.74 | P19: 2816.9272 | Q19: 0.007420527052 | R19: 0.003910315263 | S19: 1743.3912 | U19: =G19-INDEX($C19:$G19,1,aux!$AL$1) -> -607.865 | V19: 0.007420860523 | W19: 0.005570740365 | X19: =+IF(INDEX($C19:$G19,1,aux!$AL$1)>0,(G19/INDEX($C19:$G19,1,aux!$AL$1))^(1/($G$3-INDEX($C$3:$G$3,1,aux!$AL$1)))-1,"n.d.") -> -0.1133971578 | Y19: =IF(INDEX($C19:$G19,1,aux!$AL$1)>0,(G19-INDEX($C19:$G19,1,aux!$AL$1))/INDEX($C19:$G19,1,aux!$AL$1),"n.d.") -> -0.3821024451 | AA19: =O19-INDEX($K19:$O19,1,aux!$AL$1) -> 225.146 | AB19: 0.002344413022 | AC19: 0.001535216061 | AD19: =+IF(INDEX($K19:$O19,1,aux!$AL$1)>0,(O19/INDEX($K19:$O19,1,aux!$AL$1))^(1/($O$3-INDEX($K$3:$O$3,1,aux!$AL$1)))-1,"n.d.") -> 0.0343074142 | AE19: =IF(INDEX($K19:$O19,1,aux!$AL$1)>0,(O19-INDEX($K19:$O19,1,aux!$AL$1))/INDEX($K19:$O19,1,aux!$AL$1),"n.d.") -> 0.1444545533
A20: 18 | B20: Cacau e suas preparações | C20: 4251.596 | D20: 3004.146 | E20: 767.878 | F20: 711.951 | G20: 445.013 | H20: 1836.1168 | I20: 0.01164100637 | J20: 0.009289390416 | K20: 553.14 | L20: 868.825 | M20: 769.803 | N20: 675.428 | O20: 962.013 | P20: 765.8418 | Q20: 0.002017428705 | R20: 0.001063102689 | S20: -1070.275 | U20: =G20-INDEX($C20:$G20,1,aux!$AL$1) -> -3806.583 | V20: 0.04647104458 | W20: 0.03488518926 | X20: =+IF(INDEX($C20:$G20,1,aux!$AL$1)>0,(G20/INDEX($C20:$G20,1,aux!$AL$1))^(1/($G$3-INDEX($C$3:$G$3,1,aux!$AL$1)))-1,"n.d.") -> -0.4312057767 | Y20: =IF(INDEX($C20:$G20,1,aux!$AL$1)>0,(G20-INDEX($C20:$G20,1,aux!$AL$1))/INDEX($C20:$G20,1,aux!$AL$1),"n.d.") -> -0.8953303653 | AA20: =O20-INDEX($K20:$O20,1,aux!$AL$1) -> 408.873 | AB20: 0.004257535935 | AC20: 0.00278800599 | AD20: =+IF(INDEX($K20:$O20,1,aux!$AL$1)>0,(O20/INDEX($K20:$O20,1,aux!$AL$1))^(1/($O$3-INDEX($K$3:$O$3,1,aux!$AL$1)))-1,"n.d.") -> 0.1483822439 | AE20: =IF(INDEX($K20:$O20,1,aux!$AL$1)>0,(O20-INDEX($K20:$O20,1,aux!$AL$1))/INDEX($K20:$O20,1,aux!$AL$1),"n.d.") -> 0.739185378
A21: 19a | B21: Preparações à base de cereais (exc. NC 19022010) (a) | C21: 7728.809 | D21: 6892.117 | E21: 3667.711 | F21: 3185.744 | G21: 2932.81 | H21: 4881.4382 | I21: 0.03094838695 | J21: 0.02469646007 | K21: 29674.87 | L21: 39393.982 | M21: 40433.65 | N21: 49050.824 | O21: 49583.511 | P21: 41627.3674 | Q21: 0.1096574331 | R21: 0.05778499711 | S21: 36745.9292 | U21: =G21-INDEX($C21:$G21,1,aux!$AL$1) -> -4795.999 | V21: 0.05854990771 | W21: 0.04395262965 | X21: =+IF(INDEX($C21:$G21,1,aux!$AL$1)>0,(G21/INDEX($C21:$G21,1,aux!$AL$1))^(1/($G$3-INDEX($C$3:$G$3,1,aux!$AL$1)))-1,"n.d.") -> -0.2151388391 | Y21: =IF(INDEX($C21:$G21,1,aux!$AL$1)>0,(G21-INDEX($C21:$G21,1,aux!$AL$1))/INDEX($C21:$G21,1,aux!$AL$1),"n.d.") -> -0.6205353244 | AA21: =O21-INDEX($K21:$O21,1,aux!$AL$1) -> 19908.641 | AB21: 0.2073058247 | AC21: 0.1357522027 | AD21: =+IF(INDEX($K21:$O21,1,aux!$AL$1)>0,(O21/INDEX($K21:$O21,1,aux!$AL$1))^(1/($O$3-INDEX($K$3:$O$3,1,aux!$AL$1)))-1,"n.d.") -> 0.1369388652 | AE21: =IF(INDEX($K21:$O21,1,aux!$AL$1)>0,(O21-INDEX($K21:$O21,1,aux!$AL$1))/INDEX($K21:$O21,1,aux!$AL$1),"n.d.") -> 0.6708922735
A22: 20 | B22: Preparações de produtos vegetais | C22: 3973.029 | D22: 2299.901 | E22: 1120.939 | F22: 894.155 | G22: 622.445 | H22: 1782.0938 | I22: 0.01129849979 | J22: 0.009016074068 | K22: 62776.998 | L22: 74939.117 | M22: 73163.016 | N22: 87430.781 | O22: 95514.732 | P22: 78764.9288 | Q22: 0.2074875364 | R22: 0.1093374736 | S22: 76982.835 | U22: =G22-INDEX($C22:$G22,1,aux!$AL$1) -> -3350.584 | V22: 0.04090417533 | W22: 0.03070621526 | X22: =+IF(INDEX($C22:$G22,1,aux!$AL$1)>0,(G22/INDEX($C22:$G22,1,aux!$AL$1))^(1/($G$3-INDEX($C$3:$G$3,1,aux!$AL$1)))-1,"n.d.") -> -0.3708636015 | Y22: =IF(INDEX($C22:$G22,1,aux!$AL$1)>0,(G22-INDEX($C22:$G22,1,aux!$AL$1))/INDEX($C22:$G22,1,aux!$AL$1),"n.d.") -> -0.8433323794 | AA22: =O22-INDEX($K22:$O22,1,aux!$AL$1) -> 32737.734 | AB22: 0.3408933311 | AC22: 0.2232306817 | AD22: =+IF(INDEX($K22:$O22,1,aux!$AL$1)>0,(O22/INDEX($K22:$O22,1,aux!$AL$1))^(1/($O$3-INDEX($K$3:$O$3,1,aux!$AL$1)))-1,"n.d.") -> 0.1106250236 | AE22: =IF(INDEX($K22:$O22,1,aux!$AL$1)>0,(O22-INDEX($K22:$O22,1,aux!$AL$1))/INDEX($K22:$O22,1,aux!$AL$1),"n.d.") -> 0.5214925059
A23: 21 | B23: Preparações alimentícias diversas | C23: 28212.176 | D23: 28483.671 | E23: 16414.385 | F23: 14866.388 | G23: 16803.928 | H23: 20956.1096 | I23: 0.13286203 | J23: 0.1060223858 | K23: 28082.8 | L23: 35053.372 | M23: 45810.377 | N23: 52435.527 | O23: 73352.863 | P23: 46946.9878 | Q23: 0.1236707122 | R23: 0.06516942396 | S23: 25990.8782 | U23: =G23-INDEX($C23:$G23,1,aux!$AL$1) -> -11408.248 | V23: 0.1392727287 | W23: 0.1045501676 | X23: =+IF(INDEX($C23:$G23,1,aux!$AL$1)>0,(G23/INDEX($C23:$G23,1,aux!$AL$1))^(1/($G$3-INDEX($C$3:$G$3,1,aux!$AL$1)))-1,"n.d.") -> -0.121496377 | Y23: =IF(INDEX($C23:$G23,1,aux!$AL$1)>0,(G23-INDEX($C23:$G23,1,aux!$AL$1))/INDEX($C23:$G23,1,aux!$AL$1),"n.d.") -> -0.404373204 | AA23: =O23-INDEX($K23:$O23,1,aux!$AL$1) -> 45270.063 | AB23: 0.4713906764 | AC23: 0.3086855988 | AD23: =+IF(INDEX($K23:$O23,1,aux!$AL$1)>0,(O23/INDEX($K23:$O23,1,aux!$AL$1))^(1/($O$3-INDEX($K$3:$O$3,1,aux!$AL$1)))-1,"n.d.") -> 0.271288638 | AE23: =IF(INDEX($K23:$O23,1,aux!$AL$1)>0,(O23-INDEX($K23:$O23,1,aux!$AL$1))/INDEX($K23:$O23,1,aux!$AL$1),"n.d.") -> 1.612020988
A24: 22 | B24: Bebidas, líquidos alcoólicos e vinagres | C24: 46899.832 | D24: 27920.351 | E24: 38282.612 | F24: 45994.45 | G24: 42195.283 | H24: 40258.5056 | I24: 0.2552394926 | J24: 0.2036782061 | K24: 86334.089 | L24: 103839.157 | M24: 107376.355 | N24: 95376.672 | O24: 99620.462 | P24: 98509.347 | Q24: 0.2594995264 | R24: 0.1367456721 | S24: 58250.8414 | U24: =G24-INDEX($C24:$G24,1,aux!$AL$1) -> -4704.549 | V24: 0.0574334794 | W24: 0.04311454191 | X24: =+IF(INDEX($C24:$G24,1,aux!$AL$1)>0,(G24/INDEX($C24:$G24,1,aux!$AL$1))^(1/($G$3-INDEX($C$3:$G$3,1,aux!$AL$1)))-1,"n.d.") -> -0.0260802919 | Y24: =IF(INDEX($C24:$G24,1,aux!$AL$1)>0,(G24-INDEX($C24:$G24,1,aux!$AL$1))/INDEX($C24:$G24,1,aux!$AL$1),"n.d.") -> -0.1003105725 | AA24: =O24-INDEX($K24:$O24,1,aux!$AL$1) -> 13286.373 | AB24: 0.1383490974 | AC24: 0.09059656058 | AD24: =+IF(INDEX($K24:$O24,1,aux!$AL$1)>0,(O24/INDEX($K24:$O24,1,aux!$AL$1))^(1/($O$3-INDEX($K$3:$O$3,1,aux!$AL$1)))-1,"n.d.") -> 0.03643378215 | AE24: =IF(INDEX($K24:$O24,1,aux!$AL$1)>0,(O24-INDEX($K24:$O24,1,aux!$AL$1))/INDEX($K24:$O24,1,aux!$AL$1),"n.d.") -> 0.1538948653
A25: 23a | B25: Resíduos indústrias alimentares; alimentos p/ animais (exc. NC 230120) (a) | C25: 3069.848 | D25: 2408.82 | E25: 2796.822 | F25: 4839.214 | G25: 3490.842 | H25: 3321.1092 | I25: 0.02105587911 | J25: 0.01680235156 | K25: 3534.839 | L25: 2808.335 | M25: 3626.617 | N25: 4828.513 | O25: 1277.948 | P25: 3215.2504 | Q25: 0.008469815113 | R25: 0.004463247298 | S25: -105.8588 | U25: =G25-INDEX($C25:$G25,1,aux!$AL$1) -> 420.994 | V25: -0.005139525643 | W25: -0.003858172899 | X25: =+IF(INDEX($C25:$G25,1,aux!$AL$1)>0,(G25/INDEX($C25:$G25,1,aux!$AL$1))^(1/($G$3-INDEX($C$3:$G$3,1,aux!$AL$1)))-1,"n.d.") -> 0.03265042955 | Y25: =IF(INDEX($C25:$G25,1,aux!$AL$1)>0,(G25-INDEX($C25:$G25,1,aux!$AL$1))/INDEX($C25:$G25,1,aux!$AL$1),"n.d.") -> 0.137138386 | AA25: =O25-INDEX($K25:$O25,1,aux!$AL$1) -> -2256.891 | AB25: -0.02350068245 | AC25: -0.01538919329 | AD25: =+IF(INDEX($K25:$O25,1,aux!$AL$1)>0,(O25/INDEX($K25:$O25,1,aux!$AL$1))^(1/($O$3-INDEX($K$3:$O$3,1,aux!$AL$1)))-1,"n.d.") -> -0.2245819857 | AE25: =IF(INDEX($K25:$O25,1,aux!$AL$1)>0,(O25-INDEX($K25:$O25,1,aux!$AL$1))/INDEX($K25:$O25,1,aux!$AL$1),"n.d.") -> -0.638470663
A26: 24 | B26: Tabaco | C26: 1602.468 | D26: 1469.539 | E26: 0 | F26: 28.256 | G26: 70.519 | H26: 634.1564 | I26: 0.004020560508 | J26: 0.003208361464 | K26: 1054.82 | L26: 184.14 | M26: 0.289 | N26: 0 | O26: 0.016 | P26: 247.853 | Q26: 0.0006529099834 | R26: 0.0003440569458 | S26: -386.3034 | U26: =G26-INDEX($C26:$G26,1,aux!$AL$1) -> -1531.949 | V26: 0.0187021458 | W26: 0.01403944977 | X26: =+IF(INDEX($C26:$G26,1,aux!$AL$1)>0,(G26/INDEX($C26:$G26,1,aux!$AL$1))^(1/($G$3-INDEX($C$3:$G$3,1,aux!$AL$1)))-1,"n.d.") -> -0.5419855342 | Y26: =IF(INDEX($C26:$G26,1,aux!$AL$1)>0,(G26-INDEX($C26:$G26,1,aux!$AL$1))/INDEX($C26:$G26,1,aux!$AL$1),"n.d.") -> -0.955993505 | AA26: =O26-INDEX($K26:$O26,1,aux!$AL$1) -> -1054.804 | AB26: -0.01098352284 | AC26: -0.007192453086 | AD26: =+IF(INDEX($K26:$O26,1,aux!$AL$1)>0,(O26/INDEX($K26:$O26,1,aux!$AL$1))^(1/($O$3-INDEX($K$3:$O$3,1,aux!$AL$1)))-1,"n.d.") -> -0.9375926981 | AE26: =IF(INDEX($K26:$O26,1,aux!$AL$1)>0,(O26-INDEX($K26:$O26,1,aux!$AL$1))/INDEX($K26:$O26,1,aux!$AL$1),"n.d.") -> -0.9999848315
A27: 29 | B27: Manitol e sorbitol (NC 290543; 290544) | C27: 3.788 | D27: 0.51 | E27: 0.044 | F27: 2.442 | G27: 0.367 | H27: 1.4302 | I27: 9.067488145e-06 | J27: 7.235752199e-06 | K27: 0 | L27: 0 | M27: 0 | N27: 0 | O27: 0 | P27: 0 | Q27: 0 | R27: 0 | S27: -1.4302 | U27: =G27-INDEX($C27:$G27,1,aux!$AL$1) -> -3.421 | V27: 4.176381902e-05 | W27: 3.135153824e-05 | X27: =+IF(INDEX($C27:$G27,1,aux!$AL$1)>0,(G27/INDEX($C27:$G27,1,aux!$AL$1))^(1/($G$3-INDEX($C$3:$G$3,1,aux!$AL$1)))-1,"n.d.") -> -0.4420901571 | Y27: =IF(INDEX($C27:$G27,1,aux!$AL$1)>0,(G27-INDEX($C27:$G27,1,aux!$AL$1))/INDEX($C27:$G27,1,aux!$AL$1),"n.d.") -> -0.9031151003 | AA27: =O27-INDEX($K27:$O27,1,aux!$AL$1) -> 0 | AB27: 0 | AC27: 0 | AD27: =+IF(INDEX($K27:$O27,1,aux!$AL$1)>0,(O27/INDEX($K27:$O27,1,aux!$AL$1))^(1/($O$3-INDEX($K$3:$O$3,1,aux!$AL$1)))-1,"n.d.") -> n.d. | AE27: =IF(INDEX($K27:$O27,1,aux!$AL$1)>0,(O27-INDEX($K27:$O27,1,aux!$AL$1))/INDEX($K27:$O27,1,aux!$AL$1),"n.d.") -> n.d.
A28: 33 | B28: Óleos essenciais e resinóides (NC 3301) | C28: 2179.63 | D28: 1010.704 | E28: 512.088 | F28: 408.797 | G28: 299.954 | H28: 882.2346 | I28: 0.005593379791 | J28: 0.004463453326 | K28: 11.444 | L28: 12.107 | M28: 12.191 | N28: 42.636 | O28: 14.819 | P28: 18.6394 | Q28: 4.910108147e-05 | R28: 2.587426836e-05 | S28: -863.5952 | U28: =G28-INDEX($C28:$G28,1,aux!$AL$1) -> -1879.676 | V28: 0.02294722253 | W28: 0.01722617188 | X28: =+IF(INDEX($C28:$G28,1,aux!$AL$1)>0,(G28/INDEX($C28:$G28,1,aux!$AL$1))^(1/($G$3-INDEX($C$3:$G$3,1,aux!$AL$1)))-1,"n.d.") -> -0.3909289319 | Y28: =IF(INDEX($C28:$G28,1,aux!$AL$1)>0,(G28-INDEX($C28:$G28,1,aux!$AL$1))/INDEX($C28:$G28,1,aux!$AL$1),"n.d.") -> -0.862383065 | AA28: =O28-INDEX($K28:$O28,1,aux!$AL$1) -> 3.375 | AB28: 3.514339118e-05 | AC28: 2.301330784e-05 | AD28: =+IF(INDEX($K28:$O28,1,aux!$AL$1)>0,(O28/INDEX($K28:$O28,1,aux!$AL$1))^(1/($O$3-INDEX($K$3:$O$3,1,aux!$AL$1)))-1,"n.d.") -> 0.0667441312 | AE28: =IF(INDEX($K28:$O28,1,aux!$AL$1)>0,(O28-INDEX($K28:$O28,1,aux!$AL$1))/INDEX($K28:$O28,1,aux!$AL$1),"n.d.") -> 0.2949143656
A29: 35 | B29: Caseínas, albuminas, gelatinas, peptonas, dextrinas (NC 3501 a 3505) | C29: 402.015 | D29: 412.852 | E29: 25.362 | F29: 24.567 | G29: 23.068 | H29: 177.5728 | I29: 0.001125814053 | J29: 0.0008983867837 | K29: 83.739 | L29: 184.399 | M29: 1181.833 | N29: 859.007 | O29: 145.789 | P29: 490.9534 | Q29: 0.001293300369 | R29: 0.0006815165737 | S29: 313.3806 | U29: =G29-INDEX($C29:$G29,1,aux!$AL$1) -> -378.947 | V29: 0.004626212782 | W29: 0.003472835826 | X29: =+IF(INDEX($C29:$G29,1,aux!$AL$1)>0,(G29/INDEX($C29:$G29,1,aux!$AL$1))^(1/($G$3-INDEX($C$3:$G$3,1,aux!$AL$1)))-1,"n.d.") -> -0.5105684955 | Y29: =IF(INDEX($C29:$G29,1,aux!$AL$1)>0,(G29-INDEX($C29:$G29,1,aux!$AL$1))/INDEX($C29:$G29,1,aux!$AL$1),"n.d.") -> -0.9426190565 | AA29: =O29-INDEX($K29:$O29,1,aux!$AL$1) -> 62.05 | AB29: 0.0006461177549 | AC29: 0.0004231039264 | AD29: =+IF(INDEX($K29:$O29,1,aux!$AL$1)>0,(O29/INDEX($K29:$O29,1,aux!$AL$1))^(1/($O$3-INDEX($K$3:$O$3,1,aux!$AL$1)))-1,"n.d.") -> 0.1486804951 | AE29: =IF(INDEX($K29:$O29,1,aux!$AL$1)>0,(O29-INDEX($K29:$O29,1,aux!$AL$1))/INDEX($K29:$O29,1,aux!$AL$1),"n.d.") -> 0.7409928468
A30: 38a | B30: Agentes de acabamento, ácidos gordos, sorbitol (NC 380910, 382311-12-13-19-70, 382460) (a) | C30: 208.321 | D30: 371.66 | E30: 1.443 | F30: 5.823 | G30: 37.484 | H30: 124.9462 | I30: 0.0007921606679 | J30: 0.0006321351849 | K30: 451.494 | L30: 30.666 | M30: 0 | N30: 0.004 | O30: 0 | P30: 96.4328 | Q30: 0.0002540293555 | R30: 0.000133863115 | S30: -28.5134 | U30: =G30-INDEX($C30:$G30,1,aux!$AL$1) -> -170.837 | V30: 0.002085590632 | W30: 0.001565624887 | X30: =+IF(INDEX($C30:$G30,1,aux!$AL$1)>0,(G30/INDEX($C30:$G30,1,aux!$AL$1))^(1/($G$3-INDEX($C$3:$G$3,1,aux!$AL$1)))-1,"n.d.") -> -0.3487042872 | Y30: =IF(INDEX($C30:$G30,1,aux!$AL$1)>0,(G30-INDEX($C30:$G30,1,aux!$AL$1))/INDEX($C30:$G30,1,aux!$AL$1),"n.d.") -> -0.8200661479 | AA30: =O30-INDEX($K30:$O30,1,aux!$AL$1) -> -451.494 | AB30: -0.004701342298 | AC30: -0.00307862827 | AD30: =+IF(INDEX($K30:$O30,1,aux!$AL$1)>0,(O30/INDEX($K30:$O30,1,aux!$AL$1))^(1/($O$3-INDEX($K$3:$O$3,1,aux!$AL$1)))-1,"n.d.") -> -1 | AE30: =IF(INDEX($K30:$O30,1,aux!$AL$1)>0,(O30-INDEX($K30:$O30,1,aux!$AL$1))/INDEX($K30:$O30,1,aux!$AL$1),"n.d.") -> -1
A31: 41 | B31: Couro e peles em bruto (NC 4101 a 4103) | C31: 18.439 | D31: 47.271 | E31: 6.9 | F31: 25.875 | G31: 0.176 | H31: 19.7322 | I31: 0.0001251024259 | J31: 9.983031013e-05 | K31: 0 | L31: 0 | M31: 0.997 | N31: 0.774 | O31: 21.331 | P31: 4.6204 | Q31: 1.217134869e-05 | R31: 6.413804603e-06 | S31: -15.1118 | U31: =G31-INDEX($C31:$G31,1,aux!$AL$1) -> -18.263 | V31: 0.0002229560441 | W31: 0.000167370109 | X31: =+IF(INDEX($C31:$G31,1,aux!$AL$1)>0,(G31/INDEX($C31:$G31,1,aux!$AL$1))^(1/($G$3-INDEX($C$3:$G$3,1,aux!$AL$1)))-1,"n.d.") -> -0.6874324952 | Y31: =IF(INDEX($C31:$G31,1,aux!$AL$1)>0,(G31-INDEX($C31:$G31,1,aux!$AL$1))/INDEX($C31:$G31,1,aux!$AL$1),"n.d.") -> -0.9904550138 | AA31: =O31-INDEX($K31:$O31,1,aux!$AL$1) -> 21.331 | AB31: 0.0002221166451 | AC31: 0.0001454509243 | AD31: =+IF(INDEX($K31:$O31,1,aux!$AL$1)>0,(O31/INDEX($K31:$O31,1,aux!$AL$1))^(1/($O$3-INDEX($K$3:$O$3,1,aux!$AL$1)))-1,"n.d.") -> n.d. | AE31: =IF(INDEX($K31:$O31,1,aux!$AL$1)>0,(O31-INDEX($K31:$O31,1,aux!$AL$1))/INDEX($K31:$O31,1,aux!$AL$1),"n.d.") -> n.d.
A32: 43 | B32: Peles com pelo em bruto (NC 4301) | C32: 0 | D32: 0 | E32: 0 | F32: 0.889 | G32: 0.083 | H32: 0.1944 | I32: 1.232498738e-06 | J32: 9.835199465e-07 | K32: 0 | L32: 0 | M32: 0 | N32: 0 | O32: 0 | P32: 0 | Q32: 0 | R32: 0 | S32: -0.1944 | U32: =G32-INDEX($C32:$G32,1,aux!$AL$1) -> 0.083 | V32: -1.01327009e-06 | W32: -7.60648253e-07 | X32: =+IF(INDEX($C32:$G32,1,aux!$AL$1)>0,(G32/INDEX($C32:$G32,1,aux!$AL$1))^(1/($G$3-INDEX($C$3:$G$3,1,aux!$AL$1)))-1,"n.d.") -> n.d. | Y32: =IF(INDEX($C32:$G32,1,aux!$AL$1)>0,(G32-INDEX($C32:$G32,1,aux!$AL$1))/INDEX($C32:$G32,1,aux!$AL$1),"n.d.") -> n.d. | AA32: =O32-INDEX($K32:$O32,1,aux!$AL$1) -> 0 | AB32: 0 | AC32: 0 | AD32: =+IF(INDEX($K32:$O32,1,aux!$AL$1)>0,(O32/INDEX($K32:$O32,1,aux!$AL$1))^(1/($O$3-INDEX($K$3:$O$3,1,aux!$AL$1)))-1,"n.d.") -> n.d. | AE32: =IF(INDEX($K32:$O32,1,aux!$AL$1)>0,(O32-INDEX($K32:$O32,1,aux!$AL$1))/INDEX($K32:$O32,1,aux!$AL$1),"n.d.") -> n.d.
A33: 50 | B33: Seda crua (NC 5001-5003) | C33: 61.824 | D33: 36.897 | E33: 0.024 | F33: 0.043 | G33: 6.267 | H33: 21.011 | I33: 0.000133210036 | J33: 0.0001063000905 | K33: 0 | L33: 0 | M33: 0.25 | N33: 0 | O33: 0 | P33: 0.05 | Q33: 1.317131492e-07 | R33: 6.940746043e-08 | S33: -20.961 | U33: =G33-INDEX($C33:$G33,1,aux!$AL$1) -> -55.557 | V33: 0.0006782439326 | W33: 0.0005091486144 | X33: =+IF(INDEX($C33:$G33,1,aux!$AL$1)>0,(G33/INDEX($C33:$G33,1,aux!$AL$1))^(1/($G$3-INDEX($C$3:$G$3,1,aux!$AL$1)))-1,"n.d.") -> -0.435744698 | Y33: =IF(INDEX($C33:$G33,1,aux!$AL$1)>0,(G33-INDEX($C33:$G33,1,aux!$AL$1))/INDEX($C33:$G33,1,aux!$AL$1),"n.d.") -> -0.8986315994 | AA33: =O33-INDEX($K33:$O33,1,aux!$AL$1) -> 0 | AB33: 0 | AC33: 0 | AD33: =+IF(INDEX($K33:$O33,1,aux!$AL$1)>0,(O33/INDEX($K33:$O33,1,aux!$AL$1))^(1/($O$3-INDEX($K$3:$O$3,1,aux!$AL$1)))-1,"n.d.") -> n.d. | AE33: =IF(INDEX($K33:$O33,1,aux!$AL$1)>0,(O33-INDEX($K33:$O33,1,aux!$AL$1))/INDEX($K33:$O33,1,aux!$AL$1),"n.d.") -> n.d.
A34: 51 | B34: Lã não cardada (NC 5101-5103) | C34: 1213.717 | D34: 1215.655 | E34: 845.886 | F34: 1312.103 | G34: 1273.305 | H34: 1172.1332 | I34: 0.007431340998 | J34: 0.005930125423 | K34: 700.173 | L34: 176.414 | M34: 32.902 | N34: 6.845 | O34: 74.09 | P34: 198.0848 | Q34: 0.0005218074563 | R34: 0.0002749712583 | S34: -974.0484 | U34: =G34-INDEX($C34:$G34,1,aux!$AL$1) -> 59.588 | V34: -0.0007274546764 | W34: -0.0005460904591 | X34: =+IF(INDEX($C34:$G34,1,aux!$AL$1)>0,(G34/INDEX($C34:$G34,1,aux!$AL$1))^(1/($G$3-INDEX($C$3:$G$3,1,aux!$AL$1)))-1,"n.d.") -> 0.01205415538 | Y34: =IF(INDEX($C34:$G34,1,aux!$AL$1)>0,(G34-INDEX($C34:$G34,1,aux!$AL$1))/INDEX($C34:$G34,1,aux!$AL$1),"n.d.") -> 0.04909546459 | AA34: =O34-INDEX($K34:$O34,1,aux!$AL$1) -> -626.083 | AB34: -0.006519312527 | AC34: -0.004269108389 | AD34: =+IF(INDEX($K34:$O34,1,aux!$AL$1)>0,(O34/INDEX($K34:$O34,1,aux!$AL$1))^(1/($O$3-INDEX($K$3:$O$3,1,aux!$AL$1)))-1,"n.d.") -> -0.4296537915 | AE34: =IF(INDEX($K34:$O34,1,aux!$AL$1)>0,(O34-INDEX($K34:$O34,1,aux!$AL$1))/INDEX($K34:$O34,1,aux!$AL$1),"n.d.") -> -0.8941832947
A35: 52 | B35: Algodão (NC 5201-5203) | C35: 549.63 | D35: 43.859 | E35: 144.071 | F35: 11.838 | G35: 50.531 | H35: 159.9858 | I35: 0.001014312225 | J35: 0.000809409596 | K35: 614.021 | L35: 775.287 | M35: 2656.246 | N35: 2125.86 | O35: 344 | P35: 1303.0828 | Q35: 0.003432662785 | R35: 0.001808873358 | S35: 1143.097 | U35: =G35-INDEX($C35:$G35,1,aux!$AL$1) -> -499.099 | V35: 0.006093037214 | W35: 0.004573961234 | X35: =+IF(INDEX($C35:$G35,1,aux!$AL$1)>0,(G35/INDEX($C35:$G35,1,aux!$AL$1))^(1/($G$3-INDEX($C$3:$G$3,1,aux!$AL$1)))-1,"n.d.") -> -0.4493547898 | Y35: =IF(INDEX($C35:$G35,1,aux!$AL$1)>0,(G35-INDEX($C35:$G35,1,aux!$AL$1))/INDEX($C35:$G35,1,aux!$AL$1),"n.d.") -> -0.9080636064 | AA35: =O35-INDEX($K35:$O35,1,aux!$AL$1) -> -270.021 | AB35: -0.002811689964 | AC35: -0.001841207821 | AD35: =+IF(INDEX($K35:$O35,1,aux!$AL$1)>0,(O35/INDEX($K35:$O35,1,aux!$AL$1))^(1/($O$3-INDEX($K$3:$O$3,1,aux!$AL$1)))-1,"n.d.") -> -0.1348452342 | AE35: =IF(INDEX($K35:$O35,1,aux!$AL$1)>0,(O35-INDEX($K35:$O35,1,aux!$AL$1))/INDEX($K35:$O35,1,aux!$AL$1),"n.d.") -> -0.439758575
A36: 53 | B36: Linho e cânhamo em bruto (NC 5301-5302) | C36: 0 | D36: 0.268 | E36: 0.624 | F36: 1.954 | G36: 0.019 | H36: 0.573 | I36: 3.632828071e-06 | J36: 2.898955398e-06 | K36: 0.009 | L36: 0 | M36: 0.025 | N36: 0 | O36: 0.124 | P36: 0.0316 | Q36: 8.32427103e-08 | R36: 4.386551499e-08 | S36: -0.5414 | U36: =G36-INDEX($C36:$G36,1,aux!$AL$1) -> 0.019 | V36: -2.319533942e-07 | W36: =IF($U$53<>0,U36/$U$53, "n.d.") -> -1.741242989e-07 | X36: =+IF(INDEX($C36:$G36,1,aux!$AL$1)>0,(G36/INDEX($C36:$G36,1,aux!$AL$1))^(1/($G$3-INDEX($C$3:$G$3,1,aux!$AL$1)))-1,"n.d.") -> n.d. | Y36: =IF(INDEX($C36:$G36,1,aux!$AL$1)>0,(G36-INDEX($C36:$G36,1,aux!$AL$1))/INDEX($C36:$G36,1,aux!$AL$1),"n.d.") -> n.d. | AA36: =O36-INDEX($K36:$O36,1,aux!$AL$1) -> 0.115 | AB36: 1.197478514e-06 | AC36: =IF($AA$53<>0,AA36/$AA$53, "n.d.") -> 7.841571561e-07 | AD36: =+IF(INDEX($K36:$O36,1,aux!$AL$1)>0,(O36/INDEX($K36:$O36,1,aux!$AL$1))^(1/($O$3-INDEX($K$3:$O$3,1,aux!$AL$1)))-1,"n.d.") -> 0.9266143643 | AE36: =IF(INDEX($K36:$O36,1,aux!$AL$1)>0,(O36-INDEX($K36:$O36,1,aux!$AL$1))/INDEX($K36:$O36,1,aux!$AL$1),"n.d.") -> 12.77777778
A37: Subtotal Agrícola e Agroalimentar | C37: 218909.674 | D37: 172409.615 | E37: 117170.268 | F37: 143155.557 | G37: 136996.667 | H37: 157728.3562 | I37: 1 | J37: 0.7979886032 | K37: 329792.517 | L37: 371115.789 | M37: 376405.88 | N37: 394922.271 | O37: 425827.643 | P37: 379612.82 | Q37: 1 | R37: 0.5269592356 | S37: 221884.4638 | U37: =G37-INDEX($C37:$G37,1,aux!$AL$1) -> -81913.007 | V37: 1 | W37: 0.7506865744 | X37: =+IF(INDEX($C37:$G37,1,aux!$AL$1)>0,(G37/INDEX($C37:$G37,1,aux!$AL$1))^(1/($G$3-INDEX($C$3:$G$3,1,aux!$AL$1)))-1,"n.d.") -> -0.1105710488 | Y37: =IF(INDEX($C37:$G37,1,aux!$AL$1)>0,(G37-INDEX($C37:$G37,1,aux!$AL$1))/INDEX($C37:$G37,1,aux!$AL$1),"n.d.") -> -0.3741863276 | AA37: =O37-INDEX($K37:$O37,1,aux!$AL$1) -> 96035.126 | AB37: 1 | AC37: 0.6548402721 | AD37: =+IF(INDEX($K37:$O37,1,aux!$AL$1)>0,(O37/INDEX($K37:$O37,1,aux!$AL$1))^(1/($O$3-INDEX($K$3:$O$3,1,aux!$AL$1)))-1,"n.d.") -> 0.0659780532 | AE37: =IF(INDEX($K37:$O37,1,aux!$AL$1)>0,(O37-INDEX($K37:$O37,1,aux!$AL$1))/INDEX($K37:$O37,1,aux!$AL$1),"n.d.") -> 0.2911986205
A38: 03 | B38: Peixes e crustáceos | C38: 23245.701 | D38: 19515.605 | E38: 5793.738 | F38: 7265.486 | G38: 9388.054 | H38: 13041.7168 | I38: 0.7521644229 | J38: 0.06598142289 | K38: 5722.256 | L38: 8904.791 | M38: 5195.761 | N38: 6382.389 | O38: 6321.307 | P38: 6505.3008 | Q38: 0.2646863601 | R38: 0.009030328157 | S38: -6536.416 | U38: =G38-INDEX($C38:$G38,1,aux!$AL$1) -> -13857.647 | V38: =IF($U$44<>0,U38/$U$44, "n.d.") -> 1.090434136 | W38: 0.1269975299 | X38: =+IF(INDEX($C38:$G38,1,aux!$AL$1)>0,(G38/INDEX($C38:$G38,1,aux!$AL$1))^(1/($G$3-INDEX($C$3:$G$3,1,aux!$AL$1)))-1,"n.d.") -> -0.2028166253 | Y38: =IF(INDEX($C38:$G38,1,aux!$AL$1)>0,(G38-INDEX($C38:$G38,1,aux!$AL$1))/INDEX($C38:$G38,1,aux!$AL$1),"n.d.") -> -0.5961380558 | AA38: =O38-INDEX($K38:$O38,1,aux!$AL$1) -> 599.051 | AB38: =IF($AA$44<>0,AA38/$AA$44, "n.d.") -> -0.07652639597 | AC38: 0.004084783726 | AD38: =+IF(INDEX($K38:$O38,1,aux!$AL$1)>0,(O38/INDEX($K38:$O38,1,aux!$AL$1))^(1/($O$3-INDEX($K$3:$O$3,1,aux!$AL$1)))-1,"n.d.") -> 0.0252030744 | AE38: =IF(INDEX($K38:$O38,1,aux!$AL$1)>0,(O38-INDEX($K38:$O38,1,aux!$AL$1))/INDEX($K38:$O38,1,aux!$AL$1),"n.d.") -> 0.1046879063
A39: 05p | B39: Outros produtos de pescado (NC 0508, 051191) (p) | C39: 71.887 | D39: 70.634 | E39: 105.01 | F39: 117.081 | G39: 20.799 | H39: 77.0822 | I39: 0.00444561781 | J39: 0.0003899788129 | K39: 0.877 | L39: 92.415 | M39: 26.567 | N39: 16.4 | O39: 9.55 | P39: 29.1618 | Q39: 0.001186529406 | R39: 4.048092959e-05 | S39: -47.9204 | U39: =G39-INDEX($C39:$G39,1,aux!$AL$1) -> -51.088 | V39: 0.004020025848 | W39: 0.0004681927464 | X39: =+IF(INDEX($C39:$G39,1,aux!$AL$1)>0,(G39/INDEX($C39:$G39,1,aux!$AL$1))^(1/($G$3-INDEX($C$3:$G$3,1,aux!$AL$1)))-1,"n.d.") -> -0.2665879794 | Y39: =IF(INDEX($C39:$G39,1,aux!$AL$1)>0,(G39-INDEX($C39:$G39,1,aux!$AL$1))/INDEX($C39:$G39,1,aux!$AL$1),"n.d.") -> -0.7106709141 | AA39: =O39-INDEX($K39:$O39,1,aux!$AL$1) -> 8.673 | AB39: -0.001107941448 | AC39: 5.913908709e-05 | AD39: =+IF(INDEX($K39:$O39,1,aux!$AL$1)>0,(O39/INDEX($K39:$O39,1,aux!$AL$1))^(1/($O$3-INDEX($K$3:$O$3,1,aux!$AL$1)))-1,"n.d.") -> 0.8165650093 | AE39: =IF(INDEX($K39:$O39,1,aux!$AL$1)>0,(O39-INDEX($K39:$O39,1,aux!$AL$1))/INDEX($K39:$O39,1,aux!$AL$1),"n.d.") -> 9.889395667
A40: 16p | B40: Preparações e conservas de peixes ou crustáceos (NC 1604-05) (p) | C40: 352.235 | D40: 1661.149 | E40: 43.411 | F40: 19.188 | G40: 0.567 | H40: 415.31 | I40: 0.02395247583 | J40: 0.002101160849 | K40: 21189.109 | L40: 23960.201 | M40: 19742.571 | N40: 10662.438 | O40: 12205.233 | P40: 17551.9104 | Q40: 0.714148572 | R40: 0.02436467053 | S40: 17136.6004 | U40: =G40-INDEX($C40:$G40,1,aux!$AL$1) -> -351.668 | V40: 0.02767214316 | W40: 0.003222839155 | X40: =+IF(INDEX($C40:$G40,1,aux!$AL$1)>0,(G40/INDEX($C40:$G40,1,aux!$AL$1))^(1/($G$3-INDEX($C$3:$G$3,1,aux!$AL$1)))-1,"n.d.") -> -0.7996969152 | Y40: =IF(INDEX($C40:$G40,1,aux!$AL$1)>0,(G40-INDEX($C40:$G40,1,aux!$AL$1))/INDEX($C40:$G40,1,aux!$AL$1),"n.d.") -> -0.9983902792 | AA40: =O40-INDEX($K40:$O40,1,aux!$AL$1) -> -8983.876 | AB40: 1.147654627 | AC40: -0.06125887526 | AD40: =+IF(INDEX($K40:$O40,1,aux!$AL$1)>0,(O40/INDEX($K40:$O40,1,aux!$AL$1))^(1/($O$3-INDEX($K$3:$O$3,1,aux!$AL$1)))-1,"n.d.") -> -0.1288191008 | AE40: =IF(INDEX($K40:$O40,1,aux!$AL$1)>0,(O40-INDEX($K40:$O40,1,aux!$AL$1))/INDEX($K40:$O40,1,aux!$AL$1),"n.d.") -> -0.4239855484
A41: 19p | B41: Massas recheadas com pescado (NC 19022010) (p) | C41: 27.49 | D41: 8.004 | E41: 9.622 | F41: 6.913 | G41: 0 | H41: 10.4058 | I41: 0.0006001412753 | J41: 5.264563714e-05 | K41: 40.666 | L41: 30.838 | M41: 56.804 | N41: 49.92 | O41: 46.264 | P41: 44.8984 | Q41: 0.001826816997 | R41: 6.232567843e-05 | S41: 34.4926 | U41: =G41-INDEX($C41:$G41,1,aux!$AL$1) -> -27.49 | V41: 0.002163140279 | W41: 0.0002519303672 | X41: =+IF(INDEX($C41:$G41,1,aux!$AL$1)>0,(G41/INDEX($C41:$G41,1,aux!$AL$1))^(1/($G$3-INDEX($C$3:$G$3,1,aux!$AL$1)))-1,"n.d.") -> -1 | Y41: =IF(INDEX($C41:$G41,1,aux!$AL$1)>0,(G41-INDEX($C41:$G41,1,aux!$AL$1))/INDEX($C41:$G41,1,aux!$AL$1),"n.d.") -> -1 | AA41: =O41-INDEX($K41:$O41,1,aux!$AL$1) -> 5.598 | AB41: -0.0007151223596 | AC41: 3.817140661e-05 | AD41: =+IF(INDEX($K41:$O41,1,aux!$AL$1)>0,(O41/INDEX($K41:$O41,1,aux!$AL$1))^(1/($O$3-INDEX($K$3:$O$3,1,aux!$AL$1)))-1,"n.d.") -> 0.03276837516 | AE41: =IF(INDEX($K41:$O41,1,aux!$AL$1)>0,(O41-INDEX($K41:$O41,1,aux!$AL$1))/INDEX($K41:$O41,1,aux!$AL$1),"n.d.") -> 0.1376579944
A42: 23p | B42: Farinhas de pescado (NC 230120) (p) | C42: 11.088 | D42: 15.232 | E42: 0 | F42: 0.146 | G42: 0.036 | H42: 5.3004 | I42: 0.0003056938261 | J42: 2.681609632e-05 | K42: 100.628 | L42: 259.579 | M42: 0 | N42: 0 | O42: 0 | P42: 72.0414 | Q42: 0.002931205878 | R42: 0.0001000042124 | S42: 66.741 | U42: =G42-INDEX($C42:$G42,1,aux!$AL$1) -> -11.052 | V42: 0.000869662654 | W42: 0.0001012853553 | X42: =+IF(INDEX($C42:$G42,1,aux!$AL$1)>0,(G42/INDEX($C42:$G42,1,aux!$AL$1))^(1/($G$3-INDEX($C$3:$G$3,1,aux!$AL$1)))-1,"n.d.") -> -0.7612945576 | Y42: =IF(INDEX($C42:$G42,1,aux!$AL$1)>0,(G42-INDEX($C42:$G42,1,aux!$AL$1))/INDEX($C42:$G42,1,aux!$AL$1),"n.d.") -> -0.9967532468 | AA42: =O42-INDEX($K42:$O42,1,aux!$AL$1) -> -100.628 | AB42: 0.01285482901 | AC42: -0.0006861579679 | AD42: =+IF(INDEX($K42:$O42,1,aux!$AL$1)>0,(O42/INDEX($K42:$O42,1,aux!$AL$1))^(1/($O$3-INDEX($K$3:$O$3,1,aux!$AL$1)))-1,"n.d.") -> -1 | AE42: =IF(INDEX($K42:$O42,1,aux!$AL$1)>0,(O42-INDEX($K42:$O42,1,aux!$AL$1))/INDEX($K42:$O42,1,aux!$AL$1),"n.d.") -> -1
A43: 25 | B43: Sal e cloreto de sódio puro; água do mar (NC 2501) | C43: 1327.572 | D43: 3272.379 | E43: 5011.319 | F43: 6416.1 | G43: 2918.141 | H43: 3789.1022 | I43: 0.2185316483 | J43: 0.01917004935 | K43: 42.022 | L43: 280.619 | M43: 416.681 | N43: 445.908 | O43: 685.173 | P43: 374.0806 | Q43: 0.01522051561 | R43: 0.0005192796888 | S43: -3415.0216 | U43: =G43-INDEX($C43:$G43,1,aux!$AL$1) -> 1590.569 | V43: -0.1251591077 | W43: -0.01457666905 | X43: =+IF(INDEX($C43:$G43,1,aux!$AL$1)>0,(G43/INDEX($C43:$G43,1,aux!$AL$1))^(1/($G$3-INDEX($C$3:$G$3,1,aux!$AL$1)))-1,"n.d.") -> 0.2176207686 | Y43: =IF(INDEX($C43:$G43,1,aux!$AL$1)>0,(G43-INDEX($C43:$G43,1,aux!$AL$1))/INDEX($C43:$G43,1,aux!$AL$1),"n.d.") -> 1.198103756 | AA43: =O43-INDEX($K43:$O43,1,aux!$AL$1) -> 643.151 | AB43: -0.08215999656 | AC43: 0.004385490949 | AD43: =+IF(INDEX($K43:$O43,1,aux!$AL$1)>0,(O43/INDEX($K43:$O43,1,aux!$AL$1))^(1/($O$3-INDEX($K$3:$O$3,1,aux!$AL$1)))-1,"n.d.") -> 1.00946701 | AE43: =IF(INDEX($K43:$O43,1,aux!$AL$1)>0,(O43-INDEX($K43:$O43,1,aux!$AL$1))/INDEX($K43:$O43,1,aux!$AL$1),"n.d.") -> 15.30510209
A44: Subtotal Mar | C44: 25035.973 | D44: 24543.003 | E44: 10963.1 | F44: 13824.914 | G44: 12327.597 | H44: 17338.9174 | I44: 1 | J44: 0.08772207363 | K44: 27095.558 | L44: 33528.443 | M44: 25438.384 | N44: 17557.055 | O44: 19267.527 | P44: 24577.3934 | Q44: 1 | R44: 0.0341170892 | S44: 7238.476 | U44: =G44-INDEX($C44:$G44,1,aux!$AL$1) -> -12708.376 | V44: 1 | W44: 0.1164651085 | X44: =+IF(INDEX($C44:$G44,1,aux!$AL$1)>0,(G44/INDEX($C44:$G44,1,aux!$AL$1))^(1/($G$3-INDEX($C$3:$G$3,1,aux!$AL$1)))-1,"n.d.") -> -0.1623193405 | Y44: =IF(INDEX($C44:$G44,1,aux!$AL$1)>0,(G44-INDEX($C44:$G44,1,aux!$AL$1))/INDEX($C44:$G44,1,aux!$AL$1),"n.d.") -> -0.5076046375 | AA44: =O44-INDEX($K44:$O44,1,aux!$AL$1) -> -7828.031 | AB44: 1 | AC44: -0.05337744806 | AD44: =+IF(INDEX($K44:$O44,1,aux!$AL$1)>0,(O44/INDEX($K44:$O44,1,aux!$AL$1))^(1/($O$3-INDEX($K$3:$O$3,1,aux!$AL$1)))-1,"n.d.") -> -0.08170552943 | AE44: =IF(INDEX($K44:$O44,1,aux!$AL$1)>0,(O44-INDEX($K44:$O44,1,aux!$AL$1))/INDEX($K44:$O44,1,aux!$AL$1),"n.d.") -> -0.2889045872
A45: 13f | B45: Gomas e resinas (NC 1301) (f) | C45: 24.023 | D45: 28.04 | E45: 0.983 | F45: 3.377 | G45: 10.302 | H45: 13.345 | I45: 0.0005907446929 | J45: 6.751581114e-05 | K45: 1.049 | L45: 1.854 | M45: 2.004 | N45: 1.371 | O45: 0.185 | P45: 1.2926 | Q45: 4.088003834e-06 | R45: 1.794321667e-06 | S45: -12.0524 | U45: =G45-INDEX($C45:$G45,1,aux!$AL$1) -> -13.721 | V45: =IF($U$52<>0,U45/$U$52, "n.d.") -> 0.000946532405 | W45: 0.0001257452371 | X45: =+IF(INDEX($C45:$G45,1,aux!$AL$1)>0,(G45/INDEX($C45:$G45,1,aux!$AL$1))^(1/($G$3-INDEX($C$3:$G$3,1,aux!$AL$1)))-1,"n.d.") -> -0.1907670161 | Y45: =IF(INDEX($C45:$G45,1,aux!$AL$1)>0,(G45-INDEX($C45:$G45,1,aux!$AL$1))/INDEX($C45:$G45,1,aux!$AL$1),"n.d.") -> -0.5711609707 | AA45: =O45-INDEX($K45:$O45,1,aux!$AL$1) -> -0.864 | AB45: =IF($AA$52<>0,AA45/$AA$52, "n.d.") -> -1.478257779e-05 | AC45: -5.891406808e-06 | AD45: =+IF(INDEX($K45:$O45,1,aux!$AL$1)>0,(O45/INDEX($K45:$O45,1,aux!$AL$1))^(1/($O$3-INDEX($K$3:$O$3,1,aux!$AL$1)))-1,"n.d.") -> -0.3519641084 | AE45: =IF(INDEX($K45:$O45,1,aux!$AL$1)>0,(O45-INDEX($K45:$O45,1,aux!$AL$1))/INDEX($K45:$O45,1,aux!$AL$1),"n.d.") -> -0.8236415634
A46: 38f | B46: Tall oil, essências e colofónias (NC 3803,3805,3806) (f) | C46: 38.662 | D46: 1133.008 | E46: 0.385 | F46: 36.09 | G46: 50.931 | H46: 251.8152 | I46: 0.01114713323 | J46: 0.001273998313 | K46: 6986.959 | L46: 6958.75 | M46: 9841.745 | N46: 11147.124 | O46: 11852.454 | P46: 9357.4064 | Q46: 0.02959392948 | R46: 0.01298947629 | S46: 9105.5912 | U46: =G46-INDEX($C46:$G46,1,aux!$AL$1) -> 12.269 | V46: -0.0008463673258 | W46: -0.0001124384749 | X46: =+IF(INDEX($C46:$G46,1,aux!$AL$1)>0,(G46/INDEX($C46:$G46,1,aux!$AL$1))^(1/($G$3-INDEX($C$3:$G$3,1,aux!$AL$1)))-1,"n.d.") -> 0.07133297321 | Y46: =IF(INDEX($C46:$G46,1,aux!$AL$1)>0,(G46-INDEX($C46:$G46,1,aux!$AL$1))/INDEX($C46:$G46,1,aux!$AL$1),"n.d.") -> 0.3173400238 | AA46: =O46-INDEX($K46:$O46,1,aux!$AL$1) -> 4865.495 | AB46: 0.0832460166 | AC46: 0.03317663237 | AD46: =+IF(INDEX($K46:$O46,1,aux!$AL$1)>0,(O46/INDEX($K46:$O46,1,aux!$AL$1))^(1/($O$3-INDEX($K$3:$O$3,1,aux!$AL$1)))-1,"n.d.") -> 0.1412479776 | AE46: =IF(INDEX($K46:$O46,1,aux!$AL$1)>0,(O46-INDEX($K46:$O46,1,aux!$AL$1))/INDEX($K46:$O46,1,aux!$AL$1),"n.d.") -> 0.696368048
A47: 44 | B47: Madeira e suas obras | C47: 2683.015 | D47: 4903.593 | E47: 1782.647 | F47: 3515.391 | G47: 1566.245 | H47: 2890.1782 | I47: 0.1279398601 | J47: 0.01462216002 | K47: 92995.569 | L47: 79065.573 | M47: 89625.79 | N47: 99484.037 | O47: 85573.912 | P47: 89348.9762 | Q47: 0.2825769436 | R47: 0.1240297106 | S47: 86458.798 | U47: =G47-INDEX($C47:$G47,1,aux!$AL$1) -> -1116.77 | V47: 0.07703950105 | W47: 0.01023456807 | X47: =+IF(INDEX($C47:$G47,1,aux!$AL$1)>0,(G47/INDEX($C47:$G47,1,aux!$AL$1))^(1/($G$3-INDEX($C$3:$G$3,1,aux!$AL$1)))-1,"n.d.") -> -0.125903967 | Y47: =IF(INDEX($C47:$G47,1,aux!$AL$1)>0,(G47-INDEX($C47:$G47,1,aux!$AL$1))/INDEX($C47:$G47,1,aux!$AL$1),"n.d.") -> -0.4162369573 | AA47: =O47-INDEX($K47:$O47,1,aux!$AL$1) -> -7421.657 | AB47: -0.126980581 | AC47: -0.05060648215 | AD47: =+IF(INDEX($K47:$O47,1,aux!$AL$1)>0,(O47/INDEX($K47:$O47,1,aux!$AL$1))^(1/($O$3-INDEX($K$3:$O$3,1,aux!$AL$1)))-1,"n.d.") -> -0.02057816346 | AE47: =IF(INDEX($K47:$O47,1,aux!$AL$1)>0,(O47-INDEX($K47:$O47,1,aux!$AL$1))/INDEX($K47:$O47,1,aux!$AL$1),"n.d.") -> -0.07980656584
A48: 45 | B48: Cortiça e suas obras | C48: 17.773 | D48: 55.735 | E48: 258.606 | F48: 362.639 | G48: 641.496 | H48: 267.2498 | I48: 0.0118303785 | J48: 0.001352085952 | K48: 42621.844 | L48: 37993.878 | M48: 45320.196 | N48: 53070.455 | O48: 58223.579 | P48: 47445.9904 | Q48: 0.150053683 | R48: 0.06586211402 | S48: 47178.7406 | U48: =G48-INDEX($C48:$G48,1,aux!$AL$1) -> 623.723 | V48: -0.04302704112 | W48: -0.005716070004 | X48: =+IF(INDEX($C48:$G48,1,aux!$AL$1)>0,(G48/INDEX($C48:$G48,1,aux!$AL$1))^(1/($G$3-INDEX($C$3:$G$3,1,aux!$AL$1)))-1,"n.d.") -> 1.451084609 | Y48: =IF(INDEX($C48:$G48,1,aux!$AL$1)>0,(G48-INDEX($C48:$G48,1,aux!$AL$1))/INDEX($C48:$G48,1,aux!$AL$1),"n.d.") -> 35.09385022 | AA48: =O48-INDEX($K48:$O48,1,aux!$AL$1) -> 15601.735 | AB48: 0.2669373395 | AC48: 0.1063844535 | AD48: =+IF(INDEX($K48:$O48,1,aux!$AL$1)>0,(O48/INDEX($K48:$O48,1,aux!$AL$1))^(1/($O$3-INDEX($K$3:$O$3,1,aux!$AL$1)))-1,"n.d.") -> 0.08110198735 | AE48: =IF(INDEX($K48:$O48,1,aux!$AL$1)>0,(O48-INDEX($K48:$O48,1,aux!$AL$1))/INDEX($K48:$O48,1,aux!$AL$1),"n.d.") -> 0.3660502112
A49: 46 | B49: Obras de espartaria ou de cestaria | C49: 20.992 | D49: 18.868 | E49: 15.934 | F49: 23.247 | G49: 6.475 | H49: 17.1032 | I49: 0.0007571093767 | J49: 8.652951826e-05 | K49: 0.705 | L49: 0.093 | M49: 23.88 | N49: 9.077 | O49: 14.791 | P49: 9.7092 | Q49: 3.070651929e-05 | R49: 1.34778183e-05 | S49: -7.394 | U49: =G49-INDEX($C49:$G49,1,aux!$AL$1) -> -14.517 | V49: 0.00100144384 | W49: 0.0001330401288 | X49: =+IF(INDEX($C49:$G49,1,aux!$AL$1)>0,(G49/INDEX($C49:$G49,1,aux!$AL$1))^(1/($G$3-INDEX($C$3:$G$3,1,aux!$AL$1)))-1,"n.d.") -> -0.254759431 | Y49: =IF(INDEX($C49:$G49,1,aux!$AL$1)>0,(G49-INDEX($C49:$G49,1,aux!$AL$1))/INDEX($C49:$G49,1,aux!$AL$1),"n.d.") -> -0.6915491616 | AA49: =O49-INDEX($K49:$O49,1,aux!$AL$1) -> 14.086 | AB49: 0.0002410039246 | AC49: 9.604902349e-05 | AD49: =+IF(INDEX($K49:$O49,1,aux!$AL$1)>0,(O49/INDEX($K49:$O49,1,aux!$AL$1))^(1/($O$3-INDEX($K$3:$O$3,1,aux!$AL$1)))-1,"n.d.") -> 1.140188889 | AE49: =IF(INDEX($K49:$O49,1,aux!$AL$1)>0,(O49-INDEX($K49:$O49,1,aux!$AL$1))/INDEX($K49:$O49,1,aux!$AL$1),"n.d.") -> 19.98014184
A50: 47 | B50: Pastas de madeira | C50: 10905.433 | D50: 0.255 | E50: 83.137 | F50: 50.984 | G50: 6.919 | H50: 2209.3456 | I50: 0.0978013629 | J50: 0.01117765158 | K50: 15139.937 | L50: 11126.742 | M50: 2434.592 | N50: 9036.304 | O50: 31.117 | P50: 7553.7384 | Q50: 0.02388961128 | R50: 0.01048571598 | S50: 5344.3928 | U50: =G50-INDEX($C50:$G50,1,aux!$AL$1) -> -10898.514 | V50: 0.7518254258 | W50: 0.09987874259 | X50: =+IF(INDEX($C50:$G50,1,aux!$AL$1)>0,(G50/INDEX($C50:$G50,1,aux!$AL$1))^(1/($G$3-INDEX($C$3:$G$3,1,aux!$AL$1)))-1,"n.d.") -> -0.8412915303 | Y50: =IF(INDEX($C50:$G50,1,aux!$AL$1)>0,(G50-INDEX($C50:$G50,1,aux!$AL$1))/INDEX($C50:$G50,1,aux!$AL$1),"n.d.") -> -0.9993655456 | AA50: =O50-INDEX($K50:$O50,1,aux!$AL$1) -> -15108.82 | AB50: -0.2585038276 | AC50: -0.1030233854 | AD50: =+IF(INDEX($K50:$O50,1,aux!$AL$1)>0,(O50/INDEX($K50:$O50,1,aux!$AL$1))^(1/($O$3-INDEX($K$3:$O$3,1,aux!$AL$1)))-1,"n.d.") -> -0.7870790413 | AE50: =IF(INDEX($K50:$O50,1,aux!$AL$1)>0,(O50-INDEX($K50:$O50,1,aux!$AL$1))/INDEX($K50:$O50,1,aux!$AL$1),"n.d.") -> -0.9979447074
A51: 48 | B51: Papel e cartão | C51: 15553.005 | D51: 18335.337 | E51: 19971.492 | F51: 18381.171 | G51: 12464.465 | H51: 16941.094 | I51: 0.7499334112 | J51: 0.08570938202 | K51: 130672.138 | L51: 124294.749 | M51: 136697.391 | N51: 229548.018 | O51: 191169.344 | P51: 162476.328 | Q51: 0.5138510381 | R51: 0.2255413861 | S51: 145535.234 | U51: =G51-INDEX($C51:$G51,1,aux!$AL$1) -> -3088.54 | V51: 0.2130605054 | W51: 0.02830472958 | X51: =+IF(INDEX($C51:$G51,1,aux!$AL$1)>0,(G51/INDEX($C51:$G51,1,aux!$AL$1))^(1/($G$3-INDEX($C$3:$G$3,1,aux!$AL$1)))-1,"n.d.") -> -0.05383945773 | Y51: =IF(INDEX($C51:$G51,1,aux!$AL$1)>0,(G51-INDEX($C51:$G51,1,aux!$AL$1))/INDEX($C51:$G51,1,aux!$AL$1),"n.d.") -> -0.1985815603 | AA51: =O51-INDEX($K51:$O51,1,aux!$AL$1) -> 60497.206 | AB51: 1.035074831 | AC51: 0.4125158001 | AD51: =+IF(INDEX($K51:$O51,1,aux!$AL$1)>0,(O51/INDEX($K51:$O51,1,aux!$AL$1))^(1/($O$3-INDEX($K$3:$O$3,1,aux!$AL$1)))-1,"n.d.") -> 0.09978758607 | AE51: =IF(INDEX($K51:$O51,1,aux!$AL$1)>0,(O51-INDEX($K51:$O51,1,aux!$AL$1))/INDEX($K51:$O51,1,aux!$AL$1),"n.d.") -> 0.4629694358
A52: Subtotal Florestas | C52: 29242.903 | D52: 24474.836 | E52: 22113.184 | F52: 22372.899 | G52: 14746.833 | H52: 22590.131 | I52: 1 | J52: 0.1142893232 | K52: 288418.201 | L52: 259441.639 | M52: 283945.598 | N52: 402296.386 | O52: 346865.382 | P52: 316193.4412 | Q52: 1 | R52: 0.4389236752 | S52: 293603.3102 | U52: =G52-INDEX($C52:$G52,1,aux!$AL$1) -> -14496.07 | V52: 1 | W52: 0.1328483171 | X52: =+IF(INDEX($C52:$G52,1,aux!$AL$1)>0,(G52/INDEX($C52:$G52,1,aux!$AL$1))^(1/($G$3-INDEX($C$3:$G$3,1,aux!$AL$1)))-1,"n.d.") -> -0.1573066445 | Y52: =IF(INDEX($C52:$G52,1,aux!$AL$1)>0,(G52-INDEX($C52:$G52,1,aux!$AL$1))/INDEX($C52:$G52,1,aux!$AL$1),"n.d.") -> -0.4957124127 | AA52: =O52-INDEX($K52:$O52,1,aux!$AL$1) -> 58447.181 | AB52: 1 | AC52: 0.398537176 | AD52: =+IF(INDEX($K52:$O52,1,aux!$AL$1)>0,(O52/INDEX($K52:$O52,1,aux!$AL$1))^(1/($O$3-INDEX($K$3:$O$3,1,aux!$AL$1)))-1,"n.d.") -> 0.04721191208 | AE52: =IF(INDEX($K52:$O52,1,aux!$AL$1)>0,(O52-INDEX($K52:$O52,1,aux!$AL$1))/INDEX($K52:$O52,1,aux!$AL$1),"n.d.") -> 0.2026473392
B53: TOTAL | C53: 273188.55 | D53: 221427.454 | E53: 150246.552 | F53: 179353.37 | G53: 164071.097 | H53: 197657.4046 | J53: 1 | K53: 645306.276 | L53: 664085.871 | M53: 685789.862 | N53: 814775.712 | O53: 791960.552 | P53: 720383.6546 | R53: 1 | S53: 522726.25 | U53: =G53-INDEX($C53:$G53,1,aux!$AL$1) -> -109117.453 | W53: 1 | X53: =+IF(INDEX($C53:$G53,1,aux!$AL$1)>0,(G53/INDEX($C53:$G53,1,aux!$AL$1))^(1/($G$3-INDEX($C$3:$G$3,1,aux!$AL$1)))-1,"n.d.") -> -0.1196762936 | Y53: =IF(INDEX($C53:$G53,1,aux!$AL$1)>0,(G53-INDEX($C53:$G53,1,aux!$AL$1))/INDEX($C53:$G53,1,aux!$AL$1),"n.d.") -> -0.3994217657 | AA53: =O53-INDEX($K53:$O53,1,aux!$AL$1) -> 146654.276 | AC53: 1 | AD53: =+IF(INDEX($K53:$O53,1,aux!$AL$1)>0,(O53/INDEX($K53:$O53,1,aux!$AL$1))^(1/($O$3-INDEX($K$3:$O$3,1,aux!$AL$1)))-1,"n.d.") -> 0.05252983501 | AE53: =IF(INDEX($K53:$O53,1,aux!$AL$1)>0,(O53-INDEX($K53:$O53,1,aux!$AL$1))/INDEX($K53:$O53,1,aux!$AL$1),"n.d.") -> 0.2272630555
B54: a - agrícola e agroalimentar; p - pescas; f - florestas
A55: Fonte: GPP a partir de dados INE/Comércio Internacional (2022 definitivos) | S55: 2024-05-14T17:02:43.520

Sheet 5.2_var
A1: ="Principais contributos por produto para a variação das trocas comerciais PT-Reino Unido_x000D_ no período " & INDEX('5.2'!K3:N3,1,aux!AL1) & "-2023 (NC 2 dígitos - milhares de euros) Produtos agrícolas e agroalimentares, do mar e da floresta" -> Principais contributos por produto para a variação das trocas comerciais PT-Reino Unido no período 2019-2023 (NC 2 dígitos - milhares de euros) Produtos agrícolas e agroalimentares, do mar e da floresta
E5: aumento das importações | J5: aumento das exportações
E17: redução das importações | J17: redução das exportações
A28: Fonte: GPP a partir de dados INE/Comércio Internacional (2022 definitivos) | F28: a - agrícola e agroalimentar; p - mar; f - florestas | H28: ='3'!Y116 -> 2024-05-14T17:02:43.520
A29: Cód. NC | B29: Descritivo | C29: ="Variação das Importações " & INDEX('5.2'!K3:N3,1,aux!AL1) & "-"& '5.2'!O3 &"" -> Variação das Importações 2019-2023 | F29: Cód. NC | G29: Descritivo | H29: ="Variação das Exportações " & INDEX('5.2'!K3:N3,1,aux!AL1) & "-"& '5.2'!O3 &"" -> Variação das Exportações 2019-2023
C30: variação total em valor | D30: % do aumento/ redução total | H30: variação total em valor | I30: % do aumento/ redução total
A31: =IF(C31>0,aux!AU6,"") -> 25 | B31: =IF(C31>0,aux!AV6,"") -> Sal e cloreto de sódio puro; água do mar (NC 2501) | C31: =IF(aux!AW6>0,aux!AW6,0) -> 1590.569 | D31: =IF(SUM($C$31:$C$41)<>0,C31/SUM($C$31:$C$41),0) -> 0.5108666466 | F31: =IF(H31>0,aux!AZ6,"") -> 48 | G31: =IF(H31>0,aux!BA6,"") -> Papel e cartão | H31: =IF(aux!BB6>0,aux!BB6,0) -> 60497.206 | I31: =IF(SUM($H$31:$H$41)<>0,H31/SUM($H$31:$H$41),0) -> 0.2722562701
A32: =IF(C32>0,aux!AU7,"") -> 45 | B32: =IF(C32>0,aux!AV7,"") -> Cortiça e suas obras | C32: =IF(aux!AW7>0,aux!AW7,0) -> 623.723 | D32: =IF(SUM($C$31:$C$41)<>0,C32/SUM($C$31:$C$41),0) -> 0.2003303707 | F32: =IF(H32>0,aux!AZ7,"") -> 21 | G32: =IF(H32>0,aux!BA7,"") -> Preparações alimentícias diversas | H32: =IF(aux!BB7>0,aux!BB7,0) -> 45270.063 | I32: =IF(SUM($H$31:$H$41)<>0,H32/SUM($H$31:$H$41),0) -> 0.2037293838
A33: =IF(C33>0,aux!AU8,"") -> 23a | B33: =IF(C33>0,aux!AV8,"") -> Resíduos indústrias alimentares; alimentos p/ animais (exc. NC 230120) (a) | C33: =IF(aux!AW8>0,aux!AW8,0) -> 420.994 | D33: 0.1352168897 | F33: =IF(H33>0,aux!AZ8,"") -> 20 | G33: =IF(H33>0,aux!BA8,"") -> Preparações de produtos vegetais | H33: =IF(aux!BB8>0,aux!BB8,0) -> 32737.734 | I33: 0.1473299999
A34: =IF(C34>0,aux!AU9,"") -> 05a | B34: =IF(C34>0,aux!AV9,"") -> Outros produtos de origem animal (exc. NC 0508, 051191) (a) | C34: =IF(aux!AW9>0,aux!AW9,0) -> 274.853 | D34: 0.08827861628 | F34: =IF(H34>0,aux!AZ9,"") -> 19a | G34: =IF(H34>0,aux!BA9,"") -> Preparações à base de cereais (exc. NC 19022010) (a) | H34: =IF(aux!BB9>0,aux!BB9,0) -> 19908.641 | I34: 0.08959508547
A35: =IF(C35>0,aux!AU10,"") -> 06 | B35: =IF(C35>0,aux!AV10,"") -> Plantas vivas e produtos de floricultura | C35: =IF(aux!AW10>0,aux!AW10,0) -> 112.462 | D35: 0.03612108925 | F35: =IF(H35>0,aux!AZ10,"") -> 45 | G35: =IF(H35>0,aux!BA10,"") -> Cortiça e suas obras | H35: =IF(aux!BB10>0,aux!BB10,0) -> 15601.735 | I35: 0.07021266699
A36: =IF(C36>0,aux!AU11,"") -> 51 | B36: =IF(C36>0,aux!AV11,"") -> Lã não cardada (NC 5101-5103) | C36: =IF(aux!AW11>0,aux!AW11,0) -> 59.588 | D36: 0.01913876213 | F36: =IF(H36>0,aux!AZ11,"") -> 22 | G36: =IF(H36>0,aux!BA11,"") -> Bebidas, líquidos alcoólicos e vinagres | H36: =IF(aux!BB11>0,aux!BB11,0) -> 13286.373 | I36: 0.05979281682
A37: =IF(C37>0,aux!AU12,"") -> 11 | B37: =IF(C37>0,aux!AV12,"") -> Produtos da indústria de moagem e outros | C37: =IF(aux!AW12>0,aux!AW12,0) -> 18.912 | D37: 0.006074247657 | F37: =IF(H37>0,aux!AZ12,"") -> 10 | G37: =IF(H37>0,aux!BA12,"") -> Cereais | H37: =IF(aux!BB12>0,aux!BB12,0) -> 8521.317 | I37: 0.03834858064
A38: =IF(C38>0,aux!AU13,"") -> 38f | B38: =IF(C38>0,aux!AV13,"") -> Tall oil, essências e colofónias (NC 3803,3805,3806) (f) | C38: =IF(aux!AW13>0,aux!AW13,0) -> 12.269 | D38: 0.003940616778 | F38: =IF(H38>0,aux!AZ13,"") -> 09 | G38: =IF(H38>0,aux!BA13,"") -> Café, chá, mate e especiarias | H38: =IF(aux!BB13>0,aux!BB13,0) -> 8305.351 | I38: 0.03737666638
A39: =IF(C39>0,aux!AU14,"") -> 43 | B39: =IF(C39>0,aux!AV14,"") -> Peles com pelo em bruto (NC 4301) | C39: =IF(aux!AW14>0,aux!AW14,0) -> 0.083 | D39: 2.665834156e-05 | F39: =IF(H39>0,aux!AZ14,"") -> 38f | G39: =IF(H39>0,aux!BA14,"") -> Tall oil, essências e colofónias (NC 3803,3805,3806) (f) | H39: =IF(aux!BB14>0,aux!BB14,0) -> 4865.495 | I39: 0.02189624296
A40: =IF(C40>0,aux!AU15,"") -> 53 | B40: =IF(C40>0,aux!AV15,"") -> Linho e cânhamo em bruto (NC 5301-5302) | C40: =IF(aux!AW15>0,aux!AW15,0) -> 0.019 | D40: 6.102511922e-06 | F40: =IF(H40>0,aux!AZ15,"") -> 07 | G40: =IF(H40>0,aux!BA15,"") -> Produtos hortícolas | H40: =IF(aux!BB15>0,aux!BB15,0) -> 3895.306 | I40: 0.01753009028
B41: Outros contributos para o aumento das importações | C41: =SUMIF(aux!AW16:AW51,">0") -> 0 | D41: 0 | G41: Outros contributos para o aumento das exportações | H41: =SUMIF(aux!BB16:BB51,">0") -> 9317.621 | I41: 0.04193219667
B42: Outros contributos para a redução das importações | C42: =SUMIF(aux!AW6:AW41,"<0") -> -24278.283 | D42: =IF(SUM($C$42:$C$52)<>0,C42/SUM($C$42:$C$52),0) -> 0.2163243598 | G42: Outros contributos para a redução das exportações | H42: =SUMIF(aux!BB6:BB41,"<0") -> -747.639 | I42: =IF(SUM($H$42:$H$52)<>0,H42/SUM($H$42:$H$52),0) -> 0.009895613605
A43: =IF(C43<>0,aux!AU42,"") -> 07 | B43: =IF(C43<0,aux!AV42,"") -> Produtos hortícolas | C43: =IF(aux!AW42<0,aux!AW42,0) -> -4322.453 | D43: =IF(SUM($C$42:$C$52)<>0,C43/SUM($C$42:$C$52),0) -> 0.03851392119 | F43: =IF(H43<>0,aux!AZ42,"") -> 38a | G43: =IF(H43<>0,aux!BA42,"") -> Agentes de acabamento, ácidos gordos, sorbitol (NC 380910, 382311-12-13-19-70, 382460) (a) | H43: =IF(aux!BB42<0,aux!BB42,0) -> -451.494 | I43: =IF(SUM($H$42:$H$52)<>0,H43/SUM($H$42:$H$52),0) -> 0.005975892334
A44: =IF(C44<>0,aux!AU43,"") -> 22 | B44: =IF(C44<0,aux!AV43,"") -> Bebidas, líquidos alcoólicos e vinagres | C44: =IF(aux!AW43<0,aux!AW43,0) -> -4704.549 | D44: 0.04191847301 | F44: =IF(H44<>0,aux!AZ43,"") -> 51 | G44: =IF(H44<>0,aux!BA43,"") -> Lã não cardada (NC 5101-5103) | H44: =IF(aux!BB43<0,aux!BB43,0) -> -626.083 | I44: 0.008286720533
A45: =IF(C45<>0,aux!AU44,"") -> 19a | B45: =IF(C45<0,aux!AV44,"") -> Preparações à base de cereais (exc. NC 19022010) (a) | C45: =IF(aux!AW44<0,aux!AW44,0) -> -4795.999 | D45: 0.04273331081 | F45: =IF(H45<>0,aux!AZ44,"") -> 04 | G45: =IF(H45<>0,aux!BA44,"") -> Leite e laticínios; ovos; mel, etc. | H45: =IF(aux!BB44<0,aux!BB44,0) -> -986.735 | I45: 0.0130602447
A46: =IF(C46<>0,aux!AU45,"") -> 04 | B46: =IF(C46<0,aux!AV45,"") -> Leite e laticínios; ovos; mel, etc. | C46: =IF(aux!AW45<0,aux!AW45,0) -> -6704.865 | D46: 0.05974168884 | F46: =IF(H46<>0,aux!AZ45,"") -> 24 | G46: =IF(H46<>0,aux!BA45,"") -> Tabaco | H46: =IF(aux!BB45<0,aux!BB45,0) -> -1054.804 | I46: 0.01396119359
A47: =IF(C47<>0,aux!AU46,"") -> 16a | B47: =IF(C47<0,aux!AV46,"") -> Preparações de carnes (exc. NC 1604-05) (a) | C47: =IF(aux!AW46<0,aux!AW46,0) -> -6777.758 | D47: 0.06039118006 | F47: =IF(H47<>0,aux!AZ46,"") -> 23a | G47: =IF(H47<>0,aux!BA46,"") -> Resíduos indústrias alimentares; alimentos p/ animais (exc. NC 230120) (a) | H47: =IF(aux!BB46<0,aux!BB46,0) -> -2256.891 | I47: 0.02987179813
A48: =IF(C48<>0,aux!AU47,"") -> 10 | B48: =IF(C48<0,aux!AV47,"") -> Cereais | C48: =IF(aux!AW47<0,aux!AW47,0) -> -7196.957 | D48: 0.06412632704 | F48: =IF(H48<>0,aux!AZ47,"") -> 15 | G48: =IF(H48<>0,aux!BA47,"") -> Gorduras e óleos animais ou vegetais | H48: =IF(aux!BB47<0,aux!BB47,0) -> -3957.518 | I48: 0.0523809873
A49: =IF(C49<>0,aux!AU48,"") -> 47 | B49: =IF(C49<0,aux!AV48,"") -> Pastas de madeira | C49: =IF(aux!AW48<0,aux!AW48,0) -> -10898.514 | D49: 0.09710794061 | F49: =IF(H49<>0,aux!AZ48,"") -> 44 | G49: =IF(H49<>0,aux!BA48,"") -> Madeira e suas obras | H49: =IF(aux!BB48<0,aux!BB48,0) -> -7421.657 | I49: 0.09823170003
A50: =IF(C50<>0,aux!AU49,"") -> 21 | B50: =IF(C50<0,aux!AV49,"") -> Preparações alimentícias diversas | C50: =IF(aux!AW49<0,aux!AW49,0) -> -11408.248 | D50: 0.1016497726 | F50: =IF(H50<>0,aux!AZ49,"") -> 16p | G50: =IF(H50<>0,aux!BA49,"") -> Preparações e conservas de peixes ou crustáceos (NC 1604-05) (p) | H50: =IF(aux!BB49<0,aux!BB49,0) -> -8983.876 | I50: 0.1189089461
A51: =IF(C51<>0,aux!AU50,"") -> 03 | B51: =IF(C51<0,aux!AV50,"") -> Peixes e crustáceos | C51: =IF(aux!AW50<0,aux!AW50,0) -> -13857.647 | D51: 0.1234744078 | F51: =IF(H51<>0,aux!AZ50,"") -> 47 | G51: =IF(H51<>0,aux!BA50,"") -> Pastas de madeira | H51: =IF(aux!BB50<0,aux!BB50,0) -> -15108.82 | I51: 0.1999775891
A52: =IF(C52<>0,aux!AU51,"") -> 02 | B52: =IF(C52<0,aux!AV51,"") -> Carnes e miudezas | C52: =IF(aux!AW51<0,aux!AW51,0) -> -17285.652 | D52: 0.1540186183 | F52: =IF(H52<>0,aux!AZ51,"") -> 08 | G52: =IF(H52<>0,aux!BA51,"") -> Frutas | H52: =IF(aux!BB51<0,aux!BB51,0) -> -33957.049 | I52: 0.4494493145
A53: TOTAL | C53: =SUM(C31:C52) -> -109117.453 | F53: TOTAL | H53: =SUM(H31:H52) -> 146654.276

Sheet 5.2A
A1: Trocas comerciais Portugal-Reino Unido 2019-2023 em milhares de euros (NC 4 dígitos) | G1: Produtos agrícolas e agroalimentares, do mar e da floresta
A2: Cód. NC | B2: Descritivo | C2: Importações | K2: Exportações | S2: Saldo quinquénio (exp-imp) | T2: Evolução das importações | U2: =+"Variação das Importações " & INDEX(K3:N3,1,aux!AL1) & "-"& '5.2'!O3 &"" -> Variação das Importações 2019-2023 | Z2: Evolução das exportações | AA2: ="Variação das Exportações " & INDEX(K3:N3,1,aux!AL1) & "-"& '5.2'!O3 &"" -> Variação das Exportações 2019-2023
C3: 2019 | D3: 2020 | E3: 2021 | F3: 2022 | G3: 2023 | H3: média quinquénio | I3: % Subtot | J3: % Total | K3: 2019 | L3: 2020 | M3: 2021 | N3: 2022 | O3: 2023 | P3: média quinquénio | Q3: % Subtot | R3: % Total | U3: variação total em valor | V3: % no subtotal de variação | W3: % no total de variação | X3: taxa de variação média anual | Y3: taxa de variação total | AA3: variação total em valor | AB3: % no subtotal de variação | AC3: % no total de variação | AD3: taxa de variação média anual | AE3: taxa de variação total | AX3: filtro
A4: 0101 | B4: Equídeos vivos | C4: 0 | D4: 0 | E4: 8.944 | F4: 48.479 | G4: 3.009 | H4: 12.0864 | I4: 7.662794624e-05 | J4: 6.114822779e-05 | K4: 0 | L4: 11.443 | M4: 34 | N4: 70 | O4: 35 | P4: 30.0886 | Q4: 7.926128522e-05 | R4: 4.176746628e-05 | S4: 18.0022 | U4: =G4-INDEX($C4:$G4,1,aux!$AL$1) -> 3.009 | V4: =IF($U$237<>0,U4/$U$237, "n.d.") -> -3.673409279e-05 | W4: =IF($U$322<>0,U4/$U$322, "n.d.") -> -2.757579028e-05 | X4: =+IF(INDEX($C4:$G4,1,aux!$AL$1)>0,(G4/INDEX($C4:$G4,1,aux!$AL$1))^(1/($G$3-INDEX($C$3:$G$3,1,aux!$AL$1)))-1,"n.d.") -> n.d. | Y4: =IF(INDEX($C4:$G4,1,aux!$AL$1)>0,(G4-INDEX($C4:$G4,1,aux!$AL$1))/INDEX($C4:$G4,1,aux!$AL$1),"n.d.") -> n.d. | AA4: =O4-INDEX($K4:$O4,1,aux!$AL$1) -> 35 | AB4: =IF($AA$237<>0,AA4/$AA$237, "n.d.") -> 0.0003644499826 | AC4: =IF($AA$322<>0,AA4/$AA$322, "n.d.") -> 0.0002386565258 | AD4: =+IF(INDEX($K4:$O4,1,aux!$AL$1)>0,(O4/INDEX($K4:$O4,1,aux!$AL$1))^(1/($O$3-INDEX($K$3:$O$3,1,aux!$AL$1)))-1,"n.d.") -> n.d. | AE4: =IF(INDEX($K4:$O4,1,aux!$AL$1)>0,(O4-INDEX($K4:$O4,1,aux!$AL$1))/INDEX($K4:$O4,1,aux!$AL$1),"n.d.") -> n.d. | AX4: =+LEFT(A4,2) -> 01
A5: 0102 | B5: Bovinos vivos | C5: 0 | D5: 0 | E5: 0 | F5: 0 | G5: 0 | H5: 0 | I5: 0 | J5: 0 | K5: 0 | L5: 0 | M5: 0 | N5: 0 | O5: 0 | P5: 0 | Q5: 0 | R5: 0 | S5: 0 | U5: =G5-INDEX($C5:$G5,1,aux!$AL$1) -> 0 | V5: 0 | W5: 0 | X5: =+IF(INDEX($C5:$G5,1,aux!$AL$1)>0,(G5/INDEX($C5:$G5,1,aux!$AL$1))^(1/($G$3-INDEX($C$3:$G$3,1,aux!$AL$1)))-1,"n.d.") -> n.d. | Y5: =IF(INDEX($C5:$G5,1,aux!$AL$1)>0,(G5-INDEX($C5:$G5,1,aux!$AL$1))/INDEX($C5:$G5,1,aux!$AL$1),"n.d.") -> n.d. | AA5: =O5-INDEX($K5:$O5,1,aux!$AL$1) -> 0 | AB5: 0 | AC5: 0 | AD5: =+IF(INDEX($K5:$O5,1,aux!$AL$1)>0,(O5/INDEX($K5:$O5,1,aux!$AL$1))^(1/($O$3-INDEX($K$3:$O$3,1,aux!$AL$1)))-1,"n.d.") -> n.d. | AE5: =IF(INDEX($K5:$O5,1,aux!$AL$1)>0,(O5-INDEX($K5:$O5,1,aux!$AL$1))/INDEX($K5:$O5,1,aux!$AL$1),"n.d.") -> n.d. | AX5: 01
A6: 0103 | B6: Suínos vivos | C6: 0 | D6: 0 | E6: 0 | F6: 0 | G6: 0 | H6: 0 | I6: 0 | J6: 0 | K6: 0 | L6: 45.956 | M6: 0 | N6: 0 | O6: 0 | P6: 9.1912 | Q6: 2.421203794e-05 | R6: 1.275875701e-05 | S6: 9.1912 | U6: =G6-INDEX($C6:$G6,1,aux!$AL$1) -> 0 | V6: 0 | W6: 0 | X6: =+IF(INDEX($C6:$G6,1,aux!$AL$1)>0,(G6/INDEX($C6:$G6,1,aux!$AL$1))^(1/($G$3-INDEX($C$3:$G$3,1,aux!$AL$1)))-1,"n.d.") -> n.d. | Y6: =IF(INDEX($C6:$G6,1,aux!$AL$1)>0,(G6-INDEX($C6:$G6,1,aux!$AL$1))/INDEX($C6:$G6,1,aux!$AL$1),"n.d.") -> n.d. | AA6: =O6-INDEX($K6:$O6,1,aux!$AL$1) -> 0 | AB6: 0 | AC6: 0 | AD6: =+IF(INDEX($K6:$O6,1,aux!$AL$1)>0,(O6/INDEX($K6:$O6,1,aux!$AL$1))^(1/($O$3-INDEX($K$3:$O$3,1,aux!$AL$1)))-1,"n.d.") -> n.d. | AE6: =IF(INDEX($K6:$O6,1,aux!$AL$1)>0,(O6-INDEX($K6:$O6,1,aux!$AL$1))/INDEX($K6:$O6,1,aux!$AL$1),"n.d.") -> n.d. | AX6: 01
A7: 0104 | B7: Ovinos ou caprinos vivos | C7: 0 | D7: 0 | E7: 0 | F7: 0 | G7: 0 | H7: 0 | I7: 0 | J7: 0 | K7: 0 | L7: 0 | M7: 0 | N7: 0 | O7: 0 | P7: 0 | Q7: 0 | R7: 0 | S7: 0 | U7: =G7-INDEX($C7:$G7,1,aux!$AL$1) -> 0 | V7: 0 | W7: 0 | X7: =+IF(INDEX($C7:$G7,1,aux!$AL$1)>0,(G7/INDEX($C7:$G7,1,aux!$AL$1))^(1/($G$3-INDEX($C$3:$G$3,1,aux!$AL$1)))-1,"n.d.") -> n.d. | Y7: =IF(INDEX($C7:$G7,1,aux!$AL$1)>0,(G7-INDEX($C7:$G7,1,aux!$AL$1))/INDEX($C7:$G7,1,aux!$AL$1),"n.d.") -> n.d. | AA7: =O7-INDEX($K7:$O7,1,aux!$AL$1) -> 0 | AB7: 0 | AC7: 0 | AD7: =+IF(INDEX($K7:$O7,1,aux!$AL$1)>0,(O7/INDEX($K7:$O7,1,aux!$AL$1))^(1/($O$3-INDEX($K$3:$O$3,1,aux!$AL$1)))-1,"n.d.") -> n.d. | AE7: =IF(INDEX($K7:$O7,1,aux!$AL$1)>0,(O7-INDEX($K7:$O7,1,aux!$AL$1))/INDEX($K7:$O7,1,aux!$AL$1),"n.d.") -> n.d. | AX7: 01
A8: 0105 | B8: Aves de capoeira vivas | C8: 239.922 | D8: 208.752 | E8: 141.499 | F8: 82.484 | G8: 164.568 | H8: 167.445 | I8: 0.001061603659 | J8: 0.0008471476206 | K8: 0 | L8: 0 | M8: 0 | N8: 0 | O8: 0 | P8: 0 | Q8: 0 | R8: 0 | S8: -167.445 | U8: =G8-INDEX($C8:$G8,1,aux!$AL$1) -> -75.354 | V8: 0.0009199271613 | W8: 0.0006905769694 | X8: =+IF(INDEX($C8:$G8,1,aux!$AL$1)>0,(G8/INDEX($C8:$G8,1,aux!$AL$1))^(1/($G$3-INDEX($C$3:$G$3,1,aux!$AL$1)))-1,"n.d.") -> -0.08994250757 | Y8: =IF(INDEX($C8:$G8,1,aux!$AL$1)>0,(G8-INDEX($C8:$G8,1,aux!$AL$1))/INDEX($C8:$G8,1,aux!$AL$1),"n.d.") -> -0.314077075 | AA8: =O8-INDEX($K8:$O8,1,aux!$AL$1) -> 0 | AB8: 0 | AC8: 0 | AD8: =+IF(INDEX($K8:$O8,1,aux!$AL$1)>0,(O8/INDEX($K8:$O8,1,aux!$AL$1))^(1/($O$3-INDEX($K$3:$O$3,1,aux!$AL$1)))-1,"n.d.") -> n.d. | AE8: =IF(INDEX($K8:$O8,1,aux!$AL$1)>0,(O8-INDEX($K8:$O8,1,aux!$AL$1))/INDEX($K8:$O8,1,aux!$AL$1),"n.d.") -> n.d. | AX8: 01
A9: 0106 | B9: Outros animais vivos | C9: 49.686 | D9: 26.6 | E9: 4.507 | F9: 2.529 | G9: 10.367 | H9: 18.7378 | I9: 0.0001187979159 | J9: 9.479938299e-05 | K9: 0 | L9: 0 | M9: 7.295 | N9: 12.859 | O9: 15.268 | P9: 7.0844 | Q9: 1.866217268e-05 | R9: 9.834204253e-06 | S9: -11.6534 | U9: =G9-INDEX($C9:$G9,1,aux!$AL$1) -> -39.319 | V9: 0.0004800092371 | W9: 0.0003603364899 | X9: =+IF(INDEX($C9:$G9,1,aux!$AL$1)>0,(G9/INDEX($C9:$G9,1,aux!$AL$1))^(1/($G$3-INDEX($C$3:$G$3,1,aux!$AL$1)))-1,"n.d.") -> -0.3241430784 | Y9: =IF(INDEX($C9:$G9,1,aux!$AL$1)>0,(G9-INDEX($C9:$G9,1,aux!$AL$1))/INDEX($C9:$G9,1,aux!$AL$1),"n.d.") -> -0.791349676 | AA9: =O9-INDEX($K9:$O9,1,aux!$AL$1) -> 15.268 | AB9: 0.0001589834953 | AC9: 0.0001041087953 | AD9: =+IF(INDEX($K9:$O9,1,aux!$AL$1)>0,(O9/INDEX($K9:$O9,1,aux!$AL$1))^(1/($O$3-INDEX($K$3:$O$3,1,aux!$AL$1)))-1,"n.d.") -> n.d. | AE9: =IF(INDEX($K9:$O9,1,aux!$AL$1)>0,(O9-INDEX($K9:$O9,1,aux!$AL$1))/INDEX($K9:$O9,1,aux!$AL$1),"n.d.") -> n.d. | AX9: 01
A10: 01SS | B10: Animais vivos | C10: 0 | D10: 0 | E10: 0 | F10: 0 | G10: 0 | H10: 0 | I10: 0 | J10: 0 | K10: 0 | L10: 0 | M10: 0 | N10: 0 | O10: 0 | P10: 0 | Q10: 0 | R10: 0 | S10: 0 | U10: =G10-INDEX($C10:$G10,1,aux!$AL$1) -> 0 | V10: 0 | W10: 0 | X10: =+IF(INDEX($C10:$G10,1,aux!$AL$1)>0,(G10/INDEX($C10:$G10,1,aux!$AL$1))^(1/($G$3-INDEX($C$3:$G$3,1,aux!$AL$1)))-1,"n.d.") -> n.d. | Y10: =IF(INDEX($C10:$G10,1,aux!$AL$1)>0,(G10-INDEX($C10:$G10,1,aux!$AL$1))/INDEX($C10:$G10,1,aux!$AL$1),"n.d.") -> n.d. | AA10: =O10-INDEX($K10:$O10,1,aux!$AL$1) -> 0 | AB10: 0 | AC10: 0 | AD10: =+IF(INDEX($K10:$O10,1,aux!$AL$1)>0,(O10/INDEX($K10:$O10,1,aux!$AL$1))^(1/($O$3-INDEX($K$3:$O$3,1,aux!$AL$1)))-1,"n.d.") -> n.d. | AE10: =IF(INDEX($K10:$O10,1,aux!$AL$1)>0,(O10-INDEX($K10:$O10,1,aux!$AL$1))/INDEX($K10:$O10,1,aux!$AL$1),"n.d.") -> n.d. | AX10: 01
A11: 0201 | B11: Carnes de bovino, frescas ou refrigeradas | C11: 10791.904 | D11: 6754.012 | E11: 245.125 | F11: 423.256 | G11: 2414.595 | H11: 4125.7784 | I11: 0.02615749317 | J11: 0.02087338144 | K11: 883.066 | L11: 3297.541 | M11: 8557.141 | N11: 7582.773 | O11: 5921.629 | P11: 5248.43 | Q11: 0.01382574487 | R11: 0.007285603951 | S11: 1122.6516 | U11: =G11-INDEX($C11:$G11,1,aux!$AL$1) -> -8377.309 | V11: 0.102270803 | W11: 0.07677331875 | X11: =+IF(INDEX($C11:$G11,1,aux!$AL$1)>0,(G11/INDEX($C11:$G11,1,aux!$AL$1))^(1/($G$3-INDEX($C$3:$G$3,1,aux!$AL$1)))-1,"n.d.") -> -0.3122405667 | Y11: =IF(INDEX($C11:$G11,1,aux!$AL$1)>0,(G11-INDEX($C11:$G11,1,aux!$AL$1))/INDEX($C11:$G11,1,aux!$AL$1),"n.d.") -> -0.7762586658 | AA11: =O11-INDEX($K11:$O11,1,aux!$AL$1) -> 5038.563 | AB11: 0.05246583422 | AC11: 0.03435674116 | AD11: =+IF(INDEX($K11:$O11,1,aux!$AL$1)>0,(O11/INDEX($K11:$O11,1,aux!$AL$1))^(1/($O$3-INDEX($K$3:$O$3,1,aux!$AL$1)))-1,"n.d.") -> 0.6092073507 | AE11: =IF(INDEX($K11:$O11,1,aux!$AL$1)>0,(O11-INDEX($K11:$O11,1,aux!$AL$1))/INDEX($K11:$O11,1,aux!$AL$1),"n.d.") -> 5.705760385 | AX11: 02
A12: 0202 | B12: Carnes de bovino, congeladas | C12: 4353.191 | D12: 1210.578 | E12: 383.956 | F12: 1159.364 | G12: 859.295 | H12: 1593.2768 | I12: 0.01010139735 | J12: 0.008060799965 | K12: 12.174 | L12: 233.621 | M12: 1016.44 | N12: 817.875 | O12: 464.633 | P12: 508.9486 | Q12: 0.001340704458 | R12: 0.0007064965963 | S12: -1084.3282 | U12: =G12-INDEX($C12:$G12,1,aux!$AL$1) -> -3493.896 | V12: 0.04265373874 | W12: 0.03201958902 | X12: =+IF(INDEX($C12:$G12,1,aux!$AL$1)>0,(G12/INDEX($C12:$G12,1,aux!$AL$1))^(1/($G$3-INDEX($C$3:$G$3,1,aux!$AL$1)))-1,"n.d.") -> -0.3334486068 | Y12: =IF(INDEX($C12:$G12,1,aux!$AL$1)>0,(G12-INDEX($C12:$G12,1,aux!$AL$1))/INDEX($C12:$G12,1,aux!$AL$1),"n.d.") -> -0.8026057207 | AA12: =O12-INDEX($K12:$O12,1,aux!$AL$1) -> 452.459 | AB12: 0.004711390705 | AC12: 0.003085208371 | AD12: =+IF(INDEX($K12:$O12,1,aux!$AL$1)>0,(O12/INDEX($K12:$O12,1,aux!$AL$1))^(1/($O$3-INDEX($K$3:$O$3,1,aux!$AL$1)))-1,"n.d.") -> 1.485531026 | AE12: =IF(INDEX($K12:$O12,1,aux!$AL$1)>0,(O12-INDEX($K12:$O12,1,aux!$AL$1))/INDEX($K12:$O12,1,aux!$AL$1),"n.d.") -> 37.16600953 | AX12: 02
A13: 0203 | B13: Carnes de suíno | C13: 332.208 | D13: 159.676 | E13: 5.371 | F13: 39.34 | G13: 80.278 | H13: 123.3746 | I13: 0.0007821967018 | J13: 0.0006241840535 | K13: 7338.072 | L13: 1145.076 | M13: 1511.394 | N13: 1258.768 | O13: 410.192 | P13: 2332.7004 | Q13: 0.006144946317 | R13: 0.003238136214 | S13: 2209.3258 | U13: =G13-INDEX($C13:$G13,1,aux!$AL$1) -> -251.93 | V13: 0.003075579926 | W13: 0.002308796559 | X13: =+IF(INDEX($C13:$G13,1,aux!$AL$1)>0,(G13/INDEX($C13:$G13,1,aux!$AL$1))^(1/($G$3-INDEX($C$3:$G$3,1,aux!$AL$1)))-1,"n.d.") -> -0.2988731251 | Y13: =IF(INDEX($C13:$G13,1,aux!$AL$1)>0,(G13-INDEX($C13:$G13,1,aux!$AL$1))/INDEX($C13:$G13,1,aux!$AL$1),"n.d.") -> -0.7583501902 | AA13: =O13-INDEX($K13:$O13,1,aux!$AL$1) -> -6927.88 | AB13: -0.0721390213 | AC13: -0.04723953634 | AD13: =+IF(INDEX($K13:$O13,1,aux!$AL$1)>0,(O13/INDEX($K13:$O13,1,aux!$AL$1))^(1/($O$3-INDEX($K$3:$O$3,1,aux!$AL$1)))-1,"n.d.") -> -0.513759304 | AE13: =IF(INDEX($K13:$O13,1,aux!$AL$1)>0,(O13-INDEX($K13:$O13,1,aux!$AL$1))/INDEX($K13:$O13,1,aux!$AL$1),"n.d.") -> -0.9441008483 | AX13: 02
A14: 0204 | B14: Carnes de ovino ou caprino | C14: 4608.448 | D14: 4056.769 | E14: 0 | F14: 0 | G14: 0.317 | H14: 1733.1068 | I14: 0.01098792152 | J14: 0.008768236148 | K14: 10.972 | L14: 79.373 | M14: 64.923 | N14: 151.845 | O14: 69.411 | P14: 75.3048 | Q14: 0.0001983726472 | R14: 0.0001045342985 | S14: -1657.802 | U14: =G14-INDEX($C14:$G14,1,aux!$AL$1) -> -4608.131 | V14: 0.05625640138 | W14: 0.04223092524 | X14: =+IF(INDEX($C14:$G14,1,aux!$AL$1)>0,(G14/INDEX($C14:$G14,1,aux!$AL$1))^(1/($G$3-INDEX($C$3:$G$3,1,aux!$AL$1)))-1,"n.d.") -> -0.908929831 | Y14: =IF(INDEX($C14:$G14,1,aux!$AL$1)>0,(G14-INDEX($C14:$G14,1,aux!$AL$1))/INDEX($C14:$G14,1,aux!$AL$1),"n.d.") -> -0.9999312133 | AA14: =O14-INDEX($K14:$O14,1,aux!$AL$1) -> 58.439 | AB14: 0.0006085169295 | AC14: 0.0003984813917 | AD14: =+IF(INDEX($K14:$O14,1,aux!$AL$1)>0,(O14/INDEX($K14:$O14,1,aux!$AL$1))^(1/($O$3-INDEX($K$3:$O$3,1,aux!$AL$1)))-1,"n.d.") -> 0.5859358835 | AE14: =IF(INDEX($K14:$O14,1,aux!$AL$1)>0,(O14-INDEX($K14:$O14,1,aux!$AL$1))/INDEX($K14:$O14,1,aux!$AL$1),"n.d.") -> 5.326193948 | AX14: 02
A15: 0205 | B15: Carnes de equídeo | C15: 0 | D15: 0 | E15: 0 | F15: 0 | G15: 0 | H15: 0 | I15: 0 | J15: 0 | K15: 0 | L15: 0 | M15: 0 | N15: 0 | O15: 0 | P15: 0 | Q15: 0 | R15: 0 | S15: 0 | U15: =G15-INDEX($C15:$G15,1,aux!$AL$1) -> 0 | V15: 0 | W15: 0 | X15: =+IF(INDEX($C15:$G15,1,aux!$AL$1)>0,(G15/INDEX($C15:$G15,1,aux!$AL$1))^(1/($G$3-INDEX($C$3:$G$3,1,aux!$AL$1)))-1,"n.d.") -> n.d. | Y15: =IF(INDEX($C15:$G15,1,aux!$AL$1)>0,(G15-INDEX($C15:$G15,1,aux!$AL$1))/INDEX($C15:$G15,1,aux!$AL$1),"n.d.") -> n.d. | AA15: =O15-INDEX($K15:$O15,1,aux!$AL$1) -> 0 | AB15: 0 | AC15: 0 | AD15: =+IF(INDEX($K15:$O15,1,aux!$AL$1)>0,(O15/INDEX($K15:$O15,1,aux!$AL$1))^(1/($O$3-INDEX($K$3:$O$3,1,aux!$AL$1)))-1,"n.d.") -> n.d. | AE15: =IF(INDEX($K15:$O15,1,aux!$AL$1)>0,(O15-INDEX($K15:$O15,1,aux!$AL$1))/INDEX($K15:$O15,1,aux!$AL$1),"n.d.") -> n.d. | AX15: 02
A16: 0206 | B16: Miudezas de bovino, suíno, ovino, caprino,equídeo | C16: 85.813 | D16: 21.132 | E16: 48.391 | F16: 111.415 | G16: 0 | H16: 53.3502 | I16: 0.0003382410195 | J16: 0.0002699124787 | K16: 173.341 | L16: 66.247 | M16: 122.478 | N16: 43.187 | O16: 109.939 | P16: 103.0384 | Q16: 0.0002714302431 | R16: 0.0001430326734 | S16: 49.6882 | U16: =G16-INDEX($C16:$G16,1,aux!$AL$1) -> -85.813 | V16: 0.001047611401 | W16: 0.0007864278137 | X16: =+IF(INDEX($C16:$G16,1,aux!$AL$1)>0,(G16/INDEX($C16:$G16,1,aux!$AL$1))^(1/($G$3-INDEX($C$3:$G$3,1,aux!$AL$1)))-1,"n.d.") -> -1 | Y16: =IF(INDEX($C16:$G16,1,aux!$AL$1)>0,(G16-INDEX($C16:$G16,1,aux!$AL$1))/INDEX($C16:$G16,1,aux!$AL$1),"n.d.") -> -1 | AA16: =O16-INDEX($K16:$O16,1,aux!$AL$1) -> -63.402 | AB16: -0.0006601959371 | AC16: -0.0004323228871 | AD16: =+IF(INDEX($K16:$O16,1,aux!$AL$1)>0,(O16/INDEX($K16:$O16,1,aux!$AL$1))^(1/($O$3-INDEX($K$3:$O$3,1,aux!$AL$1)))-1,"n.d.") -> -0.1075937131 | AE16: =IF(INDEX($K16:$O16,1,aux!$AL$1)>0,(O16-INDEX($K16:$O16,1,aux!$AL$1))/INDEX($K16:$O16,1,aux!$AL$1),"n.d.") -> -0.3657645912 | AX16: 02
A17: 0207 | B17: Carnes e miudezas de aves de capoeira | C17: 2439.361 | D17: 1910.741 | E17: 1885.027 | F17: 1456.629 | G17: 2439.738 | H17: 2026.2992 | I17: 0.01284676547 | J17: 0.01025157243 | K17: 592.789 | L17: 740.418 | M17: 913.215 | N17: 637.198 | O17: 1912.594 | P17: 959.2428 | Q17: 0.002526897801 | R17: 0.001331572134 | S17: -1067.0564 | U17: =G17-INDEX($C17:$G17,1,aux!$AL$1) -> 0.377 | V17: -4.602443663e-06 | W17: -3.454992667e-06 | X17: =+IF(INDEX($C17:$G17,1,aux!$AL$1)>0,(G17/INDEX($C17:$G17,1,aux!$AL$1))^(1/($G$3-INDEX($C$3:$G$3,1,aux!$AL$1)))-1,"n.d.") -> 3.863492864e-05 | Y17: =IF(INDEX($C17:$G17,1,aux!$AL$1)>0,(G17-INDEX($C17:$G17,1,aux!$AL$1))/INDEX($C17:$G17,1,aux!$AL$1),"n.d.") -> 0.0001545486707 | AA17: =O17-INDEX($K17:$O17,1,aux!$AL$1) -> 1319.805 | AB17: 0.01374294027 | AC17: 0.008999430743 | AD17: =+IF(INDEX($K17:$O17,1,aux!$AL$1)>0,(O17/INDEX($K17:$O17,1,aux!$AL$1))^(1/($O$3-INDEX($K$3:$O$3,1,aux!$AL$1)))-1,"n.d.") -> 0.3402340987 | AE17: =IF(INDEX($K17:$O17,1,aux!$AL$1)>0,(O17-INDEX($K17:$O17,1,aux!$AL$1))/INDEX($K17:$O17,1,aux!$AL$1),"n.d.") -> 2.226433014 | AX17: 02
A18: 0208 | B18: Outras carnes e miudezas | C18: 0 | D18: 0.009 | E18: 0 | F18: 0 | G18: 0 | H18: 0.0018 | I18: 1.141202535e-08 | J18: 9.106666171e-09 | K18: 22.611 | L18: 35.889 | M18: 52.401 | N18: 34.307 | O18: 48.272 | P18: 38.696 | Q18: 0.0001019354404 | R18: 5.371582177e-05 | S18: 38.6942 | U18: =G18-INDEX($C18:$G18,1,aux!$AL$1) -> 0 | V18: 0 | W18: 0 | X18: =+IF(INDEX($C18:$G18,1,aux!$AL$1)>0,(G18/INDEX($C18:$G18,1,aux!$AL$1))^(1/($G$3-INDEX($C$3:$G$3,1,aux!$AL$1)))-1,"n.d.") -> n.d. | Y18: =IF(INDEX($C18:$G18,1,aux!$AL$1)>0,(G18-INDEX($C18:$G18,1,aux!$AL$1))/INDEX($C18:$G18,1,aux!$AL$1),"n.d.") -> n.d. | AA18: =O18-INDEX($K18:$O18,1,aux!$AL$1) -> 25.661 | AB18: 0.0002672043144 | AC18: 0.0001749761459 | AD18: =+IF(INDEX($K18:$O18,1,aux!$AL$1)>0,(O18/INDEX($K18:$O18,1,aux!$AL$1))^(1/($O$3-INDEX($K$3:$O$3,1,aux!$AL$1)))-1,"n.d.") -> 0.2087705785 | AE18: =IF(INDEX($K18:$O18,1,aux!$AL$1)>0,(O18-INDEX($K18:$O18,1,aux!$AL$1))/INDEX($K18:$O18,1,aux!$AL$1),"n.d.") -> 1.134890098 | AX18: 02
A19: 0209 | B19: Toucinho, gorduras de porco e de aves | C19: 1.406 | D19: 1 | E19: 0 | F19: 0 | G19: 0 | H19: 0.4812 | I19: 3.050814778e-06 | J19: 2.434515423e-06 | K19: 37.403 | L19: 25.236 | M19: 6.761 | N19: 2.981 | O19: 3.65 | P19: 15.2062 | Q19: 4.005712979e-05 | R19: 2.11084745e-05 | S19: 14.725 | U19: =G19-INDEX($C19:$G19,1,aux!$AL$1) -> -1.406 | V19: 1.716455117e-05 | W19: 1.288519812e-05 | X19: =+IF(INDEX($C19:$G19,1,aux!$AL$1)>0,(G19/INDEX($C19:$G19,1,aux!$AL$1))^(1/($G$3-INDEX($C$3:$G$3,1,aux!$AL$1)))-1,"n.d.") -> -1 | Y19: =IF(INDEX($C19:$G19,1,aux!$AL$1)>0,(G19-INDEX($C19:$G19,1,aux!$AL$1))/INDEX($C19:$G19,1,aux!$AL$1),"n.d.") -> -1 | AA19: =O19-INDEX($K19:$O19,1,aux!$AL$1) -> -33.753 | AB19: -0.0003514651504 | AC19: -0.0002301535347 | AD19: =+IF(INDEX($K19:$O19,1,aux!$AL$1)>0,(O19/INDEX($K19:$O19,1,aux!$AL$1))^(1/($O$3-INDEX($K$3:$O$3,1,aux!$AL$1)))-1,"n.d.") -> -0.441083917 | AE19: =IF(INDEX($K19:$O19,1,aux!$AL$1)>0,(O19-INDEX($K19:$O19,1,aux!$AL$1))/INDEX($K19:$O19,1,aux!$AL$1),"n.d.") -> -0.9024142448 | AX19: 02
A20: 0210 | B20: Carnes e miudezas processadas; farinhas de carnes | C20: 499.652 | D20: 114.605 | E20: 43.004 | F20: 30.974 | G20: 32.108 | H20: 144.0686 | I20: 0.0009133969533 | J20: 0.0007288803589 | K20: 464.123 | L20: 722.879 | M20: 535.039 | N20: 523.225 | O20: 625.46 | P20: 574.1452 | Q20: 0.001512449448 | R20: 0.000796999205 | S20: 430.0766 | U20: =G20-INDEX($C20:$G20,1,aux!$AL$1) -> -467.544 | V20: 0.005707811459 | W20: 0.004284777432 | X20: =+IF(INDEX($C20:$G20,1,aux!$AL$1)>0,(G20/INDEX($C20:$G20,1,aux!$AL$1))^(1/($G$3-INDEX($C$3:$G$3,1,aux!$AL$1)))-1,"n.d.") -> -0.4965151512 | Y20: =IF(INDEX($C20:$G20,1,aux!$AL$1)>0,(G20-INDEX($C20:$G20,1,aux!$AL$1))/INDEX($C20:$G20,1,aux!$AL$1),"n.d.") -> -0.9357392745 | AA20: =O20-INDEX($K20:$O20,1,aux!$AL$1) -> 161.337 | AB20: 0.001679979053 | AC20: 0.00110011794 | AD20: =+IF(INDEX($K20:$O20,1,aux!$AL$1)>0,(O20/INDEX($K20:$O20,1,aux!$AL$1))^(1/($O$3-INDEX($K$3:$O$3,1,aux!$AL$1)))-1,"n.d.") -> 0.07743632264 | AE20: =IF(INDEX($K20:$O20,1,aux!$AL$1)>0,(O20-INDEX($K20:$O20,1,aux!$AL$1))/INDEX($K20:$O20,1,aux!$AL$1),"n.d.") -> 0.3476169033 | AX20: 02
A21: 02SS | B21: Carnes e miudezas, comestíveis | C21: 0 | D21: 0 | E21: 0 | F21: 0 | G21: 0 | H21: 0 | I21: 0 | J21: 0 | K21: 0 | L21: 0 | M21: 0 | N21: 0 | O21: 0 | P21: 0 | Q21: 0 | R21: 0 | S21: 0 | U21: =G21-INDEX($C21:$G21,1,aux!$AL$1) -> 0 | V21: 0 | W21: 0 | X21: =+IF(INDEX($C21:$G21,1,aux!$AL$1)>0,(G21/INDEX($C21:$G21,1,aux!$AL$1))^(1/($G$3-INDEX($C$3:$G$3,1,aux!$AL$1)))-1,"n.d.") -> n.d. | Y21: =IF(INDEX($C21:$G21,1,aux!$AL$1)>0,(G21-INDEX($C21:$G21,1,aux!$AL$1))/INDEX($C21:$G21,1,aux!$AL$1),"n.d.") -> n.d. | AA21: =O21-INDEX($K21:$O21,1,aux!$AL$1) -> 0 | AB21: 0 | AC21: 0 | AD21: =+IF(INDEX($K21:$O21,1,aux!$AL$1)>0,(O21/INDEX($K21:$O21,1,aux!$AL$1))^(1/($O$3-INDEX($K$3:$O$3,1,aux!$AL$1)))-1,"n.d.") -> n.d. | AE21: =IF(INDEX($K21:$O21,1,aux!$AL$1)>0,(O21-INDEX($K21:$O21,1,aux!$AL$1))/INDEX($K21:$O21,1,aux!$AL$1),"n.d.") -> n.d. | AX21: 02
A22: 0401 | B22: Leite e nata, não concentrados | C22: 78.719 | D22: 45.387 | E22: 1.591 | F22: 5.694 | G22: 0 | H22: 26.2782 | I22: 0.0001666041581 | J22: 0.0001329482194 | K22: 873.762 | L22: 1634.723 | M22: 348.308 | N22: 303.846 | O22: 263.882 | P22: 684.9042 | Q22: 0.001804217782 | R22: 0.0009507492232 | S22: 658.626 | U22: =G22-INDEX($C22:$G22,1,aux!$AL$1) -> -78.719 | V22: 0.0009610073282 | W22: 0.0007214152992 | X22: =+IF(INDEX($C22:$G22,1,aux!$AL$1)>0,(G22/INDEX($C22:$G22,1,aux!$AL$1))^(1/($G$3-INDEX($C$3:$G$3,1,aux!$AL$1)))-1,"n.d.") -> -1 | Y22: =IF(INDEX($C22:$G22,1,aux!$AL$1)>0,(G22-INDEX($C22:$G22,1,aux!$AL$1))/INDEX($C22:$G22,1,aux!$AL$1),"n.d.") -> -1 | AA22: =O22-INDEX($K22:$O22,1,aux!$AL$1) -> -609.88 | AB22: -0.006350593011 | AC22: -0.004158624055 | AD22: =+IF(INDEX($K22:$O22,1,aux!$AL$1)>0,(O22/INDEX($K22:$O22,1,aux!$AL$1))^(1/($O$3-INDEX($K$3:$O$3,1,aux!$AL$1)))-1,"n.d.") -> -0.258682669 | AE22: =IF(INDEX($K22:$O22,1,aux!$AL$1)>0,(O22-INDEX($K22:$O22,1,aux!$AL$1))/INDEX($K22:$O22,1,aux!$AL$1),"n.d.") -> -0.6979932751 | AX22: 04
A23: 0402 | B23: Leite e nata, concentrados | C23: 111.509 | D23: 442.758 | E23: 3.575 | F23: 9.94 | G23: 0.329 | H23: 113.6222 | I23: 0.0007203663484 | J23: 0.0005748441361 | K23: 809.404 | L23: 475.782 | M23: 429.372 | N23: 957.45 | O23: 926.277 | P23: 719.657 | Q23: 0.001895765796 | R23: 0.000998991295 | S23: 606.0348 | U23: =G23-INDEX($C23:$G23,1,aux!$AL$1) -> -111.18 | V23: 0.001357293598 | W23: 0.001018902082 | X23: =+IF(INDEX($C23:$G23,1,aux!$AL$1)>0,(G23/INDEX($C23:$G23,1,aux!$AL$1))^(1/($G$3-INDEX($C$3:$G$3,1,aux!$AL$1)))-1,"n.d.") -> -0.7669379865 | Y23: =IF(INDEX($C23:$G23,1,aux!$AL$1)>0,(G23-INDEX($C23:$G23,1,aux!$AL$1))/INDEX($C23:$G23,1,aux!$AL$1),"n.d.") -> -0.9970495655 | AA23: =O23-INDEX($K23:$O23,1,aux!$AL$1) -> 116.873 | AB23: 0.001216981795 | AC23: 0.0007969286896 | AD23: =+IF(INDEX($K23:$O23,1,aux!$AL$1)>0,(O23/INDEX($K23:$O23,1,aux!$AL$1))^(1/($O$3-INDEX($K$3:$O$3,1,aux!$AL$1)))-1,"n.d.") -> 0.03429370993 | AE23: =IF(INDEX($K23:$O23,1,aux!$AL$1)>0,(O23-INDEX($K23:$O23,1,aux!$AL$1))/INDEX($K23:$O23,1,aux!$AL$1),"n.d.") -> 0.1443938997 | AX23: 04
A24: 0403 | B24: Leitelho, leite coalhado, iogurte, etc. | C24: 658.565 | D24: 355.2 | E24: 101.083 | F24: 0 | G24: 0 | H24: 222.9696 | I24: 0.001413630405 | J24: 0.001128060952 | K24: 209.288 | L24: 234.863 | M24: 187.843 | N24: 159.085 | O24: 159.051 | P24: 190.026 | Q24: 0.0005005784578 | R24: 0.0002637844415 | S24: -32.9436 | U24: =G24-INDEX($C24:$G24,1,aux!$AL$1) -> -658.565 | V24: 0.008039809844 | W24: 0.00603537731 | X24: =+IF(INDEX($C24:$G24,1,aux!$AL$1)>0,(G24/INDEX($C24:$G24,1,aux!$AL$1))^(1/($G$3-INDEX($C$3:$G$3,1,aux!$AL$1)))-1,"n.d.") -> -1 | Y24: =IF(INDEX($C24:$G24,1,aux!$AL$1)>0,(G24-INDEX($C24:$G24,1,aux!$AL$1))/INDEX($C24:$G24,1,aux!$AL$1),"n.d.") -> -1 | AA24: =O24-INDEX($K24:$O24,1,aux!$AL$1) -> -50.237 | AB24: -0.0005231106793 | AC24: -0.0003425539396 | AD24: =+IF(INDEX($K24:$O24,1,aux!$AL$1)>0,(O24/INDEX($K24:$O24,1,aux!$AL$1))^(1/($O$3-INDEX($K$3:$O$3,1,aux!$AL$1)))-1,"n.d.") -> -0.06632007955 | AE24: =IF(INDEX($K24:$O24,1,aux!$AL$1)>0,(O24-INDEX($K24:$O24,1,aux!$AL$1))/INDEX($K24:$O24,1,aux!$AL$1),"n.d.") -> -0.2400376515 | AX24: 04
A25: 0404 | B25: Soro de leite e outros produtos do leite | C25: 191.473 | D25: 669.78 | E25: 0 | F25: 0 | G25: 0 | H25: 172.2506 | I25: 0.00109207123 | J25: 0.0008714603956 | K25: 40.935 | L25: 28.088 | M25: 5.756 | N25: 14.488 | O25: 486.402 | P25: 115.1338 | Q25: 0.0003032927076 | R25: 0.0001598228933 | S25: -57.1168 | U25: =G25-INDEX($C25:$G25,1,aux!$AL$1) -> -191.473 | V25: 0.002337516434 | W25: 0.001754742204 | X25: =+IF(INDEX($C25:$G25,1,aux!$AL$1)>0,(G25/INDEX($C25:$G25,1,aux!$AL$1))^(1/($G$3-INDEX($C$3:$G$3,1,aux!$AL$1)))-1,"n.d.") -> -1 | Y25: =IF(INDEX($C25:$G25,1,aux!$AL$1)>0,(G25-INDEX($C25:$G25,1,aux!$AL$1))/INDEX($C25:$G25,1,aux!$AL$1),"n.d.") -> -1 | AA25: =O25-INDEX($K25:$O25,1,aux!$AL$1) -> 445.467 | AB25: 0.004638584011 | AC25: 0.003037531616 | AD25: =+IF(INDEX($K25:$O25,1,aux!$AL$1)>0,(O25/INDEX($K25:$O25,1,aux!$AL$1))^(1/($O$3-INDEX($K$3:$O$3,1,aux!$AL$1)))-1,"n.d.") -> 0.856629041 | AE25: =IF(INDEX($K25:$O25,1,aux!$AL$1)>0,(O25-INDEX($K25:$O25,1,aux!$AL$1))/INDEX($K25:$O25,1,aux!$AL$1),"n.d.") -> 10.88230121 | AX25: 04
A26: 0405 | B26: Manteiga | C26: 275.521 | D26: 183.103 | E26: 24.629 | F26: 20.274 | G26: 122.621 | H26: 125.2296 | I26: 0.0007939574279 | J26: 0.0006335689789 | K26: 61.798 | L26: 70.795 | M26: 99.754 | N26: 252.975 | O26: 112.798 | P26: 119.624 | Q26: 0.0003151210752 | R26: 0.0001660559609 | S26: -5.6056 | U26: =G26-INDEX($C26:$G26,1,aux!$AL$1) -> -152.9 | V26: 0.001866614419 | W26: 0.001401242384 | X26: =+IF(INDEX($C26:$G26,1,aux!$AL$1)>0,(G26/INDEX($C26:$G26,1,aux!$AL$1))^(1/($G$3-INDEX($C$3:$G$3,1,aux!$AL$1)))-1,"n.d.") -> -0.1832248109 | Y26: =IF(INDEX($C26:$G26,1,aux!$AL$1)>0,(G26-INDEX($C26:$G26,1,aux!$AL$1))/INDEX($C26:$G26,1,aux!$AL$1),"n.d.") -> -0.5549486246 | AA26: =O26-INDEX($K26:$O26,1,aux!$AL$1) -> 51 | AB26: 0.0005310556889 | AC26: 0.0003477566518 | AD26: =+IF(INDEX($K26:$O26,1,aux!$AL$1)>0,(O26/INDEX($K26:$O26,1,aux!$AL$1))^(1/($O$3-INDEX($K$3:$O$3,1,aux!$AL$1)))-1,"n.d.") -> 0.1623361493 | AE26: =IF(INDEX($K26:$O26,1,aux!$AL$1)>0,(O26-INDEX($K26:$O26,1,aux!$AL$1))/INDEX($K26:$O26,1,aux!$AL$1),"n.d.") -> 0.8252694262 | AX26: 04
A27: 0406 | B27: Queijos e requeijão | C27: 6982.409 | D27: 5488.943 | E27: 558.936 | F27: 1007.754 | G27: 1576.468 | H27: 3122.902 | I27: 0.01979924267 | J27: 0.01579957 | K27: 1684.869 | L27: 1042.498 | M27: 1285.334 | N27: 1142.062 | O27: 1220.67 | P27: 1275.0866 | Q27: 0.003358913432 | R27: 0.001770010455 | S27: -1847.8154 | U27: =G27-INDEX($C27:$G27,1,aux!$AL$1) -> -5405.941 | V27: 0.0659961244 | W27: 0.04954240455 | X27: =+IF(INDEX($C27:$G27,1,aux!$AL$1)>0,(G27/INDEX($C27:$G27,1,aux!$AL$1))^(1/($G$3-INDEX($C$3:$G$3,1,aux!$AL$1)))-1,"n.d.") -> -0.3106814452 | Y27: =IF(INDEX($C27:$G27,1,aux!$AL$1)>0,(G27-INDEX($C27:$G27,1,aux!$AL$1))/INDEX($C27:$G27,1,aux!$AL$1),"n.d.") -> -0.7742229079 | AA27: =O27-INDEX($K27:$O27,1,aux!$AL$1) -> -464.199 | AB27: -0.004833637642 | AC27: -0.003165260589 | AD27: =+IF(INDEX($K27:$O27,1,aux!$AL$1)>0,(O27/INDEX($K27:$O27,1,aux!$AL$1))^(1/($O$3-INDEX($K$3:$O$3,1,aux!$AL$1)))-1,"n.d.") -> -0.07741150849 | AE27: =IF(INDEX($K27:$O27,1,aux!$AL$1)>0,(O27-INDEX($K27:$O27,1,aux!$AL$1))/INDEX($K27:$O27,1,aux!$AL$1),"n.d.") -> -0.2755104403 | AX27: 04
A28: 0407 | B28: Ovos de aves, com cascas | C28: 85.957 | D28: 9.226 | E28: 0 | F28: 207.528 | G28: 80.994 | H28: 76.741 | I28: 0.0004865390209 | J28: 0.0003882525937 | K28: 449.825 | L28: 244.797 | M28: 96.847 | N28: 421.935 | O28: 323.762 | P28: 307.4332 | Q28: 0.0008098598988 | R28: 0.0004267631533 | S28: 230.6922 | U28: =G28-INDEX($C28:$G28,1,aux!$AL$1) -> -4.963 | V28: 6.058866817e-05 | W28: 4.548309976e-05 | X28: =+IF(INDEX($C28:$G28,1,aux!$AL$1)>0,(G28/INDEX($C28:$G28,1,aux!$AL$1))^(1/($G$3-INDEX($C$3:$G$3,1,aux!$AL$1)))-1,"n.d.") -> -0.01475804003 | Y28: =IF(INDEX($C28:$G28,1,aux!$AL$1)>0,(G28-INDEX($C28:$G28,1,aux!$AL$1))/INDEX($C28:$G28,1,aux!$AL$1),"n.d.") -> -0.05773817141 | AA28: =O28-INDEX($K28:$O28,1,aux!$AL$1) -> -126.063 | AB28: -0.001312675947 | AC28: -0.0008595930745 | AD28: =+IF(INDEX($K28:$O28,1,aux!$AL$1)>0,(O28/INDEX($K28:$O28,1,aux!$AL$1))^(1/($O$3-INDEX($K$3:$O$3,1,aux!$AL$1)))-1,"n.d.") -> -0.07892377704 | AE28: =IF(INDEX($K28:$O28,1,aux!$AL$1)>0,(O28-INDEX($K28:$O28,1,aux!$AL$1))/INDEX($K28:$O28,1,aux!$AL$1),"n.d.") -> -0.2802489857 | AX28: 04
A29: 0408 | B29: Ovos de aves, sem casca | C29: 63.017 | D29: 29.324 | E29: 0 | F29: 0 | G29: 0 | H29: 18.4682 | I29: 0.0001170886481 | J29: 9.343540677e-05 | K29: 10.297 | L29: 17.822 | M29: 0.145 | N29: 0.755 | O29: 0 | P29: 5.8038 | Q29: 1.528873551e-05 | R29: 8.056540377e-06 | S29: -12.6644 | U29: =G29-INDEX($C29:$G29,1,aux!$AL$1) -> -63.017 | V29: 0.00076931616 | W29: 0.0005775153128 | X29: =+IF(INDEX($C29:$G29,1,aux!$AL$1)>0,(G29/INDEX($C29:$G29,1,aux!$AL$1))^(1/($G$3-INDEX($C$3:$G$3,1,aux!$AL$1)))-1,"n.d.") -> -1 | Y29: =IF(INDEX($C29:$G29,1,aux!$AL$1)>0,(G29-INDEX($C29:$G29,1,aux!$AL$1))/INDEX($C29:$G29,1,aux!$AL$1),"n.d.") -> -1 | AA29: =O29-INDEX($K29:$O29,1,aux!$AL$1) -> -10.297 | AB29: -0.0001072211849 | AC29: -7.021274988e-05 | AD29: =+IF(INDEX($K29:$O29,1,aux!$AL$1)>0,(O29/INDEX($K29:$O29,1,aux!$AL$1))^(1/($O$3-INDEX($K$3:$O$3,1,aux!$AL$1)))-1,"n.d.") -> -1 | AE29: =IF(INDEX($K29:$O29,1,aux!$AL$1)>0,(O29-INDEX($K29:$O29,1,aux!$AL$1))/INDEX($K29:$O29,1,aux!$AL$1),"n.d.") -> -1 | AX29: 04
A30: 0409 | B30: Mel natural | C30: 26.561 | D30: 33.71 | E30: 11.924 | F30: 8.354 | G30: 0.215 | H30: 16.1528 | I30: 0.0001024089795 | J30: 8.172119852e-05 | K30: 568.464 | L30: 290.211 | M30: 339.28 | N30: 116.297 | O30: 228.139 | P30: 308.4782 | Q30: 0.0008126127036 | R30: 0.0004282137692 | S30: 292.3254 | U30: =G30-INDEX($C30:$G30,1,aux!$AL$1) -> -26.346 | V30: 0.0003216339012 | W30: 0.0002414462515 | X30: =+IF(INDEX($C30:$G30,1,aux!$AL$1)>0,(G30/INDEX($C30:$G30,1,aux!$AL$1))^(1/($G$3-INDEX($C$3:$G$3,1,aux!$AL$1)))-1,"n.d.") -> -0.7000502464 | Y30: =IF(INDEX($C30:$G30,1,aux!$AL$1)>0,(G30-INDEX($C30:$G30,1,aux!$AL$1))/INDEX($C30:$G30,1,aux!$AL$1),"n.d.") -> -0.9919054252 | AA30: =O30-INDEX($K30:$O30,1,aux!$AL$1) -> -340.325 | AB30: -0.003543755438 | AC30: -0.002320593775 | AD30: =+IF(INDEX($K30:$O30,1,aux!$AL$1)>0,(O30/INDEX($K30:$O30,1,aux!$AL$1))^(1/($O$3-INDEX($K$3:$O$3,1,aux!$AL$1)))-1,"n.d.") -> -0.2040713426 | AE30: =IF(INDEX($K30:$O30,1,aux!$AL$1)>0,(O30-INDEX($K30:$O30,1,aux!$AL$1))/INDEX($K30:$O30,1,aux!$AL$1),"n.d.") -> -0.5986746742 | AX30: 04
A31: 0410 | B31: Outros produtos comestíveis de origem animal | C31: 11.761 | D31: 16.356 | E31: 0 | F31: 0.121 | G31: 0 | H31: 5.6476 | I31: 3.580586355e-05 | J31: 2.857267104e-05 | K31: 0 | L31: 0 | M31: 1.631 | N31: 0.703 | O31: 0.926 | P31: 0.652 | Q31: 1.717539466e-06 | R31: 9.05073284e-07 | S31: -4.9956 | U31: =G31-INDEX($C31:$G31,1,aux!$AL$1) -> -11.761 | V31: 0.000143579151 | W31: 0.000107782941 | X31: =+IF(INDEX($C31:$G31,1,aux!$AL$1)>0,(G31/INDEX($C31:$G31,1,aux!$AL$1))^(1/($G$3-INDEX($C$3:$G$3,1,aux!$AL$1)))-1,"n.d.") -> -1 | Y31: =IF(INDEX($C31:$G31,1,aux!$AL$1)>0,(G31-INDEX($C31:$G31,1,aux!$AL$1))/INDEX($C31:$G31,1,aux!$AL$1),"n.d.") -> -1 | AA31: =O31-INDEX($K31:$O31,1,aux!$AL$1) -> 0.926 | AB31: 9.642305254e-06 | AC31: 6.314169796e-06 | AD31: =+IF(INDEX($K31:$O31,1,aux!$AL$1)>0,(O31/INDEX($K31:$O31,1,aux!$AL$1))^(1/($O$3-INDEX($K$3:$O$3,1,aux!$AL$1)))-1,"n.d.") -> n.d. | AE31: =IF(INDEX($K31:$O31,1,aux!$AL$1)>0,(O31-INDEX($K31:$O31,1,aux!$AL$1))/INDEX($K31:$O31,1,aux!$AL$1),"n.d.") -> n.d. | AX31: 04
A32: 04SS | B32: Leite e lacticínios; ovos de aves; mel natural; etc. | C32: 0 | D32: 0 | E32: 0 | F32: 0 | G32: 0 | H32: 0 | I32: 0 | J32: 0 | K32: 0 | L32: 0 | M32: 0 | N32: 0 | O32: 0 | P32: 0 | Q32: 0 | R32: 0 | S32: 0 | U32: =G32-INDEX($C32:$G32,1,aux!$AL$1) -> 0 | V32: 0 | W32: 0 | X32: =+IF(INDEX($C32:$G32,1,aux!$AL$1)>0,(G32/INDEX($C32:$G32,1,aux!$AL$1))^(1/($G$3-INDEX($C$3:$G$3,1,aux!$AL$1)))-1,"n.d.") -> n.d. | Y32: =IF(INDEX($C32:$G32,1,aux!$AL$1)>0,(G32-INDEX($C32:$G32,1,aux!$AL$1))/INDEX($C32:$G32,1,aux!$AL$1),"n.d.") -> n.d. | AA32: =O32-INDEX($K32:$O32,1,aux!$AL$1) -> 0 | AB32: 0 | AC32: 0 | AD32: =+IF(INDEX($K32:$O32,1,aux!$AL$1)>0,(O32/INDEX($K32:$O32,1,aux!$AL$1))^(1/($O$3-INDEX($K$3:$O$3,1,aux!$AL$1)))-1,"n.d.") -> n.d. | AE32: =IF(INDEX($K32:$O32,1,aux!$AL$1)>0,(O32-INDEX($K32:$O32,1,aux!$AL$1))/INDEX($K32:$O32,1,aux!$AL$1),"n.d.") -> n.d. | AX32: 04
A33: 0501 | B33: Cabelos em bruto | C33: 0 | D33: 0 | E33: 0.195 | F33: 0.915 | G33: 1.106 | H33: 0.4432 | I33: 2.809894243e-06 | J33: 2.242263582e-06 | K33: 0 | L33: 0 | M33: 0.1 | N33: 0 | O33: 0 | P33: 0.02 | Q33: 5.268525968e-08 | R33: 2.776298417e-08 | S33: -0.4232 | U33: =G33-INDEX($C33:$G33,1,aux!$AL$1) -> 1.106 | V33: -1.350212916e-05 | W33: -1.013586708e-05 | X33: =+IF(INDEX($C33:$G33,1,aux!$AL$1)>0,(G33/INDEX($C33:$G33,1,aux!$AL$1))^(1/($G$3-INDEX($C$3:$G$3,1,aux!$AL$1)))-1,"n.d.") -> n.d. | Y33: =IF(INDEX($C33:$G33,1,aux!$AL$1)>0,(G33-INDEX($C33:$G33,1,aux!$AL$1))/INDEX($C33:$G33,1,aux!$AL$1),"n.d.") -> n.d. | AA33: =O33-INDEX($K33:$O33,1,aux!$AL$1) -> 0 | AB33: 0 | AC33: 0 | AD33: =+IF(INDEX($K33:$O33,1,aux!$AL$1)>0,(O33/INDEX($K33:$O33,1,aux!$AL$1))^(1/($O$3-INDEX($K$3:$O$3,1,aux!$AL$1)))-1,"n.d.") -> n.d. | AE33: =IF(INDEX($K33:$O33,1,aux!$AL$1)>0,(O33-INDEX($K33:$O33,1,aux!$AL$1))/INDEX($K33:$O33,1,aux!$AL$1),"n.d.") -> n.d. | AX33: 05
A34: 0502 | B34: Cerdas de porco ou de javali, etc. | C34: 0 | D34: 0 | E34: 0.008 | F34: 0 | G34: 0 | H34: 0.0016 | I34: 1.014402254e-08 | J34: 8.094814375e-09 | K34: 0 | L34: 0 | M34: 0 | N34: 0 | O34: 0 | P34: 0 | Q34: 0 | R34: 0 | S34: -0.0016 | U34: =G34-INDEX($C34:$G34,1,aux!$AL$1) -> 0 | V34: 0 | W34: 0 | X34: =+IF(INDEX($C34:$G34,1,aux!$AL$1)>0,(G34/INDEX($C34:$G34,1,aux!$AL$1))^(1/($G$3-INDEX($C$3:$G$3,1,aux!$AL$1)))-1,"n.d.") -> n.d. | Y34: =IF(INDEX($C34:$G34,1,aux!$AL$1)>0,(G34-INDEX($C34:$G34,1,aux!$AL$1))/INDEX($C34:$G34,1,aux!$AL$1),"n.d.") -> n.d. | AA34: =O34-INDEX($K34:$O34,1,aux!$AL$1) -> 0 | AB34: 0 | AC34: 0 | AD34: =+IF(INDEX($K34:$O34,1,aux!$AL$1)>0,(O34/INDEX($K34:$O34,1,aux!$AL$1))^(1/($O$3-INDEX($K$3:$O$3,1,aux!$AL$1)))-1,"n.d.") -> n.d. | AE34: =IF(INDEX($K34:$O34,1,aux!$AL$1)>0,(O34-INDEX($K34:$O34,1,aux!$AL$1))/INDEX($K34:$O34,1,aux!$AL$1),"n.d.") -> n.d. | AX34: 05
A35: 0504 | B35: Tripas de animais (excepto peixes) | C35: 949.259 | D35: 0 | E35: 0 | F35: 275.66 | G35: 1130.528 | H35: 471.0894 | I35: 0.002986713432 | J35: 0.002383363279 | K35: 504.987 | L35: 197.984 | M35: 182.367 | N35: 163.184 | O35: 167.936 | P35: 243.2916 | Q35: 0.0006408940562 | R35: 0.000337725042 | S35: -227.7978 | U35: =G35-INDEX($C35:$G35,1,aux!$AL$1) -> 181.269 | V35: -0.002212945253 | W35: -0.001661228291 | X35: =+IF(INDEX($C35:$G35,1,aux!$AL$1)>0,(G35/INDEX($C35:$G35,1,aux!$AL$1))^(1/($G$3-INDEX($C$3:$G$3,1,aux!$AL$1)))-1,"n.d.") -> 0.04465803721 | Y35: =IF(INDEX($C35:$G35,1,aux!$AL$1)>0,(G35-INDEX($C35:$G35,1,aux!$AL$1))/INDEX($C35:$G35,1,aux!$AL$1),"n.d.") -> 0.1909584213 | AA35: =O35-INDEX($K35:$O35,1,aux!$AL$1) -> -337.051 | AB35: -0.003509663745 | AC35: -0.002298269162 | AD35: =+IF(INDEX($K35:$O35,1,aux!$AL$1)>0,(O35/INDEX($K35:$O35,1,aux!$AL$1))^(1/($O$3-INDEX($K$3:$O$3,1,aux!$AL$1)))-1,"n.d.") -> -0.2406082028 | AE35: =IF(INDEX($K35:$O35,1,aux!$AL$1)>0,(O35-INDEX($K35:$O35,1,aux!$AL$1))/INDEX($K35:$O35,1,aux!$AL$1),"n.d.") -> -0.6674449045 | AX35: 05
A36: 0505 | B36: Peles e outras partes de aves | C36: 0 | D36: 0 | E36: 0 | F36: 0.111 | G36: 0.308 | H36: 0.0838 | I36: 5.312931804e-07 | J36: 4.239659029e-07 | K36: 47.934 | L36: 27.113 | M36: 41.778 | N36: 42.6 | O36: 18.193 | P36: 35.5236 | Q36: 9.357850454e-05 | R36: 4.931205723e-05 | S36: 35.4398 | U36: =G36-INDEX($C36:$G36,1,aux!$AL$1) -> 0.308 | V36: -3.7600866e-06 | W36: -2.822646529e-06 | X36: =+IF(INDEX($C36:$G36,1,aux!$AL$1)>0,(G36/INDEX($C36:$G36,1,aux!$AL$1))^(1/($G$3-INDEX($C$3:$G$3,1,aux!$AL$1)))-1,"n.d.") -> n.d. | Y36: =IF(INDEX($C36:$G36,1,aux!$AL$1)>0,(G36-INDEX($C36:$G36,1,aux!$AL$1))/INDEX($C36:$G36,1,aux!$AL$1),"n.d.") -> n.d. | AA36: =O36-INDEX($K36:$O36,1,aux!$AL$1) -> -29.741 | AB36: -0.0003096887695 | AC36: -0.0002027966781 | AD36: =+IF(INDEX($K36:$O36,1,aux!$AL$1)>0,(O36/INDEX($K36:$O36,1,aux!$AL$1))^(1/($O$3-INDEX($K$3:$O$3,1,aux!$AL$1)))-1,"n.d.") -> -0.2150984947 | AE36: =IF(INDEX($K36:$O36,1,aux!$AL$1)>0,(O36-INDEX($K36:$O36,1,aux!$AL$1))/INDEX($K36:$O36,1,aux!$AL$1),"n.d.") -> -0.6204572954 | AX36: 05
A37: 0506 | B37: Ossos e núcleos córneos, em bruto | C37: 0.085 | D37: 0 | E37: 0 | F37: 0.001 | G37: 0 | H37: 0.0172 | I37: 1.090482423e-07 | J37: 8.701925453e-08 | K37: 9.576 | L37: 0 | M37: 0 | N37: 0.006 | O37: 0 | P37: 1.9164 | Q37: 5.048301583e-06 | R37: 2.660249143e-06 | S37: 1.8992 | U37: =G37-INDEX($C37:$G37,1,aux!$AL$1) -> -0.085 | V37: 1.037686237e-06 | W37: 7.789771266e-07 | X37: =+IF(INDEX($C37:$G37,1,aux!$AL$1)>0,(G37/INDEX($C37:$G37,1,aux!$AL$1))^(1/($G$3-INDEX($C$3:$G$3,1,aux!$AL$1)))-1,"n.d.") -> -1 | Y37: =IF(INDEX($C37:$G37,1,aux!$AL$1)>0,(G37-INDEX($C37:$G37,1,aux!$AL$1))/INDEX($C37:$G37,1,aux!$AL$1),"n.d.") -> -1 | AA37: =O37-INDEX($K37:$O37,1,aux!$AL$1) -> -9.576 | AB37: -9.971351524e-05 | AC37: -6.529642545e-05 | AD37: =+IF(INDEX($K37:$O37,1,aux!$AL$1)>0,(O37/INDEX($K37:$O37,1,aux!$AL$1))^(1/($O$3-INDEX($K$3:$O$3,1,aux!$AL$1)))-1,"n.d.") -> -1 | AE37: =IF(INDEX($K37:$O37,1,aux!$AL$1)>0,(O37-INDEX($K37:$O37,1,aux!$AL$1))/INDEX($K37:$O37,1,aux!$AL$1),"n.d.") -> -1 | AX37: 05
A38: 0507 | B38: Marfim, carapaças de tartaruga, etc. | C38: 0 | D38: 0 | E38: 0 | F38: 0 | G38: 0 | H38: 0 | I38: 0 | J38: 0 | K38: 0 | L38: 0 | M38: 0 | N38: 0 | O38: 0 | P38: 0 | Q38: 0 | R38: 0 | S38: 0 | U38: =G38-INDEX($C38:$G38,1,aux!$AL$1) -> 0 | V38: 0 | W38: 0 | X38: =+IF(INDEX($C38:$G38,1,aux!$AL$1)>0,(G38/INDEX($C38:$G38,1,aux!$AL$1))^(1/($G$3-INDEX($C$3:$G$3,1,aux!$AL$1)))-1,"n.d.") -> n.d. | Y38: =IF(INDEX($C38:$G38,1,aux!$AL$1)>0,(G38-INDEX($C38:$G38,1,aux!$AL$1))/INDEX($C38:$G38,1,aux!$AL$1),"n.d.") -> n.d. | AA38: =O38-INDEX($K38:$O38,1,aux!$AL$1) -> 0 | AB38: 0 | AC38: 0 | AD38: =+IF(INDEX($K38:$O38,1,aux!$AL$1)>0,(O38/INDEX($K38:$O38,1,aux!$AL$1))^(1/($O$3-INDEX($K$3:$O$3,1,aux!$AL$1)))-1,"n.d.") -> n.d. | AE38: =IF(INDEX($K38:$O38,1,aux!$AL$1)>0,(O38-INDEX($K38:$O38,1,aux!$AL$1))/INDEX($K38:$O38,1,aux!$AL$1),"n.d.") -> n.d. | AX38: 05
A39: 0510 | B39: Âmbar-cinzento, castóreo, algália e almíscar, etc. | C39: 0 | D39: 0 | E39: 0 | F39: 0 | G39: 0 | H39: 0 | I39: 0 | J39: 0 | K39: 0 | L39: 0 | M39: 0 | N39: 0 | O39: 0 | P39: 0 | Q39: 0 | R39: 0 | S39: 0 | U39: =G39-INDEX($C39:$G39,1,aux!$AL$1) -> 0 | V39: 0 | W39: 0 | X39: =+IF(INDEX($C39:$G39,1,aux!$AL$1)>0,(G39/INDEX($C39:$G39,1,aux!$AL$1))^(1/($G$3-INDEX($C$3:$G$3,1,aux!$AL$1)))-1,"n.d.") -> n.d. | Y39: =IF(INDEX($C39:$G39,1,aux!$AL$1)>0,(G39-INDEX($C39:$G39,1,aux!$AL$1))/INDEX($C39:$G39,1,aux!$AL$1),"n.d.") -> n.d. | AA39: =O39-INDEX($K39:$O39,1,aux!$AL$1) -> 0 | AB39: 0 | AC39: 0 | AD39: =+IF(INDEX($K39:$O39,1,aux!$AL$1)>0,(O39/INDEX($K39:$O39,1,aux!$AL$1))^(1/($O$3-INDEX($K$3:$O$3,1,aux!$AL$1)))-1,"n.d.") -> n.d. | AE39: =IF(INDEX($K39:$O39,1,aux!$AL$1)>0,(O39-INDEX($K39:$O39,1,aux!$AL$1))/INDEX($K39:$O39,1,aux!$AL$1),"n.d.") -> n.d. | AX39: 05
A40: 0511 | B40: Outros produtos de origem animal (exc. NC 0511 91) (a) | C40: 194.043 | D40: 482.649 | E40: 362.828 | F40: 240.436 | G40: 286.298 | H40: 313.2508 | I40: 0.001986014484 | J40: 0.001584816924 | K40: 0 | L40: 0 | M40: 41.986 | N40: 0.39 | O40: 0.242 | P40: 8.5236 | Q40: 2.245340397e-05 | R40: 1.183202859e-05 | S40: -304.7272 | U40: =G40-INDEX($C40:$G40,1,aux!$AL$1) -> 92.255 | V40: -0.001126255809 | W40: -0.0008454651155 | X40: =+IF(INDEX($C40:$G40,1,aux!$AL$1)>0,(G40/INDEX($C40:$G40,1,aux!$AL$1))^(1/($G$3-INDEX($C$3:$G$3,1,aux!$AL$1)))-1,"n.d.") -> 0.102123045 | Y40: =IF(INDEX($C40:$G40,1,aux!$AL$1)>0,(G40-INDEX($C40:$G40,1,aux!$AL$1))/INDEX($C40:$G40,1,aux!$AL$1),"n.d.") -> 0.475435857 | AA40: =O40-INDEX($K40:$O40,1,aux!$AL$1) -> 0.242 | AB40: 2.519911308e-06 | AC40: 1.650139407e-06 | AD40: =+IF(INDEX($K40:$O40,1,aux!$AL$1)>0,(O40/INDEX($K40:$O40,1,aux!$AL$1))^(1/($O$3-INDEX($K$3:$O$3,1,aux!$AL$1)))-1,"n.d.") -> n.d. | AE40: =IF(INDEX($K40:$O40,1,aux!$AL$1)>0,(O40-INDEX($K40:$O40,1,aux!$AL$1))/INDEX($K40:$O40,1,aux!$AL$1),"n.d.") -> n.d. | AX40: 05
A41: 05SS | B41: Outros produtos de origem animal | C41: 0 | D41: 0 | E41: 0 | F41: 0 | G41: 0 | H41: 0 | I41: 0 | J41: 0 | K41: 0 | L41: 0 | M41: 0 | N41: 0 | O41: 0 | P41: 0 | Q41: 0 | R41: 0 | S41: 0 | U41: =G41-INDEX($C41:$G41,1,aux!$AL$1) -> 0 | V41: 0 | W41: 0 | X41: =+IF(INDEX($C41:$G41,1,aux!$AL$1)>0,(G41/INDEX($C41:$G41,1,aux!$AL$1))^(1/($G$3-INDEX($C$3:$G$3,1,aux!$AL$1)))-1,"n.d.") -> n.d. | Y41: =IF(INDEX($C41:$G41,1,aux!$AL$1)>0,(G41-INDEX($C41:$G41,1,aux!$AL$1))/INDEX($C41:$G41,1,aux!$AL$1),"n.d.") -> n.d. | AA41: =O41-INDEX($K41:$O41,1,aux!$AL$1) -> 0 | AB41: 0 | AC41: 0 | AD41: =+IF(INDEX($K41:$O41,1,aux!$AL$1)>0,(O41/INDEX($K41:$O41,1,aux!$AL$1))^(1/($O$3-INDEX($K$3:$O$3,1,aux!$AL$1)))-1,"n.d.") -> n.d. | AE41: =IF(INDEX($K41:$O41,1,aux!$AL$1)>0,(O41-INDEX($K41:$O41,1,aux!$AL$1))/INDEX($K41:$O41,1,aux!$AL$1),"n.d.") -> n.d. | AX41: 05
A42: 0601 | B42: Bolbos, tubérculos, raízes, etc. | C42: 0 | D42: 0.053 | E42: 0 | F42: 1.605 | G42: 0.608 | H42: 0.4532 | I42: 2.873294384e-06 | J42: 2.292856172e-06 | K42: 0 | L42: 0 | M42: 0 | N42: 0 | O42: 0 | P42: 0 | Q42: 0 | R42: 0 | S42: -0.4532 | U42: =G42-INDEX($C42:$G42,1,aux!$AL$1) -> 0.608 | V42: -7.422508613e-06 | W42: -5.571977564e-06 | X42: =+IF(INDEX($C42:$G42,1,aux!$AL$1)>0,(G42/INDEX($C42:$G42,1,aux!$AL$1))^(1/($G$3-INDEX($C$3:$G$3,1,aux!$AL$1)))-1,"n.d.") -> n.d. | Y42: =IF(INDEX($C42:$G42,1,aux!$AL$1)>0,(G42-INDEX($C42:$G42,1,aux!$AL$1))/INDEX($C42:$G42,1,aux!$AL$1),"n.d.") -> n.d. | AA42: =O42-INDEX($K42:$O42,1,aux!$AL$1) -> 0 | AB42: 0 | AC42: 0 | AD42: =+IF(INDEX($K42:$O42,1,aux!$AL$1)>0,(O42/INDEX($K42:$O42,1,aux!$AL$1))^(1/($O$3-INDEX($K$3:$O$3,1,aux!$AL$1)))-1,"n.d.") -> n.d. | AE42: =IF(INDEX($K42:$O42,1,aux!$AL$1)>0,(O42-INDEX($K42:$O42,1,aux!$AL$1))/INDEX($K42:$O42,1,aux!$AL$1),"n.d.") -> n.d. | AX42: 06
A43: 0602 | B43: Plantas vivas | C43: 289.992 | D43: 1314.169 | E43: 2584.816 | F43: 1160.435 | G43: 398.672 | H43: 1149.6168 | I43: 0.007288586705 | J43: 0.005816209124 | K43: 5034.966 | L43: 5312.798 | M43: 6242.434 | N43: 5907.419 | O43: 6285.856 | P43: 5756.6946 | Q43: 0.0151646475 | R43: 0.007991151053 | S43: 4607.0778 | U43: =G43-INDEX($C43:$G43,1,aux!$AL$1) -> 108.68 | V43: -0.001326773415 | W43: -0.0009959909896 | X43: =+IF(INDEX($C43:$G43,1,aux!$AL$1)>0,(G43/INDEX($C43:$G43,1,aux!$AL$1))^(1/($G$3-INDEX($C$3:$G$3,1,aux!$AL$1)))-1,"n.d.") -> 0.08282289395 | Y43: =IF(INDEX($C43:$G43,1,aux!$AL$1)>0,(G43-INDEX($C43:$G43,1,aux!$AL$1))/INDEX($C43:$G43,1,aux!$AL$1),"n.d.") -> 0.3747689591 | AA43: =O43-INDEX($K43:$O43,1,aux!$AL$1) -> 1250.89 | AB43: 0.01302533825 | AC43: 0.008529516044 | AD43: =+IF(INDEX($K43:$O43,1,aux!$AL$1)>0,(O43/INDEX($K43:$O43,1,aux!$AL$1))^(1/($O$3-INDEX($K$3:$O$3,1,aux!$AL$1)))-1,"n.d.") -> 0.0570413372 | AE43: =IF(INDEX($K43:$O43,1,aux!$AL$1)>0,(O43-INDEX($K43:$O43,1,aux!$AL$1))/INDEX($K43:$O43,1,aux!$AL$1),"n.d.") -> 0.2484406052 | AX43: 06
A44: 0603 | B44: Flores e seus botões | C44: 0 | D44: 0.721 | E44: 0.683 | F44: 0.887 | G44: 0.245 | H44: 0.5072 | I44: 3.215655144e-06 | J44: 2.566056157e-06 | K44: 0 | L44: 0 | M44: 4.021 | N44: 0.364 | O44: 0.122 | P44: 0.9014 | Q44: 2.374524654e-06 | R44: 1.251277697e-06 | S44: 0.3942 | U44: =G44-INDEX($C44:$G44,1,aux!$AL$1) -> 0.245 | V44: -2.990977977e-06 | W44: -2.245287012e-06 | X44: =+IF(INDEX($C44:$G44,1,aux!$AL$1)>0,(G44/INDEX($C44:$G44,1,aux!$AL$1))^(1/($G$3-INDEX($C$3:$G$3,1,aux!$AL$1)))-1,"n.d.") -> n.d. | Y44: =IF(INDEX($C44:$G44,1,aux!$AL$1)>0,(G44-INDEX($C44:$G44,1,aux!$AL$1))/INDEX($C44:$G44,1,aux!$AL$1),"n.d.") -> n.d. | AA44: =O44-INDEX($K44:$O44,1,aux!$AL$1) -> 0.122 | AB44: 1.270368511e-06 | AC44: 8.318884613e-07 | AD44: =+IF(INDEX($K44:$O44,1,aux!$AL$1)>0,(O44/INDEX($K44:$O44,1,aux!$AL$1))^(1/($O$3-INDEX($K$3:$O$3,1,aux!$AL$1)))-1,"n.d.") -> n.d. | AE44: =IF(INDEX($K44:$O44,1,aux!$AL$1)>0,(O44-INDEX($K44:$O44,1,aux!$AL$1))/INDEX($K44:$O44,1,aux!$AL$1),"n.d.") -> n.d. | AX44: 06
A45: 0604 | B45: Folhagem, folhas, ramos e outras partes de plantas | C45: 0.404 | D45: 0.028 | E45: 0 | F45: 2.395 | G45: 3.333 | H45: 1.232 | I45: 7.810897353e-06 | J45: 6.233007068e-06 | K45: 76.627 | L45: 156.001 | M45: 0.327 | N45: 101.164 | O45: 109.992 | P45: 88.8222 | Q45: 0.0002339810336 | R45: 0.0001232984666 | S45: 87.5902 | U45: =G45-INDEX($C45:$G45,1,aux!$AL$1) -> 2.929 | V45: -3.575744692e-05 | W45: -2.684263534e-05 | X45: =+IF(INDEX($C45:$G45,1,aux!$AL$1)>0,(G45/INDEX($C45:$G45,1,aux!$AL$1))^(1/($G$3-INDEX($C$3:$G$3,1,aux!$AL$1)))-1,"n.d.") -> 0.6947806121 | Y45: =IF(INDEX($C45:$G45,1,aux!$AL$1)>0,(G45-INDEX($C45:$G45,1,aux!$AL$1))/INDEX($C45:$G45,1,aux!$AL$1),"n.d.") -> 7.25 | AA45: =O45-INDEX($K45:$O45,1,aux!$AL$1) -> 33.365 | AB45: 0.000347424962 | AC45: 0.0002275078566 | AD45: =+IF(INDEX($K45:$O45,1,aux!$AL$1)>0,(O45/INDEX($K45:$O45,1,aux!$AL$1))^(1/($O$3-INDEX($K$3:$O$3,1,aux!$AL$1)))-1,"n.d.") -> 0.09457322146 | AE45: =IF(INDEX($K45:$O45,1,aux!$AL$1)>0,(O45-INDEX($K45:$O45,1,aux!$AL$1))/INDEX($K45:$O45,1,aux!$AL$1),"n.d.") -> 0.4354209352 | AX45: 06
A46: 06SS | B46: Plantas vivas e produtos de floricultura | C46: 0 | D46: 0 | E46: 0 | F46: 0 | G46: 0 | H46: 0 | I46: 0 | J46: 0 | K46: 0 | L46: 0 | M46: 0 | N46: 0 | O46: 0 | P46: 0 | Q46: 0 | R46: 0 | S46: 0 | U46: =G46-INDEX($C46:$G46,1,aux!$AL$1) -> 0 | V46: 0 | W46: 0 | X46: =+IF(INDEX($C46:$G46,1,aux!$AL$1)>0,(G46/INDEX($C46:$G46,1,aux!$AL$1))^(1/($G$3-INDEX($C$3:$G$3,1,aux!$AL$1)))-1,"n.d.") -> n.d. | Y46: =IF(INDEX($C46:$G46,1,aux!$AL$1)>0,(G46-INDEX($C46:$G46,1,aux!$AL$1))/INDEX($C46:$G46,1,aux!$AL$1),"n.d.") -> n.d. | AA46: =O46-INDEX($K46:$O46,1,aux!$AL$1) -> 0 | AB46: 0 | AC46: 0 | AD46: =+IF(INDEX($K46:$O46,1,aux!$AL$1)>0,(O46/INDEX($K46:$O46,1,aux!$AL$1))^(1/($O$3-INDEX($K$3:$O$3,1,aux!$AL$1)))-1,"n.d.") -> n.d. | AE46: =IF(INDEX($K46:$O46,1,aux!$AL$1)>0,(O46-INDEX($K46:$O46,1,aux!$AL$1))/INDEX($K46:$O46,1,aux!$AL$1),"n.d.") -> n.d. | AX46: 06
A47: 0701 | B47: Batatas, frescas ou refrigeradas | C47: 2086.74 | D47: 910.403 | E47: 0 | F47: 0 | G47: 40.24 | H47: 607.4766 | I47: 0.003851410201 | J47: 0.003073381446 | K47: 134.276 | L47: 26.956 | M47: 16.743 | N47: 1.563 | O47: 3.462 | P47: 36.6 | Q47: 9.641402522e-05 | R47: 5.080626103e-05 | S47: -570.8766 | U47: =G47-INDEX($C47:$G47,1,aux!$AL$1) -> -2046.5 | V47: 0.02498382217 | W47: 0.01875501988 | X47: =+IF(INDEX($C47:$G47,1,aux!$AL$1)>0,(G47/INDEX($C47:$G47,1,aux!$AL$1))^(1/($G$3-INDEX($C$3:$G$3,1,aux!$AL$1)))-1,"n.d.") -> -0.6273531901 | Y47: =IF(INDEX($C47:$G47,1,aux!$AL$1)>0,(G47-INDEX($C47:$G47,1,aux!$AL$1))/INDEX($C47:$G47,1,aux!$AL$1),"n.d.") -> -0.9807163327 | AA47: =O47-INDEX($K47:$O47,1,aux!$AL$1) -> -130.814 | AB47: -0.001362147429 | AC47: -0.0008919889932 | AD47: =+IF(INDEX($K47:$O47,1,aux!$AL$1)>0,(O47/INDEX($K47:$O47,1,aux!$AL$1))^(1/($O$3-INDEX($K$3:$O$3,1,aux!$AL$1)))-1,"n.d.") -> -0.5992881673 | AE47: =IF(INDEX($K47:$O47,1,aux!$AL$1)>0,(O47-INDEX($K47:$O47,1,aux!$AL$1))/INDEX($K47:$O47,1,aux!$AL$1),"n.d.") -> -0.9742172838 | AX47: 07
A48: 0702 | B48: Tomates, frescos ou refrigerados | C48: 0.079 | D48: 6.551 | E48: 0 | F48: 0 | G48: 0 | H48: 1.326 | I48: 8.406858677e-06 | J48: 6.708577413e-06 | K48: 36.541 | L48: 5.123 | M48: 4804.639 | N48: 1758.891 | O48: 15.266 | P48: 1324.092 | Q48: 0.003488006543 | R48: 0.001838037262 | S48: 1322.766 | U48: =G48-INDEX($C48:$G48,1,aux!$AL$1) -> -0.079 | V48: 9.644377968e-07 | W48: 7.239905059e-07 | X48: =+IF(INDEX($C48:$G48,1,aux!$AL$1)>0,(G48/INDEX($C48:$G48,1,aux!$AL$1))^(1/($G$3-INDEX($C$3:$G$3,1,aux!$AL$1)))-1,"n.d.") -> -1 | Y48: =IF(INDEX($C48:$G48,1,aux!$AL$1)>0,(G48-INDEX($C48:$G48,1,aux!$AL$1))/INDEX($C48:$G48,1,aux!$AL$1),"n.d.") -> -1 | AA48: =O48-INDEX($K48:$O48,1,aux!$AL$1) -> -21.275 | AB48: -0.0002215335251 | AC48: -0.0001450690739 | AD48: =+IF(INDEX($K48:$O48,1,aux!$AL$1)>0,(O48/INDEX($K48:$O48,1,aux!$AL$1))^(1/($O$3-INDEX($K$3:$O$3,1,aux!$AL$1)))-1,"n.d.") -> -0.196036731 | AE48: =IF(INDEX($K48:$O48,1,aux!$AL$1)>0,(O48-INDEX($K48:$O48,1,aux!$AL$1))/INDEX($K48:$O48,1,aux!$AL$1),"n.d.") -> -0.5822227087 | AX48: 07
A49: 0703 | B49: Cebolas, alhos, etc., frescos ou refrigerados | C49: 8.458 | D49: 31.4 | E49: 0.793 | F49: 0.643 | G49: 0 | H49: 8.2588 | I49: 5.236090833e-05 | J49: 4.17834081e-05 | K49: 6.545 | L49: 27.854 | M49: 100.892 | N49: 8.32 | O49: 8.63 | P49: 30.4482 | Q49: 8.020856619e-05 | R49: 4.226664473e-05 | S49: 22.1894 | U49: =G49-INDEX($C49:$G49,1,aux!$AL$1) -> -8.458 | V49: 0.0001032558846 | W49: 7.751280632e-05 | X49: =+IF(INDEX($C49:$G49,1,aux!$AL$1)>0,(G49/INDEX($C49:$G49,1,aux!$AL$1))^(1/($G$3-INDEX($C$3:$G$3,1,aux!$AL$1)))-1,"n.d.") -> -1 | Y49: =IF(INDEX($C49:$G49,1,aux!$AL$1)>0,(G49-INDEX($C49:$G49,1,aux!$AL$1))/INDEX($C49:$G49,1,aux!$AL$1),"n.d.") -> -1 | AA49: =O49-INDEX($K49:$O49,1,aux!$AL$1) -> 2.085 | AB49: 2.171080611e-05 | AC49: 1.421711018e-05 | AD49: =+IF(INDEX($K49:$O49,1,aux!$AL$1)>0,(O49/INDEX($K49:$O49,1,aux!$AL$1))^(1/($O$3-INDEX($K$3:$O$3,1,aux!$AL$1)))-1,"n.d.") -> 0.07158169481 | AE49: =IF(INDEX($K49:$O49,1,aux!$AL$1)>0,(O49-INDEX($K49:$O49,1,aux!$AL$1))/INDEX($K49:$O49,1,aux!$AL$1),"n.d.") -> 0.3185637892 | AX49: 07
A50: 0704 | B50: Couves, frescas ou refrigeradas | C50: 84.328 | D50: 82.72 | E50: 32.789 | F50: 35.199 | G50: 11.575 | H50: 49.3222 | I50: 0.0003127034427 | J50: 0.0002495337835 | K50: 3246.388 | L50: 4241.424 | M50: 6338.213 | N50: 7861.457 | O50: 9028.956 | P50: 6143.2876 | Q50: 0.01618303513 | R50: 0.00852779982 | S50: 6093.9654 | U50: =G50-INDEX($C50:$G50,1,aux!$AL$1) -> -72.753 | V50: 0.0008881739624 | W50: 0.0006667402693 | X50: =+IF(INDEX($C50:$G50,1,aux!$AL$1)>0,(G50/INDEX($C50:$G50,1,aux!$AL$1))^(1/($G$3-INDEX($C$3:$G$3,1,aux!$AL$1)))-1,"n.d.") -> -0.3913224276 | Y50: =IF(INDEX($C50:$G50,1,aux!$AL$1)>0,(G50-INDEX($C50:$G50,1,aux!$AL$1))/INDEX($C50:$G50,1,aux!$AL$1),"n.d.") -> -0.862738355 | AA50: =O50-INDEX($K50:$O50,1,aux!$AL$1) -> 5782.568 | AB50: 0.06021305163 | AC50: 0.03942993111 | AD50: =+IF(INDEX($K50:$O50,1,aux!$AL$1)>0,(O50/INDEX($K50:$O50,1,aux!$AL$1))^(1/($O$3-INDEX($K$3:$O$3,1,aux!$AL$1)))-1,"n.d.") -> 0.2913955278 | AE50: =IF(INDEX($K50:$O50,1,aux!$AL$1)>0,(O50-INDEX($K50:$O50,1,aux!$AL$1))/INDEX($K50:$O50,1,aux!$AL$1),"n.d.") -> 1.781231325 | AX50: 07
A51: 0705 | B51: Alfaces, frescas ou refrigeradas | C51: 8.471 | D51: 0 | E51: 0 | F51: 0 | G51: 0 | H51: 1.6942 | I51: 1.074125186e-05 | J51: 8.571396571e-06 | K51: 2899.219 | L51: 2951.619 | M51: 866.385 | N51: 651.194 | O51: 829.711 | P51: 1639.6256 | Q51: 0.004319205026 | R51: 0.002276044979 | S51: 1637.9314 | U51: =G51-INDEX($C51:$G51,1,aux!$AL$1) -> -8.471 | V51: 0.0001034145896 | W51: 7.763194399e-05 | X51: =+IF(INDEX($C51:$G51,1,aux!$AL$1)>0,(G51/INDEX($C51:$G51,1,aux!$AL$1))^(1/($G$3-INDEX($C$3:$G$3,1,aux!$AL$1)))-1,"n.d.") -> -1 | Y51: =IF(INDEX($C51:$G51,1,aux!$AL$1)>0,(G51-INDEX($C51:$G51,1,aux!$AL$1))/INDEX($C51:$G51,1,aux!$AL$1),"n.d.") -> -1 | AA51: =O51-INDEX($K51:$O51,1,aux!$AL$1) -> -2069.508 | AB51: -0.02154949013 | AC51: -0.01411147398 | AD51: =+IF(INDEX($K51:$O51,1,aux!$AL$1)>0,(O51/INDEX($K51:$O51,1,aux!$AL$1))^(1/($O$3-INDEX($K$3:$O$3,1,aux!$AL$1)))-1,"n.d.") -> -0.2685890525 | AE51: =IF(INDEX($K51:$O51,1,aux!$AL$1)>0,(O51-INDEX($K51:$O51,1,aux!$AL$1))/INDEX($K51:$O51,1,aux!$AL$1),"n.d.") -> -0.7138156862 | AX51: 07
A52: 0706 | B52: Cenouras, nabos, beterrabas, etc., frescos ou refrigerados | C52: 5.756 | D52: 13.866 | E52: 0.121 | F52: 0.051 | G52: 0 | H52: 3.9588 | I52: 2.509884776e-05 | J52: 2.002859447e-05 | K52: 337.226 | L52: 388.491 | M52: 796.914 | N52: 697.519 | O52: 570.403 | P52: 558.1106 | Q52: 0.001470210095 | R52: 0.0007747407877 | S52: 554.1518 | U52: =G52-INDEX($C52:$G52,1,aux!$AL$1) -> -5.756 | V52: 7.026967036e-05 | W52: 5.275049813e-05 | X52: =+IF(INDEX($C52:$G52,1,aux!$AL$1)>0,(G52/INDEX($C52:$G52,1,aux!$AL$1))^(1/($G$3-INDEX($C$3:$G$3,1,aux!$AL$1)))-1,"n.d.") -> -1 | Y52: =IF(INDEX($C52:$G52,1,aux!$AL$1)>0,(G52-INDEX($C52:$G52,1,aux!$AL$1))/INDEX($C52:$G52,1,aux!$AL$1),"n.d.") -> -1 | AA52: =O52-INDEX($K52:$O52,1,aux!$AL$1) -> 233.177 | AB52: 0.002428038674 | AC52: 0.001589977506 | AD52: =+IF(INDEX($K52:$O52,1,aux!$AL$1)>0,(O52/INDEX($K52:$O52,1,aux!$AL$1))^(1/($O$3-INDEX($K$3:$O$3,1,aux!$AL$1)))-1,"n.d.") -> 0.1404209515 | AE52: =IF(INDEX($K52:$O52,1,aux!$AL$1)>0,(O52-INDEX($K52:$O52,1,aux!$AL$1))/INDEX($K52:$O52,1,aux!$AL$1),"n.d.") -> 0.6914561748 | AX52: 07
A53: 0707 | B53: Pepinos e pepininhos, frescos ou refrigerados | C53: 0.237 | D53: 2.344 | E53: 0 | F53: 0 | G53: 0 | H53: 0.5162 | I53: 3.272715271e-06 | J53: 2.611589488e-06 | K53: 0.853 | L53: 0.758 | M53: 0.766 | N53: 1.092 | O53: 1.256 | P53: 0.945 | Q53: 2.48937852e-06 | R53: 1.311801002e-06 | S53: 0.4288 | U53: =G53-INDEX($C53:$G53,1,aux!$AL$1) -> -0.237 | V53: 2.89331339e-06 | W53: 2.171971518e-06 | X53: =+IF(INDEX($C53:$G53,1,aux!$AL$1)>0,(G53/INDEX($C53:$G53,1,aux!$AL$1))^(1/($G$3-INDEX($C$3:$G$3,1,aux!$AL$1)))-1,"n.d.") -> -1 | Y53: =IF(INDEX($C53:$G53,1,aux!$AL$1)>0,(G53-INDEX($C53:$G53,1,aux!$AL$1))/INDEX($C53:$G53,1,aux!$AL$1),"n.d.") -> -1 | AA53: =O53-INDEX($K53:$O53,1,aux!$AL$1) -> 0.403 | AB53: 4.196381228e-06 | AC53: 2.747959425e-06 | AD53: =+IF(INDEX($K53:$O53,1,aux!$AL$1)>0,(O53/INDEX($K53:$O53,1,aux!$AL$1))^(1/($O$3-INDEX($K$3:$O$3,1,aux!$AL$1)))-1,"n.d.") -> 0.1015650594 | AE53: =IF(INDEX($K53:$O53,1,aux!$AL$1)>0,(O53-INDEX($K53:$O53,1,aux!$AL$1))/INDEX($K53:$O53,1,aux!$AL$1),"n.d.") -> 0.4724501758 | AX53: 07
A54: 0708 | B54: Tomates preparados ou conservados | C54: 6.779 | D54: 9.565 | E54: 0.297 | F54: 0.561 | G54: 0 | H54: 3.4404 | I54: 2.181218446e-05 | J54: 1.740587461e-05 | K54: 100.548 | L54: 17.696 | M54: 98.739 | N54: 3.971 | O54: 2.708 | P54: 44.7324 | Q54: 0.0001178369055 | R54: 6.209524566e-05 | S54: 41.292 | U54: =G54-INDEX($C54:$G54,1,aux!$AL$1) -> -6.779 | V54: 8.275852942e-05 | W54: 6.212571696e-05 | X54: =+IF(INDEX($C54:$G54,1,aux!$AL$1)>0,(G54/INDEX($C54:$G54,1,aux!$AL$1))^(1/($G$3-INDEX($C$3:$G$3,1,aux!$AL$1)))-1,"n.d.") -> -1 | Y54: =IF(INDEX($C54:$G54,1,aux!$AL$1)>0,(G54-INDEX($C54:$G54,1,aux!$AL$1))/INDEX($C54:$G54,1,aux!$AL$1),"n.d.") -> -1 | AA54: =O54-INDEX($K54:$O54,1,aux!$AL$1) -> -97.84 | AB54: -0.001018793894 | AC54: -0.0006671472709 | AD54: =+IF(INDEX($K54:$O54,1,aux!$AL$1)>0,(O54/INDEX($K54:$O54,1,aux!$AL$1))^(1/($O$3-INDEX($K$3:$O$3,1,aux!$AL$1)))-1,"n.d.") -> -0.5948938784 | AE54: =IF(INDEX($K54:$O54,1,aux!$AL$1)>0,(O54-INDEX($K54:$O54,1,aux!$AL$1))/INDEX($K54:$O54,1,aux!$AL$1),"n.d.") -> -0.9730675896 | AX54: 07
A55: 0709 | B55: Outros produtos hortícolas, frescos ou refrigerados | C55: 104.105 | D55: 41.019 | E55: 1.578 | F55: 1.248 | G55: 0.246 | H55: 29.6392 | I55: 0.0001879129455 | J55: 0.0001499523889 | K55: 10554.684 | L55: 7580.578 | M55: 9137.236 | N55: 10058.096 | O55: 8810.188 | P55: 9228.1564 | Q55: 0.02430939082 | R55: 0.012810058 | S55: 9198.5172 | U55: =G55-INDEX($C55:$G55,1,aux!$AL$1) -> -103.859 | V55: 0.001267918293 | W55: 0.0009518092399 | X55: =+IF(INDEX($C55:$G55,1,aux!$AL$1)>0,(G55/INDEX($C55:$G55,1,aux!$AL$1))^(1/($G$3-INDEX($C$3:$G$3,1,aux!$AL$1)))-1,"n.d.") -> -0.7795216858 | Y55: =IF(INDEX($C55:$G55,1,aux!$AL$1)>0,(G55-INDEX($C55:$G55,1,aux!$AL$1))/INDEX($C55:$G55,1,aux!$AL$1),"n.d.") -> -0.9976370011 | AA55: =O55-INDEX($K55:$O55,1,aux!$AL$1) -> -1744.496 | AB55: -0.01816518677 | AC55: -0.01189529585 | AD55: =+IF(INDEX($K55:$O55,1,aux!$AL$1)>0,(O55/INDEX($K55:$O55,1,aux!$AL$1))^(1/($O$3-INDEX($K$3:$O$3,1,aux!$AL$1)))-1,"n.d.") -> -0.04416047494 | AE55: =IF(INDEX($K55:$O55,1,aux!$AL$1)>0,(O55-INDEX($K55:$O55,1,aux!$AL$1))/INDEX($K55:$O55,1,aux!$AL$1),"n.d.") -> -0.1652816892 | AX55: 07
A56: 0710 | B56: Produtos hortícolas congelados | C56: 2908.811 | D56: 3843.484 | E56: 1732.026 | F56: 151.127 | G56: 52.001 | H56: 1737.4898 | I56: 0.01101570981 | J56: 0.00879041088 | K56: 1177.713 | L56: 1390.311 | M56: 492.231 | N56: 687.285 | O56: 1184.185 | P56: 986.345 | Q56: 0.002598292123 | R56: 0.001369194031 | S56: -751.1448 | U56: =G56-INDEX($C56:$G56,1,aux!$AL$1) -> -2856.81 | V56: 0.0348761461 | W56: 0.02618105465 | X56: =+IF(INDEX($C56:$G56,1,aux!$AL$1)>0,(G56/INDEX($C56:$G56,1,aux!$AL$1))^(1/($G$3-INDEX($C$3:$G$3,1,aux!$AL$1)))-1,"n.d.") -> -0.6343428686 | Y56: =IF(INDEX($C56:$G56,1,aux!$AL$1)>0,(G56-INDEX($C56:$G56,1,aux!$AL$1))/INDEX($C56:$G56,1,aux!$AL$1),"n.d.") -> -0.9821229361 | AA56: =O56-INDEX($K56:$O56,1,aux!$AL$1) -> 6.472 | AB56: 6.739200821e-05 | AC56: 4.413100099e-05 | AD56: =+IF(INDEX($K56:$O56,1,aux!$AL$1)>0,(O56/INDEX($K56:$O56,1,aux!$AL$1))^(1/($O$3-INDEX($K$3:$O$3,1,aux!$AL$1)))-1,"n.d.") -> 0.001371026996 | AE56: =IF(INDEX($K56:$O56,1,aux!$AL$1)>0,(O56-INDEX($K56:$O56,1,aux!$AL$1))/INDEX($K56:$O56,1,aux!$AL$1),"n.d.") -> 0.005495396586 | AX56: 07
A57: 0711 | B57: Produtos hortícolas conservados transitoriamente | C57: 27.01 | D57: 35.823 | E57: 0.105 | F57: 0 | G57: 0 | H57: 12.5876 | I57: 7.98055613e-05 | J57: 6.368392839e-05 | K57: 1.046 | L57: 24.028 | M57: 17.319 | N57: 4.678 | O57: 0 | P57: 9.4142 | Q57: 2.479947858e-05 | R57: 1.306831428e-05 | S57: -3.1734 | U57: =G57-INDEX($C57:$G57,1,aux!$AL$1) -> -27.01 | V57: 0.0003297400619 | W57: 0.0002475314375 | X57: =+IF(INDEX($C57:$G57,1,aux!$AL$1)>0,(G57/INDEX($C57:$G57,1,aux!$AL$1))^(1/($G$3-INDEX($C$3:$G$3,1,aux!$AL$1)))-1,"n.d.") -> -1 | Y57: =IF(INDEX($C57:$G57,1,aux!$AL$1)>0,(G57-INDEX($C57:$G57,1,aux!$AL$1))/INDEX($C57:$G57,1,aux!$AL$1),"n.d.") -> -1 | AA57: =O57-INDEX($K57:$O57,1,aux!$AL$1) -> -1.046 | AB57: -1.089184805e-05 | AC57: -7.132420742e-06 | AD57: =+IF(INDEX($K57:$O57,1,aux!$AL$1)>0,(O57/INDEX($K57:$O57,1,aux!$AL$1))^(1/($O$3-INDEX($K$3:$O$3,1,aux!$AL$1)))-1,"n.d.") -> -1 | AE57: =IF(INDEX($K57:$O57,1,aux!$AL$1)>0,(O57-INDEX($K57:$O57,1,aux!$AL$1))/INDEX($K57:$O57,1,aux!$AL$1),"n.d.") -> -1 | AX57: 07
A58: 0712 | B58: Produtos hortícolas secos | C58: 6.54 | D58: 12.317 | E58: 0.832 | F58: 1.04 | G58: 0.282 | H58: 4.2022 | I58: 2.664200719e-05 | J58: 2.12600181e-05 | K58: 1938.799 | L58: 1617.45 | M58: 975.541 | N58: 2336.585 | O58: 3633.663 | P58: 2100.4076 | Q58: 0.005533025992 | R58: 0.002915679148 | S58: 2096.2054 | U58: =G58-INDEX($C58:$G58,1,aux!$AL$1) -> -6.258 | V58: 7.639812319e-05 | W58: 5.735104539e-05 | X58: =+IF(INDEX($C58:$G58,1,aux!$AL$1)>0,(G58/INDEX($C58:$G58,1,aux!$AL$1))^(1/($G$3-INDEX($C$3:$G$3,1,aux!$AL$1)))-1,"n.d.") -> -0.5443117399 | Y58: =IF(INDEX($C58:$G58,1,aux!$AL$1)>0,(G58-INDEX($C58:$G58,1,aux!$AL$1))/INDEX($C58:$G58,1,aux!$AL$1),"n.d.") -> -0.9568807339 | AA58: =O58-INDEX($K58:$O58,1,aux!$AL$1) -> 1694.864 | AB58: 0.01764837587 | AC58: 0.01155686725 | AD58: =+IF(INDEX($K58:$O58,1,aux!$AL$1)>0,(O58/INDEX($K58:$O58,1,aux!$AL$1))^(1/($O$3-INDEX($K$3:$O$3,1,aux!$AL$1)))-1,"n.d.") -> 0.1700460772 | AE58: =IF(INDEX($K58:$O58,1,aux!$AL$1)>0,(O58-INDEX($K58:$O58,1,aux!$AL$1))/INDEX($K58:$O58,1,aux!$AL$1),"n.d.") -> 0.8741824191 | AX58: 07
A59: 0713 | B59: Legumes de vagem, secos, em grão | C59: 111.734 | D59: 94.028 | E59: 41.35 | F59: 9.27 | G59: 934.687 | H59: 238.2138 | I59: 0.001510278847 | J59: 0.001205185308 | K59: 103.63 | L59: 81.178 | M59: 149.013 | N59: 146.852 | O59: 307.192 | P59: 157.573 | Q59: 0.0004150887212 | R59: 0.0002187348352 | S59: -80.6408 | U59: =G59-INDEX($C59:$G59,1,aux!$AL$1) -> 822.953 | V59: -0.01004667061 | W59: -0.007541900744 | X59: =+IF(INDEX($C59:$G59,1,aux!$AL$1)>0,(G59/INDEX($C59:$G59,1,aux!$AL$1))^(1/($G$3-INDEX($C$3:$G$3,1,aux!$AL$1)))-1,"n.d.") -> 0.7006706391 | Y59: =IF(INDEX($C59:$G59,1,aux!$AL$1)>0,(G59-INDEX($C59:$G59,1,aux!$AL$1))/INDEX($C59:$G59,1,aux!$AL$1),"n.d.") -> 7.3652872 | AA59: =O59-INDEX($K59:$O59,1,aux!$AL$1) -> 203.562 | AB59: 0.002119661925 | AC59: 0.001388039991 | AD59: =+IF(INDEX($K59:$O59,1,aux!$AL$1)>0,(O59/INDEX($K59:$O59,1,aux!$AL$1))^(1/($O$3-INDEX($K$3:$O$3,1,aux!$AL$1)))-1,"n.d.") -> 0.3121427973 | AE59: =IF(INDEX($K59:$O59,1,aux!$AL$1)>0,(O59-INDEX($K59:$O59,1,aux!$AL$1))/INDEX($K59:$O59,1,aux!$AL$1),"n.d.") -> 1.964315353 | AX59: 07
A60: 0714 | B60: Raízes de mandioca, de araruta, batata-doce, etc. | C60: 2.436 | D60: 1.565 | E60: 0 | F60: 0 | G60: 0 | H60: 0.8002 | I60: 5.073279271e-06 | J60: 4.048419039e-06 | K60: 57.534 | L60: 523.042 | M60: 125.211 | N60: 115.275 | O60: 94.688 | P60: 183.15 | Q60: 0.0004824652655 | R60: 0.0002542395275 | S60: 182.3498 | U60: =G60-INDEX($C60:$G60,1,aux!$AL$1) -> -2.436 | V60: 2.973886675e-05 | W60: 2.2324568e-05 | X60: =+IF(INDEX($C60:$G60,1,aux!$AL$1)>0,(G60/INDEX($C60:$G60,1,aux!$AL$1))^(1/($G$3-INDEX($C$3:$G$3,1,aux!$AL$1)))-1,"n.d.") -> -1 | Y60: =IF(INDEX($C60:$G60,1,aux!$AL$1)>0,(G60-INDEX($C60:$G60,1,aux!$AL$1))/INDEX($C60:$G60,1,aux!$AL$1),"n.d.") -> -1 | AA60: =O60-INDEX($K60:$O60,1,aux!$AL$1) -> 37.154 | AB60: 0.0003868792758 | AC60: 0.0002533441302 | AD60: =+IF(INDEX($K60:$O60,1,aux!$AL$1)>0,(O60/INDEX($K60:$O60,1,aux!$AL$1))^(1/($O$3-INDEX($K$3:$O$3,1,aux!$AL$1)))-1,"n.d.") -> 0.132641822 | AE60: =IF(INDEX($K60:$O60,1,aux!$AL$1)>0,(O60-INDEX($K60:$O60,1,aux!$AL$1))/INDEX($K60:$O60,1,aux!$AL$1),"n.d.") -> 0.6457746724 | AX60: 07
A61: 07SS | B61: Produtos hortícolas, plantas, raízes e tubérculos, comestíveis | C61: 0 | D61: 0 | E61: 0 | F61: 0 | G61: 0 | H61: 0 | I61: 0 | J61: 0 | K61: 0 | L61: 0 | M61: 0 | N61: 0 | O61: 0 | P61: 0 | Q61: 0 | R61: 0 | S61: 0 | U61: =G61-INDEX($C61:$G61,1,aux!$AL$1) -> 0 | V61: 0 | W61: 0 | X61: =+IF(INDEX($C61:$G61,1,aux!$AL$1)>0,(G61/INDEX($C61:$G61,1,aux!$AL$1))^(1/($G$3-INDEX($C$3:$G$3,1,aux!$AL$1)))-1,"n.d.") -> n.d. | Y61: =IF(INDEX($C61:$G61,1,aux!$AL$1)>0,(G61-INDEX($C61:$G61,1,aux!$AL$1))/INDEX($C61:$G61,1,aux!$AL$1),"n.d.") -> n.d. | AA61: =O61-INDEX($K61:$O61,1,aux!$AL$1) -> 0 | AB61: 0 | AC61: 0 | AD61: =+IF(INDEX($K61:$O61,1,aux!$AL$1)>0,(O61/INDEX($K61:$O61,1,aux!$AL$1))^(1/($O$3-INDEX($K$3:$O$3,1,aux!$AL$1)))-1,"n.d.") -> n.d. | AE61: =IF(INDEX($K61:$O61,1,aux!$AL$1)>0,(O61-INDEX($K61:$O61,1,aux!$AL$1))/INDEX($K61:$O61,1,aux!$AL$1),"n.d.") -> n.d. | AX61: 07
A62: 0801 | B62: Cocos, castanhas do brasil e castanha de cajú | C62: 155.376 | D62: 17.202 | E62: 5.19 | F62: 117.966 | G62: 3.327 | H62: 59.8122 | I62: 0.0003792101905 | J62: 0.0003026054102 | K62: 219.27 | L62: 20.329 | M62: 14.873 | N62: 17.837 | O62: 18.161 | P62: 58.094 | Q62: 0.0001530348738 | R62: 8.064314012e-05 | S62: -1.7182 | U62: =G62-INDEX($C62:$G62,1,aux!$AL$1) -> -152.049 | V62: 0.001856225349 | W62: 0.001393443449 | X62: =+IF(INDEX($C62:$G62,1,aux!$AL$1)>0,(G62/INDEX($C62:$G62,1,aux!$AL$1))^(1/($G$3-INDEX($C$3:$G$3,1,aux!$AL$1)))-1,"n.d.") -> -0.6174684889 | Y62: =IF(INDEX($C62:$G62,1,aux!$AL$1)>0,(G62-INDEX($C62:$G62,1,aux!$AL$1))/INDEX($C62:$G62,1,aux!$AL$1),"n.d.") -> -0.9785874266 | AA62: =O62-INDEX($K62:$O62,1,aux!$AL$1) -> -201.109 | AB62: -0.002094119187 | AC62: -0.001371313578 | AD62: =+IF(INDEX($K62:$O62,1,aux!$AL$1)>0,(O62/INDEX($K62:$O62,1,aux!$AL$1))^(1/($O$3-INDEX($K$3:$O$3,1,aux!$AL$1)))-1,"n.d.") -> -0.4635365534 | AE62: =IF(INDEX($K62:$O62,1,aux!$AL$1)>0,(O62-INDEX($K62:$O62,1,aux!$AL$1))/INDEX($K62:$O62,1,aux!$AL$1),"n.d.") -> -0.9171751722 | AX62: 08
A63: 0802 | B63: Frutas de casca rija | C63: 162.835 | D63: 199.21 | E63: 1.5 | F63: 1.947 | G63: 21.133 | H63: 77.325 | I63: 0.0004902415892 | J63: 0.0003912072009 | K63: 51.399 | L63: 138.09 | M63: 173.232 | N63: 225.283 | O63: 128.423 | P63: 143.2854 | Q63: 0.0003774514254 | R63: 0.0001989015146 | S63: 65.9604 | U63: =G63-INDEX($C63:$G63,1,aux!$AL$1) -> -141.702 | V63: 0.001729908414 | W63: 0.001298619021 | X63: =+IF(INDEX($C63:$G63,1,aux!$AL$1)>0,(G63/INDEX($C63:$G63,1,aux!$AL$1))^(1/($G$3-INDEX($C$3:$G$3,1,aux!$AL$1)))-1,"n.d.") -> -0.3997898317 | Y63: =IF(INDEX($C63:$G63,1,aux!$AL$1)>0,(G63-INDEX($C63:$G63,1,aux!$AL$1))/INDEX($C63:$G63,1,aux!$AL$1),"n.d.") -> -0.8702183192 | AA63: =O63-INDEX($K63:$O63,1,aux!$AL$1) -> 77.024 | AB63: 0.0008020398703 | AC63: 0.0005252080069 | AD63: =+IF(INDEX($K63:$O63,1,aux!$AL$1)>0,(O63/INDEX($K63:$O63,1,aux!$AL$1))^(1/($O$3-INDEX($K$3:$O$3,1,aux!$AL$1)))-1,"n.d.") -> 0.257251132 | AE63: =IF(INDEX($K63:$O63,1,aux!$AL$1)>0,(O63-INDEX($K63:$O63,1,aux!$AL$1))/INDEX($K63:$O63,1,aux!$AL$1),"n.d.") -> 1.498550555 | AX63: 08
A64: 0803 | B64: Bananas, frescas ou secas | C64: 439.935 | D64: 374.965 | E64: 0.295 | F64: 0.014 | G64: 18.153 | H64: 166.6724 | I64: 0.001056705364 | J64: 0.0008432388371 | K64: 3.855 | L64: 5.239 | M64: 6.385 | N64: 4.662 | O64: 4.851 | P64: 4.9984 | Q64: 1.31671001e-05 | R64: 6.938525004e-06 | S64: -161.674 | U64: =G64-INDEX($C64:$G64,1,aux!$AL$1) -> -421.782 | V64: 0.005149145605 | W64: 0.003865394475 | X64: =+IF(INDEX($C64:$G64,1,aux!$AL$1)>0,(G64/INDEX($C64:$G64,1,aux!$AL$1))^(1/($G$3-INDEX($C$3:$G$3,1,aux!$AL$1)))-1,"n.d.") -> -0.5492974936 | Y64: =IF(INDEX($C64:$G64,1,aux!$AL$1)>0,(G64-INDEX($C64:$G64,1,aux!$AL$1))/INDEX($C64:$G64,1,aux!$AL$1),"n.d.") -> -0.9587370862 | AA64: =O64-INDEX($K64:$O64,1,aux!$AL$1) -> 0.996 | AB64: 1.037120522e-05 | AC64: 6.791482848e-06 | AD64: =+IF(INDEX($K64:$O64,1,aux!$AL$1)>0,(O64/INDEX($K64:$O64,1,aux!$AL$1))^(1/($O$3-INDEX($K$3:$O$3,1,aux!$AL$1)))-1,"n.d.") -> 0.05913598321 | AE64: =IF(INDEX($K64:$O64,1,aux!$AL$1)>0,(O64-INDEX($K64:$O64,1,aux!$AL$1))/INDEX($K64:$O64,1,aux!$AL$1),"n.d.") -> 0.2583657588 | AX64: 08
A65: 0804 | B65: Tâmaras, figos, ananases, abacates, goiabas, mangas | C65: 163.528 | D65: 1193.191 | E65: 0.652 | F65: 0.774 | G65: 0.158 | H65: 271.6606 | I65: 0.00172233203 | J65: 0.001374401331 | K65: 1140.065 | L65: 2201.528 | M65: 341.909 | N65: 722.238 | O65: 627.666 | P65: 1006.6812 | Q65: 0.002651863022 | R65: 0.001397423711 | S65: 735.0206 | U65: =G65-INDEX($C65:$G65,1,aux!$AL$1) -> -163.37 | V65: 0.001994432948 | W65: 0.001497194037 | X65: =+IF(INDEX($C65:$G65,1,aux!$AL$1)>0,(G65/INDEX($C65:$G65,1,aux!$AL$1))^(1/($G$3-INDEX($C$3:$G$3,1,aux!$AL$1)))-1,"n.d.") -> -0.8236943458 | Y65: =IF(INDEX($C65:$G65,1,aux!$AL$1)>0,(G65-INDEX($C65:$G65,1,aux!$AL$1))/INDEX($C65:$G65,1,aux!$AL$1),"n.d.") -> -0.9990338046 | AA65: =O65-INDEX($K65:$O65,1,aux!$AL$1) -> -512.399 | AB65: -0.005335537332 | AC65: -0.003493924719 | AD65: =+IF(INDEX($K65:$O65,1,aux!$AL$1)>0,(O65/INDEX($K65:$O65,1,aux!$AL$1))^(1/($O$3-INDEX($K$3:$O$3,1,aux!$AL$1)))-1,"n.d.") -> -0.1386101546 | AE65: =IF(INDEX($K65:$O65,1,aux!$AL$1)>0,(O65-INDEX($K65:$O65,1,aux!$AL$1))/INDEX($K65:$O65,1,aux!$AL$1),"n.d.") -> -0.4494471806 | AX65: 08
A66: 0805 | B66: Citrinos, frescos ou secos | C66: 8.704 | D66: 10.582 | E66: 0.005 | F66: 0.009 | G66: 0 | H66: 3.86 | I66: 2.447245437e-05 | J66: 1.952873968e-05 | K66: 224.068 | L66: 379.606 | M66: 40.769 | N66: 487.505 | O66: 16.804 | P66: 229.7504 | Q66: 0.0006052229743 | R66: 0.0003189278359 | S66: 225.8904 | U66: =G66-INDEX($C66:$G66,1,aux!$AL$1) -> -8.704 | V66: 0.0001062590707 | W66: 7.976725776e-05 | X66: =+IF(INDEX($C66:$G66,1,aux!$AL$1)>0,(G66/INDEX($C66:$G66,1,aux!$AL$1))^(1/($G$3-INDEX($C$3:$G$3,1,aux!$AL$1)))-1,"n.d.") -> -1 | Y66: =IF(INDEX($C66:$G66,1,aux!$AL$1)>0,(G66-INDEX($C66:$G66,1,aux!$AL$1))/INDEX($C66:$G66,1,aux!$AL$1),"n.d.") -> -1 | AA66: =O66-INDEX($K66:$O66,1,aux!$AL$1) -> -207.264 | AB66: -0.00215821032 | AC66: -0.001413283033 | AD66: =+IF(INDEX($K66:$O66,1,aux!$AL$1)>0,(O66/INDEX($K66:$O66,1,aux!$AL$1))^(1/($O$3-INDEX($K$3:$O$3,1,aux!$AL$1)))-1,"n.d.") -> -0.4766909941 | AE66: =IF(INDEX($K66:$O66,1,aux!$AL$1)>0,(O66-INDEX($K66:$O66,1,aux!$AL$1))/INDEX($K66:$O66,1,aux!$AL$1),"n.d.") -> -0.9250049092 | AX66: 08
A67: 0806 | B67: Uvas, frescas ou secas | C67: 778.048 | D67: 340.806 | E67: 283.022 | F67: 274.131 | G67: 229.738 | H67: 381.149 | I67: 0.002416490029 | J67: 0.001928331503 | K67: 575.11 | L67: 324.523 | M67: 7.548 | N67: 136.358 | O67: 2746.83 | P67: 758.0738 | Q67: 0.001996965751 | R67: 0.001052319546 | S67: 376.9248 | U67: =G67-INDEX($C67:$G67,1,aux!$AL$1) -> -548.31 | V67: 0.006693808713 | W67: 0.005024952333 | X67: =+IF(INDEX($C67:$G67,1,aux!$AL$1)>0,(G67/INDEX($C67:$G67,1,aux!$AL$1))^(1/($G$3-INDEX($C$3:$G$3,1,aux!$AL$1)))-1,"n.d.") -> -0.2628487415 | Y67: =IF(INDEX($C67:$G67,1,aux!$AL$1)>0,(G67-INDEX($C67:$G67,1,aux!$AL$1))/INDEX($C67:$G67,1,aux!$AL$1),"n.d.") -> -0.7047251583 | AA67: =O67-INDEX($K67:$O67,1,aux!$AL$1) -> 2171.72 | AB67: 0.02261380903 | AC67: 0.01480843286 | AD67: =+IF(INDEX($K67:$O67,1,aux!$AL$1)>0,(O67/INDEX($K67:$O67,1,aux!$AL$1))^(1/($O$3-INDEX($K$3:$O$3,1,aux!$AL$1)))-1,"n.d.") -> 0.478326002 | AE67: =IF(INDEX($K67:$O67,1,aux!$AL$1)>0,(O67-INDEX($K67:$O67,1,aux!$AL$1))/INDEX($K67:$O67,1,aux!$AL$1),"n.d.") -> 3.776181948 | AX67: 08
A68: 0807 | B68: Melões, melancias e papaia, frescos | C68: 0.439 | D68: 1.303 | E68: 0 | F68: 0 | G68: 0 | H68: 0.3484 | I68: 2.208860907e-06 | J68: 1.76264583e-06 | K68: 510.772 | L68: 97.802 | M68: 179.535 | N68: 172.197 | O68: 151.991 | P68: 222.4594 | Q68: 0.0005860165629 | R68: 0.00030880684 | S68: 222.111 | U68: =G68-INDEX($C68:$G68,1,aux!$AL$1) -> -0.439 | V68: =IF($U$237<>0,U68/$U$237, "n.d.") -> 5.359344213e-06 | W68: =IF($U$322<>0,U68/$U$322, "n.d.") -> 4.023187748e-06 | X68: =+IF(INDEX($C68:$G68,1,aux!$AL$1)>0,(G68/INDEX($C68:$G68,1,aux!$AL$1))^(1/($G$3-INDEX($C$3:$G$3,1,aux!$AL$1)))-1,"n.d.") -> -1 | Y68: =IF(INDEX($C68:$G68,1,aux!$AL$1)>0,(G68-INDEX($C68:$G68,1,aux!$AL$1))/INDEX($C68:$G68,1,aux!$AL$1),"n.d.") -> -1 | AA68: =O68-INDEX($K68:$O68,1,aux!$AL$1) -> -358.781 | AB68: =IF($AA$237<>0,AA68/$AA$237, "n.d.") -> -0.00373593512 | AC68: =IF($AA$322<>0,AA68/$AA$322, "n.d.") -> -0.002446440771 | AD68: =+IF(INDEX($K68:$O68,1,aux!$AL$1)>0,(O68/INDEX($K68:$O68,1,aux!$AL$1))^(1/($O$3-INDEX($K$3:$O$3,1,aux!$AL$1)))-1,"n.d.") -> -0.2614197373 | AE68: =IF(INDEX($K68:$O68,1,aux!$AL$1)>0,(O68-INDEX($K68:$O68,1,aux!$AL$1))/INDEX($K68:$O68,1,aux!$AL$1),"n.d.") -> -0.7024288724 | AX68: 08
A69: 0808 | B69: Maçãs, peras e marmelos, frescos | C69: 5.506 | D69: 3.035 | E69: 63.611 | F69: 139.081 | G69: 0 | H69: 42.2466 | I69: 0.0002678440391 | J69: 0.0002137364906 | K69: 15510.522 | L69: 18260.237 | M69: 15862.882 | N69: 20149.136 | O69: 13857.625 | P69: 16728.0804 | Q69: 0.04406616299 | R69: 0.02322107157 | S69: 16685.8338 | U69: =G69-INDEX($C69:$G69,1,aux!$AL$1) -> -5.506 | V69: 6.721765201e-05 | W69: 5.045938893e-05 | X69: =+IF(INDEX($C69:$G69,1,aux!$AL$1)>0,(G69/INDEX($C69:$G69,1,aux!$AL$1))^(1/($G$3-INDEX($C$3:$G$3,1,aux!$AL$1)))-1,"n.d.") -> -1 | Y69: =IF(INDEX($C69:$G69,1,aux!$AL$1)>0,(G69-INDEX($C69:$G69,1,aux!$AL$1))/INDEX($C69:$G69,1,aux!$AL$1),"n.d.") -> -1 | AA69: =O69-INDEX($K69:$O69,1,aux!$AL$1) -> -1652.897 | AB69: -0.01721137951 | AC69: -0.01127070444 | AD69: =+IF(INDEX($K69:$O69,1,aux!$AL$1)>0,(O69/INDEX($K69:$O69,1,aux!$AL$1))^(1/($O$3-INDEX($K$3:$O$3,1,aux!$AL$1)))-1,"n.d.") -> -0.02777765669 | AE69: =IF(INDEX($K69:$O69,1,aux!$AL$1)>0,(O69-INDEX($K69:$O69,1,aux!$AL$1))/INDEX($K69:$O69,1,aux!$AL$1),"n.d.") -> -0.1065661749 | AX69: 08
A70: 0809 | B70: Damascos, cerejas, pêssegos, etc., frescos | C70: 11.86 | D70: 2.752 | E70: 0 | F70: 0 | G70: 0 | H70: 2.9224 | I70: 1.852805716e-05 | J70: 1.478517846e-05 | K70: 2107.834 | L70: 2362.86 | M70: 2956.877 | N70: 1767.523 | O70: 1113.756 | P70: 2061.77 | Q70: 0.005431244393 | R70: 0.002862044394 | S70: 2058.8476 | U70: =G70-INDEX($C70:$G70,1,aux!$AL$1) -> -11.86 | V70: 0.0001447877503 | W70: 0.0001086902203 | X70: =+IF(INDEX($C70:$G70,1,aux!$AL$1)>0,(G70/INDEX($C70:$G70,1,aux!$AL$1))^(1/($G$3-INDEX($C$3:$G$3,1,aux!$AL$1)))-1,"n.d.") -> -1 | Y70: =IF(INDEX($C70:$G70,1,aux!$AL$1)>0,(G70-INDEX($C70:$G70,1,aux!$AL$1))/INDEX($C70:$G70,1,aux!$AL$1),"n.d.") -> -1 | AA70: =O70-INDEX($K70:$O70,1,aux!$AL$1) -> -994.078 | AB70: -0.01035119171 | AC70: -0.006778377195 | AD70: =+IF(INDEX($K70:$O70,1,aux!$AL$1)>0,(O70/INDEX($K70:$O70,1,aux!$AL$1))^(1/($O$3-INDEX($K$3:$O$3,1,aux!$AL$1)))-1,"n.d.") -> -0.1474135763 | AE70: =IF(INDEX($K70:$O70,1,aux!$AL$1)>0,(O70-INDEX($K70:$O70,1,aux!$AL$1))/INDEX($K70:$O70,1,aux!$AL$1),"n.d.") -> -0.4716111421 | AX70: 08
A71: 0810 | B71: Outras frutas frescas | C71: 46.822 | D71: 1.35 | E71: 0.338 | F71: 0 | G71: 0.007 | H71: 9.7034 | I71: 6.151969268e-05 | J71: 4.909201363e-05 | K71: 33158.253 | L71: 30354.976 | M71: 3827.783 | N71: 2017.602 | O71: 1013.66 | P71: 14074.4548 | Q71: 0.0370758153 | R71: 0.01953744329 | S71: 14064.7514 | U71: =G71-INDEX($C71:$G71,1,aux!$AL$1) -> -46.815 | V71: 0.0005715209552 | W71: 0.000429033108 | X71: =+IF(INDEX($C71:$G71,1,aux!$AL$1)>0,(G71/INDEX($C71:$G71,1,aux!$AL$1))^(1/($G$3-INDEX($C$3:$G$3,1,aux!$AL$1)))-1,"n.d.") -> -0.8894237087 | Y71: =IF(INDEX($C71:$G71,1,aux!$AL$1)>0,(G71-INDEX($C71:$G71,1,aux!$AL$1))/INDEX($C71:$G71,1,aux!$AL$1),"n.d.") -> -0.9998504976 | AA71: =O71-INDEX($K71:$O71,1,aux!$AL$1) -> -32144.593 | AB71: -0.3347170388 | AC71: -0.2191861968 | AD71: =+IF(INDEX($K71:$O71,1,aux!$AL$1)>0,(O71/INDEX($K71:$O71,1,aux!$AL$1))^(1/($O$3-INDEX($K$3:$O$3,1,aux!$AL$1)))-1,"n.d.") -> -0.5818566762 | AE71: =IF(INDEX($K71:$O71,1,aux!$AL$1)>0,(O71-INDEX($K71:$O71,1,aux!$AL$1))/INDEX($K71:$O71,1,aux!$AL$1),"n.d.") -> -0.9694296319 | AX71: 08
A72: 0811 | B72: Frutas não cozidas ou cozidas em água ou vapor, congeladas | C72: 11.138 | D72: 25.411 | E72: 0.005 | F72: 0.001 | G72: 0.03 | H72: 7.317 | I72: 4.638988306e-05 | J72: 3.701859799e-05 | K72: 548.891 | L72: 98.789 | M72: 499.441 | N72: 11.011 | O72: 137.062 | P72: 259.0388 | Q72: 0.0006823763223 | R72: 0.0003595845052 | S72: 251.7218 | U72: =G72-INDEX($C72:$G72,1,aux!$AL$1) -> -11.108 | V72: 0.0001356072791 | W72: 0.0001017985638 | X72: =+IF(INDEX($C72:$G72,1,aux!$AL$1)>0,(G72/INDEX($C72:$G72,1,aux!$AL$1))^(1/($G$3-INDEX($C$3:$G$3,1,aux!$AL$1)))-1,"n.d.") -> -0.7721869963 | Y72: =IF(INDEX($C72:$G72,1,aux!$AL$1)>0,(G72-INDEX($C72:$G72,1,aux!$AL$1))/INDEX($C72:$G72,1,aux!$AL$1),"n.d.") -> -0.9973065182 | AA72: =O72-INDEX($K72:$O72,1,aux!$AL$1) -> -411.829 | AB72: -0.00428831634 | AC72: -0.002808162239 | AD72: =+IF(INDEX($K72:$O72,1,aux!$AL$1)>0,(O72/INDEX($K72:$O72,1,aux!$AL$1))^(1/($O$3-INDEX($K$3:$O$3,1,aux!$AL$1)))-1,"n.d.") -> -0.2931003954 | AE72: =IF(INDEX($K72:$O72,1,aux!$AL$1)>0,(O72-INDEX($K72:$O72,1,aux!$AL$1))/INDEX($K72:$O72,1,aux!$AL$1),"n.d.") -> -0.7502928632 | AX72: 08
A73: 0812 | B73: Frutas conservadas transitoriamente | C73: 0.12 | D73: 0.886 | E73: 0 | F73: 0 | G73: 0 | H73: 0.2012 | I73: 1.275610834e-06 | J73: 1.017922908e-06 | K73: 1.642 | L73: 0.203 | M73: 1.391 | N73: 0 | O73: 0 | P73: 0.6472 | Q73: 1.704895003e-06 | R73: 8.984101678e-07 | S73: 0.446 | U73: =G73-INDEX($C73:$G73,1,aux!$AL$1) -> -0.12 | V73: 1.464968805e-06 | W73: 1.099732414e-06 | X73: =+IF(INDEX($C73:$G73,1,aux!$AL$1)>0,(G73/INDEX($C73:$G73,1,aux!$AL$1))^(1/($G$3-INDEX($C$3:$G$3,1,aux!$AL$1)))-1,"n.d.") -> -1 | Y73: =IF(INDEX($C73:$G73,1,aux!$AL$1)>0,(G73-INDEX($C73:$G73,1,aux!$AL$1))/INDEX($C73:$G73,1,aux!$AL$1),"n.d.") -> -1 | AA73: =O73-INDEX($K73:$O73,1,aux!$AL$1) -> -1.642 | AB73: -1.709791061e-05 | AC73: -1.119640044e-05 | AD73: =+IF(INDEX($K73:$O73,1,aux!$AL$1)>0,(O73/INDEX($K73:$O73,1,aux!$AL$1))^(1/($O$3-INDEX($K$3:$O$3,1,aux!$AL$1)))-1,"n.d.") -> -1 | AE73: =IF(INDEX($K73:$O73,1,aux!$AL$1)>0,(O73-INDEX($K73:$O73,1,aux!$AL$1))/INDEX($K73:$O73,1,aux!$AL$1),"n.d.") -> -1 | AX73: 08
A74: 0813 | B74: Outras frutas secas | C74: 43.963 | D74: 31.95 | E74: 2.381 | F74: 1.061 | G74: 0.211 | H74: 15.9132 | I74: 0.0001008899121 | J74: 8.050900007e-05 | K74: 2.029 | L74: 26.192 | M74: 29.844 | N74: 81.069 | O74: 279.832 | P74: 83.7932 | Q74: 0.0002207333251 | R74: 0.0001163174643 | S74: 67.88 | U74: =G74-INDEX($C74:$G74,1,aux!$AL$1) -> -43.752 | V74: 0.0005341276264 | W74: 0.0004009624382 | X74: =+IF(INDEX($C74:$G74,1,aux!$AL$1)>0,(G74/INDEX($C74:$G74,1,aux!$AL$1))^(1/($G$3-INDEX($C$3:$G$3,1,aux!$AL$1)))-1,"n.d.") -> -0.7367921827 | Y74: =IF(INDEX($C74:$G74,1,aux!$AL$1)>0,(G74-INDEX($C74:$G74,1,aux!$AL$1))/INDEX($C74:$G74,1,aux!$AL$1),"n.d.") -> -0.9952005095 | AA74: =O74-INDEX($K74:$O74,1,aux!$AL$1) -> 277.803 | AB74: 0.002892722815 | AC74: 0.001894271395 | AD74: =+IF(INDEX($K74:$O74,1,aux!$AL$1)>0,(O74/INDEX($K74:$O74,1,aux!$AL$1))^(1/($O$3-INDEX($K$3:$O$3,1,aux!$AL$1)))-1,"n.d.") -> 2.426918944 | AE74: =IF(INDEX($K74:$O74,1,aux!$AL$1)>0,(O74-INDEX($K74:$O74,1,aux!$AL$1))/INDEX($K74:$O74,1,aux!$AL$1),"n.d.") -> 136.9162149 | AX74: 08
A75: 0814 | B75: Cascas de citrinos, melões ou melancias | C75: 0 | D75: 0 | E75: 0 | F75: 0 | G75: 1.142 | H75: 0.2284 | I75: 1.448059217e-06 | J75: 1.155534752e-06 | K75: 0 | L75: 5.433 | M75: 0.042 | N75: 0 | O75: 0 | P75: 1.095 | Q75: 2.884517968e-06 | R75: 1.520023383e-06 | S75: 0.8666 | U75: =G75-INDEX($C75:$G75,1,aux!$AL$1) -> 1.142 | V75: -1.39416198e-05 | W75: -1.046578681e-05 | X75: =+IF(INDEX($C75:$G75,1,aux!$AL$1)>0,(G75/INDEX($C75:$G75,1,aux!$AL$1))^(1/($G$3-INDEX($C$3:$G$3,1,aux!$AL$1)))-1,"n.d.") -> n.d. | Y75: =IF(INDEX($C75:$G75,1,aux!$AL$1)>0,(G75-INDEX($C75:$G75,1,aux!$AL$1))/INDEX($C75:$G75,1,aux!$AL$1),"n.d.") -> n.d. | AA75: =O75-INDEX($K75:$O75,1,aux!$AL$1) -> 0 | AB75: 0 | AC75: 0 | AD75: =+IF(INDEX($K75:$O75,1,aux!$AL$1)>0,(O75/INDEX($K75:$O75,1,aux!$AL$1))^(1/($O$3-INDEX($K$3:$O$3,1,aux!$AL$1)))-1,"n.d.") -> n.d. | AE75: =IF(INDEX($K75:$O75,1,aux!$AL$1)>0,(O75-INDEX($K75:$O75,1,aux!$AL$1))/INDEX($K75:$O75,1,aux!$AL$1),"n.d.") -> n.d. | AX75: =+LEFT(A75,2) -> 08
A76: 08SS | B76: Frutas; cascas de citrinos e de melões | C76: 0 | D76: 0 | E76: 0 | F76: 0 | G76: 0 | H76: 0 | I76: 0 | J76: 0 | K76: 0 | L76: 0 | M76: 0 | N76: 0 | O76: 0 | P76: 0 | Q76: 0 | R76: 0 | S76: 0 | U76: =G76-INDEX($C76:$G76,1,aux!$AL$1) -> 0 | V76: 0 | W76: 0 | X76: =+IF(INDEX($C76:$G76,1,aux!$AL$1)>0,(G76/INDEX($C76:$G76,1,aux!$AL$1))^(1/($G$3-INDEX($C$3:$G$3,1,aux!$AL$1)))-1,"n.d.") -> n.d. | Y76: =IF(INDEX($C76:$G76,1,aux!$AL$1)>0,(G76-INDEX($C76:$G76,1,aux!$AL$1))/INDEX($C76:$G76,1,aux!$AL$1),"n.d.") -> n.d. | AA76: =O76-INDEX($K76:$O76,1,aux!$AL$1) -> 0 | AB76: 0 | AC76: 0 | AD76: =+IF(INDEX($K76:$O76,1,aux!$AL$1)>0,(O76/INDEX($K76:$O76,1,aux!$AL$1))^(1/($O$3-INDEX($K$3:$O$3,1,aux!$AL$1)))-1,"n.d.") -> n.d. | AE76: =IF(INDEX($K76:$O76,1,aux!$AL$1)>0,(O76-INDEX($K76:$O76,1,aux!$AL$1))/INDEX($K76:$O76,1,aux!$AL$1),"n.d.") -> n.d. | AX76: 08
A77: 0901 | B77: Café | C77: 3070.639 | D77: 1852.028 | E77: 2310.117 | F77: 1496.187 | G77: 1082.628 | H77: 1962.3198 | I77: 0.01244113517 | J77: 0.009927884078 | K77: 4760.804 | L77: 7528.623 | M77: 9030.373 | N77: 10474.234 | O77: 13011.315 | P77: 8961.0698 | Q77: 0.02360581447 | R77: 0.01243930195 | S77: 6998.75 | U77: =G77-INDEX($C77:$G77,1,aux!$AL$1) -> -1988.011 | V77: 0.02426978416 | W77: 0.01821900113 | X77: =+IF(INDEX($C77:$G77,1,aux!$AL$1)>0,(G77/INDEX($C77:$G77,1,aux!$AL$1))^(1/($G$3-INDEX($C$3:$G$3,1,aux!$AL$1)))-1,"n.d.") -> -0.229429066 | Y77: =IF(INDEX($C77:$G77,1,aux!$AL$1)>0,(G77-INDEX($C77:$G77,1,aux!$AL$1))/INDEX($C77:$G77,1,aux!$AL$1),"n.d.") -> -0.647425829 | AA77: =O77-INDEX($K77:$O77,1,aux!$AL$1) -> 8250.511 | AB77: 0.0859113883 | AC77: 0.05625823689 | AD77: =+IF(INDEX($K77:$O77,1,aux!$AL$1)>0,(O77/INDEX($K77:$O77,1,aux!$AL$1))^(1/($O$3-INDEX($K$3:$O$3,1,aux!$AL$1)))-1,"n.d.") -> 0.2857609223 | AE77: =IF(INDEX($K77:$O77,1,aux!$AL$1)>0,(O77-INDEX($K77:$O77,1,aux!$AL$1))/INDEX($K77:$O77,1,aux!$AL$1),"n.d.") -> 1.733007912 | AX77: 09
A78: 0902 | B78: Chá | C78: 371.25 | D78: 177.91 | E78: 125.93 | F78: 289.41 | G78: 275.497 | H78: 247.9994 | I78: 0.001572319689 | J78: 0.001254693193 | K78: 29.711 | L78: 29.415 | M78: 92.283 | N78: 38.913 | O78: 59.167 | P78: 49.8978 | Q78: 0.0001314439275 | R78: 6.926559158e-05 | S78: -198.1016 | U78: =G78-INDEX($C78:$G78,1,aux!$AL$1) -> -95.753 | V78: 0.00116895965 | W78: 0.0008775223153 | X78: =+IF(INDEX($C78:$G78,1,aux!$AL$1)>0,(G78/INDEX($C78:$G78,1,aux!$AL$1))^(1/($G$3-INDEX($C$3:$G$3,1,aux!$AL$1)))-1,"n.d.") -> -0.07186189546 | Y78: =IF(INDEX($C78:$G78,1,aux!$AL$1)>0,(G78-INDEX($C78:$G78,1,aux!$AL$1))/INDEX($C78:$G78,1,aux!$AL$1),"n.d.") -> -0.2579205387 | AA78: =O78-INDEX($K78:$O78,1,aux!$AL$1) -> 29.456 | AB78: 0.0003067211054 | AC78: 0.0002008533321 | AD78: =+IF(INDEX($K78:$O78,1,aux!$AL$1)>0,(O78/INDEX($K78:$O78,1,aux!$AL$1))^(1/($O$3-INDEX($K$3:$O$3,1,aux!$AL$1)))-1,"n.d.") -> 0.1879292337 | AE78: =IF(INDEX($K78:$O78,1,aux!$AL$1)>0,(O78-INDEX($K78:$O78,1,aux!$AL$1))/INDEX($K78:$O78,1,aux!$AL$1),"n.d.") -> 0.9914173202 | AX78: 09
A79: 0903 | B79: Mate | C79: 0 | D79: 0 | E79: 1.282 | F79: 1.779 | G79: 1.967 | H79: 1.0056 | I79: 6.375518164e-06 | J79: 5.087590834e-06 | K79: 4.652 | L79: 5.098 | M79: 4.568 | N79: 1.544 | O79: 7.474 | P79: 4.6672 | Q79: 1.22946322e-05 | R79: 6.478769986e-06 | S79: 3.6616 | U79: =G79-INDEX($C79:$G79,1,aux!$AL$1) -> 1.967 | V79: -2.401328033e-05 | W79: -1.802644715e-05 | X79: =+IF(INDEX($C79:$G79,1,aux!$AL$1)>0,(G79/INDEX($C79:$G79,1,aux!$AL$1))^(1/($G$3-INDEX($C$3:$G$3,1,aux!$AL$1)))-1,"n.d.") -> n.d. | Y79: =IF(INDEX($C79:$G79,1,aux!$AL$1)>0,(G79-INDEX($C79:$G79,1,aux!$AL$1))/INDEX($C79:$G79,1,aux!$AL$1),"n.d.") -> n.d. | AA79: =O79-INDEX($K79:$O79,1,aux!$AL$1) -> 2.822 | AB79: 2.938508145e-05 | AC79: 1.924253474e-05 | AD79: =+IF(INDEX($K79:$O79,1,aux!$AL$1)>0,(O79/INDEX($K79:$O79,1,aux!$AL$1))^(1/($O$3-INDEX($K$3:$O$3,1,aux!$AL$1)))-1,"n.d.") -> 0.1258443349 | AE79: =IF(INDEX($K79:$O79,1,aux!$AL$1)>0,(O79-INDEX($K79:$O79,1,aux!$AL$1))/INDEX($K79:$O79,1,aux!$AL$1),"n.d.") -> 0.6066208083 | AX79: 09
A80: 0904 | B80: Pimenta | C80: 60.495 | D80: 23.706 | E80: 6.477 | F80: 2.701 | G80: 5.258 | H80: 19.7274 | I80: 0.0001250719939 | J80: 9.980602568e-05 | K80: 18.793 | L80: 25.549 | M80: 21.963 | N80: 18.513 | O80: 21.207 | P80: 21.205 | Q80: 5.585954658e-05 | R80: 2.943570397e-05 | S80: 1.4776 | U80: =G80-INDEX($C80:$G80,1,aux!$AL$1) -> -55.237 | V80: 0.0006743373491 | W80: 0.0005062159946 | X80: =+IF(INDEX($C80:$G80,1,aux!$AL$1)>0,(G80/INDEX($C80:$G80,1,aux!$AL$1))^(1/($G$3-INDEX($C$3:$G$3,1,aux!$AL$1)))-1,"n.d.") -> -0.4570306996 | Y80: =IF(INDEX($C80:$G80,1,aux!$AL$1)>0,(G80-INDEX($C80:$G80,1,aux!$AL$1))/INDEX($C80:$G80,1,aux!$AL$1),"n.d.") -> -0.9130837259 | AA80: =O80-INDEX($K80:$O80,1,aux!$AL$1) -> 2.414 | AB80: 2.513663594e-05 | AC80: 1.646048152e-05 | AD80: =+IF(INDEX($K80:$O80,1,aux!$AL$1)>0,(O80/INDEX($K80:$O80,1,aux!$AL$1))^(1/($O$3-INDEX($K$3:$O$3,1,aux!$AL$1)))-1,"n.d.") -> 0.03067271864 | AE80: =IF(INDEX($K80:$O80,1,aux!$AL$1)>0,(O80-INDEX($K80:$O80,1,aux!$AL$1))/INDEX($K80:$O80,1,aux!$AL$1),"n.d.") -> 0.1284520832 | AX80: 09
A81: 0905 | B81: Baunilha | C81: 9.433 | D81: 3.355 | E81: 1.496 | F81: 0.089 | G81: 0.369 | H81: 2.9484 | I81: 1.869289753e-05 | J81: 1.491671919e-05 | K81: 1.021 | L81: 0.574 | M81: 0.717 | N81: 0.432 | O81: 0.309 | P81: 0.6106 | Q81: 1.608480978e-06 | R81: 8.476039068e-07 | S81: -2.3378 | U81: =G81-INDEX($C81:$G81,1,aux!$AL$1) -> -9.064 | V81: 0.0001106539771 | W81: 8.306645501e-05 | X81: =+IF(INDEX($C81:$G81,1,aux!$AL$1)>0,(G81/INDEX($C81:$G81,1,aux!$AL$1))^(1/($G$3-INDEX($C$3:$G$3,1,aux!$AL$1)))-1,"n.d.") -> -0.5552723487 | Y81: =IF(INDEX($C81:$G81,1,aux!$AL$1)>0,(G81-INDEX($C81:$G81,1,aux!$AL$1))/INDEX($C81:$G81,1,aux!$AL$1),"n.d.") -> -0.96088201 | AA81: =O81-INDEX($K81:$O81,1,aux!$AL$1) -> -0.712 | AB81: -7.413953932e-06 | AC81: -4.85495561e-06 | AD81: =+IF(INDEX($K81:$O81,1,aux!$AL$1)>0,(O81/INDEX($K81:$O81,1,aux!$AL$1))^(1/($O$3-INDEX($K$3:$O$3,1,aux!$AL$1)))-1,"n.d.") -> -0.2582916225 | AE81: =IF(INDEX($K81:$O81,1,aux!$AL$1)>0,(O81-INDEX($K81:$O81,1,aux!$AL$1))/INDEX($K81:$O81,1,aux!$AL$1),"n.d.") -> -0.6973555338 | AX81: 09
A82: 0906 | B82: Canela | C82: 3.199 | D82: 1.82 | E82: 3.868 | F82: 0.33 | G82: 0.006 | H82: 1.8446 | I82: 1.169478998e-05 | J82: 9.332309122e-06 | K82: 10.863 | L82: 17.591 | M82: 25.104 | N82: 18.589 | O82: 21.977 | P82: 18.8248 | Q82: 4.958947382e-05 | R82: 2.613163122e-05 | S82: 16.9802 | U82: =G82-INDEX($C82:$G82,1,aux!$AL$1) -> -3.193 | V82: 3.898037829e-05 | W82: 2.926204665e-05 | X82: =+IF(INDEX($C82:$G82,1,aux!$AL$1)>0,(G82/INDEX($C82:$G82,1,aux!$AL$1))^(1/($G$3-INDEX($C$3:$G$3,1,aux!$AL$1)))-1,"n.d.") -> -0.7918941673 | Y82: =IF(INDEX($C82:$G82,1,aux!$AL$1)>0,(G82-INDEX($C82:$G82,1,aux!$AL$1))/INDEX($C82:$G82,1,aux!$AL$1),"n.d.") -> -0.9981244139 | AA82: =O82-INDEX($K82:$O82,1,aux!$AL$1) -> 11.114 | AB82: 0.0001157284888 | AC82: 7.578367507e-05 | AD82: =+IF(INDEX($K82:$O82,1,aux!$AL$1)>0,(O82/INDEX($K82:$O82,1,aux!$AL$1))^(1/($O$3-INDEX($K$3:$O$3,1,aux!$AL$1)))-1,"n.d.") -> 0.1926270549 | AE82: =IF(INDEX($K82:$O82,1,aux!$AL$1)>0,(O82-INDEX($K82:$O82,1,aux!$AL$1))/INDEX($K82:$O82,1,aux!$AL$1),"n.d.") -> 1.023105956 | AX82: 09
A83: 0907 | B83: Cravo-da-índia | C83: 0.95 | D83: 1.073 | E83: 0.019 | F83: 0 | G83: 0.015 | H83: 0.4114 | I83: 2.608281795e-06 | J83: 2.081379146e-06 | K83: 1.635 | L83: 2.581 | M83: 1.526 | N83: 0.742 | O83: 2.084 | P83: 1.7136 | Q83: 4.514073049e-06 | R83: 2.378732484e-06 | S83: 1.3022 | U83: =G83-INDEX($C83:$G83,1,aux!$AL$1) -> -0.935 | V83: 1.141454861e-05 | W83: 8.568748393e-06 | X83: =+IF(INDEX($C83:$G83,1,aux!$AL$1)>0,(G83/INDEX($C83:$G83,1,aux!$AL$1))^(1/($G$3-INDEX($C$3:$G$3,1,aux!$AL$1)))-1,"n.d.") -> -0.645519856 | Y83: =IF(INDEX($C83:$G83,1,aux!$AL$1)>0,(G83-INDEX($C83:$G83,1,aux!$AL$1))/INDEX($C83:$G83,1,aux!$AL$1),"n.d.") -> -0.9842105263 | AA83: =O83-INDEX($K83:$O83,1,aux!$AL$1) -> 0.449 | AB83: 4.675372634e-06 | AC83: 3.061622288e-06 | AD83: =+IF(INDEX($K83:$O83,1,aux!$AL$1)>0,(O83/INDEX($K83:$O83,1,aux!$AL$1))^(1/($O$3-INDEX($K$3:$O$3,1,aux!$AL$1)))-1,"n.d.") -> 0.06253926867 | AE83: =IF(INDEX($K83:$O83,1,aux!$AL$1)>0,(O83-INDEX($K83:$O83,1,aux!$AL$1))/INDEX($K83:$O83,1,aux!$AL$1),"n.d.") -> 0.274617737 | AX83: 09
A84: 0908 | B84: Noz-moscada, etc. | C84: 12.322 | D84: 22.768 | E84: 3.465 | F84: 0.18 | G84: 0.227 | H84: 7.7924 | I84: 4.940392576e-05 | J84: 3.942376971e-05 | K84: 2.818 | L84: 5.013 | M84: 4.881 | N84: 3.185 | O84: 3.551 | P84: 3.8896 | Q84: 1.02462293e-05 | R84: 5.399345162e-06 | S84: -3.9028 | U84: =G84-INDEX($C84:$G84,1,aux!$AL$1) -> -12.095 | V84: 0.0001476566475 | W84: 0.0001108438629 | X84: =+IF(INDEX($C84:$G84,1,aux!$AL$1)>0,(G84/INDEX($C84:$G84,1,aux!$AL$1))^(1/($G$3-INDEX($C$3:$G$3,1,aux!$AL$1)))-1,"n.d.") -> -0.6315859679 | Y84: =IF(INDEX($C84:$G84,1,aux!$AL$1)>0,(G84-INDEX($C84:$G84,1,aux!$AL$1))/INDEX($C84:$G84,1,aux!$AL$1),"n.d.") -> -0.981577666 | AA84: =O84-INDEX($K84:$O84,1,aux!$AL$1) -> 0.733 | AB84: 7.632623921e-06 | AC84: 4.998149525e-06 | AD84: =+IF(INDEX($K84:$O84,1,aux!$AL$1)>0,(O84/INDEX($K84:$O84,1,aux!$AL$1))^(1/($O$3-INDEX($K$3:$O$3,1,aux!$AL$1)))-1,"n.d.") -> 0.0595035614 | AE84: =IF(INDEX($K84:$O84,1,aux!$AL$1)>0,(O84-INDEX($K84:$O84,1,aux!$AL$1))/INDEX($K84:$O84,1,aux!$AL$1),"n.d.") -> 0.2601135557 | AX84: 09
A85: 0909 | B85: Sementes de anis, funcho, etc. | C85: 30.633 | D85: 25.557 | E85: 3.312 | F85: 0.775 | G85: 4.994 | H85: 13.0542 | I85: 8.276381188e-05 | J85: 6.604457863e-05 | K85: 2.816 | L85: 4.923 | M85: 7.45 | N85: 4.297 | O85: 5.249 | P85: 4.947 | Q85: 1.303169898e-05 | R85: 6.867174135e-06 | S85: -8.1072 | U85: =G85-INDEX($C85:$G85,1,aux!$AL$1) -> -25.639 | V85: 0.0003130027933 | W85: 0.0002349669947 | X85: =+IF(INDEX($C85:$G85,1,aux!$AL$1)>0,(G85/INDEX($C85:$G85,1,aux!$AL$1))^(1/($G$3-INDEX($C$3:$G$3,1,aux!$AL$1)))-1,"n.d.") -> -0.3645743355 | Y85: =IF(INDEX($C85:$G85,1,aux!$AL$1)>0,(G85-INDEX($C85:$G85,1,aux!$AL$1))/INDEX($C85:$G85,1,aux!$AL$1),"n.d.") -> -0.8369731988 | AA85: =O85-INDEX($K85:$O85,1,aux!$AL$1) -> 2.433 | AB85: 2.533448022e-05 | AC85: 1.659003792e-05 | AD85: =+IF(INDEX($K85:$O85,1,aux!$AL$1)>0,(O85/INDEX($K85:$O85,1,aux!$AL$1))^(1/($O$3-INDEX($K$3:$O$3,1,aux!$AL$1)))-1,"n.d.") -> 0.1684522806 | AE85: =IF(INDEX($K85:$O85,1,aux!$AL$1)>0,(O85-INDEX($K85:$O85,1,aux!$AL$1))/INDEX($K85:$O85,1,aux!$AL$1),"n.d.") -> 0.8639914773 | AX85: 09
A86: 0910 | B86: Gengibre, açafrão, tomilho, louro, etc. | C86: 562.602 | D86: 655.845 | E86: 146.42 | F86: 47.551 | G86: 20.033 | H86: 286.4902 | I86: 0.001816351903 | J86: 0.001449428118 | K86: 40.353 | L86: 50.775 | M86: 54.605 | N86: 40.684 | O86: 46.484 | P86: 46.5802 | Q86: 0.0001227044967 | R86: 6.466026777e-05 | S86: -239.91 | U86: =G86-INDEX($C86:$G86,1,aux!$AL$1) -> -542.569 | V86: 0.006623722164 | W86: 0.004972339301 | X86: =+IF(INDEX($C86:$G86,1,aux!$AL$1)>0,(G86/INDEX($C86:$G86,1,aux!$AL$1))^(1/($G$3-INDEX($C$3:$G$3,1,aux!$AL$1)))-1,"n.d.") -> -0.5656036376 | Y86: =IF(INDEX($C86:$G86,1,aux!$AL$1)>0,(G86-INDEX($C86:$G86,1,aux!$AL$1))/INDEX($C86:$G86,1,aux!$AL$1),"n.d.") -> -0.9643922347 | AA86: =O86-INDEX($K86:$O86,1,aux!$AL$1) -> 6.131 | AB86: 6.38412241e-05 | AC86: 4.180580456e-05 | AD86: =+IF(INDEX($K86:$O86,1,aux!$AL$1)>0,(O86/INDEX($K86:$O86,1,aux!$AL$1))^(1/($O$3-INDEX($K$3:$O$3,1,aux!$AL$1)))-1,"n.d.") -> 0.03599322733 | AE86: =IF(INDEX($K86:$O86,1,aux!$AL$1)>0,(O86-INDEX($K86:$O86,1,aux!$AL$1))/INDEX($K86:$O86,1,aux!$AL$1),"n.d.") -> 0.1519341809 | AX86: 09
A87: 09SS | B87: Café, chá, mate e especiarias | C87: 0 | D87: 0 | E87: 0 | F87: 0 | G87: 0 | H87: 0 | I87: 0 | J87: 0 | K87: 0 | L87: 0 | M87: 0 | N87: 0 | O87: 0 | P87: 0 | Q87: 0 | R87: 0 | S87: 0 | U87: =G87-INDEX($C87:$G87,1,aux!$AL$1) -> 0 | V87: 0 | W87: 0 | X87: =+IF(INDEX($C87:$G87,1,aux!$AL$1)>0,(G87/INDEX($C87:$G87,1,aux!$AL$1))^(1/($G$3-INDEX($C$3:$G$3,1,aux!$AL$1)))-1,"n.d.") -> n.d. | Y87: =IF(INDEX($C87:$G87,1,aux!$AL$1)>0,(G87-INDEX($C87:$G87,1,aux!$AL$1))/INDEX($C87:$G87,1,aux!$AL$1),"n.d.") -> n.d. | AA87: =O87-INDEX($K87:$O87,1,aux!$AL$1) -> 0 | AB87: 0 | AC87: 0 | AD87: =+IF(INDEX($K87:$O87,1,aux!$AL$1)>0,(O87/INDEX($K87:$O87,1,aux!$AL$1))^(1/($O$3-INDEX($K$3:$O$3,1,aux!$AL$1)))-1,"n.d.") -> n.d. | AE87: =IF(INDEX($K87:$O87,1,aux!$AL$1)>0,(O87-INDEX($K87:$O87,1,aux!$AL$1))/INDEX($K87:$O87,1,aux!$AL$1),"n.d.") -> n.d. | AX87: 09
A88: 1001 | B88: Trigo e mistura trigo/centeio | C88: 26372.329 | D88: 5209.942 | E88: 7694.093 | F88: 22063.105 | G88: 33218.742 | H88: 18911.6422 | I88: 0.1199000779 | J88: 0.0956788957 | K88: 0 | L88: 0 | M88: 0.945 | N88: 0 | O88: 0.695 | P88: 0.328 | Q88: 8.640382588e-07 | R88: 4.553129404e-07 | S88: -18911.3142 | U88: =G88-INDEX($C88:$G88,1,aux!$AL$1) -> 6846.413 | V88: -0.08358151227 | W88: -0.06274351913 | X88: =+IF(INDEX($C88:$G88,1,aux!$AL$1)>0,(G88/INDEX($C88:$G88,1,aux!$AL$1))^(1/($G$3-INDEX($C$3:$G$3,1,aux!$AL$1)))-1,"n.d.") -> 0.05939684238 | Y88: =IF(INDEX($C88:$G88,1,aux!$AL$1)>0,(G88-INDEX($C88:$G88,1,aux!$AL$1))/INDEX($C88:$G88,1,aux!$AL$1),"n.d.") -> 0.2596059301 | AA88: =O88-INDEX($K88:$O88,1,aux!$AL$1) -> 0.695 | AB88: 7.236935369e-06 | AC88: 4.739036726e-06 | AD88: =+IF(INDEX($K88:$O88,1,aux!$AL$1)>0,(O88/INDEX($K88:$O88,1,aux!$AL$1))^(1/($O$3-INDEX($K$3:$O$3,1,aux!$AL$1)))-1,"n.d.") -> n.d. | AE88: =IF(INDEX($K88:$O88,1,aux!$AL$1)>0,(O88-INDEX($K88:$O88,1,aux!$AL$1))/INDEX($K88:$O88,1,aux!$AL$1),"n.d.") -> n.d. | AX88: 10
A89: 1002 | B89: Centeio | C89: 0 | D89: 0 | E89: 0 | F89: 0 | G89: 0 | H89: 0 | I89: 0 | J89: 0 | K89: 0 | L89: 0 | M89: 0 | N89: 0 | O89: 0 | P89: 0 | Q89: 0 | R89: 0 | S89: 0 | U89: =G89-INDEX($C89:$G89,1,aux!$AL$1) -> 0 | V89: 0 | W89: 0 | X89: =+IF(INDEX($C89:$G89,1,aux!$AL$1)>0,(G89/INDEX($C89:$G89,1,aux!$AL$1))^(1/($G$3-INDEX($C$3:$G$3,1,aux!$AL$1)))-1,"n.d.") -> n.d. | Y89: =IF(INDEX($C89:$G89,1,aux!$AL$1)>0,(G89-INDEX($C89:$G89,1,aux!$AL$1))/INDEX($C89:$G89,1,aux!$AL$1),"n.d.") -> n.d. | AA89: =O89-INDEX($K89:$O89,1,aux!$AL$1) -> 0 | AB89: 0 | AC89: 0 | AD89: =+IF(INDEX($K89:$O89,1,aux!$AL$1)>0,(O89/INDEX($K89:$O89,1,aux!$AL$1))^(1/($O$3-INDEX($K$3:$O$3,1,aux!$AL$1)))-1,"n.d.") -> n.d. | AE89: =IF(INDEX($K89:$O89,1,aux!$AL$1)>0,(O89-INDEX($K89:$O89,1,aux!$AL$1))/INDEX($K89:$O89,1,aux!$AL$1),"n.d.") -> n.d. | AX89: 10
A90: 1003 | B90: Cevada | C90: 25802.829 | D90: 40403.968 | E90: 28030.523 | F90: 37095.675 | G90: 18753.735 | H90: 30017.346 | I90: 0.1903103965 | J90: 0.1518655274 | K90: 0.799 | L90: 0.644 | M90: 2.028 | N90: 0 | O90: 0.316 | P90: 0.7574 | Q90: 1.995190784e-06 | R90: 1.051384211e-06 | S90: -30016.5886 | U90: =G90-INDEX($C90:$G90,1,aux!$AL$1) -> -7049.094 | V90: 0.08605585679 | W90: 0.06460097634 | X90: =+IF(INDEX($C90:$G90,1,aux!$AL$1)>0,(G90/INDEX($C90:$G90,1,aux!$AL$1))^(1/($G$3-INDEX($C$3:$G$3,1,aux!$AL$1)))-1,"n.d.") -> -0.07667389879 | Y90: =IF(INDEX($C90:$G90,1,aux!$AL$1)>0,(G90-INDEX($C90:$G90,1,aux!$AL$1))/INDEX($C90:$G90,1,aux!$AL$1),"n.d.") -> -0.273190742 | AA90: =O90-INDEX($K90:$O90,1,aux!$AL$1) -> -0.483 | AB90: -5.02940976e-06 | AC90: -3.293460056e-06 | AD90: =+IF(INDEX($K90:$O90,1,aux!$AL$1)>0,(O90/INDEX($K90:$O90,1,aux!$AL$1))^(1/($O$3-INDEX($K$3:$O$3,1,aux!$AL$1)))-1,"n.d.") -> -0.2069782919 | AE90: =IF(INDEX($K90:$O90,1,aux!$AL$1)>0,(O90-INDEX($K90:$O90,1,aux!$AL$1))/INDEX($K90:$O90,1,aux!$AL$1),"n.d.") -> -0.604505632 | AX90: 10
A91: 1004 | B91: Aveia | C91: 2.103 | D91: 4.111 | E91: 0.07 | F91: 0.179 | G91: 0.039 | H91: 1.3004 | I91: 8.244554317e-06 | J91: 6.579060383e-06 | K91: 0 | L91: 0 | M91: 0 | N91: 0 | O91: 0 | P91: 0 | Q91: 0 | R91: 0 | S91: -1.3004 | U91: =G91-INDEX($C91:$G91,1,aux!$AL$1) -> -2.064 | V91: 2.519746345e-05 | W91: 1.891539752e-05 | X91: =+IF(INDEX($C91:$G91,1,aux!$AL$1)>0,(G91/INDEX($C91:$G91,1,aux!$AL$1))^(1/($G$3-INDEX($C$3:$G$3,1,aux!$AL$1)))-1,"n.d.") -> -0.6309745372 | Y91: =IF(INDEX($C91:$G91,1,aux!$AL$1)>0,(G91-INDEX($C91:$G91,1,aux!$AL$1))/INDEX($C91:$G91,1,aux!$AL$1),"n.d.") -> -0.9814550642 | AA91: =O91-INDEX($K91:$O91,1,aux!$AL$1) -> 0 | AB91: 0 | AC91: 0 | AD91: =+IF(INDEX($K91:$O91,1,aux!$AL$1)>0,(O91/INDEX($K91:$O91,1,aux!$AL$1))^(1/($O$3-INDEX($K$3:$O$3,1,aux!$AL$1)))-1,"n.d.") -> n.d. | AE91: =IF(INDEX($K91:$O91,1,aux!$AL$1)>0,(O91-INDEX($K91:$O91,1,aux!$AL$1))/INDEX($K91:$O91,1,aux!$AL$1),"n.d.") -> n.d. | AX91: 10
A92: 1005 | B92: Milho | C92: 4714.708 | D92: 2.088 | E92: 0.307 | F92: 0.202 | G92: 0.251 | H92: 943.5112 | I92: 0.005981874298 | J92: 0.004773467515 | K92: 2.569 | L92: 2.507 | M92: 5.38 | N92: 4.852 | O92: 5605.317 | P92: 1124.125 | Q92: 0.002961240877 | R92: 0.001560453229 | S92: 180.6138 | U92: =G92-INDEX($C92:$G92,1,aux!$AL$1) -> -4714.457 | V92: 0.05755443699 | W92: 0.04320534315 | X92: =+IF(INDEX($C92:$G92,1,aux!$AL$1)>0,(G92/INDEX($C92:$G92,1,aux!$AL$1))^(1/($G$3-INDEX($C$3:$G$3,1,aux!$AL$1)))-1,"n.d.") -> -0.9145809513 | Y92: =IF(INDEX($C92:$G92,1,aux!$AL$1)>0,(G92-INDEX($C92:$G92,1,aux!$AL$1))/INDEX($C92:$G92,1,aux!$AL$1),"n.d.") -> -0.9999467623 | AA92: =O92-INDEX($K92:$O92,1,aux!$AL$1) -> 5602.748 | AB92: 0.05834061175 | AC92: 0.03820378207 | AD92: =+IF(INDEX($K92:$O92,1,aux!$AL$1)>0,(O92/INDEX($K92:$O92,1,aux!$AL$1))^(1/($O$3-INDEX($K$3:$O$3,1,aux!$AL$1)))-1,"n.d.") -> 5.834535734 | AE92: =IF(INDEX($K92:$O92,1,aux!$AL$1)>0,(O92-INDEX($K92:$O92,1,aux!$AL$1))/INDEX($K92:$O92,1,aux!$AL$1),"n.d.") -> 2180.906189 | AX92: 10
A93: 1006 | B93: Arroz | C93: 2214.535 | D93: 1414.085 | E93: 181.874 | F93: 12.776 | G93: 2.282 | H93: 765.1104 | I93: 0.004850810713 | J93: 0.003870891665 | K93: 5871.384 | L93: 7685.742 | M93: 5567.16 | N93: 5057.821 | O93: 8790.353 | P93: 6594.492 | Q93: 0.01737162617 | R93: 0.009154138851 | S93: 5829.3816 | U93: =G93-INDEX($C93:$G93,1,aux!$AL$1) -> -2212.253 | V93: 0.02700734695 | W93: 0.02027405277 | X93: =+IF(INDEX($C93:$G93,1,aux!$AL$1)>0,(G93/INDEX($C93:$G93,1,aux!$AL$1))^(1/($G$3-INDEX($C$3:$G$3,1,aux!$AL$1)))-1,"n.d.") -> -0.8208328964 | Y93: =IF(INDEX($C93:$G93,1,aux!$AL$1)>0,(G93-INDEX($C93:$G93,1,aux!$AL$1))/INDEX($C93:$G93,1,aux!$AL$1),"n.d.") -> -0.9989695354 | AA93: =O93-INDEX($K93:$O93,1,aux!$AL$1) -> 2918.969 | AB93: 0.03039480575 | AC93: 0.01990374287 | AD93: =+IF(INDEX($K93:$O93,1,aux!$AL$1)>0,(O93/INDEX($K93:$O93,1,aux!$AL$1))^(1/($O$3-INDEX($K$3:$O$3,1,aux!$AL$1)))-1,"n.d.") -> 0.1061561994 | AE93: =IF(INDEX($K93:$O93,1,aux!$AL$1)>0,(O93-INDEX($K93:$O93,1,aux!$AL$1))/INDEX($K93:$O93,1,aux!$AL$1),"n.d.") -> 0.4971517789 | AX93: 10
A94: 1007 | B94: Sorgo de grão | C94: 0 | D94: 0 | E94: 0 | F94: 0 | G94: 0 | H94: 0 | I94: 0 | J94: 0 | K94: 0 | L94: 0 | M94: 0 | N94: 0 | O94: 0 | P94: 0 | Q94: 0 | R94: 0 | S94: 0 | U94: =G94-INDEX($C94:$G94,1,aux!$AL$1) -> 0 | V94: 0 | W94: 0 | X94: =+IF(INDEX($C94:$G94,1,aux!$AL$1)>0,(G94/INDEX($C94:$G94,1,aux!$AL$1))^(1/($G$3-INDEX($C$3:$G$3,1,aux!$AL$1)))-1,"n.d.") -> n.d. | Y94: =IF(INDEX($C94:$G94,1,aux!$AL$1)>0,(G94-INDEX($C94:$G94,1,aux!$AL$1))/INDEX($C94:$G94,1,aux!$AL$1),"n.d.") -> n.d. | AA94: =O94-INDEX($K94:$O94,1,aux!$AL$1) -> 0 | AB94: 0 | AC94: 0 | AD94: =+IF(INDEX($K94:$O94,1,aux!$AL$1)>0,(O94/INDEX($K94:$O94,1,aux!$AL$1))^(1/($O$3-INDEX($K$3:$O$3,1,aux!$AL$1)))-1,"n.d.") -> n.d. | AE94: =IF(INDEX($K94:$O94,1,aux!$AL$1)>0,(O94-INDEX($K94:$O94,1,aux!$AL$1))/INDEX($K94:$O94,1,aux!$AL$1),"n.d.") -> n.d. | AX94: 10
A95: 1008 | B95: Trigo mourisco, painço e outros cereais | C95: 65.502 | D95: 48.979 | E95: 140.552 | F95: 139.012 | G95: 0 | H95: 78.809 | I95: 0.0004996501701 | J95: 0.0003987151413 | K95: 0.686 | L95: 1.468 | M95: 0.117 | N95: 0.417 | O95: 0.074 | P95: 0.5524 | Q95: 1.455166872e-06 | R95: 7.668136228e-07 | S95: -78.2566 | U95: =G95-INDEX($C95:$G95,1,aux!$AL$1) -> -65.502 | V95: 0.0007996532224 | W95: 0.0006002889382 | X95: =+IF(INDEX($C95:$G95,1,aux!$AL$1)>0,(G95/INDEX($C95:$G95,1,aux!$AL$1))^(1/($G$3-INDEX($C$3:$G$3,1,aux!$AL$1)))-1,"n.d.") -> -1 | Y95: =IF(INDEX($C95:$G95,1,aux!$AL$1)>0,(G95-INDEX($C95:$G95,1,aux!$AL$1))/INDEX($C95:$G95,1,aux!$AL$1),"n.d.") -> -1 | AA95: =O95-INDEX($K95:$O95,1,aux!$AL$1) -> -0.612 | AB95: -6.372668267e-06 | AC95: -4.173079822e-06 | AD95: =+IF(INDEX($K95:$O95,1,aux!$AL$1)>0,(O95/INDEX($K95:$O95,1,aux!$AL$1))^(1/($O$3-INDEX($K$3:$O$3,1,aux!$AL$1)))-1,"n.d.") -> -0.4269046285 | AE95: =IF(INDEX($K95:$O95,1,aux!$AL$1)>0,(O95-INDEX($K95:$O95,1,aux!$AL$1))/INDEX($K95:$O95,1,aux!$AL$1),"n.d.") -> -0.8921282799 | AX95: 10
A96: 10SS | B96: Cereais | C96: 0 | D96: 0 | E96: 0 | F96: 0 | G96: 0 | H96: 0 | I96: 0 | J96: 0 | K96: 0 | L96: 0 | M96: 0 | N96: 0 | O96: 0 | P96: 0 | Q96: 0 | R96: 0 | S96: 0 | U96: =G96-INDEX($C96:$G96,1,aux!$AL$1) -> 0 | V96: 0 | W96: 0 | X96: =+IF(INDEX($C96:$G96,1,aux!$AL$1)>0,(G96/INDEX($C96:$G96,1,aux!$AL$1))^(1/($G$3-INDEX($C$3:$G$3,1,aux!$AL$1)))-1,"n.d.") -> n.d. | Y96: =IF(INDEX($C96:$G96,1,aux!$AL$1)>0,(G96-INDEX($C96:$G96,1,aux!$AL$1))/INDEX($C96:$G96,1,aux!$AL$1),"n.d.") -> n.d. | AA96: =O96-INDEX($K96:$O96,1,aux!$AL$1) -> 0 | AB96: 0 | AC96: 0 | AD96: =+IF(INDEX($K96:$O96,1,aux!$AL$1)>0,(O96/INDEX($K96:$O96,1,aux!$AL$1))^(1/($O$3-INDEX($K$3:$O$3,1,aux!$AL$1)))-1,"n.d.") -> n.d. | AE96: =IF(INDEX($K96:$O96,1,aux!$AL$1)>0,(O96-INDEX($K96:$O96,1,aux!$AL$1))/INDEX($K96:$O96,1,aux!$AL$1),"n.d.") -> n.d. | AX96: 10
A97: 1101 | B97: Farinhas de trigo ou trigo/centeio | C97: 72.688 | D97: 27.971 | E97: 431.32 | F97: 13.381 | G97: 15.766 | H97: 112.2252 | I97: 0.0007115093488 | J97: 0.0005677763513 | K97: 59.182 | L97: 104.752 | M97: 141.214 | N97: 168.85 | O97: 189.132 | P97: 132.626 | Q97: 0.0003493717625 | R97: 0.0001841046769 | S97: 20.4008 | U97: =G97-INDEX($C97:$G97,1,aux!$AL$1) -> -56.922 | V97: 0.0006949079528 | W97: 0.0005216580706 | X97: =+IF(INDEX($C97:$G97,1,aux!$AL$1)>0,(G97/INDEX($C97:$G97,1,aux!$AL$1))^(1/($G$3-INDEX($C$3:$G$3,1,aux!$AL$1)))-1,"n.d.") -> -0.3175596443 | Y97: =IF(INDEX($C97:$G97,1,aux!$AL$1)>0,(G97-INDEX($C97:$G97,1,aux!$AL$1))/INDEX($C97:$G97,1,aux!$AL$1),"n.d.") -> -0.7831003742 | AA97: =O97-INDEX($K97:$O97,1,aux!$AL$1) -> 129.95 | AB97: 0.001353150721 | AC97: 0.0008860975864 | AD97: =+IF(INDEX($K97:$O97,1,aux!$AL$1)>0,(O97/INDEX($K97:$O97,1,aux!$AL$1))^(1/($O$3-INDEX($K$3:$O$3,1,aux!$AL$1)))-1,"n.d.") -> 0.3370382889 | AE97: =IF(INDEX($K97:$O97,1,aux!$AL$1)>0,(O97-INDEX($K97:$O97,1,aux!$AL$1))/INDEX($K97:$O97,1,aux!$AL$1),"n.d.") -> 2.195768984 | AX97: 11
A98: 1102 | B98: Outras farinhas de cereais | C98: 91.645 | D98: 25.695 | E98: 62.78 | F98: 47.066 | G98: 74.986 | H98: 60.4344 | I98: 0.0003831549473 | J98: 0.0003057532811 | K98: 172.023 | L98: 242.364 | M98: 737.337 | N98: 775.138 | O98: 2237.093 | P98: 832.791 | Q98: 0.002193790505 | R98: 0.001156038168 | S98: 772.3566 | U98: =G98-INDEX($C98:$G98,1,aux!$AL$1) -> -16.659 | V98: 0.0002033742944 | W98: 0.0001526703524 | X98: =+IF(INDEX($C98:$G98,1,aux!$AL$1)>0,(G98/INDEX($C98:$G98,1,aux!$AL$1))^(1/($G$3-INDEX($C$3:$G$3,1,aux!$AL$1)))-1,"n.d.") -> -0.04891823955 | Y98: =IF(INDEX($C98:$G98,1,aux!$AL$1)>0,(G98-INDEX($C98:$G98,1,aux!$AL$1))/INDEX($C98:$G98,1,aux!$AL$1),"n.d.") -> -0.181777511 | AA98: =O98-INDEX($K98:$O98,1,aux!$AL$1) -> 2065.07 | AB98: 0.02150327787 | AC98: 0.01408121233 | AD98: =+IF(INDEX($K98:$O98,1,aux!$AL$1)>0,(O98/INDEX($K98:$O98,1,aux!$AL$1))^(1/($O$3-INDEX($K$3:$O$3,1,aux!$AL$1)))-1,"n.d.") -> 0.8989974449 | AE98: =IF(INDEX($K98:$O98,1,aux!$AL$1)>0,(O98-INDEX($K98:$O98,1,aux!$AL$1))/INDEX($K98:$O98,1,aux!$AL$1),"n.d.") -> 12.00461566 | AX98: 11
A99: 1103 | B99: Grumos, sêmolas, etc. de cereais | C99: 44.562 | D99: 44.877 | E99: 2.598 | F99: 186.657 | G99: 419.149 | H99: 139.5686 | I99: 0.0008848668899 | J99: 0.0007061136935 | K99: 0.266 | L99: 0.857 | M99: 8.587 | N99: 0.891 | O99: 4.594 | P99: 3.039 | Q99: 8.005525209e-06 | R99: 4.218585445e-06 | S99: -136.5296 | U99: =G99-INDEX($C99:$G99,1,aux!$AL$1) -> 374.587 | V99: -0.004572985582 | W99: -0.003432878881 | X99: =+IF(INDEX($C99:$G99,1,aux!$AL$1)>0,(G99/INDEX($C99:$G99,1,aux!$AL$1))^(1/($G$3-INDEX($C$3:$G$3,1,aux!$AL$1)))-1,"n.d.") -> 0.7512612574 | Y99: =IF(INDEX($C99:$G99,1,aux!$AL$1)>0,(G99-INDEX($C99:$G99,1,aux!$AL$1))/INDEX($C99:$G99,1,aux!$AL$1),"n.d.") -> 8.4059737 | AA99: =O99-INDEX($K99:$O99,1,aux!$AL$1) -> 4.328 | AB99: 4.506684356e-05 | AC99: 2.95115841e-05 | AD99: =+IF(INDEX($K99:$O99,1,aux!$AL$1)>0,(O99/INDEX($K99:$O99,1,aux!$AL$1))^(1/($O$3-INDEX($K$3:$O$3,1,aux!$AL$1)))-1,"n.d.") -> 1.038578026 | AE99: =IF(INDEX($K99:$O99,1,aux!$AL$1)>0,(O99-INDEX($K99:$O99,1,aux!$AL$1))/INDEX($K99:$O99,1,aux!$AL$1),"n.d.") -> 16.27067669 | AX99: 11
A100: 1104 | B100: Grãos de cereais processados | C100: 1885.31 | D100: 1197.191 | E100: 1076.025 | F100: 949.673 | G100: 1626.181 | H100: 1346.876 | I100: 0.008539212812 | J100: 0.006814194503 | K100: 145.039 | L100: 152.681 | M100: 21.821 | N100: 7.535 | O100: 15.388 | P100: 68.4928 | Q100: 0.0001804280477 | R100: 9.507822611e-05 | S100: -1278.3832 | U100: =G100-INDEX($C100:$G100,1,aux!$AL$1) -> -259.129 | V100: 0.003163465846 | W100: 0.002374771339 | X100: =+IF(INDEX($C100:$G100,1,aux!$AL$1)>0,(G100/INDEX($C100:$G100,1,aux!$AL$1))^(1/($G$3-INDEX($C$3:$G$3,1,aux!$AL$1)))-1,"n.d.") -> -0.0362896397 | Y100: =IF(INDEX($C100:$G100,1,aux!$AL$1)>0,(G100-INDEX($C100:$G100,1,aux!$AL$1))/INDEX($C100:$G100,1,aux!$AL$1),"n.d.") -> -0.1374463616 | AA100: =O100-INDEX($K100:$O100,1,aux!$AL$1) -> -129.651 | AB100: -0.001350037277 | AC100: -0.0008840587778 | AD100: =+IF(INDEX($K100:$O100,1,aux!$AL$1)>0,(O100/INDEX($K100:$O100,1,aux!$AL$1))^(1/($O$3-INDEX($K$3:$O$3,1,aux!$AL$1)))-1,"n.d.") -> -0.4292783531 | AE100: =IF(INDEX($K100:$O100,1,aux!$AL$1)>0,(O100-INDEX($K100:$O100,1,aux!$AL$1))/INDEX($K100:$O100,1,aux!$AL$1),"n.d.") -> -0.8939043981 | AX100: 11
A101: 1105 | B101: Farinha, sêmola, etc. de batata | C101: 151.461 | D101: 4.17 | E101: 0.033 | F101: 0.144 | G101: 0.265 | H101: 31.2146 | I101: 0.0001979010037 | J101: 0.0001579227455 | K101: 4.166 | L101: 4.001 | M101: 2.637 | N101: 0.88 | O101: 0.827 | P101: 2.5022 | Q101: 6.591452839e-06 | R101: 3.47342695e-06 | S101: -28.7124 | U101: =G101-INDEX($C101:$G101,1,aux!$AL$1) -> -151.196 | V101: 0.001845811862 | W101: 0.001385626184 | X101: =+IF(INDEX($C101:$G101,1,aux!$AL$1)>0,(G101/INDEX($C101:$G101,1,aux!$AL$1))^(1/($G$3-INDEX($C$3:$G$3,1,aux!$AL$1)))-1,"n.d.") -> -0.7954797742 | Y101: =IF(INDEX($C101:$G101,1,aux!$AL$1)>0,(G101-INDEX($C101:$G101,1,aux!$AL$1))/INDEX($C101:$G101,1,aux!$AL$1),"n.d.") -> -0.9982503747 | AA101: =O101-INDEX($K101:$O101,1,aux!$AL$1) -> -3.339 | AB101: -3.476852834e-05 | AC101: -2.276783256e-05 | AD101: =+IF(INDEX($K101:$O101,1,aux!$AL$1)>0,(O101/INDEX($K101:$O101,1,aux!$AL$1))^(1/($O$3-INDEX($K$3:$O$3,1,aux!$AL$1)))-1,"n.d.") -> -0.3325072377 | AE101: =IF(INDEX($K101:$O101,1,aux!$AL$1)>0,(O101-INDEX($K101:$O101,1,aux!$AL$1))/INDEX($K101:$O101,1,aux!$AL$1),"n.d.") -> -0.8014882381 | AX101: 11
A102: 1106 | B102: Farinhas, etc. de leguminosas e outros tubérculos | C102: 33.781 | D102: 223.895 | E102: 18.125 | F102: 1.806 | G102: 1.424 | H102: 55.8062 | I102: 0.0003538120941 | J102: 0.0002823380187 | K102: 7.328 | L102: 46.868 | M102: 19.019 | N102: 15.542 | O102: 166.699 | P102: 51.0912 | Q102: 0.000134587657 | R102: 7.092220884e-05 | S102: -4.715 | U102: =G102-INDEX($C102:$G102,1,aux!$AL$1) -> -32.357 | V102: 0.0003950166303 | W102: 0.000296533681 | X102: =+IF(INDEX($C102:$G102,1,aux!$AL$1)>0,(G102/INDEX($C102:$G102,1,aux!$AL$1))^(1/($G$3-INDEX($C$3:$G$3,1,aux!$AL$1)))-1,"n.d.") -> -0.546884027 | Y102: =IF(INDEX($C102:$G102,1,aux!$AL$1)>0,(G102-INDEX($C102:$G102,1,aux!$AL$1))/INDEX($C102:$G102,1,aux!$AL$1),"n.d.") -> -0.9578461265 | AA102: =O102-INDEX($K102:$O102,1,aux!$AL$1) -> 159.371 | AB102: 0.001659507376 | AC102: 0.001086712262 | AD102: =+IF(INDEX($K102:$O102,1,aux!$AL$1)>0,(O102/INDEX($K102:$O102,1,aux!$AL$1))^(1/($O$3-INDEX($K$3:$O$3,1,aux!$AL$1)))-1,"n.d.") -> 1.183920794 | AE102: =IF(INDEX($K102:$O102,1,aux!$AL$1)>0,(O102-INDEX($K102:$O102,1,aux!$AL$1))/INDEX($K102:$O102,1,aux!$AL$1),"n.d.") -> 21.74822598 | AX102: 11
A103: 1107 | B103: Malte, mesmo torrado | C103: 345.471 | D103: 260.027 | E103: 360.159 | F103: 235.702 | G103: 500.904 | H103: 340.4526 | I103: 0.002158474279 | J103: 0.001722437875 | K103: 0 | L103: 0 | M103: 0 | N103: 0 | O103: 0 | P103: 0 | Q103: 0 | R103: 0 | S103: -340.4526 | U103: =G103-INDEX($C103:$G103,1,aux!$AL$1) -> 155.433 | V103: -0.001897537469 | W103: -0.001424455903 | X103: =+IF(INDEX($C103:$G103,1,aux!$AL$1)>0,(G103/INDEX($C103:$G103,1,aux!$AL$1))^(1/($G$3-INDEX($C$3:$G$3,1,aux!$AL$1)))-1,"n.d.") -> 0.09732614199 | Y103: =IF(INDEX($C103:$G103,1,aux!$AL$1)>0,(G103-INDEX($C103:$G103,1,aux!$AL$1))/INDEX($C103:$G103,1,aux!$AL$1),"n.d.") -> 0.4499162014 | AA103: =O103-INDEX($K103:$O103,1,aux!$AL$1) -> 0 | AB103: 0 | AC103: 0 | AD103: =+IF(INDEX($K103:$O103,1,aux!$AL$1)>0,(O103/INDEX($K103:$O103,1,aux!$AL$1))^(1/($O$3-INDEX($K$3:$O$3,1,aux!$AL$1)))-1,"n.d.") -> n.d. | AE103: =IF(INDEX($K103:$O103,1,aux!$AL$1)>0,(O103-INDEX($K103:$O103,1,aux!$AL$1))/INDEX($K103:$O103,1,aux!$AL$1),"n.d.") -> n.d. | AX103: 11
A104: 1108 | B104: Amidos e féculas; inulina | C104: 20.822 | D104: 1.422 | E104: 0.225 | F104: 0.101 | G104: 26.107 | H104: 9.7354 | I104: 6.172257313e-05 | J104: 4.925390991e-05 | K104: 459.78 | L104: 376.121 | M104: 80.768 | N104: 250.304 | O104: 524.429 | P104: 338.2804 | Q104: 0.000891119536 | R104: 0.0004695836695 | S104: 328.545 | U104: =G104-INDEX($C104:$G104,1,aux!$AL$1) -> 5.285 | V104: -6.45196678e-05 | W104: -4.84340484e-05 | X104: =+IF(INDEX($C104:$G104,1,aux!$AL$1)>0,(G104/INDEX($C104:$G104,1,aux!$AL$1))^(1/($G$3-INDEX($C$3:$G$3,1,aux!$AL$1)))-1,"n.d.") -> 0.05817776523 | Y104: =IF(INDEX($C104:$G104,1,aux!$AL$1)>0,(G104-INDEX($C104:$G104,1,aux!$AL$1))/INDEX($C104:$G104,1,aux!$AL$1),"n.d.") -> 0.253818077 | AA104: =O104-INDEX($K104:$O104,1,aux!$AL$1) -> 64.649 | AB104: 0.0006731807693 | AC104: 0.0004408258781 | AD104: =+IF(INDEX($K104:$O104,1,aux!$AL$1)>0,(O104/INDEX($K104:$O104,1,aux!$AL$1))^(1/($O$3-INDEX($K$3:$O$3,1,aux!$AL$1)))-1,"n.d.") -> 0.03343735549 | AE104: =IF(INDEX($K104:$O104,1,aux!$AL$1)>0,(O104-INDEX($K104:$O104,1,aux!$AL$1))/INDEX($K104:$O104,1,aux!$AL$1),"n.d.") -> 0.1406085519 | AX104: 11
